Workbook

Sheet M&A
A1: Avoided Cost Data Set | C1: Options
A2: AESC 2018 | C2: PUC (Base) | D2: PUC (High) | E2: Scen 2+3 | F2: Scen 4 | G2: Rebuttal | H2: EMT As Filed | I2: AESC 2018
A4: Net or Gross
A5: Gross | C5: Net | D5: Gross
A7: Include Incentives to Freeriders as Cost
A8: Yes | C8: Yes | D8: No
A10: Year 1
A11: 2020 | C11: >=2018
A13: Default Discount Rate | C13: PUC | D13: AESC | E13: 10 yr + 2% - inflation
A14: 2.8 | C14: 6.5 | D14: 2.43 | E14: 2.8
A16: RGGI Discount Rate
A17: 2.8
A19: Avoided Costs are in Real Dollars. Discount Rates must be enter as real discount rate.

Sheet Measures
BC1: =$AF1 -> 0 | BE1: =$AG1 -> 0 | BR1: AF<row> | BS1: AG<row> | DR1: 1 | DS1: 2 | DT1: 3 | DU1: 4 | DV1: 5 | DW1: 6 | DX1: 7 | DY1: 8 | DZ1: 9 | EA1: 10 | ED1: 1 | EE1: 2 | EF1: 3 | EG1: 4 | EH1: 5 | EI1: 6 | EJ1: 7 | EK1: 8 | EL1: 9 | EM1: 10 | EN1: 1 | EO1: 2 | EP1: 3 | EQ1: 4 | ER1: 5 | ES1: 6 | ET1: 7 | EU1: 8 | EV1: 9 | EW1: 10 | EX1: 1 | EY1: 2 | EZ1: 3 | FA1: 4 | FB1: 5 | FC1: 6 | FD1: 7 | FE1: 8 | FF1: 9 | FG1: 10 | FH1: 1 | FI1: 2 | FJ1: 3 | FK1: 4 | FL1: 5 | FM1: 6 | FN1: 7 | FO1: 8 | FP1: 9 | FQ1: 10 | FR1: 1 | FS1: 2 | FT1: 3 | FU1: 4 | FV1: 5 | FW1: 6 | FX1: 7 | FY1: 8 | FZ1: 9 | GA1: 10 | GB1: 1 | GC1: 2 | GD1: 3 | GE1: 4 | GF1: 5 | GG1: 6 | GH1: 7 | GI1: 8 | GJ1: 9 | GK1: 10 | GL1: 1 | GM1: 2 | GN1: 3 | GO1: 4 | GP1: 5 | GQ1: 6 | GR1: 7 | GS1: 8 | GT1: 9 | GU1: 10 | GV1: 1 | GW1: 2 | GX1: 3 | GY1: 4 | GZ1: 5 | HA1: 6 | HB1: 7 | HC1: 8 | HD1: 9 | HE1: 10 | HF1: 1 | HG1: 2 | HH1: 3 | HI1: 4 | HJ1: 5 | HK1: 6 | HL1: 7 | HM1: 8 | HN1: 9 | HO1: 10 | HP1: 1 | HQ1: 2 | HR1: 3 | HS1: 4 | HT1: 5 | HU1: 6 | HV1: 7 | HW1: 8 | HX1: 9 | HY1: 10 | HZ1: 1 | IA1: 2 | IB1: 3 | IC1: 4 | ID1: 5 | IE1: 6 | IF1: 7 | IG1: 8 | IH1: 9 | II1: 10
F2: Formula | AC2: Factors | AR2: Representative Parameters | BL2: Representative Savings | BZ2: Avoided Cost | CB2: Respresentative Benefits and Costs (adjusted gross) | CQ2: NTG | CR2: Measure Screening | CT2: Incentive Budgets | DP2: AF | DQ2: AG | DR2: AS | DS2: AU | DT2: AW | DU2: AY | DV2: BA | DW2: BC | DX2: BE | DY2: BG | DZ2: BI | EA2: BK
A3: Program Name | B3: Measure Name | C3: Measure Code | D3: Pricing Effective Date | E3: Pricing Effective End Date | F3: Measure Cost Method | G3: Measure Cost | H3: Measure Cost Cap | I3: Incentive Method | J3: Incentive | K3: Incentive Cap | L3: Savings Effective Date | M3: Savings Effective End Date | N3: Savings Method | O3: kWh | P3: kWh Min | Q3: kWh Max | R3: kW | S3: kW Min | T3: kW Max | U3: Winter kW | V3: Summer kW | W3: Therms | X3: Propane | Y3: Heating Oil | Z3: Kerosene | AA3: Wood | AB3: Water | AC3: Factor Effective Date | AD3: Factor Effective End Date | AE3: Useful Life | AF3: Winter CF | AG3: Summer CF | AH3: EPF Winter Peak | AI3: EPF Winter Off Peak | AJ3: EPF Summer Peak | AK3: EPF Summer Off Peak | AL3: ISR | AM3: RRe | AN3: RRd | AO3: FR | AP3: SO | AR3: Name | AS3: Value | AT3: Name | AU3: Value | AV3: Name | AW3: Value | AX3: Name | AY3: Value | AZ3: Name | BA3: Value | BB3: Name | BC3: Value | BD3: Name | BE3: Value | BF3: Name | BG3: Value | BH3: Name | BI3: Value | BJ3: Name | BK3: Value | BL3: kWh | BO3: kW | BR3: Winter kW | BS3: Summer kW | BT3: Therms | BU3: Propane | BV3: Heating Oil | BW3: Kerosene | BX3: Wood | BY3: Water | BZ3: Customer Type (Res/Com) | CA3: Discount Rate | CB3: Electric Energy Benefit | CC3: Electric Demand Benefit | CD3: NG Benefit | CE3: Oil Benefit | CF3: Kerosene Benefit | CG3: Propane Benefit | CH3: Wood Benefit | CI3: Water Benefit | CJ3: Energy & Water Benefits | CK3: Fuel Costs | CL3: Non-energy Benefits | CM3: Measure Cost | CN3: Discounted Future O&M (decreased future O&M entered as a negative value) | CO3: Discounted future replacement costs (decreased future replacement cost entered as a negative value) | CP3: Fuel + Measure Cost | CQ3: NTG = 1 if Gross, NTG = 1-FR+SO if Net | CR3: =IF(NetOrGross="Gross","BCR_Gross","BCR_Net") -> BCR_Gross | CS3: Include (1 - yes, 0 - no) | CT3: Incentive Per Unit | CU3: % (if applicable) | CV3: Funding | CX3: Measure Cost | CZ3: kWh | DC3: kW | DF3: Winter kW | DG3: Summer kW | DH3: Therms | DI3: Propane | DJ3: Heating Oil | DK3: Kerosene | DL3: Wood | DM3: Water | IK3: =MAX(IK5:IK315) -> 7
A4: AAA | B4: Reference Calcs | AR4: =DR4 ->  | AT4: =DS4 ->  | AV4: =DT4 ->  | AX4: =DU4 ->  | AZ4: =DV4 ->  | BB4: =DW4 ->  | BD4: =DX4 ->  | BF4: =DY4 ->  | BH4: =DZ4 ->  | BJ4: =EA4 ->  | BL4: =O4 -> 0 | BO4: =R4 -> 0 | BR4: =U4 -> 0 | BS4: 0 | BT4: 0 | BU4: 0 | BV4: 0 | BW4: 0 | BX4: 0 | BY4: 0 | BZ4: Res | CA4: Default DR | CB4: =Benefits(BL4,BR4,BS4,BT4,BU4,BV4,BW4,BX4,BY4,AE4,AH4,AI4,AJ4,AK4,AL4,AM4,AN4,AO4,AP4,BZ4,CA4) -> 0 | CC4: 0 | CD4: 0 | CE4: 0 | CF4: 0 | CG4: 0 | CH4: 0 | CI4: 0 | CJ4: =(--(CB4>0))*CB4+(--(CC4>0))*CC4+(--(CD4>0))*CD4+(--(CE4>0))*CE4+(--(CF4>0))*CF4+(--(CG4>0))*CG4+(--(CH4>0))*CH4+(--(CI4>0))*CI4 -> 0 | CK4: =(--(CB4<0))*-CB4+(--(CC4<0))*-CC4+(--(CD4<0))*-CD4+(--(CE4<0))*-CE4+(--(CF4<0))*-CF4+(--(CG4<0))*-CG4+(--(CH4<0))*-CH4+(--(CI4<0))*-CI4 -> 0 | CM4: 0 | CP4: =CK4+CM4 -> 0 | CQ4: =IF(NetOrGross="Net",(1-AO4+AP4),1) -> 1 | CR4: =(SUMPRODUCT(CB4:CI4,--(CB4:CI4>0))+CL4)*CQ4/((-SUMPRODUCT(CB4:CI4,--(CB4:CI4<0))+MAX(CM4,CT4)+CN4+CO4)*CQ4+IF(FRIncentives="Yes",CT4*(1-CQ4),0)) ->  | CT4: =CM4*CU4 -> 0 | CX4: =IF(G4="",0,"X="&SUBSTITUTE(SUBSTITUTE(SUBSTITUTE(SUBSTITUTE(SUBSTITUTE(SUBSTITUTE(SUBSTITUTE(SUBSTITUTE(SUBSTITUTE(SUBSTITUTE(SUBSTITUTE(SUBSTITUTE(G4,$EA4,$EA$2&ROW($EA4)),$DZ4,$DZ$2&ROW($DZ4)),$DY4,$DY$2&ROW($DY4)),$DX4,$DX$2&ROW($DX4)),$DW4,$DW$2&ROW($DW4)),$DV4,$DV$2&ROW($DV4)),$DU4,$DU$2&ROW($DU4)),$DT4,$DT$2&ROW($DT4)),$DS4,$DS$2&ROW($DS4)),$DR4,$DR$2&ROW($DR4)),$DQ4,$DQ$2&ROW($DQ4)),$DP4,$DP$2&ROW($DP4))) -> 0 | CZ4: =IF(O4="",0,"X="&SUBSTITUTE(SUBSTITUTE(SUBSTITUTE(SUBSTITUTE(SUBSTITUTE(SUBSTITUTE(SUBSTITUTE(SUBSTITUTE(SUBSTITUTE(SUBSTITUTE(SUBSTITUTE(SUBSTITUTE(O4,$EA4,$EA$2&ROW($EA4)),$DZ4,$DZ$2&ROW($DZ4)),$DY4,$DY$2&ROW($DY4)),$DX4,$DX$2&ROW($DX4)),$DW4,$DW$2&ROW($DW4)),$DV4,$DV$2&ROW($DV4)),$DU4,$DU$2&ROW($DU4)),$DT4,$DT$2&ROW($DT4)),$DS4,$DS$2&ROW($DS4)),$DR4,$DR$2&ROW($DR4)),$DQ4,$DQ$2&ROW($DQ4)),$DP4,$DP$2&ROW($DP4))) -> 0 | DA4: =IF(P4="",0,"X="&SUBSTITUTE(SUBSTITUTE(SUBSTITUTE(SUBSTITUTE(SUBSTITUTE(SUBSTITUTE(SUBSTITUTE(SUBSTITUTE(SUBSTITUTE(SUBSTITUTE(SUBSTITUTE(SUBSTITUTE(P4,$EA4,$EA$2&ROW($EA4)),$DZ4,$DZ$2&ROW($DZ4)),$DY4,$DY$2&ROW($DY4)),$DX4,$DX$2&ROW($DX4)),$DW4,$DW$2&ROW($DW4)),$DV4,$DV$2&ROW($DV4)),$DU4,$DU$2&ROW($DU4)),$DT4,$DT$2&ROW($DT4)),$DS4,$DS$2&ROW($DS4)),$DR4,$DR$2&ROW($DR4)),$DQ4,$DQ$2&ROW($DQ4)),$DP4,$DP$2&ROW($DP4))) -> 0 | DB4: =IF(Q4="",0,"X="&SUBSTITUTE(SUBSTITUTE(SUBSTITUTE(SUBSTITUTE(SUBSTITUTE(SUBSTITUTE(SUBSTITUTE(SUBSTITUTE(SUBSTITUTE(SUBSTITUTE(SUBSTITUTE(SUBSTITUTE(Q4,$EA4,$EA$2&ROW($EA4)),$DZ4,$DZ$2&ROW($DZ4)),$DY4,$DY$2&ROW($DY4)),$DX4,$DX$2&ROW($DX4)),$DW4,$DW$2&ROW($DW4)),$DV4,$DV$2&ROW($DV4)),$DU4,$DU$2&ROW($DU4)),$DT4,$DT$2&ROW($DT4)),$DS4,$DS$2&ROW($DS4)),$DR4,$DR$2&ROW($DR4)),$DQ4,$DQ$2&ROW($DQ4)),$DP4,$DP$2&ROW($DP4))) -> 0 | DC4: =IF(R4="",0,"X="&SUBSTITUTE(SUBSTITUTE(SUBSTITUTE(SUBSTITUTE(SUBSTITUTE(SUBSTITUTE(SUBSTITUTE(SUBSTITUTE(SUBSTITUTE(SUBSTITUTE(SUBSTITUTE(SUBSTITUTE(R4,$EA4,$EA$2&ROW($EA4)),$DZ4,$DZ$2&ROW($DZ4)),$DY4,$DY$2&ROW($DY4)),$DX4,$DX$2&ROW($DX4)),$DW4,$DW$2&ROW($DW4)),$DV4,$DV$2&ROW($DV4)),$DU4,$DU$2&ROW($DU4)),$DT4,$DT$2&ROW($DT4)),$DS4,$DS$2&ROW($DS4)),$DR4,$DR$2&ROW($DR4)),$DQ4,$DQ$2&ROW($DQ4)),$DP4,$DP$2&ROW($DP4))) -> 0 | DD4: =IF(S4="",0,"X="&SUBSTITUTE(SUBSTITUTE(SUBSTITUTE(SUBSTITUTE(SUBSTITUTE(SUBSTITUTE(SUBSTITUTE(SUBSTITUTE(SUBSTITUTE(SUBSTITUTE(SUBSTITUTE(SUBSTITUTE(S4,$EA4,$EA$2&ROW($EA4)),$DZ4,$DZ$2&ROW($DZ4)),$DY4,$DY$2&ROW($DY4)),$DX4,$DX$2&ROW($DX4)),$DW4,$DW$2&ROW($DW4)),$DV4,$DV$2&ROW($DV4)),$DU4,$DU$2&ROW($DU4)),$DT4,$DT$2&ROW($DT4)),$DS4,$DS$2&ROW($DS4)),$DR4,$DR$2&ROW($DR4)),$DQ4,$DQ$2&ROW($DQ4)),$DP4,$DP$2&ROW($DP4))) -> 0 | DE4: =IF(T4="",0,"X="&SUBSTITUTE(SUBSTITUTE(SUBSTITUTE(SUBSTITUTE(SUBSTITUTE(SUBSTITUTE(SUBSTITUTE(SUBSTITUTE(SUBSTITUTE(SUBSTITUTE(SUBSTITUTE(SUBSTITUTE(T4,$EA4,$EA$2&ROW($EA4)),$DZ4,$DZ$2&ROW($DZ4)),$DY4,$DY$2&ROW($DY4)),$DX4,$DX$2&ROW($DX4)),$DW4,$DW$2&ROW($DW4)),$DV4,$DV$2&ROW($DV4)),$DU4,$DU$2&ROW($DU4)),$DT4,$DT$2&ROW($DT4)),$DS4,$DS$2&ROW($DS4)),$DR4,$DR$2&ROW($DR4)),$DQ4,$DQ$2&ROW($DQ4)),$DP4,$DP$2&ROW($DP4))) -> 0 | DF4: =IF(U4="",0,"X="&SUBSTITUTE(SUBSTITUTE(SUBSTITUTE(SUBSTITUTE(SUBSTITUTE(SUBSTITUTE(SUBSTITUTE(SUBSTITUTE(SUBSTITUTE(SUBSTITUTE(SUBSTITUTE(SUBSTITUTE(U4,$EA4,$EA$2&ROW($EA4)),$DZ4,$DZ$2&ROW($DZ4)),$DY4,$DY$2&ROW($DY4)),$DX4,$DX$2&ROW($DX4)),$DW4,$DW$2&ROW($DW4)),$DV4,$DV$2&ROW($DV4)),$DU4,$DU$2&ROW($DU4)),$DT4,$DT$2&ROW($DT4)),$DS4,$DS$2&ROW($DS4)),$DR4,$DR$2&ROW($DR4)),$DQ4,$DQ$2&ROW($DQ4)),$DP4,$DP$2&ROW($DP4))) -> 0 | DG4: =IF(V4="",0,"X="&SUBSTITUTE(SUBSTITUTE(SUBSTITUTE(SUBSTITUTE(SUBSTITUTE(SUBSTITUTE(SUBSTITUTE(SUBSTITUTE(SUBSTITUTE(SUBSTITUTE(SUBSTITUTE(SUBSTITUTE(V4,$EA4,$EA$2&ROW($EA4)),$DZ4,$DZ$2&ROW($DZ4)),$DY4,$DY$2&ROW($DY4)),$DX4,$DX$2&ROW($DX4)),$DW4,$DW$2&ROW($DW4)),$DV4,$DV$2&ROW($DV4)),$DU4,$DU$2&ROW($DU4)),$DT4,$DT$2&ROW($DT4)),$DS4,$DS$2&ROW($DS4)),$DR4,$DR$2&ROW($DR4)),$DQ4,$DQ$2&ROW($DQ4)),$DP4,$DP$2&ROW($DP4))) -> 0 | DH4: =IF(W4="",0,"X="&SUBSTITUTE(SUBSTITUTE(SUBSTITUTE(SUBSTITUTE(SUBSTITUTE(SUBSTITUTE(SUBSTITUTE(SUBSTITUTE(SUBSTITUTE(SUBSTITUTE(SUBSTITUTE(SUBSTITUTE(W4,$EA4,$EA$2&ROW($EA4)),$DZ4,$DZ$2&ROW($DZ4)),$DY4,$DY$2&ROW($DY4)),$DX4,$DX$2&ROW($DX4)),$DW4,$DW$2&ROW($DW4)),$DV4,$DV$2&ROW($DV4)),$DU4,$DU$2&ROW($DU4)),$DT4,$DT$2&ROW($DT4)),$DS4,$DS$2&ROW($DS4)),$DR4,$DR$2&ROW($DR4)),$DQ4,$DQ$2&ROW($DQ4)),$DP4,$DP$2&ROW($DP4))) -> 0 | DI4: =IF(X4="",0,"X="&SUBSTITUTE(SUBSTITUTE(SUBSTITUTE(SUBSTITUTE(SUBSTITUTE(SUBSTITUTE(SUBSTITUTE(SUBSTITUTE(SUBSTITUTE(SUBSTITUTE(SUBSTITUTE(SUBSTITUTE(X4,$EA4,$EA$2&ROW($EA4)),$DZ4,$DZ$2&ROW($DZ4)),$DY4,$DY$2&ROW($DY4)),$DX4,$DX$2&ROW($DX4)),$DW4,$DW$2&ROW($DW4)),$DV4,$DV$2&ROW($DV4)),$DU4,$DU$2&ROW($DU4)),$DT4,$DT$2&ROW($DT4)),$DS4,$DS$2&ROW($DS4)),$DR4,$DR$2&ROW($DR4)),$DQ4,$DQ$2&ROW($DQ4)),$DP4,$DP$2&ROW($DP4))) -> 0 | DJ4: =IF(Y4="",0,"X="&SUBSTITUTE(SUBSTITUTE(SUBSTITUTE(SUBSTITUTE(SUBSTITUTE(SUBSTITUTE(SUBSTITUTE(SUBSTITUTE(SUBSTITUTE(SUBSTITUTE(SUBSTITUTE(SUBSTITUTE(Y4,$EA4,$EA$2&ROW($EA4)),$DZ4,$DZ$2&ROW($DZ4)),$DY4,$DY$2&ROW($DY4)),$DX4,$DX$2&ROW($DX4)),$DW4,$DW$2&ROW($DW4)),$DV4,$DV$2&ROW($DV4)),$DU4,$DU$2&ROW($DU4)),$DT4,$DT$2&ROW($DT4)),$DS4,$DS$2&ROW($DS4)),$DR4,$DR$2&ROW($DR4)),$DQ4,$DQ$2&ROW($DQ4)),$DP4,$DP$2&ROW($DP4))) -> 0 | DK4: =IF(Z4="",0,"X="&SUBSTITUTE(SUBSTITUTE(SUBSTITUTE(SUBSTITUTE(SUBSTITUTE(SUBSTITUTE(SUBSTITUTE(SUBSTITUTE(SUBSTITUTE(SUBSTITUTE(SUBSTITUTE(SUBSTITUTE(Z4,$EA4,$EA$2&ROW($EA4)),$DZ4,$DZ$2&ROW($DZ4)),$DY4,$DY$2&ROW($DY4)),$DX4,$DX$2&ROW($DX4)),$DW4,$DW$2&ROW($DW4)),$DV4,$DV$2&ROW($DV4)),$DU4,$DU$2&ROW($DU4)),$DT4,$DT$2&ROW($DT4)),$DS4,$DS$2&ROW($DS4)),$DR4,$DR$2&ROW($DR4)),$DQ4,$DQ$2&ROW($DQ4)),$DP4,$DP$2&ROW($DP4))) -> 0 | DL4: =IF(AA4="",0,"X="&SUBSTITUTE(SUBSTITUTE(SUBSTITUTE(SUBSTITUTE(SUBSTITUTE(SUBSTITUTE(SUBSTITUTE(SUBSTITUTE(SUBSTITUTE(SUBSTITUTE(SUBSTITUTE(SUBSTITUTE(AA4,$EA4,$EA$2&ROW($EA4)),$DZ4,$DZ$2&ROW($DZ4)),$DY4,$DY$2&ROW($DY4)),$DX4,$DX$2&ROW($DX4)),$DW4,$DW$2&ROW($DW4)),$DV4,$DV$2&ROW($DV4)),$DU4,$DU$2&ROW($DU4)),$DT4,$DT$2&ROW($DT4)),$DS4,$DS$2&ROW($DS4)),$DR4,$DR$2&ROW($DR4)),$DQ4,$DQ$2&ROW($DQ4)),$DP4,$DP$2&ROW($DP4))) -> 0 | DM4: =IF(AB4="",0,"X="&SUBSTITUTE(SUBSTITUTE(SUBSTITUTE(SUBSTITUTE(SUBSTITUTE(SUBSTITUTE(SUBSTITUTE(SUBSTITUTE(SUBSTITUTE(SUBSTITUTE(SUBSTITUTE(SUBSTITUTE(AB4,$EA4,$EA$2&ROW($EA4)),$DZ4,$DZ$2&ROW($DZ4)),$DY4,$DY$2&ROW($DY4)),$DX4,$DX$2&ROW($DX4)),$DW4,$DW$2&ROW($DW4)),$DV4,$DV$2&ROW($DV4)),$DU4,$DU$2&ROW($DU4)),$DT4,$DT$2&ROW($DT4)),$DS4,$DS$2&ROW($DS4)),$DR4,$DR$2&ROW($DR4)),$DQ4,$DQ$2&ROW($DQ4)),$DP4,$DP$2&ROW($DP4))) -> 0 | DN4: =SUBSTITUTE(AB4,$DX4,$DX$2&ROW($DX4)) ->  | DR4: =IFERROR(INDEX($ED4:$IG4,MATCH(0,COUNTIF($DO4:DQ4,$ED4:$IG4),0)),"") ->  | DS4: =IFERROR(INDEX($ED4:$IG4,MATCH(0,COUNTIF($DO4:DR4,$ED4:$IG4),0)),"") ->  | DT4: =IFERROR(INDEX($ED4:$IG4,MATCH(0,COUNTIF($DO4:DS4,$ED4:$IG4),0)),"") ->  | DU4: =IFERROR(INDEX($ED4:$IG4,MATCH(0,COUNTIF($DO4:DT4,$ED4:$IG4),0)),"") ->  | DV4: =IFERROR(INDEX($ED4:$IG4,MATCH(0,COUNTIF($DO4:DU4,$ED4:$IG4),0)),"") ->  | DW4: =IFERROR(INDEX($ED4:$IG4,MATCH(0,COUNTIF($DO4:DV4,$ED4:$IG4),0)),"") ->  | DX4: =IFERROR(INDEX($ED4:$IG4,MATCH(0,COUNTIF($DO4:DW4,$ED4:$IG4),0)),"") ->  | DY4: =IFERROR(INDEX($ED4:$IG4,MATCH(0,COUNTIF($DO4:DX4,$ED4:$IG4),0)),"") ->  | DZ4: =IFERROR(INDEX($ED4:$IG4,MATCH(0,COUNTIF($DO4:DY4,$ED4:$IG4),0)),"") ->  | EA4: =IFERROR(INDEX($ED4:$IG4,MATCH(0,COUNTIF($DO4:DZ4,$ED4:$IG4),0)),"") ->  | ED4: =IFERROR(MID($G4,FIND(CHAR(160),SUBSTITUTE($G4,"{",CHAR(160),ED$1)),FIND(CHAR(160),SUBSTITUTE($G4,"}",CHAR(160),ED$1))-FIND(CHAR(160),SUBSTITUTE($G4,"{",CHAR(160),ED$1))+1),"") ->  | EN4: =IFERROR(MID($O4,FIND(CHAR(160),SUBSTITUTE($O4,"{",CHAR(160),EN$1)),FIND(CHAR(160),SUBSTITUTE($O4,"}",CHAR(160),EN$1))-FIND(CHAR(160),SUBSTITUTE($O4,"{",CHAR(160),EN$1))+1),"") ->  | EX4: =IFERROR(MID($R4,FIND(CHAR(160),SUBSTITUTE($R4,"{",CHAR(160),EX$1)),FIND(CHAR(160),SUBSTITUTE($R4,"}",CHAR(160),EX$1))-FIND(CHAR(160),SUBSTITUTE($R4,"{",CHAR(160),EX$1))+1),"") ->  | FH4: =IFERROR(MID($U4,FIND(CHAR(160),SUBSTITUTE($U4,"{",CHAR(160),FH$1)),FIND(CHAR(160),SUBSTITUTE($U4,"}",CHAR(160),FH$1))-FIND(CHAR(160),SUBSTITUTE($U4,"{",CHAR(160),FH$1))+1),"") ->  | FR4: =IFERROR(MID($V4,FIND(CHAR(160),SUBSTITUTE($V4,"{",CHAR(160),FR$1)),FIND(CHAR(160),SUBSTITUTE($V4,"}",CHAR(160),FR$1))-FIND(CHAR(160),SUBSTITUTE($V4,"{",CHAR(160),FR$1))+1),"") ->  | GB4: =IFERROR(MID($W4,FIND(CHAR(160),SUBSTITUTE($W4,"{",CHAR(160),GB$1)),FIND(CHAR(160),SUBSTITUTE($W4,"}",CHAR(160),GB$1))-FIND(CHAR(160),SUBSTITUTE($W4,"{",CHAR(160),GB$1))+1),"") ->  | GL4: =IFERROR(MID($X4,FIND(CHAR(160),SUBSTITUTE($X4,"{",CHAR(160),GL$1)),FIND(CHAR(160),SUBSTITUTE($X4,"}",CHAR(160),GL$1))-FIND(CHAR(160),SUBSTITUTE($X4,"{",CHAR(160),GL$1))+1),"") ->  | GV4: =IFERROR(MID($Y4,FIND(CHAR(160),SUBSTITUTE($Y4,"{",CHAR(160),GV$1)),FIND(CHAR(160),SUBSTITUTE($Y4,"}",CHAR(160),GV$1))-FIND(CHAR(160),SUBSTITUTE($Y4,"{",CHAR(160),GV$1))+1),"") ->  | HF4: =IFERROR(MID($Z4,FIND(CHAR(160),SUBSTITUTE($Z4,"{",CHAR(160),HF$1)),FIND(CHAR(160),SUBSTITUTE($Z4,"}",CHAR(160),HF$1))-FIND(CHAR(160),SUBSTITUTE($Z4,"{",CHAR(160),HF$1))+1),"") ->  | HP4: =IFERROR(MID($AA4,FIND(CHAR(160),SUBSTITUTE($AA4,"{",CHAR(160),HP$1)),FIND(CHAR(160),SUBSTITUTE($AA4,"}",CHAR(160),HP$1))-FIND(CHAR(160),SUBSTITUTE($AA4,"{",CHAR(160),HP$1))+1),"") ->  | HZ4: =IFERROR(MID($AB4,FIND(CHAR(160),SUBSTITUTE($AB4,"{",CHAR(160),HZ$1)),FIND(CHAR(160),SUBSTITUTE($AB4,"}",CHAR(160),HZ$1))-FIND(CHAR(160),SUBSTITUTE($AB4,"{",CHAR(160),HZ$1))+1),"") ->  | IK4: =10-COUNTIF(DR4:EA4,"") -> 0
A5: Affordable Heat Initiative - Electric | B5: Air Sealing LIHESP | C5: LAA | D5: 2018-07-01 | E5: 2019-06-30 | F5: Per Measure | G5: $1080.00 | H5: 0 | I5: Manual Entry | J5: $0.00 | K5: 0 | L5: 2018-07-01 | M5: 2019-06-30 | N5: Calculated | O5: 2013 | R5: 0.034 | U5: 0.44 | V5: 0.034 | AB5: 0.0000 | AC5: 2018-07-01 | AD5: 2019-06-30 | AE5: 15 | AF5: 1 | AG5: 1 | AH5: 0.385 | AI5: 0.541 | AJ5: 0.033 | AK5: 0.04 | AL5: 1 | AM5: 1 | AN5: 1 | AO5: 0 | AP5: 0 | AR5: =DR5 ->  | AT5: =DS5 ->  | AV5: =DT5 ->  | AX5: =DU5 ->  | AZ5: =DV5 ->  | BB5: =DW5 ->  | BD5: =DX5 ->  | BL5: 1514 | BM5: 0 | BN5: 0 | BO5: 0.331 | BP5: 0 | BQ5: 0 | BR5: 0.331 | BS5: 0.026 | BT5: 0 | BU5: 0 | BV5: 0 | BW5: 0 | BX5: 0 | BY5: =0 -> 0 | BZ5: Res | CA5: Default DR | CB5: =Benefits(BL5,BR5,BS5,BT5,BU5,BV5,BW5,BX5,BY5,AE5,AH5,AI5,AJ5,AK5,AL5,AM5,AN5,AO5,AP5,BZ5,CA5) -> 1229.647504 | CC5: 527.3000964 | CD5: 0 | CE5: 0 | CF5: 0 | CG5: 0 | CH5: 0 | CI5: 0 | CJ5: 1756.9476 | CK5: 0 | CM5: 623 | CP5: 623 | CQ5: 1 | CR5: 2.82014061 | CS5: 1 | CT5: 550 | CV5: Electric | CX5: X=$1080.00 | CZ5: X=2013 | DA5: 0 | DB5: 0 | DC5: X=0.034 | DD5: 0 | DE5: 0 | DF5: X=0.44 | DG5: X=0.034 | DH5: 0 | DI5: 0 | DJ5: 0 | DK5: 0 | DL5: 0 | DM5: X=0.0000 | DP5: {Factor:WinterCF} | DQ5: {Factor:SummerCF} | DR5: =IFERROR(INDEX($ED5:$IG5,MATCH(0,COUNTIF($DO5:DQ5,$ED5:$IG5),0)),"") ->  | DS5: =IFERROR(INDEX($ED5:$IG5,MATCH(0,COUNTIF($DO5:DR5,$ED5:$IG5),0)),"") ->  | DT5: =IFERROR(INDEX($ED5:$IG5,MATCH(0,COUNTIF($DO5:DS5,$ED5:$IG5),0)),"") ->  | DU5: =IFERROR(INDEX($ED5:$IG5,MATCH(0,COUNTIF($DO5:DT5,$ED5:$IG5),0)),"") ->  | DV5: =IFERROR(INDEX($ED5:$IG5,MATCH(0,COUNTIF($DO5:DU5,$ED5:$IG5),0)),"") ->  | DW5: =IFERROR(INDEX($ED5:$IG5,MATCH(0,COUNTIF($DO5:DV5,$ED5:$IG5),0)),"") ->  | DX5: =IFERROR(INDEX($ED5:$IG5,MATCH(0,COUNTIF($DO5:DW5,$ED5:$IG5),0)),"") ->  | DY5: =IFERROR(INDEX($ED5:$IG5,MATCH(0,COUNTIF($DO5:DX5,$ED5:$IG5),0)),"") ->  | DZ5: =IFERROR(INDEX($ED5:$IG5,MATCH(0,COUNTIF($DO5:DY5,$ED5:$IG5),0)),"") ->  | EA5: =IFERROR(INDEX($ED5:$IG5,MATCH(0,COUNTIF($DO5:DZ5,$ED5:$IG5),0)),"") ->  | IK5: 0
A6: Affordable Heat Initiative - Electric | B6: Attic Insulation LIHESP | C6: LBA | D6: 2018-07-01 | E6: 2019-06-30 | F6: Per Measure | G6: $2104.00 | H6: 0 | I6: Manual Entry | J6: $0.00 | K6: 0 | L6: 2018-07-01 | M6: 2019-06-30 | N6: Calculated | O6: 3699 | R6: 0.063 | U6: 0.808 | V6: 0.063 | AB6: 0.0000 | AC6: 2018-07-01 | AD6: 2019-06-30 | AE6: 25 | AF6: 1 | AG6: 1 | AH6: 0.385 | AI6: 0.541 | AJ6: 0.033 | AK6: 0.04 | AL6: 1 | AM6: 1 | AN6: 1 | AO6: 0 | AP6: 0 | AR6: =DR6 ->  | AT6: =DS6 ->  | AV6: =DT6 ->  | AX6: =DU6 ->  | AZ6: =DV6 ->  | BB6: =DW6 ->  | BD6: =DX6 ->  | BL6: 3101 | BM6: 0 | BN6: 0 | BO6: 0.678 | BP6: 0 | BQ6: 0 | BR6: 0.678 | BS6: 0.053 | BT6: 0 | BU6: 0 | BV6: 0 | BW6: 0 | BX6: 0 | BY6: =0 -> 0 | BZ6: Res | CA6: Default DR | CB6: =Benefits(BL6,BR6,BS6,BT6,BU6,BV6,BW6,BX6,BY6,AE6,AH6,AI6,AJ6,AK6,AL6,AM6,AN6,AO6,AP6,BZ6,CA6) -> 3643.544772 | CC6: 1640.237146 | CD6: 0 | CE6: 0 | CF6: 0 | CG6: 0 | CH6: 0 | CI6: 0 | CJ6: 5283.781918 | CK6: 0 | CM6: 1962 | CP6: 1962 | CQ6: 1 | CR6: 2.693059082 | CS6: 1 | CT6: 1000 | CV6: Electric | CX6: X=$2104.00 | CZ6: X=3699 | DA6: 0 | DB6: 0 | DC6: X=0.063 | DD6: 0 | DE6: 0 | DF6: X=0.808 | DG6: X=0.063 | DH6: 0 | DI6: 0 | DJ6: 0 | DK6: 0 | DL6: 0 | DM6: X=0.0000 | DP6: {Factor:WinterCF} | DQ6: {Factor:SummerCF} | DR6: =IFERROR(INDEX($ED6:$IG6,MATCH(0,COUNTIF($DO6:DQ6,$ED6:$IG6),0)),"") ->  | DS6: =IFERROR(INDEX($ED6:$IG6,MATCH(0,COUNTIF($DO6:DR6,$ED6:$IG6),0)),"") ->  | DT6: =IFERROR(INDEX($ED6:$IG6,MATCH(0,COUNTIF($DO6:DS6,$ED6:$IG6),0)),"") ->  | DU6: =IFERROR(INDEX($ED6:$IG6,MATCH(0,COUNTIF($DO6:DT6,$ED6:$IG6),0)),"") ->  | DV6: =IFERROR(INDEX($ED6:$IG6,MATCH(0,COUNTIF($DO6:DU6,$ED6:$IG6),0)),"") ->  | DW6: =IFERROR(INDEX($ED6:$IG6,MATCH(0,COUNTIF($DO6:DV6,$ED6:$IG6),0)),"") ->  | DX6: =IFERROR(INDEX($ED6:$IG6,MATCH(0,COUNTIF($DO6:DW6,$ED6:$IG6),0)),"") ->  | DY6: =IFERROR(INDEX($ED6:$IG6,MATCH(0,COUNTIF($DO6:DX6,$ED6:$IG6),0)),"") ->  | DZ6: =IFERROR(INDEX($ED6:$IG6,MATCH(0,COUNTIF($DO6:DY6,$ED6:$IG6),0)),"") ->  | EA6: =IFERROR(INDEX($ED6:$IG6,MATCH(0,COUNTIF($DO6:DZ6,$ED6:$IG6),0)),"") ->  | IK6: 0
A7: Affordable Heat Initiative - Electric | B7: Basement Insulation LIHESP | C7: LBB | D7: 2018-07-01 | E7: 2019-06-30 | F7: Per Measure | G7: $2452.00 | H7: 0 | I7: Manual Entry | J7: $0.00 | K7: 0 | L7: 2018-07-01 | M7: 2019-06-30 | N7: Calculated | O7: 8718 | R7: 0 | U7: 1.918 | V7: 0 | AB7: 0.0000 | AC7: 2018-07-01 | AD7: 2019-06-30 | AE7: 25 | AF7: 1 | AG7: 1 | AH7: 0.401 | AI7: 0.585 | AJ7: 0.002 | AK7: 0.011 | AL7: 1 | AM7: 1 | AN7: 1 | AO7: 0 | AP7: 0 | AR7: =DR7 ->  | AT7: =DS7 ->  | AV7: =DT7 ->  | AX7: =DU7 ->  | AZ7: =DV7 ->  | BB7: =DW7 ->  | BD7: =DX7 ->  | BL7: 2672 | BM7: 0 | BN7: 0 | BO7: 0.582 | BP7: 0 | BQ7: 0 | BR7: 0.582 | BS7: =0 -> 0 | BT7: 0 | BU7: 0 | BV7: 0 | BW7: 0 | BX7: 0 | BY7: =0 -> 0 | BZ7: Res | CA7: Default DR | CB7: =Benefits(BL7,BR7,BS7,BT7,BU7,BV7,BW7,BX7,BY7,AE7,AH7,AI7,AJ7,AK7,AL7,AM7,AN7,AO7,AP7,BZ7,CA7) -> 3160.137304 | CC7: 1355.029125 | CD7: 0 | CE7: 0 | CF7: 0 | CG7: 0 | CH7: 0 | CI7: 0 | CJ7: 4515.166429 | CK7: 0 | CM7: 2326 | CP7: 2326 | CQ7: 1 | CR7: 1.941172154 | CS7: 1 | CT7: 1000 | CV7: Electric | CX7: X=$2452.00 | CZ7: X=8718 | DA7: 0 | DB7: 0 | DC7: X=0 | DD7: 0 | DE7: 0 | DF7: X=1.918 | DG7: X=0 | DH7: 0 | DI7: 0 | DJ7: 0 | DK7: 0 | DL7: 0 | DM7: X=0.0000 | DP7: {Factor:WinterCF} | DQ7: {Factor:SummerCF} | DR7: =IFERROR(INDEX($ED7:$IG7,MATCH(0,COUNTIF($DO7:DQ7,$ED7:$IG7),0)),"") ->  | DS7: =IFERROR(INDEX($ED7:$IG7,MATCH(0,COUNTIF($DO7:DR7,$ED7:$IG7),0)),"") ->  | DT7: =IFERROR(INDEX($ED7:$IG7,MATCH(0,COUNTIF($DO7:DS7,$ED7:$IG7),0)),"") ->  | DU7: =IFERROR(INDEX($ED7:$IG7,MATCH(0,COUNTIF($DO7:DT7,$ED7:$IG7),0)),"") ->  | DV7: =IFERROR(INDEX($ED7:$IG7,MATCH(0,COUNTIF($DO7:DU7,$ED7:$IG7),0)),"") ->  | DW7: =IFERROR(INDEX($ED7:$IG7,MATCH(0,COUNTIF($DO7:DV7,$ED7:$IG7),0)),"") ->  | DX7: =IFERROR(INDEX($ED7:$IG7,MATCH(0,COUNTIF($DO7:DW7,$ED7:$IG7),0)),"") ->  | DY7: =IFERROR(INDEX($ED7:$IG7,MATCH(0,COUNTIF($DO7:DX7,$ED7:$IG7),0)),"") ->  | DZ7: =IFERROR(INDEX($ED7:$IG7,MATCH(0,COUNTIF($DO7:DY7,$ED7:$IG7),0)),"") ->  | EA7: =IFERROR(INDEX($ED7:$IG7,MATCH(0,COUNTIF($DO7:DZ7,$ED7:$IG7),0)),"") ->  | IK7: 0
A8: Affordable Heat Initiative - Electric | B8: Energy Upgrade Bundle LIHESP | C8: LUB | D8: 2018-07-01 | E8: 2019-06-30 | F8: Calculated | G8: {Project Cost} | H8: 0 | I8: Manual Entry | J8: $0.00 | K8: 0 | L8: 2018-07-01 | M8: 2019-06-30 | N8: Calculated | O8: if({Number of Aerators}>0,283+({Number of Aerators}-1)*29,0)+{Number of Showerheads}*150+{Underbelly}*5962+{Seal and Insulate Openings}*152+{Seal/Insulate Pipes/Ducts}*1622+2013 | R8: if({Number of Aerators}>0,0.023+({Number of Aerators}-1)*0.002,0)+{Number of Showerheads}*0.012+{Underbelly}*3.4+{Seal and Insulate Openings}*0.087+{Seal/Insulate Pipes/Ducts}*1.614+0.034 | U8: if({Number of Aerators}>0,0.0003+({Number of Aerators}-1)*0.000008,0)+{Number of Showerheads}*0.0001+{Underbelly}*3.4+{Seal and Insulate Openings}*0.087+{Seal/Insulate Pipes/Ducts}*1.614+0.44 | V8: if({Number of Aerators}>0,0.0002+({Number of Aerators}-1)*0.000006,0)+{Number of Showerheads}*0.00006+{Seal/Insulate Pipes/Ducts}*0.006+0.034 | AB8: if({Number of Aerators}>0,2696+({Number of Aerators}-1)*333,0)+{Number of Showerheads}*1200 | AC8: 2018-07-01 | AD8: 2019-06-30 | AE8: 15 | AF8: 1 | AG8: 1 | AH8: 0.385 | AI8: 0.541 | AJ8: 0.033 | AK8: 0.04 | AL8: 1 | AM8: 1 | AN8: 1 | AO8: 0 | AP8: 0 | AR8: =DR8 -> {Project Cost} | AS8: 600 | AT8: =DS8 -> {Number of Aerators} | AU8: 0 | AV8: =DT8 -> {Number of Showerheads} | AW8: 0 | AX8: =DU8 -> {Underbelly} | AY8: 0 | AZ8: =DV8 -> {Seal and Insulate Openings} | BA8: 0 | BB8: =DW8 -> {Seal/Insulate Pipes/Ducts} | BC8: 0 | BD8: =DX8 ->  | BL8: =IF(AU8>0,283+(AU8-1)*29,0)+AW8*150+AY8*5962+BA8*152+BC8*1622+2013 -> 2013 | BM8: 0 | BN8: 0 | BO8: =IF(AU8>0,0.023+(AU8-1)*0.002,0)+AW8*0.012+AY8*3.4+BA8*0.087+BC8*1.614+0.034 -> 0.034 | BP8: 0 | BQ8: 0 | BR8: =IF(AU8>0,0.0003+(AU8-1)*0.000008,0)+AW8*0.0001+AY8*3.4+BA8*0.087+BC8*1.614+0.44 -> 0.44 | BS8: =IF(AU8>0,0.0002+(AU8-1)*0.000006,0)+AW8*0.00006+BC8*0.006+0.034 -> 0.034 | BT8: 0 | BU8: 0 | BV8: 0 | BW8: 0 | BX8: 0 | BY8: =IF(AU8>0,2696+(AU8-1)*333,0)+AW8*1200 -> 0 | BZ8: Res | CA8: Default DR | CB8: =Benefits(BL8,BR8,BS8,BT8,BU8,BV8,BW8,BX8,BY8,AE8,AH8,AI8,AJ8,AK8,AL8,AM8,AN8,AO8,AP8,BZ8,CA8) -> 1634.927626 | CC8: 700.5120466 | CD8: 0 | CE8: 0 | CF8: 0 | CG8: 0 | CH8: 0 | CI8: 0 | CJ8: 2335.439672 | CK8: 0 | CM8: =AS8 -> 600 | CP8: 600 | CQ8: 1 | CR8: 3.892399454 | CS8: 1 | CT8: 550 | CV8: Electric | CX8: X=AS8 | CZ8: X=if(AU8>0,283+(AU8-1)*29,0)+AW8*150+AY8*5962+BA8*152+BC8*1622+2013 | DA8: 0 | DB8: 0 | DC8: X=if(AU8>0,0.023+(AU8-1)*0.002,0)+AW8*0.012+AY8*3.4+BA8*0.087+BC8*1.614+0.034 | DD8: 0 | DE8: 0 | DF8: X=if(AU8>0,0.0003+(AU8-1)*0.000008,0)+AW8*0.0001+AY8*3.4+BA8*0.087+BC8*1.614+0.44 | DG8: X=if(AU8>0,0.0002+(AU8-1)*0.000006,0)+AW8*0.00006+BC8*0.006+0.034 | DH8: 0 | DI8: 0 | DJ8: 0 | DK8: 0 | DL8: 0 | DM8: X=if(AU8>0,2696+(AU8-1)*333,0)+AW8*1200 | DP8: {Factor:WinterCF} | DQ8: {Factor:SummerCF} | DR8: =IFERROR(INDEX($ED8:$IG8,MATCH(0,COUNTIF($DO8:DQ8,$ED8:$IG8),0)),"") -> {Project Cost} | DS8: =IFERROR(INDEX($ED8:$IG8,MATCH(0,COUNTIF($DO8:DR8,$ED8:$IG8),0)),"") -> {Number of Aerators} | DT8: =IFERROR(INDEX($ED8:$IG8,MATCH(0,COUNTIF($DO8:DS8,$ED8:$IG8),0)),"") -> {Number of Showerheads} | DU8: =IFERROR(INDEX($ED8:$IG8,MATCH(0,COUNTIF($DO8:DT8,$ED8:$IG8),0)),"") -> {Underbelly} | DV8: =IFERROR(INDEX($ED8:$IG8,MATCH(0,COUNTIF($DO8:DU8,$ED8:$IG8),0)),"") -> {Seal and Insulate Openings} | DW8: =IFERROR(INDEX($ED8:$IG8,MATCH(0,COUNTIF($DO8:DV8,$ED8:$IG8),0)),"") -> {Seal/Insulate Pipes/Ducts} | DX8: =IFERROR(INDEX($ED8:$IG8,MATCH(0,COUNTIF($DO8:DW8,$ED8:$IG8),0)),"") ->  | DY8: =IFERROR(INDEX($ED8:$IG8,MATCH(0,COUNTIF($DO8:DX8,$ED8:$IG8),0)),"") ->  | DZ8: =IFERROR(INDEX($ED8:$IG8,MATCH(0,COUNTIF($DO8:DY8,$ED8:$IG8),0)),"") ->  | EA8: =IFERROR(INDEX($ED8:$IG8,MATCH(0,COUNTIF($DO8:DZ8,$ED8:$IG8),0)),"") ->  | ED8: {Project Cost} | EN8: {Number of Aerators} | EO8: {Number of Aerators} | EP8: {Number of Showerheads} | EQ8: {Underbelly} | ER8: {Seal and Insulate Openings} | ES8: {Seal/Insulate Pipes/Ducts} | EX8: {Number of Aerators} | EY8: {Number of Aerators} | EZ8: {Number of Showerheads} | FA8: {Underbelly} | FB8: {Seal and Insulate Openings} | FC8: {Seal/Insulate Pipes/Ducts} | FH8: {Number of Aerators} | FI8: {Number of Aerators} | FJ8: {Number of Showerheads} | FK8: {Underbelly} | FL8: {Seal and Insulate Openings} | FM8: {Seal/Insulate Pipes/Ducts} | FR8: {Number of Aerators} | FS8: {Number of Aerators} | FT8: {Number of Showerheads} | FU8: {Seal/Insulate Pipes/Ducts} | HZ8: {Number of Aerators} | IA8: {Number of Aerators} | IB8: {Number of Showerheads} | IK8: 6
A9: Affordable Heat Initiative - Electric | B9: MiniSplit HP Low Income | C9: LCH | D9: 2018-07-01 | E9: 2019-06-30 | F9: Calculated | G9: {Project Cost} | H9: 0 | I9: Manual Entry | J9: $0.00 | K9: 0 | L9: 2018-07-01 | M9: 2019-06-30 | N9: Modeled | AC9: 2018-07-01 | AD9: 2019-06-30 | AE9: 18 | AF9: 1 | AG9: 1 | AH9: 0.396440232 | AI9: 0.5536729366 | AJ9: 0.02108761072 | AK9: 0.0289816937 | AL9: 1 | AM9: 1 | AN9: 1 | AO9: 0 | AP9: 0 | BL9: 4076.343674 | BR9: 0.9701994296 | BS9: 0.03618678736 | BT9: 0 | BU9: 0 | BV9: 0 | BW9: 0 | BX9: 0 | BY9: =0 -> 0 | BZ9: Res | CA9: Default DR | CB9: =Benefits(BL9,BR9,BS9,BT9,BU9,BV9,BW9,BX9,BY9,AE9,AH9,AI9,AJ9,AK9,AL9,AM9,AN9,AO9,AP9,BZ9,CA9) -> 3821.704686 | CC9: 1766.895149 | CD9: 0 | CE9: 0 | CF9: 0 | CG9: 0 | CH9: 0 | CI9: 0 | CJ9: 5588.599835 | CK9: 0 | CM9: =AS9 -> 0 | CP9: 0 | CQ9: 1 | CR9: 2.794299918 | CS9: 1 | CT9: 2000 | CV9: Electric | CX9: X=AS9 | CZ9: 0 | DA9: 0 | DB9: 0 | DC9: 0 | DD9: 0 | DE9: 0 | DF9: 0 | DG9: 0 | DH9: 0 | DI9: 0 | DJ9: 0 | DK9: 0 | DL9: 0 | DM9: 0 | DP9: {Factor:WinterCF} | DQ9: {Factor:SummerCF} | DR9: =IFERROR(INDEX($ED9:$IG9,MATCH(0,COUNTIF($DO9:DQ9,$ED9:$IG9),0)),"") -> {Project Cost} | DS9: =IFERROR(INDEX($ED9:$IG9,MATCH(0,COUNTIF($DO9:DR9,$ED9:$IG9),0)),"") ->  | DT9: =IFERROR(INDEX($ED9:$IG9,MATCH(0,COUNTIF($DO9:DS9,$ED9:$IG9),0)),"") ->  | DU9: =IFERROR(INDEX($ED9:$IG9,MATCH(0,COUNTIF($DO9:DT9,$ED9:$IG9),0)),"") ->  | DV9: =IFERROR(INDEX($ED9:$IG9,MATCH(0,COUNTIF($DO9:DU9,$ED9:$IG9),0)),"") ->  | DW9: =IFERROR(INDEX($ED9:$IG9,MATCH(0,COUNTIF($DO9:DV9,$ED9:$IG9),0)),"") ->  | DX9: =IFERROR(INDEX($ED9:$IG9,MATCH(0,COUNTIF($DO9:DW9,$ED9:$IG9),0)),"") ->  | DY9: =IFERROR(INDEX($ED9:$IG9,MATCH(0,COUNTIF($DO9:DX9,$ED9:$IG9),0)),"") ->  | DZ9: =IFERROR(INDEX($ED9:$IG9,MATCH(0,COUNTIF($DO9:DY9,$ED9:$IG9),0)),"") ->  | EA9: =IFERROR(INDEX($ED9:$IG9,MATCH(0,COUNTIF($DO9:DZ9,$ED9:$IG9),0)),"") ->  | ED9: {Project Cost} | IK9: 1
A10: Affordable Heat Initiative - Electric | B10: Wall Insulation LIHESP | C10: LBW | D10: 2018-07-01 | E10: 2019-06-30 | F10: Per Measure | G10: $3082.00 | H10: 0 | I10: Manual Entry | J10: $0.00 | K10: 0 | L10: 2018-07-01 | M10: 2019-06-30 | N10: Calculated | O10: 11815 | R10: 0.201 | U10: 2.582 | V10: 0.201 | AB10: 0.0000 | AC10: 2018-07-01 | AD10: 2019-06-30 | AE10: 25 | AF10: 1 | AG10: 1 | AH10: 0.385 | AI10: 0.541 | AJ10: 0.033 | AK10: 0.04 | AL10: 1 | AM10: 1 | AN10: 1 | AO10: 0 | AP10: 0 | AR10: =DR10 ->  | AT10: =DS10 ->  | AV10: =DT10 ->  | AX10: =DU10 ->  | AZ10: =DV10 ->  | BB10: =DW10 ->  | BD10: =DX10 ->  | BL10: 4879 | BM10: 0 | BN10: 0 | BO10: 1.066 | BP10: 0 | BQ10: 0 | BR10: 1.066 | BS10: 0.083 | BT10: 0 | BU10: 0 | BV10: 0 | BW10: 0 | BX10: 0 | BY10: =0 -> 0 | BZ10: Res | CA10: Default DR | CB10: =Benefits(BL10,BR10,BS10,BT10,BU10,BV10,BW10,BX10,BY10,AE10,AH10,AI10,AJ10,AK10,AL10,AM10,AN10,AO10,AP10,BZ10,CA10) -> 5732.620104 | CC10: 2578.513327 | CD10: 0 | CE10: 0 | CF10: 0 | CG10: 0 | CH10: 0 | CI10: 0 | CJ10: 8311.133431 | CK10: 0 | CM10: 2574 | CP10: 2574 | CQ10: 1 | CR10: 3.228878567 | CS10: 1 | CT10: 1000 | CV10: Electric | CX10: X=$3082.00 | CZ10: X=11815 | DA10: 0 | DB10: 0 | DC10: X=0.201 | DD10: 0 | DE10: 0 | DF10: X=2.582 | DG10: X=0.201 | DH10: 0 | DI10: 0 | DJ10: 0 | DK10: 0 | DL10: 0 | DM10: X=0.0000 | DP10: {Factor:WinterCF} | DQ10: {Factor:SummerCF} | DR10: =IFERROR(INDEX($ED10:$IG10,MATCH(0,COUNTIF($DO10:DQ10,$ED10:$IG10),0)),"") ->  | DS10: =IFERROR(INDEX($ED10:$IG10,MATCH(0,COUNTIF($DO10:DR10,$ED10:$IG10),0)),"") ->  | DT10: =IFERROR(INDEX($ED10:$IG10,MATCH(0,COUNTIF($DO10:DS10,$ED10:$IG10),0)),"") ->  | DU10: =IFERROR(INDEX($ED10:$IG10,MATCH(0,COUNTIF($DO10:DT10,$ED10:$IG10),0)),"") ->  | DV10: =IFERROR(INDEX($ED10:$IG10,MATCH(0,COUNTIF($DO10:DU10,$ED10:$IG10),0)),"") ->  | DW10: =IFERROR(INDEX($ED10:$IG10,MATCH(0,COUNTIF($DO10:DV10,$ED10:$IG10),0)),"") ->  | DX10: =IFERROR(INDEX($ED10:$IG10,MATCH(0,COUNTIF($DO10:DW10,$ED10:$IG10),0)),"") ->  | DY10: =IFERROR(INDEX($ED10:$IG10,MATCH(0,COUNTIF($DO10:DX10,$ED10:$IG10),0)),"") ->  | DZ10: =IFERROR(INDEX($ED10:$IG10,MATCH(0,COUNTIF($DO10:DY10,$ED10:$IG10),0)),"") ->  | EA10: =IFERROR(INDEX($ED10:$IG10,MATCH(0,COUNTIF($DO10:DZ10,$ED10:$IG10),0)),"") ->  | IK10: 0
A11: Affordable Heat Initiative - Electric | B11: Window Insert AHI | C11: LWI | D11: 2018-07-01 | E11: 2019-06-30 | F11: Calculated | G11: 2.52*{SQFT} | H11: 0 | I11: Manual Entry | J11: $0.00 | K11: 0 | L11: 2018-07-01 | M11: 2019-06-30 | N11: Calculated | O11: 12.143*{SQFT} | R11: 0.002671*{SQFT} | U11: 0.002671*{SQFT} | V11: 0 | AB11: 0.0000 | AC11: 2018-07-01 | AD11: 2019-06-30 | AE11: 4 | AF11: 0 | AG11: 0 | AH11: 0.398 | AI11: 0.561 | AJ11: 0.01 | AK11: 0.031 | AL11: 1 | AM11: 1 | AN11: 1 | AO11: 0 | AP11: 0 | AR11: =DR11 -> {SQFT} | AS11: 100 | AT11: =DS11 ->  | AV11: =DT11 ->  | AX11: =DU11 ->  | AZ11: =DV11 ->  | BB11: =DW11 ->  | BD11: =DX11 ->  | BL11: =12.143*AS11 -> 1214.3 | BM11: 0 | BN11: 0 | BO11: =0.002671*AS11 -> 0.2671 | BP11: 0 | BQ11: 0 | BR11: =0.002671*AS11 -> 0.2671 | BS11: =0 -> 0 | BT11: 0 | BU11: 0 | BV11: 0 | BW11: 0 | BX11: 0 | BY11: =0 -> 0 | BZ11: Res | CA11: Default DR | CB11: =Benefits(BL11,BR11,BS11,BT11,BU11,BV11,BW11,BX11,BY11,AE11,AH11,AI11,AJ11,AK11,AL11,AM11,AN11,AO11,AP11,BZ11,CA11) -> 312.9696319 | CC11: 124.3026269 | CD11: 0 | CE11: 0 | CF11: 0 | CG11: 0 | CH11: 0 | CI11: 0 | CJ11: 437.2722588 | CK11: 0 | CM11: =2.52*AS11 -> 252 | CP11: 252 | CQ11: 1 | CR11: 1.735207376 | CS11: 1 | CT11: =CM11*CU11 -> 252 | CU11: 1 | CV11: Electric | CX11: X=2.52*AS11 | CZ11: X=12.143*AS11 | DA11: 0 | DB11: 0 | DC11: X=0.002671*AS11 | DD11: 0 | DE11: 0 | DF11: X=0.002671*AS11 | DG11: X=0 | DH11: 0 | DI11: 0 | DJ11: 0 | DK11: 0 | DL11: 0 | DM11: X=0.0000 | DP11: {Factor:WinterCF} | DQ11: {Factor:SummerCF} | DR11: =IFERROR(INDEX($ED11:$IG11,MATCH(0,COUNTIF($DO11:DQ11,$ED11:$IG11),0)),"") -> {SQFT} | DS11: =IFERROR(INDEX($ED11:$IG11,MATCH(0,COUNTIF($DO11:DR11,$ED11:$IG11),0)),"") ->  | DT11: =IFERROR(INDEX($ED11:$IG11,MATCH(0,COUNTIF($DO11:DS11,$ED11:$IG11),0)),"") ->  | DU11: =IFERROR(INDEX($ED11:$IG11,MATCH(0,COUNTIF($DO11:DT11,$ED11:$IG11),0)),"") ->  | DV11: =IFERROR(INDEX($ED11:$IG11,MATCH(0,COUNTIF($DO11:DU11,$ED11:$IG11),0)),"") ->  | DW11: =IFERROR(INDEX($ED11:$IG11,MATCH(0,COUNTIF($DO11:DV11,$ED11:$IG11),0)),"") ->  | DX11: =IFERROR(INDEX($ED11:$IG11,MATCH(0,COUNTIF($DO11:DW11,$ED11:$IG11),0)),"") ->  | DY11: =IFERROR(INDEX($ED11:$IG11,MATCH(0,COUNTIF($DO11:DX11,$ED11:$IG11),0)),"") ->  | DZ11: =IFERROR(INDEX($ED11:$IG11,MATCH(0,COUNTIF($DO11:DY11,$ED11:$IG11),0)),"") ->  | EA11: =IFERROR(INDEX($ED11:$IG11,MATCH(0,COUNTIF($DO11:DZ11,$ED11:$IG11),0)),"") ->  | ED11: {SQFT} | EN11: {SQFT} | EX11: {SQFT} | FH11: {SQFT} | IK11: 1
A12: Affordable Heat Initiative - Electric | BL12: 0 | BM12: 0 | BN12: 0 | BO12: 0 | BP12: 0 | BQ12: 0 | BR12: 0 | BS12: 0 | BT12: 0 | BU12: 0 | BV12: 0 | BW12: 0 | BX12: 0 | BY12: 0 | CX12: 0 | CZ12: 0 | DA12: 0 | DB12: 0 | DC12: 0 | DD12: 0 | DE12: 0 | DF12: 0 | DG12: 0 | DH12: 0 | DI12: 0 | DJ12: 0 | DK12: 0 | DL12: 0 | DM12: 0 | DP12: {Factor:WinterCF} | DQ12: {Factor:SummerCF} | DR12: =IFERROR(INDEX($ED12:$IG12,MATCH(0,COUNTIF($DO12:DQ12,$ED12:$IG12),0)),"") ->  | DS12: =IFERROR(INDEX($ED12:$IG12,MATCH(0,COUNTIF($DO12:DR12,$ED12:$IG12),0)),"") ->  | DT12: =IFERROR(INDEX($ED12:$IG12,MATCH(0,COUNTIF($DO12:DS12,$ED12:$IG12),0)),"") ->  | DU12: =IFERROR(INDEX($ED12:$IG12,MATCH(0,COUNTIF($DO12:DT12,$ED12:$IG12),0)),"") ->  | DV12: =IFERROR(INDEX($ED12:$IG12,MATCH(0,COUNTIF($DO12:DU12,$ED12:$IG12),0)),"") ->  | DW12: =IFERROR(INDEX($ED12:$IG12,MATCH(0,COUNTIF($DO12:DV12,$ED12:$IG12),0)),"") ->  | DX12: =IFERROR(INDEX($ED12:$IG12,MATCH(0,COUNTIF($DO12:DW12,$ED12:$IG12),0)),"") ->  | DY12: =IFERROR(INDEX($ED12:$IG12,MATCH(0,COUNTIF($DO12:DX12,$ED12:$IG12),0)),"") ->  | DZ12: =IFERROR(INDEX($ED12:$IG12,MATCH(0,COUNTIF($DO12:DY12,$ED12:$IG12),0)),"") ->  | EA12: =IFERROR(INDEX($ED12:$IG12,MATCH(0,COUNTIF($DO12:DZ12,$ED12:$IG12),0)),"") ->  | IK12: 0
A13: Affordable Heat Initiative - Natural Gas | B13: Attic Insulation LIHESP - less than R7 pre-condition | C13: LBA | D13: 2018-07-01 | E13: 2019-06-30 | F13: Per Measure | G13: $3777.00 | H13: 0 | I13: Manual Entry | J13: $0.00 | K13: 0 | L13: 2018-07-01 | M13: 2019-06-30 | N13: Calculated | O13: 62 | R13: 0.16 | U13: 0.0000 | V13: 0.16 | W13: 39.6*10 | AB13: 0.0000 | AC13: 2018-07-01 | AD13: 2019-06-30 | AE13: 25 | AF13: 0 | AG13: 1 | AH13: 0 | AI13: 0 | AJ13: 0.666 | AK13: 0.301 | AL13: 1 | AM13: 1 | AN13: 1 | AO13: 0 | AP13: 0 | AR13: =DR13 ->  | AT13: =DS13 ->  | AV13: =DT13 ->  | AX13: =DU13 ->  | AZ13: =DV13 ->  | BB13: =DW13 ->  | BD13: =DX13 ->  | BF13: =DY13 ->  | BH13: =DZ13 ->  | BJ13: =EA13 ->  | BL13: 33 | BM13: 0 | BN13: 0 | BO13: 0.086 | BP13: 0 | BQ13: 0 | BS13: 0.086 | BT13: 206.336 | BU13: 0 | BV13: 0 | BW13: 0 | BX13: 0 | BY13: 0 | BZ13: Res | CA13: Default DR | CB13: =Benefits(BL13,BR13,BS13,BT13,BU13,BV13,BW13,BX13,BY13,AE13,AH13,AI13,AJ13,AK13,AL13,AM13,AN13,AO13,AP13,BZ13,CA13) -> 34.09930514 | CC13: 100.1138357 | CD13: 3562.840217 | CE13: 0 | CF13: 0 | CG13: 0 | CH13: 0 | CI13: 0 | CJ13: =(--(CB13>0))*CB13+(--(CC13>0))*CC13+(--(CD13>0))*CD13+(--(CE13>0))*CE13+(--(CF13>0))*CF13+(--(CG13>0))*CG13+(--(CH13>0))*CH13+(--(CI13>0))*CI13 -> 3697.053358 | CK13: =(--(CB13<0))*-CB13+(--(CC13<0))*-CC13+(--(CD13<0))*-CD13+(--(CE13<0))*-CE13+(--(CF13<0))*-CF13+(--(CG13<0))*-CG13+(--(CH13<0))*-CH13+(--(CI13<0))*-CI13 -> 0 | CM13: 1962 | CP13: =CK13+CM13 -> 1962 | CQ13: =IF(NetOrGross="Net",(1-AO13+AP13),1) -> 1 | CR13: =(SUMPRODUCT(CB13:CI13,--(CB13:CI13>0))+CL13)*CQ13/((-SUMPRODUCT(CB13:CI13,--(CB13:CI13<0))+MAX(CM13,CT13)+CN13+CO13)*CQ13+IF(FRIncentives="Yes",CT13*(1-CQ13),0)) -> 1.884328929 | CS13: 1 | CT13: 1000 | CV13: NG | CX13: X=$3777.00 | CZ13: X=62 | DA13: 0 | DB13: 0 | DC13: X=0.16 | DD13: 0 | DE13: 0 | DF13: X=0.0000 | DG13: X=0.16 | DH13: X=39.6*10 | DI13: 0 | DJ13: 0 | DK13: 0 | DL13: 0 | DM13: X=0.0000 | DP13: {Factor:WinterCF} | DQ13: {Factor:SummerCF} | DR13: =IFERROR(INDEX($ED13:$IG13,MATCH(0,COUNTIF($DO13:DQ13,$ED13:$IG13),0)),"") ->  | DS13: =IFERROR(INDEX($ED13:$IG13,MATCH(0,COUNTIF($DO13:DR13,$ED13:$IG13),0)),"") ->  | DT13: =IFERROR(INDEX($ED13:$IG13,MATCH(0,COUNTIF($DO13:DS13,$ED13:$IG13),0)),"") ->  | DU13: =IFERROR(INDEX($ED13:$IG13,MATCH(0,COUNTIF($DO13:DT13,$ED13:$IG13),0)),"") ->  | DV13: =IFERROR(INDEX($ED13:$IG13,MATCH(0,COUNTIF($DO13:DU13,$ED13:$IG13),0)),"") ->  | DW13: =IFERROR(INDEX($ED13:$IG13,MATCH(0,COUNTIF($DO13:DV13,$ED13:$IG13),0)),"") ->  | DX13: =IFERROR(INDEX($ED13:$IG13,MATCH(0,COUNTIF($DO13:DW13,$ED13:$IG13),0)),"") ->  | DY13: =IFERROR(INDEX($ED13:$IG13,MATCH(0,COUNTIF($DO13:DX13,$ED13:$IG13),0)),"") ->  | DZ13: =IFERROR(INDEX($ED13:$IG13,MATCH(0,COUNTIF($DO13:DY13,$ED13:$IG13),0)),"") ->  | EA13: =IFERROR(INDEX($ED13:$IG13,MATCH(0,COUNTIF($DO13:DZ13,$ED13:$IG13),0)),"") ->  | IK13: 0
A14: Affordable Heat Initiative - Natural Gas | B14: Basement Insulation LIHESP | C14: LBB | D14: 2018-07-01 | E14: 2019-06-30 | F14: Per Measure | G14: $2452.00 | H14: 0 | I14: Manual Entry | J14: $0.00 | K14: 0 | L14: 2018-07-01 | M14: 2019-06-30 | N14: Calculated | O14: 0 | R14: 0 | U14: 0.0000 | V14: 0 | W14: 36.950*10 | AB14: 0.0000 | AC14: 2018-07-01 | AD14: 2019-06-30 | AE14: 25 | AF14: 0 | AG14: 0 | AH14: 0 | AI14: 0 | AJ14: 0 | AK14: 0 | AL14: 1 | AM14: 1 | AN14: 1 | AO14: 0 | AP14: 0 | AR14: =DR14 ->  | AT14: =DS14 ->  | AV14: =DT14 ->  | AX14: =DU14 ->  | AZ14: =DV14 ->  | BB14: =DW14 ->  | BD14: =DX14 ->  | BF14: =DY14 ->  | BH14: =DZ14 ->  | BJ14: =EA14 ->  | BL14: 0 | BM14: 0 | BN14: 0 | BO14: 0.022 | BP14: 0 | BQ14: 0 | BS14: =0 -> 0 | BT14: 109.861 | BU14: 0 | BV14: 0 | BW14: 0 | BX14: 0 | BY14: =0 -> 0 | BZ14: Res | CA14: Default DR | CB14: =Benefits(BL14,BR14,BS14,BT14,BU14,BV14,BW14,BX14,BY14,AE14,AH14,AI14,AJ14,AK14,AL14,AM14,AN14,AO14,AP14,BZ14,CA14) -> 0 | CC14: 0 | CD14: 1896.989324 | CE14: 0 | CF14: 0 | CG14: 0 | CH14: 0 | CI14: 0 | CJ14: =(--(CB14>0))*CB14+(--(CC14>0))*CC14+(--(CD14>0))*CD14+(--(CE14>0))*CE14+(--(CF14>0))*CF14+(--(CG14>0))*CG14+(--(CH14>0))*CH14+(--(CI14>0))*CI14 -> 1896.989324 | CK14: =(--(CB14<0))*-CB14+(--(CC14<0))*-CC14+(--(CD14<0))*-CD14+(--(CE14<0))*-CE14+(--(CF14<0))*-CF14+(--(CG14<0))*-CG14+(--(CH14<0))*-CH14+(--(CI14<0))*-CI14 -> 0 | CM14: 2326 | CP14: =CK14+CM14 -> 2326 | CQ14: =IF(NetOrGross="Net",(1-AO14+AP14),1) -> 1 | CR14: =(SUMPRODUCT(CB14:CI14,--(CB14:CI14>0))+CL14)*CQ14/((-SUMPRODUCT(CB14:CI14,--(CB14:CI14<0))+MAX(CM14,CT14)+CN14+CO14)*CQ14+IF(FRIncentives="Yes",CT14*(1-CQ14),0)) -> 0.8155586086 | CS14: 1 | CT14: 1000 | CV14: NG | CX14: X=$2452.00 | CZ14: X=0 | DA14: 0 | DB14: 0 | DC14: X=0 | DD14: 0 | DE14: 0 | DF14: X=0.0000 | DG14: X=0 | DH14: X=36.950*10 | DI14: 0 | DJ14: 0 | DK14: 0 | DL14: 0 | DM14: X=0.0000 | DP14: {Factor:WinterCF} | DQ14: {Factor:SummerCF} | DR14: =IFERROR(INDEX($ED14:$IG14,MATCH(0,COUNTIF($DO14:DQ14,$ED14:$IG14),0)),"") ->  | DS14: =IFERROR(INDEX($ED14:$IG14,MATCH(0,COUNTIF($DO14:DR14,$ED14:$IG14),0)),"") ->  | DT14: =IFERROR(INDEX($ED14:$IG14,MATCH(0,COUNTIF($DO14:DS14,$ED14:$IG14),0)),"") ->  | DU14: =IFERROR(INDEX($ED14:$IG14,MATCH(0,COUNTIF($DO14:DT14,$ED14:$IG14),0)),"") ->  | DV14: =IFERROR(INDEX($ED14:$IG14,MATCH(0,COUNTIF($DO14:DU14,$ED14:$IG14),0)),"") ->  | DW14: =IFERROR(INDEX($ED14:$IG14,MATCH(0,COUNTIF($DO14:DV14,$ED14:$IG14),0)),"") ->  | DX14: =IFERROR(INDEX($ED14:$IG14,MATCH(0,COUNTIF($DO14:DW14,$ED14:$IG14),0)),"") ->  | DY14: =IFERROR(INDEX($ED14:$IG14,MATCH(0,COUNTIF($DO14:DX14,$ED14:$IG14),0)),"") ->  | DZ14: =IFERROR(INDEX($ED14:$IG14,MATCH(0,COUNTIF($DO14:DY14,$ED14:$IG14),0)),"") ->  | EA14: =IFERROR(INDEX($ED14:$IG14,MATCH(0,COUNTIF($DO14:DZ14,$ED14:$IG14),0)),"") ->  | ED14: =IFERROR(MID($G14,FIND(CHAR(160),SUBSTITUTE($G14,"{",CHAR(160),ED$1)),FIND(CHAR(160),SUBSTITUTE($G14,"}",CHAR(160),ED$1))-FIND(CHAR(160),SUBSTITUTE($G14,"{",CHAR(160),ED$1))+1),"") ->  | EN14: =IFERROR(MID($O14,FIND(CHAR(160),SUBSTITUTE($O14,"{",CHAR(160),EN$1)),FIND(CHAR(160),SUBSTITUTE($O14,"}",CHAR(160),EN$1))-FIND(CHAR(160),SUBSTITUTE($O14,"{",CHAR(160),EN$1))+1),"") ->  | EX14: =IFERROR(MID($R14,FIND(CHAR(160),SUBSTITUTE($R14,"{",CHAR(160),EX$1)),FIND(CHAR(160),SUBSTITUTE($R14,"}",CHAR(160),EX$1))-FIND(CHAR(160),SUBSTITUTE($R14,"{",CHAR(160),EX$1))+1),"") ->  | FH14: =IFERROR(MID($U14,FIND(CHAR(160),SUBSTITUTE($U14,"{",CHAR(160),FH$1)),FIND(CHAR(160),SUBSTITUTE($U14,"}",CHAR(160),FH$1))-FIND(CHAR(160),SUBSTITUTE($U14,"{",CHAR(160),FH$1))+1),"") ->  | FR14: =IFERROR(MID($V14,FIND(CHAR(160),SUBSTITUTE($V14,"{",CHAR(160),FR$1)),FIND(CHAR(160),SUBSTITUTE($V14,"}",CHAR(160),FR$1))-FIND(CHAR(160),SUBSTITUTE($V14,"{",CHAR(160),FR$1))+1),"") ->  | GB14: =IFERROR(MID($W14,FIND(CHAR(160),SUBSTITUTE($W14,"{",CHAR(160),GB$1)),FIND(CHAR(160),SUBSTITUTE($W14,"}",CHAR(160),GB$1))-FIND(CHAR(160),SUBSTITUTE($W14,"{",CHAR(160),GB$1))+1),"") ->  | GL14: =IFERROR(MID($X14,FIND(CHAR(160),SUBSTITUTE($X14,"{",CHAR(160),GL$1)),FIND(CHAR(160),SUBSTITUTE($X14,"}",CHAR(160),GL$1))-FIND(CHAR(160),SUBSTITUTE($X14,"{",CHAR(160),GL$1))+1),"") ->  | GV14: =IFERROR(MID($Y14,FIND(CHAR(160),SUBSTITUTE($Y14,"{",CHAR(160),GV$1)),FIND(CHAR(160),SUBSTITUTE($Y14,"}",CHAR(160),GV$1))-FIND(CHAR(160),SUBSTITUTE($Y14,"{",CHAR(160),GV$1))+1),"") ->  | HF14: =IFERROR(MID($Z14,FIND(CHAR(160),SUBSTITUTE($Z14,"{",CHAR(160),HF$1)),FIND(CHAR(160),SUBSTITUTE($Z14,"}",CHAR(160),HF$1))-FIND(CHAR(160),SUBSTITUTE($Z14,"{",CHAR(160),HF$1))+1),"") ->  | HP14: =IFERROR(MID($AA14,FIND(CHAR(160),SUBSTITUTE($AA14,"{",CHAR(160),HP$1)),FIND(CHAR(160),SUBSTITUTE($AA14,"}",CHAR(160),HP$1))-FIND(CHAR(160),SUBSTITUTE($AA14,"{",CHAR(160),HP$1))+1),"") ->  | HZ14: =IFERROR(MID($AB14,FIND(CHAR(160),SUBSTITUTE($AB14,"{",CHAR(160),HZ$1)),FIND(CHAR(160),SUBSTITUTE($AB14,"}",CHAR(160),HZ$1))-FIND(CHAR(160),SUBSTITUTE($AB14,"{",CHAR(160),HZ$1))+1),"") ->  | IK14: 0
A15: Affordable Heat Initiative - Natural Gas | B15: Energy Upgrade Bundle LIHESP | C15: LUB | D15: 2018-07-01 | E15: 2019-06-30 | F15: Calculated | G15: {Project Cost} | H15: 0 | I15: Manual Entry | J15: $0.00 | K15: 0 | L15: 2018-07-01 | M15: 2019-06-30 | N15: Calculated | O15: if({Number of Aerators}>0,283+({Number of Aerators}-1)*29,0)+{Number of Showerheads}*150+{Seal/Insulate Pipes/Ducts}*25+13 | R15: if({Number of Aerators}>0,0.023+({Number of Aerators}-1)*0.002,0)+if({Number of Showerheads}>0,{Number of Showerheads}*0.012,0)+if({Seal/Insulate Pipes/Ducts}>0,{Seal/Insulate Pipes/Ducts}*0.002,0)+0.034 | U15: 0 | V15: if({Number of Aerators}>0,0.023+({Number of Aerators}-1)*0.002,0)+if({Number of Showerheads}>0,{Number of Showerheads}*0.012,0)+if({Seal/Insulate Pipes/Ducts}>0,{Seal/Insulate Pipes/Ducts}*0.002,0)+0.034 | W15: (({Underbelly}*25.270+{Seal and Insulate Openings}*0.646+{Seal/Insulate Pipes/Ducts}*5.571)*1+10.033)*10 | AB15: if({Number of Aerators}>0,2696+({Number of Aerators}-1)*333,0)+{Number of Showerheads}*1200 | AC15: 2018-07-01 | AD15: 2019-06-30 | AE15: 15 | AF15: 0 | AG15: 1 | AH15: 0 | AI15: 0 | AJ15: 0.666 | AK15: 0.301 | AL15: 1 | AM15: 1 | AN15: 1 | AO15: 0 | AP15: 0 | AR15: =DR15 -> {Project Cost} | AS15: 600 | AT15: =DS15 -> {Number of Aerators} | AU15: 0 | AV15: =DT15 -> {Number of Showerheads} | AW15: 0 | AX15: =DU15 -> {Seal/Insulate Pipes/Ducts} | AY15: 0 | AZ15: =DV15 -> {Underbelly} | BA15: 0 | BB15: =DW15 -> {Seal and Insulate Openings} | BC15: 0 | BD15: =DX15 ->  | BF15: =DY15 ->  | BH15: =DZ15 ->  | BJ15: =EA15 ->  | BL15: =IF(AU15>0,283+(AU15-1)*29,0)+AW15*150+AY15*25+13 -> 13 | BM15: 0 | BN15: 0 | BO15: =IF(AU15>0,0.023+(AU15-1)*0.002,0)+IF(AW15>0,AW15*0.012,0)+IF(AY15>0,AY15*0.002,0)+0.034 -> 0.034 | BP15: 0 | BQ15: 0 | BR15: =0 -> 0 | BS15: =IF(AU15>0,0.023+(AU15-1)*0.002,0)+IF(AW15>0,AW15*0.012,0)+IF(AY15>0,AY15*0.002,0)+0.034 -> 0.034 | BT15: =((BA15*25.27+BC15*0.646+AY15*5.571)*1+10.033)*10 -> 100.33 | BU15: 0 | BV15: 0 | BW15: 0 | BX15: 0 | BY15: =IF(AU15>0,2696+(AU15-1)*333,0)+AW15*1200 -> 0 | BZ15: Res | CA15: Default DR | CB15: =Benefits(BL15,BR15,BS15,BT15,BU15,BV15,BW15,BX15,BY15,AE15,AH15,AI15,AJ15,AK15,AL15,AM15,AN15,AO15,AP15,BZ15,CA15) -> 8.292808804 | CC15: 26.058435 | CD15: 1168.971477 | CE15: 0 | CF15: 0 | CG15: 0 | CH15: 0 | CI15: 0 | CJ15: =(--(CB15>0))*CB15+(--(CC15>0))*CC15+(--(CD15>0))*CD15+(--(CE15>0))*CE15+(--(CF15>0))*CF15+(--(CG15>0))*CG15+(--(CH15>0))*CH15+(--(CI15>0))*CI15 -> 1203.322721 | CK15: =(--(CB15<0))*-CB15+(--(CC15<0))*-CC15+(--(CD15<0))*-CD15+(--(CE15<0))*-CE15+(--(CF15<0))*-CF15+(--(CG15<0))*-CG15+(--(CH15<0))*-CH15+(--(CI15<0))*-CI15 -> 0 | CM15: =AS15 -> 600 | CP15: =CK15+CM15 -> 600 | CQ15: =IF(NetOrGross="Net",(1-AO15+AP15),1) -> 1 | CR15: =(SUMPRODUCT(CB15:CI15,--(CB15:CI15>0))+CL15)*CQ15/((-SUMPRODUCT(CB15:CI15,--(CB15:CI15<0))+MAX(CM15,CT15)+CN15+CO15)*CQ15+IF(FRIncentives="Yes",CT15*(1-CQ15),0)) -> 2.005537869 | CS15: 1 | CT15: 550 | CV15: NG | CX15: X=AS15 | CZ15: X=if(AU15>0,283+(AU15-1)*29,0)+AW15*150+AY15*25+13 | DA15: 0 | DB15: 0 | DC15: X=if(AU15>0,0.023+(AU15-1)*0.002,0)+if(AW15>0,AW15*0.012,0)+if(AY15>0,AY15*0.002,0)+0.034 | DD15: 0 | DE15: 0 | DF15: X=0 | DG15: X=if(AU15>0,0.023+(AU15-1)*0.002,0)+if(AW15>0,AW15*0.012,0)+if(AY15>0,AY15*0.002,0)+0.034 | DH15: X=((BA15*25.270+BC15*0.646+AY15*5.571)*1+10.033)*10 | DI15: 0 | DJ15: 0 | DK15: 0 | DL15: 0 | DM15: X=if(AU15>0,2696+(AU15-1)*333,0)+AW15*1200 | DP15: {Factor:WinterCF} | DQ15: {Factor:SummerCF} | DR15: =IFERROR(INDEX($ED15:$IG15,MATCH(0,COUNTIF($DO15:DQ15,$ED15:$IG15),0)),"") -> {Project Cost} | DS15: =IFERROR(INDEX($ED15:$IG15,MATCH(0,COUNTIF($DO15:DR15,$ED15:$IG15),0)),"") -> {Number of Aerators} | DT15: =IFERROR(INDEX($ED15:$IG15,MATCH(0,COUNTIF($DO15:DS15,$ED15:$IG15),0)),"") -> {Number of Showerheads} | DU15: =IFERROR(INDEX($ED15:$IG15,MATCH(0,COUNTIF($DO15:DT15,$ED15:$IG15),0)),"") -> {Seal/Insulate Pipes/Ducts} | DV15: =IFERROR(INDEX($ED15:$IG15,MATCH(0,COUNTIF($DO15:DU15,$ED15:$IG15),0)),"") -> {Underbelly} | DW15: =IFERROR(INDEX($ED15:$IG15,MATCH(0,COUNTIF($DO15:DV15,$ED15:$IG15),0)),"") -> {Seal and Insulate Openings} | DX15: =IFERROR(INDEX($ED15:$IG15,MATCH(0,COUNTIF($DO15:DW15,$ED15:$IG15),0)),"") ->  | DY15: =IFERROR(INDEX($ED15:$IG15,MATCH(0,COUNTIF($DO15:DX15,$ED15:$IG15),0)),"") ->  | DZ15: =IFERROR(INDEX($ED15:$IG15,MATCH(0,COUNTIF($DO15:DY15,$ED15:$IG15),0)),"") ->  | EA15: =IFERROR(INDEX($ED15:$IG15,MATCH(0,COUNTIF($DO15:DZ15,$ED15:$IG15),0)),"") ->  | ED15: {Project Cost} | EN15: {Number of Aerators} | EO15: {Number of Aerators} | EP15: {Number of Showerheads} | EQ15: {Seal/Insulate Pipes/Ducts} | EX15: {Number of Aerators} | EY15: {Number of Aerators} | EZ15: {Number of Showerheads} | FA15: {Number of Showerheads} | FB15: {Seal/Insulate Pipes/Ducts} | FC15: {Seal/Insulate Pipes/Ducts} | FR15: {Number of Aerators} | FS15: {Number of Aerators} | FT15: {Number of Showerheads} | FU15: {Number of Showerheads} | FV15: {Seal/Insulate Pipes/Ducts} | FW15: {Seal/Insulate Pipes/Ducts} | GB15: {Underbelly} | GC15: {Seal and Insulate Openings} | GD15: {Seal/Insulate Pipes/Ducts} | HZ15: {Number of Aerators} | IA15: {Number of Aerators} | IB15: {Number of Showerheads} | IK15: 6
A16: Affordable Heat Initiative - Natural Gas | B16: Wall Insulation LIHESP | C16: LBW | D16: 2018-07-01 | E16: 2019-06-30 | F16: Per Measure | G16: $3082.00 | H16: 0 | I16: Manual Entry | J16: $0.00 | K16: 0 | L16: 2018-07-01 | M16: 2019-06-30 | N16: Calculated | O16: 78 | U16: 0.0000 | V16: 0.201 | W16: 49.747*10 | AB16: 0.0000 | AC16: 2018-07-01 | AD16: 2019-06-30 | AE16: 25 | AF16: 0 | AG16: 1 | AH16: 0 | AI16: 0 | AJ16: 0.666 | AK16: 0.301 | AL16: 1 | AM16: 1 | AN16: 1 | AO16: 0 | AP16: 0 | AR16: =DR16 ->  | AT16: =DS16 ->  | AV16: =DT16 ->  | AX16: =DU16 ->  | AZ16: =DV16 ->  | BB16: =DW16 ->  | BD16: =DX16 ->  | BF16: =DY16 ->  | BH16: =DZ16 ->  | BJ16: =EA16 ->  | BL16: 32 | BM16: 0 | BN16: 0 | BO16: 0.083 | BP16: 0 | BQ16: 0 | BR16: 0 | BS16: 0.083 | BT16: 199.246 | BU16: 0 | BV16: 0 | BW16: 0 | BX16: 0 | BY16: =0 -> 0 | BZ16: Res | CA16: Default DR | CB16: =Benefits(BL16,BR16,BS16,BT16,BU16,BV16,BW16,BX16,BY16,AE16,AH16,AI16,AJ16,AK16,AL16,AM16,AN16,AO16,AP16,BZ16,CA16) -> 33.06599286 | CC16: 96.62149261 | CD16: 3440.415933 | CE16: 0 | CF16: 0 | CG16: 0 | CH16: 0 | CI16: 0 | CJ16: =(--(CB16>0))*CB16+(--(CC16>0))*CC16+(--(CD16>0))*CD16+(--(CE16>0))*CE16+(--(CF16>0))*CF16+(--(CG16>0))*CG16+(--(CH16>0))*CH16+(--(CI16>0))*CI16 -> 3570.103418 | CK16: =(--(CB16<0))*-CB16+(--(CC16<0))*-CC16+(--(CD16<0))*-CD16+(--(CE16<0))*-CE16+(--(CF16<0))*-CF16+(--(CG16<0))*-CG16+(--(CH16<0))*-CH16+(--(CI16<0))*-CI16 -> 0 | CM16: 2574 | CP16: =CK16+CM16 -> 2574 | CQ16: =IF(NetOrGross="Net",(1-AO16+AP16),1) -> 1 | CR16: =(SUMPRODUCT(CB16:CI16,--(CB16:CI16>0))+CL16)*CQ16/((-SUMPRODUCT(CB16:CI16,--(CB16:CI16<0))+MAX(CM16,CT16)+CN16+CO16)*CQ16+IF(FRIncentives="Yes",CT16*(1-CQ16),0)) -> 1.386986565 | CS16: 1 | CT16: 1000 | CV16: NG | CX16: X=$3082.00 | CZ16: X=78 | DA16: 0 | DB16: 0 | DC16: 0 | DD16: 0 | DE16: 0 | DF16: X=0.0000 | DG16: X=0.201 | DH16: X=49.747*10 | DI16: 0 | DJ16: 0 | DK16: 0 | DL16: 0 | DM16: X=0.0000 | DP16: {Factor:WinterCF} | DQ16: {Factor:SummerCF} | DR16: =IFERROR(INDEX($ED16:$IG16,MATCH(0,COUNTIF($DO16:DQ16,$ED16:$IG16),0)),"") ->  | DS16: =IFERROR(INDEX($ED16:$IG16,MATCH(0,COUNTIF($DO16:DR16,$ED16:$IG16),0)),"") ->  | DT16: =IFERROR(INDEX($ED16:$IG16,MATCH(0,COUNTIF($DO16:DS16,$ED16:$IG16),0)),"") ->  | DU16: =IFERROR(INDEX($ED16:$IG16,MATCH(0,COUNTIF($DO16:DT16,$ED16:$IG16),0)),"") ->  | DV16: =IFERROR(INDEX($ED16:$IG16,MATCH(0,COUNTIF($DO16:DU16,$ED16:$IG16),0)),"") ->  | DW16: =IFERROR(INDEX($ED16:$IG16,MATCH(0,COUNTIF($DO16:DV16,$ED16:$IG16),0)),"") ->  | DX16: =IFERROR(INDEX($ED16:$IG16,MATCH(0,COUNTIF($DO16:DW16,$ED16:$IG16),0)),"") ->  | DY16: =IFERROR(INDEX($ED16:$IG16,MATCH(0,COUNTIF($DO16:DX16,$ED16:$IG16),0)),"") ->  | DZ16: =IFERROR(INDEX($ED16:$IG16,MATCH(0,COUNTIF($DO16:DY16,$ED16:$IG16),0)),"") ->  | EA16: =IFERROR(INDEX($ED16:$IG16,MATCH(0,COUNTIF($DO16:DZ16,$ED16:$IG16),0)),"") ->  | IK16: 0
A17: Affordable Heat Initiative - Natural Gas | BL17: 0 | BM17: 0 | BN17: 0 | BO17: 0 | BP17: 0 | BQ17: 0 | BR17: 0 | BS17: 0 | BT17: 0 | BU17: 0 | BV17: 0 | BW17: 0 | BX17: 0 | BY17: 0 | CX17: 0 | CZ17: 0 | DA17: 0 | DB17: 0 | DC17: 0 | DD17: 0 | DE17: 0 | DF17: 0 | DG17: 0 | DH17: 0 | DI17: 0 | DJ17: 0 | DK17: 0 | DL17: 0 | DM17: 0 | DP17: {Factor:WinterCF} | DQ17: {Factor:SummerCF} | DR17: =IFERROR(INDEX($ED17:$IG17,MATCH(0,COUNTIF($DO17:DQ17,$ED17:$IG17),0)),"") ->  | DS17: =IFERROR(INDEX($ED17:$IG17,MATCH(0,COUNTIF($DO17:DR17,$ED17:$IG17),0)),"") ->  | DT17: =IFERROR(INDEX($ED17:$IG17,MATCH(0,COUNTIF($DO17:DS17,$ED17:$IG17),0)),"") ->  | DU17: =IFERROR(INDEX($ED17:$IG17,MATCH(0,COUNTIF($DO17:DT17,$ED17:$IG17),0)),"") ->  | DV17: =IFERROR(INDEX($ED17:$IG17,MATCH(0,COUNTIF($DO17:DU17,$ED17:$IG17),0)),"") ->  | DW17: =IFERROR(INDEX($ED17:$IG17,MATCH(0,COUNTIF($DO17:DV17,$ED17:$IG17),0)),"") ->  | DX17: =IFERROR(INDEX($ED17:$IG17,MATCH(0,COUNTIF($DO17:DW17,$ED17:$IG17),0)),"") ->  | DY17: =IFERROR(INDEX($ED17:$IG17,MATCH(0,COUNTIF($DO17:DX17,$ED17:$IG17),0)),"") ->  | DZ17: =IFERROR(INDEX($ED17:$IG17,MATCH(0,COUNTIF($DO17:DY17,$ED17:$IG17),0)),"") ->  | EA17: =IFERROR(INDEX($ED17:$IG17,MATCH(0,COUNTIF($DO17:DZ17,$ED17:$IG17),0)),"") ->  | IK17: 0
A18: Affordable Heat Initiative - Other Fuels | B18: Air Sealing LIHESP | C18: LAA | D18: 2018-07-01 | E18: 2019-06-30 | F18: Per Measure | G18: $1080.00 | H18: 0 | I18: Manual Entry | J18: $0.00 | K18: 0 | L18: 2018-07-01 | M18: 2019-06-30 | N18: Calculated | O18: if({Fuel Type}=6,2013,if({Fuel Type}=0,89,13)) | R18: if({Fuel Type}=6,0.034,if({Fuel Type}=0,0.034,0.034)) | U18: if({Fuel Type}=6,0.44,if({Fuel Type}=0,0.017,0)) | V18: if({Fuel Type}=6,0.034,if({Fuel Type}=0,0.034,0.034)) | W18: if({Fuel Type}=1,8.519,if({Fuel Type}=0,0.763,0))*10 | X18: if({Fuel Type}=2,8.519,if({Fuel Type} = 0,1.11,0)) | Y18: if({Fuel Type}=3,8.519,if({Fuel Type} = 0,5.788,0)) | Z18: if({Fuel Type}=4,8.519,if({Fuel Type} = 0,0.119,0)) | AA18: if({Fuel Type}=5,8.519,if({Fuel Type} = 0,0.364,0)) | AB18: 0.0000 | AC18: 2018-07-01 | AD18: 2019-06-30 | AE18: 15 | AF18: 0 | AG18: 1 | AH18: 0 | AI18: 0 | AJ18: 0.666 | AK18: 0.301 | AL18: 1 | AM18: 1 | AN18: 1 | AO18: 0 | AP18: 0 | AR18: =DR18 -> {Fuel Type} | AS18: 0 | AT18: =DS18 ->  | AV18: =DT18 ->  | AX18: =DU18 ->  | AZ18: =DV18 ->  | BB18: =DW18 ->  | BD18: =DX18 ->  | BF18: =DY18 ->  | BH18: =DZ18 ->  | BJ18: =EA18 ->  | BL18: 67 | BM18: 0 | BN18: 0 | BO18: 0.026 | BP18: 0 | BQ18: 0 | BR18: 0.013 | BS18: 0.026 | BT18: 5.57 | BU18: 0.81 | BV18: 4.23 | BW18: 0.087 | BX18: 0.266 | BY18: =0 -> 0 | BZ18: Res | CA18: RGGI DR | CB18: =Benefits(BL18,BR18,BS18,BT18,BU18,BV18,BW18,BX18,BY18,AE18,AH18,AI18,AJ18,AK18,AL18,AM18,AN18,AO18,AP18,BZ18,CA18) -> 42.73986076 | CC18: 39.85407705 | CD18: 64.89754938 | CE18: 1227.032422 | CF18: 22.62977041 | CG18: 325.6738709 | CH18: 75.19642265 | CI18: 0 | CJ18: =(--(CB18>0))*CB18+(--(CC18>0))*CC18+(--(CD18>0))*CD18+(--(CE18>0))*CE18+(--(CF18>0))*CF18+(--(CG18>0))*CG18+(--(CH18>0))*CH18+(--(CI18>0))*CI18 -> 1798.023973 | CK18: =(--(CB18<0))*-CB18+(--(CC18<0))*-CC18+(--(CD18<0))*-CD18+(--(CE18<0))*-CE18+(--(CF18<0))*-CF18+(--(CG18<0))*-CG18+(--(CH18<0))*-CH18+(--(CI18<0))*-CI18 -> 0 | CM18: 623 | CP18: =CK18+CM18 -> 623 | CQ18: =IF(NetOrGross="Net",(1-AO18+AP18),1) -> 1 | CR18: =(SUMPRODUCT(CB18:CI18,--(CB18:CI18>0))+CL18)*CQ18/((-SUMPRODUCT(CB18:CI18,--(CB18:CI18<0))+MAX(CM18,CT18)+CN18+CO18)*CQ18+IF(FRIncentives="Yes",CT18*(1-CQ18),0)) -> 2.886073792 | CS18: 1 | CT18: 550 | CV18: RGGI | CX18: X=$1080.00 | CZ18: X=if(AS18=6,2013,if(AS18=0,89,13)) | DA18: 0 | DB18: 0 | DC18: X=if(AS18=6,0.034,if(AS18=0,0.034,0.034)) | DD18: 0 | DE18: 0 | DF18: X=if(AS18=6,0.44,if(AS18=0,0.017,0)) | DG18: X=if(AS18=6,0.034,if(AS18=0,0.034,0.034)) | DH18: X=if(AS18=1,8.519,if(AS18=0,0.763,0))*10 | DI18: X=if(AS18=2,8.519,if(AS18 = 0,1.11,0)) | DJ18: X=if(AS18=3,8.519,if(AS18 = 0,5.788,0)) | DK18: X=if(AS18=4,8.519,if(AS18 = 0,0.119,0)) | DL18: X=if(AS18=5,8.519,if(AS18 = 0,0.364,0)) | DM18: X=0.0000 | DP18: {Factor:WinterCF} | DQ18: {Factor:SummerCF} | DR18: =IFERROR(INDEX($ED18:$IG18,MATCH(0,COUNTIF($DO18:DQ18,$ED18:$IG18),0)),"") -> {Fuel Type} | DS18: =IFERROR(INDEX($ED18:$IG18,MATCH(0,COUNTIF($DO18:DR18,$ED18:$IG18),0)),"") ->  | DT18: =IFERROR(INDEX($ED18:$IG18,MATCH(0,COUNTIF($DO18:DS18,$ED18:$IG18),0)),"") ->  | DU18: =IFERROR(INDEX($ED18:$IG18,MATCH(0,COUNTIF($DO18:DT18,$ED18:$IG18),0)),"") ->  | DV18: =IFERROR(INDEX($ED18:$IG18,MATCH(0,COUNTIF($DO18:DU18,$ED18:$IG18),0)),"") ->  | DW18: =IFERROR(INDEX($ED18:$IG18,MATCH(0,COUNTIF($DO18:DV18,$ED18:$IG18),0)),"") ->  | DX18: =IFERROR(INDEX($ED18:$IG18,MATCH(0,COUNTIF($DO18:DW18,$ED18:$IG18),0)),"") ->  | DY18: =IFERROR(INDEX($ED18:$IG18,MATCH(0,COUNTIF($DO18:DX18,$ED18:$IG18),0)),"") ->  | DZ18: =IFERROR(INDEX($ED18:$IG18,MATCH(0,COUNTIF($DO18:DY18,$ED18:$IG18),0)),"") ->  | EA18: =IFERROR(INDEX($ED18:$IG18,MATCH(0,COUNTIF($DO18:DZ18,$ED18:$IG18),0)),"") ->  | EN18: {Fuel Type} | EO18: {Fuel Type} | EX18: {Fuel Type} | EY18: {Fuel Type} | FH18: {Fuel Type} | FI18: {Fuel Type} | FR18: {Fuel Type} | FS18: {Fuel Type} | GB18: {Fuel Type} | GC18: {Fuel Type} | GL18: {Fuel Type} | GM18: {Fuel Type} | GV18: {Fuel Type} | GW18: {Fuel Type} | HF18: {Fuel Type} | HG18: {Fuel Type} | HP18: {Fuel Type} | HQ18: {Fuel Type} | IK18: 1
A19: Affordable Heat Initiative - Other Fuels | B19: Attic Insulation LIHESP | C19: LBA | D19: 2018-07-01 | E19: 2019-06-30 | F19: Per Measure | G19: $2104.00 | H19: 0 | I19: Manual Entry | J19: $0.00 | K19: 0 | L19: 2018-07-01 | M19: 2019-06-30 | N19: Calculated | O19: if({Fuel Type}=6,3699,if({Fuel Type}=0,164,24)) | R19: if({Fuel Type}=6,0.808,if({Fuel Type}=0,0.063,0.063)) | U19: if({Fuel Type}=6,0.808,if({Fuel Type}=0,0.031,0)) | V19: if({Fuel Type}=6,0.063,if({Fuel Type}=0,0.063,0.063)) | W19: if({Fuel Type}=1,15.576,if({Fuel Type}=0,1.402,0))*10 | X19: if({Fuel Type}=2,15.576,if({Fuel Type}=0,2.04,0)) | Y19: if({Fuel Type}=3,15.576,if({Fuel Type} = 0,10.638,0)) | Z19: if({Fuel Type}=4,15.576,if({Fuel Type} = 0,0.218,0)) | AA19: if({Fuel Type}=5,15.576,if({Fuel Type} = 0,0.670,0)) | AB19: 0.0000 | AC19: 2018-07-01 | AD19: 2019-06-30 | AE19: 25 | AF19: 0 | AG19: 1 | AH19: 0 | AI19: 0 | AJ19: 0.666 | AK19: 0.301 | AL19: 1 | AM19: 1 | AN19: 1 | AO19: 0 | AP19: 0 | AR19: =DR19 -> {Fuel Type} | AS19: 0 | AT19: =DS19 ->  | AV19: =DT19 ->  | AX19: =DU19 ->  | AZ19: =DV19 ->  | BB19: =DW19 ->  | BD19: =DX19 ->  | BL19: 137 | BM19: 0 | BN19: 0 | BO19: 0.053 | BP19: 0 | BQ19: 0 | BR19: 0.026 | BS19: 0.053 | BT19: 11.4 | BU19: 1.659 | BV19: 8.661 | BW19: 0.177 | BX19: 0.545 | BY19: =0 -> 0 | BZ19: Res | CA19: RGGI DR | CB19: =Benefits(BL19,BR19,BS19,BT19,BU19,BV19,BW19,BX19,BY19,AE19,AH19,AI19,AJ19,AK19,AL19,AM19,AN19,AO19,AP19,BZ19,CA19) -> 141.5637819 | CC19: 122.2320087 | CD19: 196.8458169 | CE19: 3898.754014 | CF19: 71.44573252 | CG19: 1029.196494 | CH19: 239.085891 | CI19: 0 | CJ19: 5699.12374 | CK19: 0 | CM19: 1962 | CP19: 1962 | CQ19: 1 | CR19: 2.904752161 | CS19: 1 | CT19: 1000 | CV19: RGGI | CX19: X=$2104.00 | CZ19: X=if(AS19=6,3699,if(AS19=0,164,24)) | DA19: 0 | DB19: 0 | DC19: X=if(AS19=6,0.808,if(AS19=0,0.063,0.063)) | DD19: 0 | DE19: 0 | DF19: X=if(AS19=6,0.808,if(AS19=0,0.031,0)) | DG19: X=if(AS19=6,0.063,if(AS19=0,0.063,0.063)) | DH19: X=if(AS19=1,15.576,if(AS19=0,1.402,0))*10 | DI19: X=if(AS19=2,15.576,if(AS19=0,2.04,0)) | DJ19: X=if(AS19=3,15.576,if(AS19 = 0,10.638,0)) | DK19: X=if(AS19=4,15.576,if(AS19 = 0,0.218,0)) | DL19: X=if(AS19=5,15.576,if(AS19 = 0,0.670,0)) | DM19: X=0.0000 | DP19: {Factor:WinterCF} | DQ19: {Factor:SummerCF} | DR19: =IFERROR(INDEX($ED19:$IG19,MATCH(0,COUNTIF($DO19:DQ19,$ED19:$IG19),0)),"") -> {Fuel Type} | DS19: =IFERROR(INDEX($ED19:$IG19,MATCH(0,COUNTIF($DO19:DR19,$ED19:$IG19),0)),"") ->  | DT19: =IFERROR(INDEX($ED19:$IG19,MATCH(0,COUNTIF($DO19:DS19,$ED19:$IG19),0)),"") ->  | DU19: =IFERROR(INDEX($ED19:$IG19,MATCH(0,COUNTIF($DO19:DT19,$ED19:$IG19),0)),"") ->  | DV19: =IFERROR(INDEX($ED19:$IG19,MATCH(0,COUNTIF($DO19:DU19,$ED19:$IG19),0)),"") ->  | DW19: =IFERROR(INDEX($ED19:$IG19,MATCH(0,COUNTIF($DO19:DV19,$ED19:$IG19),0)),"") ->  | DX19: =IFERROR(INDEX($ED19:$IG19,MATCH(0,COUNTIF($DO19:DW19,$ED19:$IG19),0)),"") ->  | DY19: =IFERROR(INDEX($ED19:$IG19,MATCH(0,COUNTIF($DO19:DX19,$ED19:$IG19),0)),"") ->  | DZ19: =IFERROR(INDEX($ED19:$IG19,MATCH(0,COUNTIF($DO19:DY19,$ED19:$IG19),0)),"") ->  | EA19: =IFERROR(INDEX($ED19:$IG19,MATCH(0,COUNTIF($DO19:DZ19,$ED19:$IG19),0)),"") ->  | EN19: {Fuel Type} | EO19: {Fuel Type} | EX19: {Fuel Type} | EY19: {Fuel Type} | FH19: {Fuel Type} | FI19: {Fuel Type} | FR19: {Fuel Type} | FS19: {Fuel Type} | GB19: {Fuel Type} | GC19: {Fuel Type} | GL19: {Fuel Type} | GM19: {Fuel Type} | GV19: {Fuel Type} | GW19: {Fuel Type} | HF19: {Fuel Type} | HG19: {Fuel Type} | HP19: {Fuel Type} | HQ19: {Fuel Type} | IK19: 1
A20: Affordable Heat Initiative - Other Fuels | B20: Basement Insulation LIHESP | C20: LBB | D20: 2018-07-01 | E20: 2019-06-30 | F20: Per Measure | G20: $2452.00 | H20: 0 | I20: Manual Entry | J20: $0.00 | K20: 0 | L20: 2018-07-01 | M20: 2019-06-30 | N20: Calculated | O20: if({Fuel Type}=6,8718,if({Fuel Type}=0,314,0)) | R20: 0 | U20: if({Fuel Type}=6,1.918,if({Fuel Type}=0,0.073,0)) | V20: 0 | W20: if({Fuel Type}=1,36.95,if({Fuel Type}=0,0,0))*10 | X20: if({Fuel Type}=2,36.950,if({Fuel Type} = 0,6.577,0)) | Y20: if({Fuel Type}=3,36.95,if({Fuel Type} = 0,26.567,0)) | Z20: if({Fuel Type}=4,36.95,if({Fuel Type} = 0,0.443,0)) | AA20: if({Fuel Type}=5,36.95,if({Fuel Type} = 0,2.032,0)) | AB20: 0.0000 | AC20: 2018-07-01 | AD20: 2019-06-30 | AE20: 25 | AF20: 0 | AG20: 0 | AH20: 0 | AI20: 0 | AJ20: 0 | AK20: 0 | AL20: 1 | AM20: 1 | AN20: 1 | AO20: 0 | AP20: 0 | AR20: =DR20 -> {Fuel Type} | AS20: 0 | AT20: =DS20 ->  | AV20: =DT20 ->  | AX20: =DU20 ->  | AZ20: =DV20 ->  | BB20: =DW20 ->  | BD20: =DX20 ->  | BL20: 102 | BM20: 0 | BN20: 0 | BO20: =0 -> 0 | BP20: 0 | BQ20: 0 | BR20: 0.022 | BS20: =0 -> 0 | BT20: 9.89 | BU20: 1.439 | BV20: 7.514 | BW20: 0.154 | BX20: 0.472 | BY20: =0 -> 0 | BZ20: Res | CA20: RGGI DR | CB20: =Benefits(BL20,BR20,BS20,BT20,BU20,BV20,BW20,BX20,BY20,AE20,AH20,AI20,AJ20,AK20,AL20,AM20,AN20,AO20,AP20,BZ20,CA20) -> 0 | CC20: 51.22103223 | CD20: 170.7723797 | CE20: 3382.43132 | CF20: 62.16182378 | CG20: 892.7147411 | CH20: 207.0615423 | CI20: 0 | CJ20: 4766.362839 | CK20: 0 | CM20: 2326 | CP20: 2326 | CQ20: 1 | CR20: 2.049167171 | CS20: 1 | CT20: 1000 | CV20: RGGI | CX20: X=$2452.00 | CZ20: X=if(AS20=6,8718,if(AS20=0,314,0)) | DA20: 0 | DB20: 0 | DC20: X=0 | DD20: 0 | DE20: 0 | DF20: X=if(AS20=6,1.918,if(AS20=0,0.073,0)) | DG20: X=0 | DH20: X=if(AS20=1,36.95,if(AS20=0,0,0))*10 | DI20: X=if(AS20=2,36.950,if(AS20 = 0,6.577,0)) | DJ20: X=if(AS20=3,36.95,if(AS20 = 0,26.567,0)) | DK20: X=if(AS20=4,36.95,if(AS20 = 0,0.443,0)) | DL20: X=if(AS20=5,36.95,if(AS20 = 0,2.032,0)) | DM20: X=0.0000 | DP20: {Factor:WinterCF} | DQ20: {Factor:SummerCF} | DR20: =IFERROR(INDEX($ED20:$IG20,MATCH(0,COUNTIF($DO20:DQ20,$ED20:$IG20),0)),"") -> {Fuel Type} | DS20: =IFERROR(INDEX($ED20:$IG20,MATCH(0,COUNTIF($DO20:DR20,$ED20:$IG20),0)),"") ->  | DT20: =IFERROR(INDEX($ED20:$IG20,MATCH(0,COUNTIF($DO20:DS20,$ED20:$IG20),0)),"") ->  | DU20: =IFERROR(INDEX($ED20:$IG20,MATCH(0,COUNTIF($DO20:DT20,$ED20:$IG20),0)),"") ->  | DV20: =IFERROR(INDEX($ED20:$IG20,MATCH(0,COUNTIF($DO20:DU20,$ED20:$IG20),0)),"") ->  | DW20: =IFERROR(INDEX($ED20:$IG20,MATCH(0,COUNTIF($DO20:DV20,$ED20:$IG20),0)),"") ->  | DX20: =IFERROR(INDEX($ED20:$IG20,MATCH(0,COUNTIF($DO20:DW20,$ED20:$IG20),0)),"") ->  | DY20: =IFERROR(INDEX($ED20:$IG20,MATCH(0,COUNTIF($DO20:DX20,$ED20:$IG20),0)),"") ->  | DZ20: =IFERROR(INDEX($ED20:$IG20,MATCH(0,COUNTIF($DO20:DY20,$ED20:$IG20),0)),"") ->  | EA20: =IFERROR(INDEX($ED20:$IG20,MATCH(0,COUNTIF($DO20:DZ20,$ED20:$IG20),0)),"") ->  | EN20: {Fuel Type} | EO20: {Fuel Type} | FH20: {Fuel Type} | FI20: {Fuel Type} | GB20: {Fuel Type} | GC20: {Fuel Type} | GL20: {Fuel Type} | GM20: {Fuel Type} | GV20: {Fuel Type} | GW20: {Fuel Type} | HF20: {Fuel Type} | HG20: {Fuel Type} | HP20: {Fuel Type} | HQ20: {Fuel Type} | IK20: 1
A21: Affordable Heat Initiative - Other Fuels | B21: Energy Upgrade Bundle LIHESP | C21: LUB | D21: 2018-07-01 | E21: 2019-06-30 | F21: Calculated | G21: {Project Cost} | H21: 0 | I21: Manual Entry | J21: $0.00 | K21: 0 | L21: 2018-07-01 | M21: 2019-06-30 | N21: Calculated | O21: if({Number of Aerators}>0,283+({Number of Aerators}-1)*29,0)+{Number of Showerheads}*150+{Seal/Insulate Pipes/Ducts}*25+13 | R21: if({Number of Aerators}>0,0.023+({Number of Aerators}-1)*0.002,0)+if({Number of Showerheads}>0,{Number of Showerheads}*0.012,0)+if({Seal/Insulate Pipes/Ducts}>0,{Seal/Insulate Pipes/Ducts}*0.002,0)+0.034 | U21: 0 | V21: if({Number of Aerators}>0,0.023+({Number of Aerators}-1)*0.002,0)+if({Number of Showerheads}>0,{Number of Showerheads}*0.012,0)+if({Seal/Insulate Pipes/Ducts}>0,{Seal/Insulate Pipes/Ducts}*0.002,0)+0.034 | X21: ({Underbelly}*25.270+{Seal and Insulate Openings}*0.646+{Seal/Insulate Pipes/Ducts}*5.571)*if({Fuel Type}=2,1,if({Fuel Type}=0,0.139,0))+if({Fuel Type}=2,8.519,if({Fuel Type} = 0,1.110,0)) | Y21: ({Underbelly}*25.270+{Seal and Insulate Openings}*0.646+{Seal/Insulate Pipes/Ducts}*5.571)*if({Fuel Type}=3,1,if({Fuel Type}=0,.753,0))+if({Fuel Type}=3,8.519,if({Fuel Type} = 0,5.788,0)) | Z21: ({Underbelly}*25.270+{Seal and Insulate Openings}*0.646+{Seal/Insulate Pipes/Ducts}*5.571)*if({Fuel Type}=4,1,if({Fuel Type}=0,0.018,0))+if({Fuel Type}=4,8.519,if({Fuel Type} = 0,0.119,0)) | AA21: ({Underbelly}*25.270+{Seal and Insulate Openings}*0.646+{Seal/Insulate Pipes/Ducts}*5.571)*if({Fuel Type}=5,1,if({Fuel Type}=0,0.047,0))+if({Fuel Type}=5,8.519,if({Fuel Type} = 0,0.364,0)) | AB21: if({Number of Aerators}>0,2696+({Number of Aerators}-1)*333,0)+{Number of Showerheads}*1200 | AC21: 2018-07-01 | AD21: 2019-06-30 | AE21: 15 | AF21: 0 | AG21: 1 | AH21: 0 | AI21: 0 | AJ21: 0.666 | AK21: 0.301 | AL21: 1 | AM21: 1 | AN21: 1 | AO21: 0 | AP21: 0 | AR21: =DR21 -> {Project Cost} | AS21: 600 | AT21: =DS21 -> {Number of Aerators} | AU21: 0 | AV21: =DT21 -> {Number of Showerheads} | AW21: 0 | AX21: =DU21 -> {Seal/Insulate Pipes/Ducts} | AY21: 0 | AZ21: =DV21 -> {Underbelly} | BA21: 0 | BB21: =DW21 -> {Seal and Insulate Openings} | BC21: 0 | BD21: =DX21 -> {Fuel Type} | BE21: 0 | BL21: =IF(AU21>0,283+(AU21-1)*29,0)+AW21*150+AY21*25+13 -> 13 | BM21: 0 | BN21: 0 | BO21: =IF(AU21>0,0.023+(AU21-1)*0.002,0)+IF(AW21>0,AW21*0.012,0)+IF(AY21>0,AY21*0.002,0)+0.034 -> 0.034 | BP21: 0 | BQ21: 0 | BR21: =0 -> 0 | BS21: =IF(AU21>0,0.023+(AU21-1)*0.002,0)+IF(AW21>0,AW21*0.012,0)+IF(AY21>0,AY21*0.002,0)+0.034 -> 0.034 | BT21: 0 | BU21: =(BA21*25.27+BC21*0.646+AY21*5.571)*IF(BE21=2,1,IF(BE21=0,0.139,0))+IF(BE21=2,8.519,IF(BE21 = 0,1.11,0)) -> 1.11 | BV21: =(BA21*25.27+BC21*0.646+AY21*5.571)*IF(BE21=3,1,IF(BE21=0,0.753,0))+IF(BE21=3,8.519,IF(BE21 = 0,5.788,0)) -> 5.788 | BW21: =(BA21*25.27+BC21*0.646+AY21*5.571)*IF(BE21=4,1,IF(BE21=0,0.018,0))+IF(BE21=4,8.519,IF(BE21 = 0,0.119,0)) -> 0.119 | BX21: =(BA21*25.27+BC21*0.646+AY21*5.571)*IF(BE21=5,1,IF(BE21=0,0.047,0))+IF(BE21=5,8.519,IF(BE21 = 0,0.364,0)) -> 0.364 | BY21: =IF(AU21>0,2696+(AU21-1)*333,0)+AW21*1200 -> 0 | BZ21: Res | CA21: RGGI DR | CB21: =Benefits(BL21,BR21,BS21,BT21,BU21,BV21,BW21,BX21,BY21,AE21,AH21,AI21,AJ21,AK21,AL21,AM21,AN21,AO21,AP21,BZ21,CA21) -> 8.292808804 | CC21: 26.058435 | CD21: 0 | CE21: 1678.97486 | CF21: 30.95336412 | CG21: 446.293823 | CH21: 102.9003678 | CI21: 0 | CJ21: 2293.473658 | CK21: 0 | CM21: =AS21 -> 600 | CP21: 600 | CQ21: 1 | CR21: 3.822456097 | CS21: 1 | CT21: 550 | CV21: RGGI | CX21: X=AS21 | CZ21: X=if(AU21>0,283+(AU21-1)*29,0)+AW21*150+AY21*25+13 | DA21: 0 | DB21: 0 | DC21: X=if(AU21>0,0.023+(AU21-1)*0.002,0)+if(AW21>0,AW21*0.012,0)+if(AY21>0,AY21*0.002,0)+0.034 | DD21: 0 | DE21: 0 | DF21: X=0 | DG21: X=if(AU21>0,0.023+(AU21-1)*0.002,0)+if(AW21>0,AW21*0.012,0)+if(AY21>0,AY21*0.002,0)+0.034 | DH21: 0 | DI21: X=(BA21*25.270+BC21*0.646+AY21*5.571)*if(BE21=2,1,if(BE21=0,0.139,0))+if(BE21=2,8.519,if(BE21 = 0,1.110,0)) | DJ21: X=(BA21*25.270+BC21*0.646+AY21*5.571)*if(BE21=3,1,if(BE21=0,.753,0))+if(BE21=3,8.519,if(BE21 = 0,5.788,0)) | DK21: X=(BA21*25.270+BC21*0.646+AY21*5.571)*if(BE21=4,1,if(BE21=0,0.018,0))+if(BE21=4,8.519,if(BE21 = 0,0.119,0)) | DL21: X=(BA21*25.270+BC21*0.646+AY21*5.571)*if(BE21=5,1,if(BE21=0,0.047,0))+if(BE21=5,8.519,if(BE21 = 0,0.364,0)) | DM21: X=if(AU21>0,2696+(AU21-1)*333,0)+AW21*1200 | DP21: {Factor:WinterCF} | DQ21: {Factor:SummerCF} | DR21: =IFERROR(INDEX($ED21:$IG21,MATCH(0,COUNTIF($DO21:DQ21,$ED21:$IG21),0)),"") -> {Project Cost} | DS21: =IFERROR(INDEX($ED21:$IG21,MATCH(0,COUNTIF($DO21:DR21,$ED21:$IG21),0)),"") -> {Number of Aerators} | DT21: =IFERROR(INDEX($ED21:$IG21,MATCH(0,COUNTIF($DO21:DS21,$ED21:$IG21),0)),"") -> {Number of Showerheads} | DU21: =IFERROR(INDEX($ED21:$IG21,MATCH(0,COUNTIF($DO21:DT21,$ED21:$IG21),0)),"") -> {Seal/Insulate Pipes/Ducts} | DV21: =IFERROR(INDEX($ED21:$IG21,MATCH(0,COUNTIF($DO21:DU21,$ED21:$IG21),0)),"") -> {Underbelly} | DW21: =IFERROR(INDEX($ED21:$IG21,MATCH(0,COUNTIF($DO21:DV21,$ED21:$IG21),0)),"") -> {Seal and Insulate Openings} | DX21: =IFERROR(INDEX($ED21:$IG21,MATCH(0,COUNTIF($DO21:DW21,$ED21:$IG21),0)),"") -> {Fuel Type} | DY21: =IFERROR(INDEX($ED21:$IG21,MATCH(0,COUNTIF($DO21:DX21,$ED21:$IG21),0)),"") ->  | DZ21: =IFERROR(INDEX($ED21:$IG21,MATCH(0,COUNTIF($DO21:DY21,$ED21:$IG21),0)),"") ->  | EA21: =IFERROR(INDEX($ED21:$IG21,MATCH(0,COUNTIF($DO21:DZ21,$ED21:$IG21),0)),"") ->  | ED21: {Project Cost} | EN21: {Number of Aerators} | EO21: {Number of Aerators} | EP21: {Number of Showerheads} | EQ21: {Seal/Insulate Pipes/Ducts} | EX21: {Number of Aerators} | EY21: {Number of Aerators} | EZ21: {Number of Showerheads} | FA21: {Number of Showerheads} | FB21: {Seal/Insulate Pipes/Ducts} | FC21: {Seal/Insulate Pipes/Ducts} | FR21: {Number of Aerators} | FS21: {Number of Aerators} | FT21: {Number of Showerheads} | FU21: {Number of Showerheads} | FV21: {Seal/Insulate Pipes/Ducts} | FW21: {Seal/Insulate Pipes/Ducts} | GL21: {Underbelly} | GM21: {Seal and Insulate Openings} | GN21: {Seal/Insulate Pipes/Ducts} | GO21: {Fuel Type} | GP21: {Fuel Type} | GQ21: {Fuel Type} | GR21: {Fuel Type} | GV21: {Underbelly} | GW21: {Seal and Insulate Openings} | GX21: {Seal/Insulate Pipes/Ducts} | GY21: {Fuel Type} | GZ21: {Fuel Type} | HA21: {Fuel Type} | HB21: {Fuel Type} | HF21: {Underbelly} | HG21: {Seal and Insulate Openings} | HH21: {Seal/Insulate Pipes/Ducts} | HI21: {Fuel Type} | HJ21: {Fuel Type} | HK21: {Fuel Type} | HL21: {Fuel Type} | HP21: {Underbelly} | HQ21: {Seal and Insulate Openings} | HR21: {Seal/Insulate Pipes/Ducts} | HS21: {Fuel Type} | HT21: {Fuel Type} | HU21: {Fuel Type} | HV21: {Fuel Type} | HZ21: {Number of Aerators} | IA21: {Number of Aerators} | IB21: {Number of Showerheads} | IK21: 7
A22: Affordable Heat Initiative - Other Fuels | B22: MiniSplit HP Low Income | C22: LCH | D22: 2018-07-01 | E22: 2019-06-30 | F22: Calculated | G22: {Project Cost} | H22: 0 | I22: Manual Entry | J22: $0.00 | K22: 0 | L22: 2018-07-01 | M22: 2019-06-30 | N22: Modeled | AC22: 2018-07-01 | AD22: 2019-06-30 | AE22: 18 | AF22: 1 | AG22: 1 | AH22: 0.3721208719 | AI22: 0.5205621999 | AJ22: 0.05734897764 | AK22: 0.04973244767 | AL22: 1 | AM22: 1 | AN22: 1 | AO22: 0 | AP22: 0 | BL22: -2503.490306 | BR22: -0.5582691168 | BS22: 0.07236249777 | BT22: 0 | BU22: 5.275225172 | BV22: 21.30835336 | BW22: 0.3556331576 | BX22: 1.629985306 | BY22: =0 -> 0 | BZ22: Res | CA22: RGGI DR | CB22: =Benefits(BL22,BR22,BS22,BT22,BU22,BV22,BW22,BX22,BY22,AE22,AH22,AI22,AJ22,AK22,AL22,AM22,AN22,AO22,AP22,BZ22,CA22) -> -2320.916772 | CC22: -933.4020235 | CD22: 0 | CE22: 7279.437556 | CF22: 108.9420034 | CG22: 2486.675669 | CH22: 542.6645041 | CI22: 0 | CJ22: 10417.71973 | CK22: 3254.318795 | CM22: =AS22 -> 0 | CP22: 3254.318795 | CQ22: 1 | CR22: 1.982696547 | CS22: 1 | CT22: 2000 | CV22: RGGI | CX22: X=AS22 | CZ22: 0 | DA22: 0 | DB22: 0 | DC22: 0 | DD22: 0 | DE22: 0 | DF22: 0 | DG22: 0 | DH22: 0 | DI22: 0 | DJ22: 0 | DK22: 0 | DL22: 0 | DM22: 0 | DP22: {Factor:WinterCF} | DQ22: {Factor:SummerCF} | DR22: =IFERROR(INDEX($ED22:$IG22,MATCH(0,COUNTIF($DO22:DQ22,$ED22:$IG22),0)),"") -> {Project Cost} | DS22: =IFERROR(INDEX($ED22:$IG22,MATCH(0,COUNTIF($DO22:DR22,$ED22:$IG22),0)),"") ->  | DT22: =IFERROR(INDEX($ED22:$IG22,MATCH(0,COUNTIF($DO22:DS22,$ED22:$IG22),0)),"") ->  | DU22: =IFERROR(INDEX($ED22:$IG22,MATCH(0,COUNTIF($DO22:DT22,$ED22:$IG22),0)),"") ->  | DV22: =IFERROR(INDEX($ED22:$IG22,MATCH(0,COUNTIF($DO22:DU22,$ED22:$IG22),0)),"") ->  | DW22: =IFERROR(INDEX($ED22:$IG22,MATCH(0,COUNTIF($DO22:DV22,$ED22:$IG22),0)),"") ->  | DX22: =IFERROR(INDEX($ED22:$IG22,MATCH(0,COUNTIF($DO22:DW22,$ED22:$IG22),0)),"") ->  | DY22: =IFERROR(INDEX($ED22:$IG22,MATCH(0,COUNTIF($DO22:DX22,$ED22:$IG22),0)),"") ->  | DZ22: =IFERROR(INDEX($ED22:$IG22,MATCH(0,COUNTIF($DO22:DY22,$ED22:$IG22),0)),"") ->  | EA22: =IFERROR(INDEX($ED22:$IG22,MATCH(0,COUNTIF($DO22:DZ22,$ED22:$IG22),0)),"") ->  | ED22: {Project Cost} | IK22: 1
A23: Affordable Heat Initiative - Other Fuels | B23: Wall Insulation LIHESP | C23: LBW | D23: 2018-07-01 | E23: 2019-06-30 | F23: Per Measure | G23: $3082.00 | H23: 0 | I23: Manual Entry | J23: $0.00 | K23: 0 | L23: 2018-07-01 | M23: 2019-06-30 | N23: Calculated | O23: if({Fuel Type}=6,11815,if({Fuel Type}=0,500,78)) | R23: if({Fuel Type}=6,2.582,if({Fuel Type} = 0,0.201,0.201)) | U23: if({Fuel Type}=6,2.582,if({Fuel Type}=0,0.104,0)) | V23: if({Fuel Type}=6,0.201,if({Fuel Type}=0,0.201,0.201)) | W23: if({Fuel Type}=1,49.747,if({Fuel Type}=0,0,0))*10 | X23: if({Fuel Type}=2,49.747,if({Fuel Type} = 0,8.855,0)) | Y23: if({Fuel Type}=3,49.747,if({Fuel Type} = 0,35.768,0)) | Z23: if({Fuel Type}=4,49.747,if({Fuel Type} = 0,0.597,0)) | AA23: if({Fuel Type}=5,49.747,if({Fuel Type} = 0,2.736,0)) | AB23: 0.0000 | AC23: 2018-07-01 | AD23: 2019-06-30 | AE23: 25 | AF23: 0 | AG23: 1 | AH23: 0 | AI23: 0 | AJ23: 0.666 | AK23: 0.301 | AL23: 1 | AM23: 1 | AN23: 1 | AO23: 0 | AP23: 0 | AR23: =DR23 -> {Fuel Type} | AS23: 0 | AT23: =DS23 ->  | AV23: =DT23 ->  | AX23: =DU23 ->  | AZ23: =DV23 ->  | BB23: =DW23 ->  | BD23: =DX23 ->  | BL23: 216 | BM23: 0 | BN23: 0 | BO23: 0.083 | BP23: 0 | BQ23: 0 | BR23: 0.041 | BS23: 0.083 | BT23: 16.56 | BU23: 2.409686982 | BV23: 12.58187707 | BW23: 0.2575237996 | BX23: 0.790965956 | BY23: =0 -> 0 | BZ23: Res | CA23: RGGI DR | CB23: =Benefits(BL23,BR23,BS23,BT23,BU23,BV23,BW23,BX23,BY23,AE23,AH23,AI23,AJ23,AK23,AL23,AM23,AN23,AO23,AP23,BZ23,CA23) -> 223.1954518 | CC23: 192.0788709 | CD23: 285.9444498 | CE23: 5663.739028 | CF23: 103.9490198 | CG23: 1494.901383 | CH23: 346.9886245 | CI23: 0 | CJ23: 8310.796828 | CK23: 0 | CM23: 2574 | CP23: 2574 | CQ23: 1 | CR23: 3.228747796 | CS23: 1 | CT23: 1000 | CV23: RGGI | CX23: X=$3082.00 | CZ23: X=if(AS23=6,11815,if(AS23=0,500,78)) | DA23: 0 | DB23: 0 | DC23: X=if(AS23=6,2.582,if(AS23 = 0,0.201,0.201)) | DD23: 0 | DE23: 0 | DF23: X=if(AS23=6,2.582,if(AS23=0,0.104,0)) | DG23: X=if(AS23=6,0.201,if(AS23=0,0.201,0.201)) | DH23: X=if(AS23=1,49.747,if(AS23=0,0,0))*10 | DI23: X=if(AS23=2,49.747,if(AS23 = 0,8.855,0)) | DJ23: X=if(AS23=3,49.747,if(AS23 = 0,35.768,0)) | DK23: X=if(AS23=4,49.747,if(AS23 = 0,0.597,0)) | DL23: X=if(AS23=5,49.747,if(AS23 = 0,2.736,0)) | DM23: X=0.0000 | DP23: {Factor:WinterCF} | DQ23: {Factor:SummerCF} | DR23: =IFERROR(INDEX($ED23:$IG23,MATCH(0,COUNTIF($DO23:DQ23,$ED23:$IG23),0)),"") -> {Fuel Type} | DS23: =IFERROR(INDEX($ED23:$IG23,MATCH(0,COUNTIF($DO23:DR23,$ED23:$IG23),0)),"") ->  | DT23: =IFERROR(INDEX($ED23:$IG23,MATCH(0,COUNTIF($DO23:DS23,$ED23:$IG23),0)),"") ->  | DU23: =IFERROR(INDEX($ED23:$IG23,MATCH(0,COUNTIF($DO23:DT23,$ED23:$IG23),0)),"") ->  | DV23: =IFERROR(INDEX($ED23:$IG23,MATCH(0,COUNTIF($DO23:DU23,$ED23:$IG23),0)),"") ->  | DW23: =IFERROR(INDEX($ED23:$IG23,MATCH(0,COUNTIF($DO23:DV23,$ED23:$IG23),0)),"") ->  | DX23: =IFERROR(INDEX($ED23:$IG23,MATCH(0,COUNTIF($DO23:DW23,$ED23:$IG23),0)),"") ->  | DY23: =IFERROR(INDEX($ED23:$IG23,MATCH(0,COUNTIF($DO23:DX23,$ED23:$IG23),0)),"") ->  | DZ23: =IFERROR(INDEX($ED23:$IG23,MATCH(0,COUNTIF($DO23:DY23,$ED23:$IG23),0)),"") ->  | EA23: =IFERROR(INDEX($ED23:$IG23,MATCH(0,COUNTIF($DO23:DZ23,$ED23:$IG23),0)),"") ->  | EN23: {Fuel Type} | EO23: {Fuel Type} | EX23: {Fuel Type} | EY23: {Fuel Type} | FH23: {Fuel Type} | FI23: {Fuel Type} | FR23: {Fuel Type} | FS23: {Fuel Type} | GB23: {Fuel Type} | GC23: {Fuel Type} | GL23: {Fuel Type} | GM23: {Fuel Type} | GV23: {Fuel Type} | GW23: {Fuel Type} | HF23: {Fuel Type} | HG23: {Fuel Type} | HP23: {Fuel Type} | HQ23: {Fuel Type} | IK23: 1
A24: Affordable Heat Initiative - Other Fuels | B24: Window Insert AHI | C24: LWI | D24: 2018-07-01 | E24: 2019-06-30 | F24: Calculated | G24: 2.52*{SQFT} | H24: 0 | I24: Manual Entry | J24: $0.00 | K24: 0 | L24: 2018-07-01 | M24: 2019-06-30 | N24: Calculated | O24: if({Fuel Type}=6,12.143*{SQFT},0) | R24: if({Fuel Type}=6,0.002671*{SQFT},0) | U24: if({Fuel Type}=6,0.002671*{SQFT},if({Fuel Type}=0,0.000102*{SQFT},0)) | V24: 0 | W24: if({Fuel Type}=1,0.051467*{SQFT},if({Fuel Type}=0,0.004632*{SQFT},0))*10 | X24: if({Fuel Type}=2,0.051467*{SQFT},if({Fuel Type}=0,0.006742*{SQFT},0)) | Y24: if({Fuel Type}=3,0.051467*{SQFT},if({Fuel Type}=0,0.035152*{SQFT},0)) | Z24: if({Fuel Type}=4,0.051467*{SQFT},if({Fuel Type}=0,0.000721*{SQFT},0)) | AA24: if({Fuel Type}=5,0.051467*{SQFT},if({Fuel Type}=0,0.002213*{SQFT},0)) | AC24: 2018-07-01 | AD24: 2019-06-30 | AE24: 4 | AF24: 0 | AG24: 1 | AH24: 0.398 | AI24: 0.561 | AJ24: 0.01 | AK24: 0.031 | AL24: 1 | AM24: 1 | AN24: 1 | AO24: 0 | AP24: 0 | AR24: =DR24 -> {SQFT} | AS24: 100 | AT24: =DS24 -> {Fuel Type} | AU24: 0 | AV24: =DT24 ->  | AX24: =DU24 ->  | AZ24: =DV24 ->  | BB24: =DW24 ->  | BD24: =DX24 ->  | BL24: =IF(AU24=6,12.143*AS24,0) -> 0 | BM24: 0 | BN24: 0 | BO24: =IF(AU24=6,0.002671*AS24,0) -> 0 | BP24: 0 | BQ24: 0 | BR24: =IF(AU24=6,0.002671*AS24,IF(AU24=0,0.000102*AS24,0)) -> 0.0102 | BS24: =0 -> 0 | BT24: =IF(AU24=1,0.051467*AS24,IF(AU24=0,0.004632*AS24,0))*10 -> 4.632 | BU24: =IF(AU24=2,0.051467*AS24,IF(AU24=0,0.006742*AS24,0)) -> 0.6742 | BV24: =IF(AU24=3,0.051467*AS24,IF(AU24=0,0.035152*AS24,0)) -> 3.5152 | BW24: =IF(AU24=4,0.051467*AS24,IF(AU24=0,0.000721*AS24,0)) -> 0.0721 | BX24: =IF(AU24=5,0.051467*AS24,IF(AU24=0,0.002213*AS24,0)) -> 0.2213 | BY24: 0 | BZ24: Res | CA24: RGGI DR | CB24: =Benefits(BL24,BR24,BS24,BT24,BU24,BV24,BW24,BX24,BY24,AE24,AH24,AI24,AJ24,AK24,AL24,AM24,AN24,AO24,AP24,BZ24,CA24) -> 0 | CC24: 4.746861829 | CD24: 16.67092402 | CE24: 272.3130943 | CF24: 5.008395366 | CG24: 74.94083582 | CH24: 16.70703905 | CI24: 0 | CJ24: 390.3871504 | CK24: 0 | CM24: =2.52*AS24 -> 252 | CP24: 252 | CQ24: 1 | CR24: 1.549155359 | CS24: 1 | CT24: =CM24*CU24 -> 252 | CU24: 1 | CV24: RGGI | CX24: X=2.52*AS24 | CZ24: X=if(AU24=6,12.143*AS24,0) | DA24: 0 | DB24: 0 | DC24: X=if(AU24=6,0.002671*AS24,0) | DD24: 0 | DE24: 0 | DF24: X=if(AU24=6,0.002671*AS24,if(AU24=0,0.000102*AS24,0)) | DG24: X=0 | DH24: X=if(AU24=1,0.051467*AS24,if(AU24=0,0.004632*AS24,0))*10 | DI24: X=if(AU24=2,0.051467*AS24,if(AU24=0,0.006742*AS24,0)) | DJ24: X=if(AU24=3,0.051467*AS24,if(AU24=0,0.035152*AS24,0)) | DK24: X=if(AU24=4,0.051467*AS24,if(AU24=0,0.000721*AS24,0)) | DL24: X=if(AU24=5,0.051467*AS24,if(AU24=0,0.002213*AS24,0)) | DM24: 0 | DP24: {Factor:WinterCF} | DQ24: {Factor:SummerCF} | DR24: =IFERROR(INDEX($ED24:$IG24,MATCH(0,COUNTIF($DO24:DQ24,$ED24:$IG24),0)),"") -> {SQFT} | DS24: =IFERROR(INDEX($ED24:$IG24,MATCH(0,COUNTIF($DO24:DR24,$ED24:$IG24),0)),"") -> {Fuel Type} | DT24: =IFERROR(INDEX($ED24:$IG24,MATCH(0,COUNTIF($DO24:DS24,$ED24:$IG24),0)),"") ->  | DU24: =IFERROR(INDEX($ED24:$IG24,MATCH(0,COUNTIF($DO24:DT24,$ED24:$IG24),0)),"") ->  | DV24: =IFERROR(INDEX($ED24:$IG24,MATCH(0,COUNTIF($DO24:DU24,$ED24:$IG24),0)),"") ->  | DW24: =IFERROR(INDEX($ED24:$IG24,MATCH(0,COUNTIF($DO24:DV24,$ED24:$IG24),0)),"") ->  | DX24: =IFERROR(INDEX($ED24:$IG24,MATCH(0,COUNTIF($DO24:DW24,$ED24:$IG24),0)),"") ->  | DY24: =IFERROR(INDEX($ED24:$IG24,MATCH(0,COUNTIF($DO24:DX24,$ED24:$IG24),0)),"") ->  | DZ24: =IFERROR(INDEX($ED24:$IG24,MATCH(0,COUNTIF($DO24:DY24,$ED24:$IG24),0)),"") ->  | EA24: =IFERROR(INDEX($ED24:$IG24,MATCH(0,COUNTIF($DO24:DZ24,$ED24:$IG24),0)),"") ->  | ED24: =IFERROR(MID($G24,FIND(CHAR(160),SUBSTITUTE($G24,"{",CHAR(160),ED$1)),FIND(CHAR(160),SUBSTITUTE($G24,"}",CHAR(160),ED$1))-FIND(CHAR(160),SUBSTITUTE($G24,"{",CHAR(160),ED$1))+1),"") -> {SQFT} | EN24: =IFERROR(MID($O24,FIND(CHAR(160),SUBSTITUTE($O24,"{",CHAR(160),EN$1)),FIND(CHAR(160),SUBSTITUTE($O24,"}",CHAR(160),EN$1))-FIND(CHAR(160),SUBSTITUTE($O24,"{",CHAR(160),EN$1))+1),"") -> {Fuel Type} | EO24: {SQFT} | EX24: =IFERROR(MID($R24,FIND(CHAR(160),SUBSTITUTE($R24,"{",CHAR(160),EX$1)),FIND(CHAR(160),SUBSTITUTE($R24,"}",CHAR(160),EX$1))-FIND(CHAR(160),SUBSTITUTE($R24,"{",CHAR(160),EX$1))+1),"") -> {Fuel Type} | EY24: {SQFT} | FH24: =IFERROR(MID($U24,FIND(CHAR(160),SUBSTITUTE($U24,"{",CHAR(160),FH$1)),FIND(CHAR(160),SUBSTITUTE($U24,"}",CHAR(160),FH$1))-FIND(CHAR(160),SUBSTITUTE($U24,"{",CHAR(160),FH$1))+1),"") -> {Fuel Type} | FI24: {SQFT} | FJ24: {Fuel Type} | FK24: {SQFT} | FR24: =IFERROR(MID($V24,FIND(CHAR(160),SUBSTITUTE($V24,"{",CHAR(160),FR$1)),FIND(CHAR(160),SUBSTITUTE($V24,"}",CHAR(160),FR$1))-FIND(CHAR(160),SUBSTITUTE($V24,"{",CHAR(160),FR$1))+1),"") ->  | GB24: =IFERROR(MID($W24,FIND(CHAR(160),SUBSTITUTE($W24,"{",CHAR(160),GB$1)),FIND(CHAR(160),SUBSTITUTE($W24,"}",CHAR(160),GB$1))-FIND(CHAR(160),SUBSTITUTE($W24,"{",CHAR(160),GB$1))+1),"") -> {Fuel Type} | GC24: {SQFT} | GD24: {Fuel Type} | GE24: {SQFT} | GL24: =IFERROR(MID($X24,FIND(CHAR(160),SUBSTITUTE($X24,"{",CHAR(160),GL$1)),FIND(CHAR(160),SUBSTITUTE($X24,"}",CHAR(160),GL$1))-FIND(CHAR(160),SUBSTITUTE($X24,"{",CHAR(160),GL$1))+1),"") -> {Fuel Type} | GM24: {SQFT} | GN24: {Fuel Type} | GO24: {SQFT} | GV24: =IFERROR(MID($Y24,FIND(CHAR(160),SUBSTITUTE($Y24,"{",CHAR(160),GV$1)),FIND(CHAR(160),SUBSTITUTE($Y24,"}",CHAR(160),GV$1))-FIND(CHAR(160),SUBSTITUTE($Y24,"{",CHAR(160),GV$1))+1),"") -> {Fuel Type} | GW24: {SQFT} | GX24: {Fuel Type} | GY24: {SQFT} | HF24: =IFERROR(MID($Z24,FIND(CHAR(160),SUBSTITUTE($Z24,"{",CHAR(160),HF$1)),FIND(CHAR(160),SUBSTITUTE($Z24,"}",CHAR(160),HF$1))-FIND(CHAR(160),SUBSTITUTE($Z24,"{",CHAR(160),HF$1))+1),"") -> {Fuel Type} | HG24: {SQFT} | HH24: {Fuel Type} | HI24: {SQFT} | HP24: =IFERROR(MID($AA24,FIND(CHAR(160),SUBSTITUTE($AA24,"{",CHAR(160),HP$1)),FIND(CHAR(160),SUBSTITUTE($AA24,"}",CHAR(160),HP$1))-FIND(CHAR(160),SUBSTITUTE($AA24,"{",CHAR(160),HP$1))+1),"") -> {Fuel Type} | HQ24: {SQFT} | HR24: {Fuel Type} | HS24: {SQFT} | HZ24: =IFERROR(MID($AB24,FIND(CHAR(160),SUBSTITUTE($AB24,"{",CHAR(160),HZ$1)),FIND(CHAR(160),SUBSTITUTE($AB24,"}",CHAR(160),HZ$1))-FIND(CHAR(160),SUBSTITUTE($AB24,"{",CHAR(160),HZ$1))+1),"") ->  | IK24: 2
A25: Affordable Heat Initiative - Other Fuels | BL25: 0 | BM25: 0 | BN25: 0 | BO25: 0 | BP25: 0 | BQ25: 0 | BR25: 0 | BS25: 0 | BT25: 0 | BU25: 0 | BV25: 0 | BW25: 0 | BX25: 0 | BY25: 0 | CX25: 0 | CZ25: 0 | DA25: 0 | DB25: 0 | DC25: 0 | DD25: 0 | DE25: 0 | DF25: 0 | DG25: 0 | DH25: 0 | DI25: 0 | DJ25: 0 | DK25: 0 | DL25: 0 | DM25: 0 | DP25: {Factor:WinterCF} | DQ25: {Factor:SummerCF} | DR25: =IFERROR(INDEX($ED25:$IG25,MATCH(0,COUNTIF($DO25:DQ25,$ED25:$IG25),0)),"") ->  | DS25: =IFERROR(INDEX($ED25:$IG25,MATCH(0,COUNTIF($DO25:DR25,$ED25:$IG25),0)),"") ->  | DT25: =IFERROR(INDEX($ED25:$IG25,MATCH(0,COUNTIF($DO25:DS25,$ED25:$IG25),0)),"") ->  | DU25: =IFERROR(INDEX($ED25:$IG25,MATCH(0,COUNTIF($DO25:DT25,$ED25:$IG25),0)),"") ->  | DV25: =IFERROR(INDEX($ED25:$IG25,MATCH(0,COUNTIF($DO25:DU25,$ED25:$IG25),0)),"") ->  | DW25: =IFERROR(INDEX($ED25:$IG25,MATCH(0,COUNTIF($DO25:DV25,$ED25:$IG25),0)),"") ->  | DX25: =IFERROR(INDEX($ED25:$IG25,MATCH(0,COUNTIF($DO25:DW25,$ED25:$IG25),0)),"") ->  | DY25: =IFERROR(INDEX($ED25:$IG25,MATCH(0,COUNTIF($DO25:DX25,$ED25:$IG25),0)),"") ->  | DZ25: =IFERROR(INDEX($ED25:$IG25,MATCH(0,COUNTIF($DO25:DY25,$ED25:$IG25),0)),"") ->  | EA25: =IFERROR(INDEX($ED25:$IG25,MATCH(0,COUNTIF($DO25:DZ25,$ED25:$IG25),0)),"") ->  | IK25: 0
A26: Appliance Rebate | B26: Clothes Washer | C26: CW | D26: 2019-01-01 | E26: 2019-06-30 | F26: Per Measure | G26: $92.00 | H26: 0 | I26: Manual Entry | J26: $0.00 | K26: 0 | L26: 2018-07-01 | M26: 2019-06-30 | N26: Calculated | O26: {Measure:Quantity} * 183 | R26: {Measure:Quantity} * 0.56 | U26: {Measure:Quantity} * 0.56 * {Factor:WinterCF} | V26: {Measure:Quantity} * 0.56 * {Factor:SummerCF} | W26: {Measure:Quantity} * 0.0114 * 10 | X26: {Measure:Quantity} * 0.074 | Y26: {Measure:Quantity} * 0.338 | AB26: {Measure:Quantity} * 3438 | AC26: 2016-07-01 | AD26: 2019-06-30 | AE26: 11 | AF26: 0.063 | AG26: 0.048 | AH26: 0.4 | AI26: 0.266 | AJ26: 0.201 | AK26: 0.133 | AL26: 1 | AM26: 1 | AN26: 1 | AO26: 0.567 | AP26: 0.033 | AR26: =DR26 -> {Measure:Quantity} | AS26: 1 | AT26: =DS26 ->  | AV26: =DT26 ->  | AX26: =DU26 ->  | AZ26: =DV26 ->  | BB26: =DW26 ->  | BD26: =DX26 ->  | BF26: =DY26 ->  | BH26: =DZ26 ->  | BJ26: =EA26 ->  | BL26: =AS26 * 183 -> 183 | BM26: 0 | BN26: 0 | BO26: =AS26 * 0.56 -> 0.56 | BP26: 0 | BQ26: 0 | BR26: =AS26 * 0.56 * AF26 -> 0.03528 | BS26: =AS26 * 0.56 * AG26 -> 0.02688 | BT26: =AS26 * 0.0114 * 10 -> 0.114 | BU26: =AS26 * 0.074 -> 0.074 | BV26: =AS26 * 0.338 -> 0.338 | BW26: 0 | BX26: 0 | BY26: =AS26 * 3438 -> 3438 | BZ26: Res | CA26: Default DR | CB26: =Benefits(BL26,BR26,BS26,BT26,BU26,BV26,BW26,BX26,BY26,AE26,AH26,AI26,AJ26,AK26,AL26,AM26,AN26,AO26,AP26,BZ26,CA26) -> 111.8253712 | CC26: 56.96046449 | CD26: 1.021048787 | CE26: 73.32628188 | CF26: 0 | CG26: 22.43970368 | CH26: 0 | CI26: 215.6603975 | CJ26: =(--(CB26>0))*CB26+(--(CC26>0))*CC26+(--(CD26>0))*CD26+(--(CE26>0))*CE26+(--(CF26>0))*CF26+(--(CG26>0))*CG26+(--(CH26>0))*CH26+(--(CI26>0))*CI26 -> 481.2332676 | CK26: =(--(CB26<0))*-CB26+(--(CC26<0))*-CC26+(--(CD26<0))*-CD26+(--(CE26<0))*-CE26+(--(CF26<0))*-CF26+(--(CG26<0))*-CG26+(--(CH26<0))*-CH26+(--(CI26<0))*-CI26 -> 0 | CM26: =92 -> 92 | CP26: =CK26+CM26 -> 92 | CQ26: =IF(NetOrGross="Net",(1-AO26+AP26),1) -> 1 | CR26: =(SUMPRODUCT(CB26:CI26,--(CB26:CI26>0))+CL26)*CQ26/((-SUMPRODUCT(CB26:CI26,--(CB26:CI26<0))+MAX(CM26,CT26)+CN26+CO26)*CQ26+IF(FRIncentives="Yes",CT26*(1-CQ26),0)) -> 5.230796387 | CS26: 1 | CT26: 50 | CV26: Electric | CX26: X=$92.00 | CZ26: X=AS26 * 183 | DA26: 0 | DB26: 0 | DC26: X=AS26 * 0.56 | DD26: 0 | DE26: 0 | DF26: X=AS26 * 0.56 * AF26 | DG26: X=AS26 * 0.56 * AG26 | DH26: X=AS26 * 0.0114 * 10 | DI26: X=AS26 * 0.074 | DJ26: X=AS26 * 0.338 | DK26: 0 | DL26: 0 | DM26: X=AS26 * 3438 | DP26: {Factor:WinterCF} | DQ26: {Factor:SummerCF} | DR26: =IFERROR(INDEX($ED26:$IG26,MATCH(0,COUNTIF($DO26:DQ26,$ED26:$IG26),0)),"") -> {Measure:Quantity} | DS26: =IFERROR(INDEX($ED26:$IG26,MATCH(0,COUNTIF($DO26:DR26,$ED26:$IG26),0)),"") ->  | DT26: =IFERROR(INDEX($ED26:$IG26,MATCH(0,COUNTIF($DO26:DS26,$ED26:$IG26),0)),"") ->  | DU26: =IFERROR(INDEX($ED26:$IG26,MATCH(0,COUNTIF($DO26:DT26,$ED26:$IG26),0)),"") ->  | DV26: =IFERROR(INDEX($ED26:$IG26,MATCH(0,COUNTIF($DO26:DU26,$ED26:$IG26),0)),"") ->  | DW26: =IFERROR(INDEX($ED26:$IG26,MATCH(0,COUNTIF($DO26:DV26,$ED26:$IG26),0)),"") ->  | DX26: =IFERROR(INDEX($ED26:$IG26,MATCH(0,COUNTIF($DO26:DW26,$ED26:$IG26),0)),"") ->  | DY26: =IFERROR(INDEX($ED26:$IG26,MATCH(0,COUNTIF($DO26:DX26,$ED26:$IG26),0)),"") ->  | DZ26: =IFERROR(INDEX($ED26:$IG26,MATCH(0,COUNTIF($DO26:DY26,$ED26:$IG26),0)),"") ->  | EA26: =IFERROR(INDEX($ED26:$IG26,MATCH(0,COUNTIF($DO26:DZ26,$ED26:$IG26),0)),"") ->  | EN26: {Measure:Quantity} | EX26: {Measure:Quantity} | FH26: {Measure:Quantity} | FI26: {Factor:WinterCF} | FR26: {Measure:Quantity} | FS26: {Factor:SummerCF} | GB26: {Measure:Quantity} | GL26: {Measure:Quantity} | GV26: {Measure:Quantity} | HZ26: {Measure:Quantity} | IK26: 1
A27: Appliance Rebate | B27: Dehumidifier | C27: DH | D27: 2019-01-01 | E27: 2019-06-30 | F27: Per Measure | G27: $50.00 | H27: 0 | I27: Manual Entry | J27: $0.00 | K27: 0 | L27: 2018-07-01 | M27: 2019-06-30 | N27: Calculated | O27: {Measure:Quantity} * 150 | R27: {Measure:Quantity} * 0.092 | U27: {Measure:Quantity} * 0.092 * {Factor:WinterCF} | V27: {Measure:Quantity} * 0.092 * {Factor:SummerCF} | AC27: 2016-07-01 | AD27: 2019-06-30 | AE27: 12 | AF27: 0 | AG27: 0.371 | AH27: 0.179 | AI27: 0.155 | AJ27: 0.339 | AK27: 0.327 | AL27: 1 | AM27: 1 | AN27: 1 | AO27: 0.653 | AP27: 0.033 | AR27: =DR27 -> {Measure:Quantity} | AS27: 1 | AT27: =DS27 ->  | AV27: =DT27 ->  | AX27: =DU27 ->  | AZ27: =DV27 ->  | BB27: =DW27 ->  | BD27: =DX27 ->  | BF27: =DY27 ->  | BH27: =DZ27 ->  | BJ27: =EA27 ->  | BL27: =AS27 * 150 -> 150 | BM27: 0 | BN27: 0 | BO27: =AS27 * 0.092 -> 0.092 | BP27: 0 | BQ27: 0 | BR27: =AS27 * 0.092 * AF27 -> 0 | BS27: =AS27 * 0.092 * AG27 -> 0.034132 | BT27: 0 | BU27: 0 | BV27: 0 | BW27: 0 | BX27: 0 | BY27: 0 | BZ27: Res | CA27: Default DR | CB27: =Benefits(BL27,BR27,BS27,BT27,BU27,BV27,BW27,BX27,BY27,AE27,AH27,AI27,AJ27,AK27,AL27,AM27,AN27,AO27,AP27,BZ27,CA27) -> 88.96424727 | CC27: 21.55304674 | CD27: 0 | CE27: 0 | CF27: 0 | CG27: 0 | CH27: 0 | CI27: 0 | CJ27: =(--(CB27>0))*CB27+(--(CC27>0))*CC27+(--(CD27>0))*CD27+(--(CE27>0))*CE27+(--(CF27>0))*CF27+(--(CG27>0))*CG27+(--(CH27>0))*CH27+(--(CI27>0))*CI27 -> 110.517294 | CK27: =(--(CB27<0))*-CB27+(--(CC27<0))*-CC27+(--(CD27<0))*-CD27+(--(CE27<0))*-CE27+(--(CF27<0))*-CF27+(--(CG27<0))*-CG27+(--(CH27<0))*-CH27+(--(CI27<0))*-CI27 -> 0 | CM27: =50 -> 50 | CP27: =CK27+CM27 -> 50 | CQ27: =IF(NetOrGross="Net",(1-AO27+AP27),1) -> 1 | CR27: =(SUMPRODUCT(CB27:CI27,--(CB27:CI27>0))+CL27)*CQ27/((-SUMPRODUCT(CB27:CI27,--(CB27:CI27<0))+MAX(CM27,CT27)+CN27+CO27)*CQ27+IF(FRIncentives="Yes",CT27*(1-CQ27),0)) -> 2.21034588 | CS27: 0 | CT27: =CM27*CU27 -> 0 | CV27: Electric | CX27: X=$50.00 | CZ27: X=AS27 * 150 | DA27: 0 | DB27: 0 | DC27: X=AS27 * 0.092 | DD27: 0 | DE27: 0 | DF27: X=AS27 * 0.092 * AF27 | DG27: X=AS27 * 0.092 * AG27 | DH27: 0 | DI27: 0 | DJ27: 0 | DK27: 0 | DL27: 0 | DM27: 0 | DP27: {Factor:WinterCF} | DQ27: {Factor:SummerCF} | DR27: =IFERROR(INDEX($ED27:$IG27,MATCH(0,COUNTIF($DO27:DQ27,$ED27:$IG27),0)),"") -> {Measure:Quantity} | DS27: =IFERROR(INDEX($ED27:$IG27,MATCH(0,COUNTIF($DO27:DR27,$ED27:$IG27),0)),"") ->  | DT27: =IFERROR(INDEX($ED27:$IG27,MATCH(0,COUNTIF($DO27:DS27,$ED27:$IG27),0)),"") ->  | DU27: =IFERROR(INDEX($ED27:$IG27,MATCH(0,COUNTIF($DO27:DT27,$ED27:$IG27),0)),"") ->  | DV27: =IFERROR(INDEX($ED27:$IG27,MATCH(0,COUNTIF($DO27:DU27,$ED27:$IG27),0)),"") ->  | DW27: =IFERROR(INDEX($ED27:$IG27,MATCH(0,COUNTIF($DO27:DV27,$ED27:$IG27),0)),"") ->  | DX27: =IFERROR(INDEX($ED27:$IG27,MATCH(0,COUNTIF($DO27:DW27,$ED27:$IG27),0)),"") ->  | DY27: =IFERROR(INDEX($ED27:$IG27,MATCH(0,COUNTIF($DO27:DX27,$ED27:$IG27),0)),"") ->  | DZ27: =IFERROR(INDEX($ED27:$IG27,MATCH(0,COUNTIF($DO27:DY27,$ED27:$IG27),0)),"") ->  | EA27: =IFERROR(INDEX($ED27:$IG27,MATCH(0,COUNTIF($DO27:DZ27,$ED27:$IG27),0)),"") ->  | EN27: {Measure:Quantity} | EX27: {Measure:Quantity} | FH27: {Measure:Quantity} | FI27: {Factor:WinterCF} | FR27: {Measure:Quantity} | FS27: {Factor:SummerCF} | IK27: 1
A28: Appliance Rebate | B28: Heat Pump Water Heater | C28: HPWH | D28: 2019-07-01 | E28: 2020-06-30 | F28: Calculated | G28: if({Previous Mark Down (y/n)}=1,0,{Measure:Quantity} * 763.00) | H28: 0 | I28: Calculated | J28: {Measure:Quantity}*({Rebate Amount}+{Bonus Amount}) | K28: 0 | L28: 2019-07-01 | M28: 2020-06-30 | N28: Calculated | O28: if({Previous Mark Down (y/n)}=1,0,{Measure:Quantity} * 1915) | R28: if({Previous Mark Down (y/n)}=1,0,{Measure:Quantity} * .312) | U28: if({Previous Mark Down (y/n)}=1,0,{Measure:Quantity} * .312) | V28: if({Previous Mark Down (y/n)}=1,0,{Measure:Quantity} * .197) | AC28: 2019-07-01 | AD28: 2020-06-30 | AE28: 13 | AF28: 1 | AG28: 1 | AH28: 0.358 | AI28: 0.308 | AJ28: 0.179 | AK28: 0.155 | AL28: 1 | AM28: 1 | AN28: 1 | AO28: 0.31 | AP28: 0 | AR28: =DR28 -> {Previous Mark Down (y/n)} | AS28: 0 | AT28: =DS28 -> {Measure:Quantity} | AU28: 1 | AV28: =DT28 ->  | AX28: =DU28 ->  | AZ28: =DV28 ->  | BB28: =DW28 ->  | BD28: =DX28 ->  | BF28: =DY28 ->  | BH28: =DZ28 ->  | BJ28: =EA28 ->  | BL28: =IF(AS28=1,0,AU28 * 1915) -> 1915 | BM28: 0 | BN28: 0 | BO28: =IF(AS28=1,0,AU28 * 0.312) -> 0.312 | BP28: 0 | BQ28: 0 | BR28: =IF(AS28=1,0,AU28 * 0.312) -> 0.312 | BS28: =IF(AS28=1,0,AU28 * 0.197) -> 0.197 | BT28: 0 | BU28: 0 | BV28: 0 | BW28: 0 | BX28: 0 | BY28: 0 | BZ28: Res | CA28: Default DR | CB28: =Benefits(BL28,BR28,BS28,BT28,BU28,BV28,BW28,BX28,BY28,AE28,AH28,AI28,AJ28,AK28,AL28,AM28,AN28,AO28,AP28,BZ28,CA28) -> 1326.604159 | CC28: 557.0764239 | CD28: 0 | CE28: 0 | CF28: 0 | CG28: 0 | CH28: 0 | CI28: 0 | CJ28: =(--(CB28>0))*CB28+(--(CC28>0))*CC28+(--(CD28>0))*CD28+(--(CE28>0))*CE28+(--(CF28>0))*CF28+(--(CG28>0))*CG28+(--(CH28>0))*CH28+(--(CI28>0))*CI28 -> 1883.680583 | CK28: =(--(CB28<0))*-CB28+(--(CC28<0))*-CC28+(--(CD28<0))*-CD28+(--(CE28<0))*-CE28+(--(CF28<0))*-CF28+(--(CG28<0))*-CG28+(--(CH28<0))*-CH28+(--(CI28<0))*-CI28 -> 0 | CM28: =IF(AS28=1,0,AU28 * 763) -> 763 | CP28: =CK28+CM28 -> 763 | CQ28: =IF(NetOrGross="Net",(1-AO28+AP28),1) -> 1 | CR28: =(SUMPRODUCT(CB28:CI28,--(CB28:CI28>0))+CL28)*CQ28/((-SUMPRODUCT(CB28:CI28,--(CB28:CI28<0))+MAX(CM28,CT28)+CN28+CO28)*CQ28+IF(FRIncentives="Yes",CT28*(1-CQ28),0)) -> 2.216094804 | CS28: 1 | CT28: 850 | CV28: Electric | CX28: X=if(AS28=1,0,AU28 * 763.00) | CZ28: X=if(AS28=1,0,AU28 * 1915) | DA28: 0 | DB28: 0 | DC28: X=if(AS28=1,0,AU28 * .312) | DD28: 0 | DE28: 0 | DF28: X=if(AS28=1,0,AU28 * .312) | DG28: X=if(AS28=1,0,AU28 * .197) | DH28: 0 | DI28: 0 | DJ28: 0 | DK28: 0 | DL28: 0 | DM28: 0 | DP28: {Factor:WinterCF} | DQ28: {Factor:SummerCF} | DR28: =IFERROR(INDEX($ED28:$IG28,MATCH(0,COUNTIF($DO28:DQ28,$ED28:$IG28),0)),"") -> {Previous Mark Down (y/n)} | DS28: =IFERROR(INDEX($ED28:$IG28,MATCH(0,COUNTIF($DO28:DR28,$ED28:$IG28),0)),"") -> {Measure:Quantity} | DT28: =IFERROR(INDEX($ED28:$IG28,MATCH(0,COUNTIF($DO28:DS28,$ED28:$IG28),0)),"") ->  | DU28: =IFERROR(INDEX($ED28:$IG28,MATCH(0,COUNTIF($DO28:DT28,$ED28:$IG28),0)),"") ->  | DV28: =IFERROR(INDEX($ED28:$IG28,MATCH(0,COUNTIF($DO28:DU28,$ED28:$IG28),0)),"") ->  | DW28: =IFERROR(INDEX($ED28:$IG28,MATCH(0,COUNTIF($DO28:DV28,$ED28:$IG28),0)),"") ->  | DX28: =IFERROR(INDEX($ED28:$IG28,MATCH(0,COUNTIF($DO28:DW28,$ED28:$IG28),0)),"") ->  | DY28: =IFERROR(INDEX($ED28:$IG28,MATCH(0,COUNTIF($DO28:DX28,$ED28:$IG28),0)),"") ->  | DZ28: =IFERROR(INDEX($ED28:$IG28,MATCH(0,COUNTIF($DO28:DY28,$ED28:$IG28),0)),"") ->  | EA28: =IFERROR(INDEX($ED28:$IG28,MATCH(0,COUNTIF($DO28:DZ28,$ED28:$IG28),0)),"") ->  | ED28: {Previous Mark Down (y/n)} | EE28: {Measure:Quantity} | EN28: {Previous Mark Down (y/n)} | EO28: {Measure:Quantity} | EX28: {Previous Mark Down (y/n)} | EY28: {Measure:Quantity} | FH28: {Previous Mark Down (y/n)} | FI28: {Measure:Quantity} | FR28: {Previous Mark Down (y/n)} | FS28: {Measure:Quantity} | IK28: 2
A29: Appliance Rebate | B29: Room Air Purifier | C29: RAP | D29: 2019-07-01 | E29: 2020-06-30 | F29: Calculated | G29: if({Previous Mark Down (y/n)}=1,0,{Measure:Quantity} * 763.00) | H29: 0 | I29: Calculated | J29: {Measure:Quantity}*({Rebate Amount}+{Bonus Amount}) | K29: 0 | L29: 2019-07-01 | M29: 2020-06-30 | N29: Calculated | O29: if({Previous Mark Down (y/n)}=1,0,{Measure:Quantity} * 1915) | R29: if({Previous Mark Down (y/n)}=1,0,{Measure:Quantity} * .312) | U29: if({Previous Mark Down (y/n)}=1,0,{Measure:Quantity} * .312) | V29: if({Previous Mark Down (y/n)}=1,0,{Measure:Quantity} * .197) | AC29: 2019-07-01 | AD29: 2020-06-30 | AE29: 13 | AF29: 1 | AG29: 1 | AH29: 0.358 | AI29: 0.308 | AJ29: 0.179 | AK29: 0.155 | AL29: 1 | AM29: 1 | AN29: 1 | AO29: 0.31 | AP29: 0 | AR29: =DR29 -> {Previous Mark Down (y/n)} | AS29: 1 | AT29: =DS29 -> {Measure:Quantity} | AV29: =DT29 ->  | AX29: =DU29 ->  | AZ29: =DV29 ->  | BB29: =DW29 ->  | BD29: =DX29 ->  | BF29: =DY29 ->  | BH29: =DZ29 ->  | BJ29: =EA29 ->  | BL29: =AS29 * 624 -> 624 | BM29: 0 | BN29: 0 | BO29: =AS29 * 0.107 -> 0.107 | BP29: 0 | BQ29: 0 | BR29: =AS29 * 0.107 * AF29 -> 0.107 | BS29: =AS29 * 0.107 * AG29 -> 0.107 | BT29: 0 | BU29: 0 | BV29: 0 | BW29: 0 | BX29: 0 | BY29: 0 | BZ29: Res | CA29: Default DR | CB29: =Benefits(BL29,BR29,BS29,BT29,BU29,BV29,BW29,BX29,BY29,AE29,AH29,AI29,AJ29,AK29,AL29,AM29,AN29,AO29,AP29,BZ29,CA29) -> 432.2720603 | CC29: 217.8094179 | CD29: 0 | CE29: 0 | CF29: 0 | CG29: 0 | CH29: 0 | CI29: 0 | CJ29: =(--(CB29>0))*CB29+(--(CC29>0))*CC29+(--(CD29>0))*CD29+(--(CE29>0))*CE29+(--(CF29>0))*CF29+(--(CG29>0))*CG29+(--(CH29>0))*CH29+(--(CI29>0))*CI29 -> 650.0814782 | CK29: =(--(CB29<0))*-CB29+(--(CC29<0))*-CC29+(--(CD29<0))*-CD29+(--(CE29<0))*-CE29+(--(CF29<0))*-CF29+(--(CG29<0))*-CG29+(--(CH29<0))*-CH29+(--(CI29<0))*-CI29 -> 0 | CM29: =55.82 -> 55.82 | CP29: =CK29+CM29 -> 55.82 | CQ29: =IF(NetOrGross="Net",(1-AO29+AP29),1) -> 1 | CR29: =(SUMPRODUCT(CB29:CI29,--(CB29:CI29>0))+CL29)*CQ29/((-SUMPRODUCT(CB29:CI29,--(CB29:CI29<0))+MAX(CM29,CT29)+CN29+CO29)*CQ29+IF(FRIncentives="Yes",CT29*(1-CQ29),0)) -> 11.6460315 | CS29: 1 | CT29: 50 | CV29: Electric | CX29: X=if(AS29=1,0,AU29 * 763.00) | CZ29: X=if(AS29=1,0,AU29 * 1915) | DA29: 0 | DB29: 0 | DC29: X=if(AS29=1,0,AU29 * .312) | DD29: 0 | DE29: 0 | DF29: X=if(AS29=1,0,AU29 * .312) | DG29: X=if(AS29=1,0,AU29 * .197) | DH29: 0 | DI29: 0 | DJ29: 0 | DK29: 0 | DL29: 0 | DM29: 0 | DP29: {Factor:WinterCF} | DQ29: {Factor:SummerCF} | DR29: =IFERROR(INDEX($ED29:$IG29,MATCH(0,COUNTIF($DO29:DQ29,$ED29:$IG29),0)),"") -> {Previous Mark Down (y/n)} | DS29: =IFERROR(INDEX($ED29:$IG29,MATCH(0,COUNTIF($DO29:DR29,$ED29:$IG29),0)),"") -> {Measure:Quantity} | DT29: =IFERROR(INDEX($ED29:$IG29,MATCH(0,COUNTIF($DO29:DS29,$ED29:$IG29),0)),"") ->  | DU29: =IFERROR(INDEX($ED29:$IG29,MATCH(0,COUNTIF($DO29:DT29,$ED29:$IG29),0)),"") ->  | DV29: =IFERROR(INDEX($ED29:$IG29,MATCH(0,COUNTIF($DO29:DU29,$ED29:$IG29),0)),"") ->  | DW29: =IFERROR(INDEX($ED29:$IG29,MATCH(0,COUNTIF($DO29:DV29,$ED29:$IG29),0)),"") ->  | DX29: =IFERROR(INDEX($ED29:$IG29,MATCH(0,COUNTIF($DO29:DW29,$ED29:$IG29),0)),"") ->  | DY29: =IFERROR(INDEX($ED29:$IG29,MATCH(0,COUNTIF($DO29:DX29,$ED29:$IG29),0)),"") ->  | DZ29: =IFERROR(INDEX($ED29:$IG29,MATCH(0,COUNTIF($DO29:DY29,$ED29:$IG29),0)),"") ->  | EA29: =IFERROR(INDEX($ED29:$IG29,MATCH(0,COUNTIF($DO29:DZ29,$ED29:$IG29),0)),"") ->  | ED29: {Previous Mark Down (y/n)} | EE29: {Measure:Quantity} | EN29: {Previous Mark Down (y/n)} | EO29: {Measure:Quantity} | EX29: {Previous Mark Down (y/n)} | EY29: {Measure:Quantity} | FH29: {Previous Mark Down (y/n)} | FI29: {Measure:Quantity} | FR29: {Previous Mark Down (y/n)} | FS29: {Measure:Quantity} | IK29: 2
A30: Appliance Rebate | BL30: 0 | BM30: 0 | BN30: 0 | BO30: 0 | BP30: 0 | BQ30: 0 | BR30: 0 | BS30: 0 | BT30: 0 | BU30: 0 | BV30: 0 | BW30: 0 | BX30: 0 | BY30: 0 | CX30: 0 | CZ30: 0 | DA30: 0 | DB30: 0 | DC30: 0 | DD30: 0 | DE30: 0 | DF30: 0 | DG30: 0 | DH30: 0 | DI30: 0 | DJ30: 0 | DK30: 0 | DL30: 0 | DM30: 0 | DP30: {Factor:WinterCF} | DQ30: {Factor:SummerCF} | DR30: =IFERROR(INDEX($ED30:$IG30,MATCH(0,COUNTIF($DO30:DQ30,$ED30:$IG30),0)),"") ->  | DS30: =IFERROR(INDEX($ED30:$IG30,MATCH(0,COUNTIF($DO30:DR30,$ED30:$IG30),0)),"") ->  | DT30: =IFERROR(INDEX($ED30:$IG30,MATCH(0,COUNTIF($DO30:DS30,$ED30:$IG30),0)),"") ->  | DU30: =IFERROR(INDEX($ED30:$IG30,MATCH(0,COUNTIF($DO30:DT30,$ED30:$IG30),0)),"") ->  | DV30: =IFERROR(INDEX($ED30:$IG30,MATCH(0,COUNTIF($DO30:DU30,$ED30:$IG30),0)),"") ->  | DW30: =IFERROR(INDEX($ED30:$IG30,MATCH(0,COUNTIF($DO30:DV30,$ED30:$IG30),0)),"") ->  | DX30: =IFERROR(INDEX($ED30:$IG30,MATCH(0,COUNTIF($DO30:DW30,$ED30:$IG30),0)),"") ->  | DY30: =IFERROR(INDEX($ED30:$IG30,MATCH(0,COUNTIF($DO30:DX30,$ED30:$IG30),0)),"") ->  | DZ30: =IFERROR(INDEX($ED30:$IG30,MATCH(0,COUNTIF($DO30:DY30,$ED30:$IG30),0)),"") ->  | EA30: =IFERROR(INDEX($ED30:$IG30,MATCH(0,COUNTIF($DO30:DZ30,$ED30:$IG30),0)),"") ->  | IK30: 0
A31: Arrearage Management Program | B31: LED Low Income Specialty Bulb Long Life | C31: LILEDSPECL | D31: 2018-07-01 | E31: 2019-06-30 | F31: Manual Entry | G31: $0.00 | H31: 0 | I31: Manual Entry | J31: $0.00 | K31: 0 | L31: 2019-01-01 | M31: 2019-06-30 | N31: Calculated | O31: if({Measure:Quantity}=0,0,{Measure:Quantity})*40 | R31: {Measure:Quantity}*0.058 | U31: {Measure:Quantity}*0.009 | V31: {Measure:Quantity}*0.007 | W31: {Measure:Quantity}*10*-0.002 | X31: {Measure:Quantity}*-0.003 | Y31: {Measure:Quantity}*-0.029 | Z31: {Measure:Quantity}*-0.001 | AA31: {Measure:Quantity}*-0.008 | AC31: 2018-07-01 | AD31: 2019-06-30 | AE31: 25 | AF31: 0.168 | AG31: 0.118 | AH31: 0.39 | AI31: 0.311 | AJ31: 0.163 | AK31: 0.136 | AL31: 0.99 | AM31: 1 | AN31: 1 | AO31: 0 | AP31: 0 | AR31: =DR31 -> {Measure:Quantity} | AS31: 1 | AT31: =DS31 ->  | AV31: =DT31 ->  | AX31: =DU31 ->  | AZ31: =DV31 ->  | BB31: =DW31 ->  | BD31: =DX31 ->  | BF31: =DY31 ->  | BH31: =DZ31 ->  | BJ31: =EA31 ->  | BL31: =IF(AS31=0,0,AS31)*40 -> 40 | BM31: 0 | BN31: 0 | BO31: =AS31*0.058 -> 0.058 | BP31: 0 | BQ31: 0 | BR31: =AS31*0.009 -> 0.009 | BS31: =AS31*0.007 -> 0.007 | BT31: =AS31*10*-0.002 -> -0.02 | BU31: =AS31*-0.003 -> -0.003 | BV31: =AS31*-0.029 -> -0.029 | BW31: =AS31*-0.001 -> -0.001 | BX31: =AS31*-0.008 -> -0.008 | BY31: 0 | BZ31: Res | CA31: Default DR | CB31: =Benefits(BL31,BR31,BS31,BT31,BU31,BV31,BW31,BX31,BY31,AE31,AH31,AI31,AJ31,AK31,AL31,AM31,AN31,AO31,AP31,BZ31,CA31) -> 45.87099389 | CC31: 28.81183063 | CD31: -0.341890103 | CE31: -12.92382262 | CF31: -0.3996117243 | CG31: -1.84250367 | CH31: -3.47442249 | CI31: 0 | CJ31: =(--(CB31>0))*CB31+(--(CC31>0))*CC31+(--(CD31>0))*CD31+(--(CE31>0))*CE31+(--(CF31>0))*CF31+(--(CG31>0))*CG31+(--(CH31>0))*CH31+(--(CI31>0))*CI31 -> 74.68282452 | CK31: =(--(CB31<0))*-CB31+(--(CC31<0))*-CC31+(--(CD31<0))*-CD31+(--(CE31<0))*-CE31+(--(CF31<0))*-CF31+(--(CG31<0))*-CG31+(--(CH31<0))*-CH31+(--(CI31<0))*-CI31 -> 18.98225061 | CM31: 8 | CP31: =CK31+CM31 -> 26.98225061 | CQ31: =IF(NetOrGross="Net",(1-AO31+AP31),1) -> 1 | CR31: =(SUMPRODUCT(CB31:CI31,--(CB31:CI31>0))+CL31)*CQ31/((-SUMPRODUCT(CB31:CI31,--(CB31:CI31<0))+MAX(CM31,CT31)+CN31+CO31)*CQ31+IF(FRIncentives="Yes",CT31*(1-CQ31),0)) -> 2.76785008 | CS31: 1 | CT31: =CM31*CU31 -> 8 | CU31: 1 | CV31: Electric | CX31: X=$0.00 | CZ31: X=if(AS31=0,0,AS31)*40 | DA31: 0 | DB31: 0 | DC31: X=AS31*0.058 | DD31: 0 | DE31: 0 | DF31: X=AS31*0.009 | DG31: X=AS31*0.007 | DH31: X=AS31*10*-0.002 | DI31: X=AS31*-0.003 | DJ31: X=AS31*-0.029 | DK31: X=AS31*-0.001 | DL31: X=AS31*-0.008 | DM31: 0 | DP31: {Factor:WinterCF} | DQ31: {Factor:SummerCF} | DR31: =IFERROR(INDEX($ED31:$IG31,MATCH(0,COUNTIF($DO31:DQ31,$ED31:$IG31),0)),"") -> {Measure:Quantity} | DS31: =IFERROR(INDEX($ED31:$IG31,MATCH(0,COUNTIF($DO31:DR31,$ED31:$IG31),0)),"") ->  | DT31: =IFERROR(INDEX($ED31:$IG31,MATCH(0,COUNTIF($DO31:DS31,$ED31:$IG31),0)),"") ->  | DU31: =IFERROR(INDEX($ED31:$IG31,MATCH(0,COUNTIF($DO31:DT31,$ED31:$IG31),0)),"") ->  | DV31: =IFERROR(INDEX($ED31:$IG31,MATCH(0,COUNTIF($DO31:DU31,$ED31:$IG31),0)),"") ->  | DW31: =IFERROR(INDEX($ED31:$IG31,MATCH(0,COUNTIF($DO31:DV31,$ED31:$IG31),0)),"") ->  | DX31: =IFERROR(INDEX($ED31:$IG31,MATCH(0,COUNTIF($DO31:DW31,$ED31:$IG31),0)),"") ->  | DY31: =IFERROR(INDEX($ED31:$IG31,MATCH(0,COUNTIF($DO31:DX31,$ED31:$IG31),0)),"") ->  | DZ31: =IFERROR(INDEX($ED31:$IG31,MATCH(0,COUNTIF($DO31:DY31,$ED31:$IG31),0)),"") ->  | EA31: =IFERROR(INDEX($ED31:$IG31,MATCH(0,COUNTIF($DO31:DZ31,$ED31:$IG31),0)),"") ->  | EN31: {Measure:Quantity} | EO31: {Measure:Quantity} | EX31: {Measure:Quantity} | FH31: {Measure:Quantity} | FR31: {Measure:Quantity} | GB31: {Measure:Quantity} | GL31: {Measure:Quantity} | GV31: {Measure:Quantity} | HF31: {Measure:Quantity} | HP31: {Measure:Quantity} | IK31: 1
A32: Arrearage Management Program | B32: LED Low Income Specialty Bulb Short Life | C32: LILEDSPECS | D32: 2018-07-01 | E32: 2019-06-30 | F32: Manual Entry | G32: $0.00 | H32: 0 | I32: Manual Entry | J32: $0.00 | K32: 0 | L32: 2019-01-01 | M32: 2019-06-30 | N32: Calculated | O32: if({Measure:Quantity}=0,0,{Measure:Quantity})*40 | R32: {Measure:Quantity}*0.058 | U32: {Measure:Quantity}*0.009 | V32: {Measure:Quantity}*0.007 | W32: {Measure:Quantity}*10*-0.002 | X32: {Measure:Quantity}*-0.003 | Y32: {Measure:Quantity}*-0.029 | Z32: {Measure:Quantity}*-0.001 | AA32: {Measure:Quantity}*-0.008 | AC32: 2018-07-01 | AD32: 2019-06-30 | AE32: 21 | AF32: 0.168 | AG32: 0.118 | AH32: 0.39 | AI32: 0.311 | AJ32: 0.163 | AK32: 0.136 | AL32: 0.99 | AM32: 1 | AN32: 1 | AO32: 0 | AP32: 0 | AR32: {Measure:Quantity} | AS32: 1 | BL32: =IF(AS32=0,0,AS32)*40 -> 40 | BM32: 0 | BN32: 0 | BO32: =AS32*0.058 -> 0.058 | BP32: 0 | BQ32: 0 | BR32: =AS32*0.009 -> 0.009 | BS32: =AS32*0.007 -> 0.007 | BT32: =AS32*10*-0.002 -> -0.02 | BU32: =AS32*-0.003 -> -0.003 | BV32: =AS32*-0.029 -> -0.029 | BW32: =AS32*-0.001 -> -0.001 | BX32: =AS32*-0.008 -> -0.008 | BY32: 0 | BZ32: Res | CA32: Default DR | CB32: =Benefits(BL32,BR32,BS32,BT32,BU32,BV32,BW32,BX32,BY32,AE32,AH32,AI32,AJ32,AK32,AL32,AM32,AN32,AO32,AP32,BZ32,CA32) -> 40.18429825 | CC32: 25.1008762 | CD32: -0.300549163 | CE32: -11.20630357 | CF32: -0.3465050703 | CG32: -1.596716946 | CH32: -3.012687395 | CI32: 0 | CJ32: 65.28517445 | CK32: 16.46276214 | CM32: 8 | CP32: 24.46276214 | CQ32: 1 | CR32: 2.668757275 | CS32: 1 | CT32: 8 | CU32: 1 | CV32: Electric | CX32: X=$0.00 | CZ32: X=if(AS32=0,0,AS32)*40 | DA32: 0 | DB32: 0 | DC32: X=AS32*0.058 | DD32: 0 | DE32: 0 | DF32: X=AS32*0.009 | DG32: X=AS32*0.007 | DH32: X=AS32*10*-0.002 | DI32: X=AS32*-0.003 | DJ32: X=AS32*-0.029 | DK32: X=AS32*-0.001 | DL32: X=AS32*-0.008 | DM32: 0 | DP32: {Factor:WinterCF} | DQ32: {Factor:SummerCF} | DR32: =IFERROR(INDEX($ED32:$IG32,MATCH(0,COUNTIF($DO32:DQ32,$ED32:$IG32),0)),"") -> {Measure:Quantity} | DS32: =IFERROR(INDEX($ED32:$IG32,MATCH(0,COUNTIF($DO32:DR32,$ED32:$IG32),0)),"") ->  | DT32: =IFERROR(INDEX($ED32:$IG32,MATCH(0,COUNTIF($DO32:DS32,$ED32:$IG32),0)),"") ->  | DU32: =IFERROR(INDEX($ED32:$IG32,MATCH(0,COUNTIF($DO32:DT32,$ED32:$IG32),0)),"") ->  | DV32: =IFERROR(INDEX($ED32:$IG32,MATCH(0,COUNTIF($DO32:DU32,$ED32:$IG32),0)),"") ->  | DW32: =IFERROR(INDEX($ED32:$IG32,MATCH(0,COUNTIF($DO32:DV32,$ED32:$IG32),0)),"") ->  | DX32: =IFERROR(INDEX($ED32:$IG32,MATCH(0,COUNTIF($DO32:DW32,$ED32:$IG32),0)),"") ->  | DY32: =IFERROR(INDEX($ED32:$IG32,MATCH(0,COUNTIF($DO32:DX32,$ED32:$IG32),0)),"") ->  | DZ32: =IFERROR(INDEX($ED32:$IG32,MATCH(0,COUNTIF($DO32:DY32,$ED32:$IG32),0)),"") ->  | EA32: =IFERROR(INDEX($ED32:$IG32,MATCH(0,COUNTIF($DO32:DZ32,$ED32:$IG32),0)),"") ->  | EN32: {Measure:Quantity} | EO32: {Measure:Quantity} | EX32: {Measure:Quantity} | FH32: {Measure:Quantity} | FR32: {Measure:Quantity} | GB32: {Measure:Quantity} | GL32: {Measure:Quantity} | GV32: {Measure:Quantity} | HF32: {Measure:Quantity} | HP32: {Measure:Quantity} | IK32: 1
A33: Arrearage Management Program | B33: LED Low Income Standard Bulb Long Life | C33: LILEDSTANL | D33: 2018-07-01 | E33: 2019-06-30 | F33: Manual Entry | G33: $0.00 | H33: 0 | I33: Manual Entry | J33: $0.00 | K33: 0 | L33: 2019-01-01 | M33: 2019-06-30 | N33: Calculated | O33: if({Measure:Quantity}=0,0,{Measure:Quantity}*if({Wattage}>13,41,25)) | R33: {Measure:Quantity}*if({Wattage}>13,0.059,0.036) | U33: {Measure:Quantity}*if({Wattage}>13,0.009,0.006) | V33: {Measure:Quantity}*if({Wattage}>13,0.007,0.004) | W33: {Measure:Quantity}*10*if({Wattage}>13,-0.002,-0.001) | X33: {Measure:Quantity}*if({Wattage}>13,-0.003,-0.002) | Y33: {Measure:Quantity}*if({Wattage}>13,-0.03,-0.018) | Z33: {Measure:Quantity}*if({Wattage}>13,-0.001,-0.001) | AA33: {Measure:Quantity}*if({Wattage}>13,-0.008,-0.005) | AC33: 2018-07-01 | AD33: 2019-06-30 | AE33: 9 | AF33: 0.168 | AG33: 0.118 | AH33: 0.39 | AI33: 0.311 | AJ33: 0.163 | AK33: 0.136 | AL33: 0.99 | AM33: 1 | AN33: 1 | AO33: 0 | AP33: 0 | AR33: {Measure:Quantity} | AS33: 1 | AT33: {Wattage} | AU33: 9 | BL33: =IF(AS33=0,0,AS33*IF(AU33>13,41,25)) -> 25 | BM33: 0 | BN33: 0 | BO33: =AS33*IF(AU33>13,0.059,0.036) -> 0.036 | BP33: 0 | BQ33: 0 | BR33: =AS33*IF(AU33>13,0.009,0.006) -> 0.006 | BS33: =AS33*IF(AU33>13,0.007,0.004) -> 0.004 | BT33: =AS33*10*IF(AU33>13,-0.002,-0.001) -> -0.01 | BU33: =AS33*IF(AU33>13,-0.003,-0.002) -> -0.002 | BV33: =AS33*IF(AU33>13,-0.03,-0.018) -> -0.018 | BW33: =AS33*IF(AU33>13,-0.001,-0.001) -> -0.001 | BX33: =AS33*IF(AU33>13,-0.008,-0.005) -> -0.005 | BY33: 0 | BZ33: Res | CA33: Default DR | CB33: =Benefits(BL33,BR33,BS33,BT33,BU33,BV33,BW33,BX33,BY33,AE33,AH33,AI33,AJ33,AK33,AL33,AM33,AN33,AO33,AP33,BZ33,CA33) -> 12.73697026 | CC33: 7.679886527 | CD33: -0.07440993252 | CE33: -3.186850636 | CF33: -0.1587574205 | CG33: -0.4981560235 | CH33: -0.8626982851 | CI33: 0 | CJ33: 20.41685679 | CK33: 4.780872298 | CM33: 4.48 | CP33: 9.260872298 | CQ33: 1 | CR33: 2.204636468 | CS33: 1 | CT33: 4.48 | CU33: 1 | CV33: Electric | CX33: X=$0.00 | CZ33: X=if(AS33=0,0,AS33*if(AU33>13,41,25)) | DA33: 0 | DB33: 0 | DC33: X=AS33*if(AU33>13,0.059,0.036) | DD33: 0 | DE33: 0 | DF33: X=AS33*if(AU33>13,0.009,0.006) | DG33: X=AS33*if(AU33>13,0.007,0.004) | DH33: X=AS33*10*if(AU33>13,-0.002,-0.001) | DI33: X=AS33*if(AU33>13,-0.003,-0.002) | DJ33: X=AS33*if(AU33>13,-0.03,-0.018) | DK33: X=AS33*if(AU33>13,-0.001,-0.001) | DL33: X=AS33*if(AU33>13,-0.008,-0.005) | DM33: 0 | DP33: {Factor:WinterCF} | DQ33: {Factor:SummerCF} | DR33: =IFERROR(INDEX($ED33:$IG33,MATCH(0,COUNTIF($DO33:DQ33,$ED33:$IG33),0)),"") -> {Measure:Quantity} | DS33: =IFERROR(INDEX($ED33:$IG33,MATCH(0,COUNTIF($DO33:DR33,$ED33:$IG33),0)),"") -> {Wattage} | DT33: =IFERROR(INDEX($ED33:$IG33,MATCH(0,COUNTIF($DO33:DS33,$ED33:$IG33),0)),"") ->  | DU33: =IFERROR(INDEX($ED33:$IG33,MATCH(0,COUNTIF($DO33:DT33,$ED33:$IG33),0)),"") ->  | DV33: =IFERROR(INDEX($ED33:$IG33,MATCH(0,COUNTIF($DO33:DU33,$ED33:$IG33),0)),"") ->  | DW33: =IFERROR(INDEX($ED33:$IG33,MATCH(0,COUNTIF($DO33:DV33,$ED33:$IG33),0)),"") ->  | DX33: =IFERROR(INDEX($ED33:$IG33,MATCH(0,COUNTIF($DO33:DW33,$ED33:$IG33),0)),"") ->  | DY33: =IFERROR(INDEX($ED33:$IG33,MATCH(0,COUNTIF($DO33:DX33,$ED33:$IG33),0)),"") ->  | DZ33: =IFERROR(INDEX($ED33:$IG33,MATCH(0,COUNTIF($DO33:DY33,$ED33:$IG33),0)),"") ->  | EA33: =IFERROR(INDEX($ED33:$IG33,MATCH(0,COUNTIF($DO33:DZ33,$ED33:$IG33),0)),"") ->  | EN33: {Measure:Quantity} | EO33: {Measure:Quantity} | EP33: {Wattage} | EX33: {Measure:Quantity} | EY33: {Wattage} | FH33: {Measure:Quantity} | FI33: {Wattage} | FR33: {Measure:Quantity} | FS33: {Wattage} | GB33: {Measure:Quantity} | GC33: {Wattage} | GL33: {Measure:Quantity} | GM33: {Wattage} | GV33: {Measure:Quantity} | GW33: {Wattage} | HF33: {Measure:Quantity} | HG33: {Wattage} | HP33: {Measure:Quantity} | HQ33: {Wattage} | IK33: 2
A34: Arrearage Management Program | B34: LED Low Income Standard Bulb Short Life | C34: LILEDSTANS | D34: 2018-07-01 | E34: 2019-06-30 | F34: Manual Entry | G34: $0.00 | H34: 0 | I34: Manual Entry | J34: $0.00 | K34: 0 | L34: 2019-01-01 | M34: 2019-06-30 | N34: Calculated | O34: if({Measure:Quantity}=0,0,{Measure:Quantity}*if({Wattage}>13,41,25)) | R34: {Measure:Quantity}*if({Wattage}>13,0.059,0.036) | U34: {Measure:Quantity}*if({Wattage}>13,0.009,0.006) | V34: {Measure:Quantity}*if({Wattage}>13,0.007,0.004) | W34: {Measure:Quantity}*10*if({Wattage}>13,-0.002,-0.001) | X34: {Measure:Quantity}*if({Wattage}>13,-0.003,-0.002) | Y34: {Measure:Quantity}*if({Wattage}>13,-0.03,-0.018) | Z34: {Measure:Quantity}*if({Wattage}>13,-0.001,-0.001) | AA34: {Measure:Quantity}*if({Wattage}>13,-0.008,-0.005) | AC34: 2018-07-01 | AD34: 2019-06-30 | AE34: 8 | AF34: 0.168 | AG34: 0.118 | AH34: 0.39 | AI34: 0.311 | AJ34: 0.163 | AK34: 0.136 | AL34: 0.99 | AM34: 1 | AN34: 1 | AO34: 0 | AP34: 0 | AR34: {Measure:Quantity} | AS34: 1 | AT34: {Wattage} | AU34: 9 | BL34: =IF(AS34=0,0,AS34*IF(AU34>13,41,25)) -> 25 | BM34: 0 | BN34: 0 | BO34: =AS34*IF(AU34>13,0.059,0.036) -> 0.036 | BP34: 0 | BQ34: 0 | BR34: =AS34*IF(AU34>13,0.009,0.006) -> 0.006 | BS34: =AS34*IF(AU34>13,0.007,0.004) -> 0.004 | BT34: =AS34*10*IF(AU34>13,-0.002,-0.001) -> -0.01 | BU34: =AS34*IF(AU34>13,-0.003,-0.002) -> -0.002 | BV34: =AS34*IF(AU34>13,-0.03,-0.018) -> -0.018 | BW34: =AS34*IF(AU34>13,-0.001,-0.001) -> -0.001 | BX34: =AS34*IF(AU34>13,-0.008,-0.005) -> -0.005 | BY34: 0 | BZ34: Res | CA34: Default DR | CB34: =Benefits(BL34,BR34,BS34,BT34,BU34,BV34,BW34,BX34,BY34,AE34,AH34,AI34,AJ34,AK34,AL34,AM34,AN34,AO34,AP34,BZ34,CA34) -> 11.46737001 | CC34: 6.872962098 | CD34: -0.06708475522 | CE34: -2.839376262 | CF34: -0.1414475361 | CG34: -0.4451314552 | CH34: -0.7686351125 | CI34: 0 | CJ34: 18.34033211 | CK34: 4.261675121 | CM34: 4.46 | CP34: 8.721675121 | CQ34: 1 | CR34: 2.102845136 | CS34: 1 | CT34: 4.46 | CU34: 1 | CV34: Electric | CX34: X=$0.00 | CZ34: X=if(AS34=0,0,AS34*if(AU34>13,41,25)) | DA34: 0 | DB34: 0 | DC34: X=AS34*if(AU34>13,0.059,0.036) | DD34: 0 | DE34: 0 | DF34: X=AS34*if(AU34>13,0.009,0.006) | DG34: X=AS34*if(AU34>13,0.007,0.004) | DH34: X=AS34*10*if(AU34>13,-0.002,-0.001) | DI34: X=AS34*if(AU34>13,-0.003,-0.002) | DJ34: X=AS34*if(AU34>13,-0.03,-0.018) | DK34: X=AS34*if(AU34>13,-0.001,-0.001) | DL34: X=AS34*if(AU34>13,-0.008,-0.005) | DM34: 0 | DP34: {Factor:WinterCF} | DQ34: {Factor:SummerCF} | DR34: =IFERROR(INDEX($ED34:$IG34,MATCH(0,COUNTIF($DO34:DQ34,$ED34:$IG34),0)),"") -> {Measure:Quantity} | DS34: =IFERROR(INDEX($ED34:$IG34,MATCH(0,COUNTIF($DO34:DR34,$ED34:$IG34),0)),"") -> {Wattage} | DT34: =IFERROR(INDEX($ED34:$IG34,MATCH(0,COUNTIF($DO34:DS34,$ED34:$IG34),0)),"") ->  | DU34: =IFERROR(INDEX($ED34:$IG34,MATCH(0,COUNTIF($DO34:DT34,$ED34:$IG34),0)),"") ->  | DV34: =IFERROR(INDEX($ED34:$IG34,MATCH(0,COUNTIF($DO34:DU34,$ED34:$IG34),0)),"") ->  | DW34: =IFERROR(INDEX($ED34:$IG34,MATCH(0,COUNTIF($DO34:DV34,$ED34:$IG34),0)),"") ->  | DX34: =IFERROR(INDEX($ED34:$IG34,MATCH(0,COUNTIF($DO34:DW34,$ED34:$IG34),0)),"") ->  | DY34: =IFERROR(INDEX($ED34:$IG34,MATCH(0,COUNTIF($DO34:DX34,$ED34:$IG34),0)),"") ->  | DZ34: =IFERROR(INDEX($ED34:$IG34,MATCH(0,COUNTIF($DO34:DY34,$ED34:$IG34),0)),"") ->  | EA34: =IFERROR(INDEX($ED34:$IG34,MATCH(0,COUNTIF($DO34:DZ34,$ED34:$IG34),0)),"") ->  | ED34: =IFERROR(MID($G34,FIND(CHAR(160),SUBSTITUTE($G34,"{",CHAR(160),ED$1)),FIND(CHAR(160),SUBSTITUTE($G34,"}",CHAR(160),ED$1))-FIND(CHAR(160),SUBSTITUTE($G34,"{",CHAR(160),ED$1))+1),"") ->  | EN34: =IFERROR(MID($O34,FIND(CHAR(160),SUBSTITUTE($O34,"{",CHAR(160),EN$1)),FIND(CHAR(160),SUBSTITUTE($O34,"}",CHAR(160),EN$1))-FIND(CHAR(160),SUBSTITUTE($O34,"{",CHAR(160),EN$1))+1),"") -> {Measure:Quantity} | EO34: {Measure:Quantity} | EP34: {Wattage} | EX34: =IFERROR(MID($R34,FIND(CHAR(160),SUBSTITUTE($R34,"{",CHAR(160),EX$1)),FIND(CHAR(160),SUBSTITUTE($R34,"}",CHAR(160),EX$1))-FIND(CHAR(160),SUBSTITUTE($R34,"{",CHAR(160),EX$1))+1),"") -> {Measure:Quantity} | EY34: {Wattage} | FH34: =IFERROR(MID($U34,FIND(CHAR(160),SUBSTITUTE($U34,"{",CHAR(160),FH$1)),FIND(CHAR(160),SUBSTITUTE($U34,"}",CHAR(160),FH$1))-FIND(CHAR(160),SUBSTITUTE($U34,"{",CHAR(160),FH$1))+1),"") -> {Measure:Quantity} | FI34: {Wattage} | FR34: =IFERROR(MID($V34,FIND(CHAR(160),SUBSTITUTE($V34,"{",CHAR(160),FR$1)),FIND(CHAR(160),SUBSTITUTE($V34,"}",CHAR(160),FR$1))-FIND(CHAR(160),SUBSTITUTE($V34,"{",CHAR(160),FR$1))+1),"") -> {Measure:Quantity} | FS34: {Wattage} | GB34: =IFERROR(MID($W34,FIND(CHAR(160),SUBSTITUTE($W34,"{",CHAR(160),GB$1)),FIND(CHAR(160),SUBSTITUTE($W34,"}",CHAR(160),GB$1))-FIND(CHAR(160),SUBSTITUTE($W34,"{",CHAR(160),GB$1))+1),"") -> {Measure:Quantity} | GC34: {Wattage} | GL34: =IFERROR(MID($X34,FIND(CHAR(160),SUBSTITUTE($X34,"{",CHAR(160),GL$1)),FIND(CHAR(160),SUBSTITUTE($X34,"}",CHAR(160),GL$1))-FIND(CHAR(160),SUBSTITUTE($X34,"{",CHAR(160),GL$1))+1),"") -> {Measure:Quantity} | GM34: {Wattage} | GV34: =IFERROR(MID($Y34,FIND(CHAR(160),SUBSTITUTE($Y34,"{",CHAR(160),GV$1)),FIND(CHAR(160),SUBSTITUTE($Y34,"}",CHAR(160),GV$1))-FIND(CHAR(160),SUBSTITUTE($Y34,"{",CHAR(160),GV$1))+1),"") -> {Measure:Quantity} | GW34: {Wattage} | HF34: =IFERROR(MID($Z34,FIND(CHAR(160),SUBSTITUTE($Z34,"{",CHAR(160),HF$1)),FIND(CHAR(160),SUBSTITUTE($Z34,"}",CHAR(160),HF$1))-FIND(CHAR(160),SUBSTITUTE($Z34,"{",CHAR(160),HF$1))+1),"") -> {Measure:Quantity} | HG34: {Wattage} | HP34: =IFERROR(MID($AA34,FIND(CHAR(160),SUBSTITUTE($AA34,"{",CHAR(160),HP$1)),FIND(CHAR(160),SUBSTITUTE($AA34,"}",CHAR(160),HP$1))-FIND(CHAR(160),SUBSTITUTE($AA34,"{",CHAR(160),HP$1))+1),"") -> {Measure:Quantity} | HQ34: {Wattage} | HZ34: =IFERROR(MID($AB34,FIND(CHAR(160),SUBSTITUTE($AB34,"{",CHAR(160),HZ$1)),FIND(CHAR(160),SUBSTITUTE($AB34,"}",CHAR(160),HZ$1))-FIND(CHAR(160),SUBSTITUTE($AB34,"{",CHAR(160),HZ$1))+1),"") ->  | IK34: 2
A35: Arrearage Management Program | B35: Low Flow Bathroom Aerator Direct Install | C35: LILFBA | D35: 2018-07-01 | E35: 2019-06-30 | F35: Manual Entry | G35: $0.00 | H35: 0 | I35: Manual Entry | J35: $0.00 | K35: 0 | L35: 2019-01-01 | M35: 2019-06-30 | N35: Calculated | O35: {Measure:Quantity}*if({Measure:Quantity}=0,0,29) | R35: {Measure:Quantity}*if({Measure:Quantity}=0,0,0.00234) | U35: {Measure:Quantity}*if({Measure:Quantity}=0,0,0.00234)*{Factor:WinterCF} | V35: {Measure:Quantity}*if({Measure:Quantity}=0,0,0.00234)*{Factor:SummerCF} | AB35: if({Measure:Quantity}=0,0,{Measure:Quantity}*333) | AC35: 2018-07-01 | AD35: 2019-06-30 | AE35: 10 | AF35: 0.004 | AG35: 0.003 | AH35: 0.397 | AI35: 0.268 | AJ35: 0.203 | AK35: 0.131 | AL35: 0.77 | AM35: 1 | AN35: 1 | AO35: 0 | AP35: 0 | AR35: {Measure:Quantity} | AS35: 1 | BL35: =AS35*IF(AS35=0,0,29) -> 29 | BM35: 0 | BN35: 0 | BO35: =AS35*IF(AS35=0,0,0.00234) -> 0.00234 | BP35: 0 | BQ35: 0 | BR35: =AS35*IF(AS35=0,0,0.00234)*AF35 -> 9.36e-06 | BS35: =AS35*IF(AS35=0,0,0.00234)*AG35 -> 7.02e-06 | BT35: 0 | BU35: 0 | BV35: 0 | BW35: 0 | BX35: 0 | BY35: =IF(AS35=0,0,AS35*333) -> 333 | BZ35: Res | CA35: Default DR | CB35: =Benefits(BL35,BR35,BS35,BT35,BU35,BV35,BW35,BX35,BY35,AE35,AH35,AI35,AJ35,AK35,AL35,AM35,AN35,AO35,AP35,BZ35,CA35) -> 12.56490213 | CC35: 0.01062300812 | CD35: 0 | CE35: 0 | CF35: 0 | CG35: 0 | CH35: 0 | CI35: 19.06951857 | CJ35: 31.64504371 | CK35: 0 | CM35: 0.59 | CP35: 0.59 | CQ35: 1 | CR35: 53.6356673 | CS35: 1 | CT35: 0.59 | CU35: 1 | CV35: Electric | CX35: X=$0.00 | CZ35: X=AS35*if(AS35=0,0,29) | DA35: 0 | DB35: 0 | DC35: X=AS35*if(AS35=0,0,0.00234) | DD35: 0 | DE35: 0 | DF35: X=AS35*if(AS35=0,0,0.00234)*AF35 | DG35: X=AS35*if(AS35=0,0,0.00234)*AG35 | DH35: 0 | DI35: 0 | DJ35: 0 | DK35: 0 | DL35: 0 | DM35: X=if(AS35=0,0,AS35*333) | DP35: {Factor:WinterCF} | DQ35: {Factor:SummerCF} | DR35: =IFERROR(INDEX($ED35:$IG35,MATCH(0,COUNTIF($DO35:DQ35,$ED35:$IG35),0)),"") -> {Measure:Quantity} | DS35: =IFERROR(INDEX($ED35:$IG35,MATCH(0,COUNTIF($DO35:DR35,$ED35:$IG35),0)),"") ->  | DT35: =IFERROR(INDEX($ED35:$IG35,MATCH(0,COUNTIF($DO35:DS35,$ED35:$IG35),0)),"") ->  | DU35: =IFERROR(INDEX($ED35:$IG35,MATCH(0,COUNTIF($DO35:DT35,$ED35:$IG35),0)),"") ->  | DV35: =IFERROR(INDEX($ED35:$IG35,MATCH(0,COUNTIF($DO35:DU35,$ED35:$IG35),0)),"") ->  | DW35: =IFERROR(INDEX($ED35:$IG35,MATCH(0,COUNTIF($DO35:DV35,$ED35:$IG35),0)),"") ->  | DX35: =IFERROR(INDEX($ED35:$IG35,MATCH(0,COUNTIF($DO35:DW35,$ED35:$IG35),0)),"") ->  | DY35: =IFERROR(INDEX($ED35:$IG35,MATCH(0,COUNTIF($DO35:DX35,$ED35:$IG35),0)),"") ->  | DZ35: =IFERROR(INDEX($ED35:$IG35,MATCH(0,COUNTIF($DO35:DY35,$ED35:$IG35),0)),"") ->  | EA35: =IFERROR(INDEX($ED35:$IG35,MATCH(0,COUNTIF($DO35:DZ35,$ED35:$IG35),0)),"") ->  | EN35: {Measure:Quantity} | EO35: {Measure:Quantity} | EX35: {Measure:Quantity} | EY35: {Measure:Quantity} | FH35: {Measure:Quantity} | FI35: {Measure:Quantity} | FJ35: {Factor:WinterCF} | FR35: {Measure:Quantity} | FS35: {Measure:Quantity} | FT35: {Factor:SummerCF} | HZ35: {Measure:Quantity} | IA35: {Measure:Quantity} | IK35: 1
A36: Arrearage Management Program | B36: Low Flow Kitchen Aerator Direct Install | C36: LILFKA | D36: 2018-07-01 | E36: 2019-06-30 | F36: Manual Entry | G36: $0.00 | H36: 0 | I36: Manual Entry | J36: $0.00 | K36: 0 | L36: 2019-01-01 | M36: 2019-06-30 | N36: Calculated | O36: {Measure:Quantity}*if({Measure:Quantity}=0,0,283) | R36: {Measure:Quantity}*if({Measure:Quantity}=0,0,0.0227) | U36: {Measure:Quantity}*if({Measure:Quantity}=0,0,0.0227)*{Factor:WinterCF} | V36: {Measure:Quantity}*if({Measure:Quantity}=0,0,0.0227)*{Factor:SummerCF} | AB36: if({Measure:Quantity}=0,0,{Measure:Quantity}*2696) | AC36: 2018-07-01 | AD36: 2019-06-30 | AE36: 10 | AF36: 0.012 | AG36: 0.008 | AH36: 0.397 | AI36: 0.268 | AJ36: 0.203 | AK36: 0.131 | AL36: 0.85 | AM36: 1 | AN36: 1 | AO36: 0 | AP36: 0 | AR36: {Measure:Quantity} | AS36: 1 | BL36: =AS36*IF(AS36=0,0,283) -> 283 | BM36: 0 | BN36: 0 | BO36: =AS36*IF(AS36=0,0,0.0227) -> 0.0227 | BP36: 0 | BQ36: 0 | BR36: =AS36*IF(AS36=0,0,0.0227)*AF36 -> 0.0002724 | BS36: =AS36*IF(AS36=0,0,0.0227)*AG36 -> 0.0001816 | BT36: 0 | BU36: 0 | BV36: 0 | BW36: 0 | BX36: 0 | BY36: =IF(AS36=0,0,AS36*2696) -> 2696 | BZ36: Res | CA36: Default DR | CB36: =Benefits(BL36,BR36,BS36,BT36,BU36,BV36,BW36,BX36,BY36,AE36,AH36,AI36,AJ36,AK36,AL36,AM36,AN36,AO36,AP36,BZ36,CA36) -> 135.3554504 | CC36: 0.3309352333 | CD36: 0 | CE36: 0 | CF36: 0 | CG36: 0 | CH36: 0 | CI36: 154.3886548 | CJ36: 290.0750405 | CK36: 0 | CM36: 2.15 | CP36: 2.15 | CQ36: 1 | CR36: 134.9186235 | CS36: 1 | CT36: 2.15 | CU36: 1 | CV36: Electric | CX36: X=$0.00 | CZ36: X=AS36*if(AS36=0,0,283) | DA36: 0 | DB36: 0 | DC36: X=AS36*if(AS36=0,0,0.0227) | DD36: 0 | DE36: 0 | DF36: X=AS36*if(AS36=0,0,0.0227)*AF36 | DG36: X=AS36*if(AS36=0,0,0.0227)*AG36 | DH36: 0 | DI36: 0 | DJ36: 0 | DK36: 0 | DL36: 0 | DM36: X=if(AS36=0,0,AS36*2696) | DP36: {Factor:WinterCF} | DQ36: {Factor:SummerCF} | DR36: =IFERROR(INDEX($ED36:$IG36,MATCH(0,COUNTIF($DO36:DQ36,$ED36:$IG36),0)),"") -> {Measure:Quantity} | DS36: =IFERROR(INDEX($ED36:$IG36,MATCH(0,COUNTIF($DO36:DR36,$ED36:$IG36),0)),"") ->  | DT36: =IFERROR(INDEX($ED36:$IG36,MATCH(0,COUNTIF($DO36:DS36,$ED36:$IG36),0)),"") ->  | DU36: =IFERROR(INDEX($ED36:$IG36,MATCH(0,COUNTIF($DO36:DT36,$ED36:$IG36),0)),"") ->  | DV36: =IFERROR(INDEX($ED36:$IG36,MATCH(0,COUNTIF($DO36:DU36,$ED36:$IG36),0)),"") ->  | DW36: =IFERROR(INDEX($ED36:$IG36,MATCH(0,COUNTIF($DO36:DV36,$ED36:$IG36),0)),"") ->  | DX36: =IFERROR(INDEX($ED36:$IG36,MATCH(0,COUNTIF($DO36:DW36,$ED36:$IG36),0)),"") ->  | DY36: =IFERROR(INDEX($ED36:$IG36,MATCH(0,COUNTIF($DO36:DX36,$ED36:$IG36),0)),"") ->  | DZ36: =IFERROR(INDEX($ED36:$IG36,MATCH(0,COUNTIF($DO36:DY36,$ED36:$IG36),0)),"") ->  | EA36: =IFERROR(INDEX($ED36:$IG36,MATCH(0,COUNTIF($DO36:DZ36,$ED36:$IG36),0)),"") ->  | EN36: {Measure:Quantity} | EO36: {Measure:Quantity} | EX36: {Measure:Quantity} | EY36: {Measure:Quantity} | FH36: {Measure:Quantity} | FI36: {Measure:Quantity} | FJ36: {Factor:WinterCF} | FR36: {Measure:Quantity} | FS36: {Measure:Quantity} | FT36: {Factor:SummerCF} | HZ36: {Measure:Quantity} | IA36: {Measure:Quantity} | IK36: 1
A37: Arrearage Management Program | B37: Low Flow Shower Head Direct Install | C37: LILFSH | D37: 2018-07-01 | E37: 2019-06-30 | F37: Manual Entry | G37: $0.00 | H37: 0 | I37: Manual Entry | J37: $0.00 | K37: 0 | L37: 2019-01-01 | M37: 2019-06-30 | N37: Calculated | O37: {Measure:Quantity}*if({Measure:Quantity}=0,0,442) | R37: {Measure:Quantity}*if({Measure:Quantity}=0,0,0.0354) | U37: {Measure:Quantity}*if({Measure:Quantity}=0,0,0.0354)*{Factor:WinterCF} | V37: {Measure:Quantity}*if({Measure:Quantity}=0,0,0.0354)*{Factor:SummerCF} | AB37: if({Measure:Quantity}=0,0,{Measure:Quantity}*3153) | AC37: 2018-07-01 | AD37: 2019-06-30 | AE37: 10 | AF37: 0.008 | AG37: 0.005 | AH37: 0.355 | AI37: 0.311 | AJ37: 0.181 | AK37: 0.153 | AL37: 0.88 | AM37: 1 | AN37: 1 | AO37: 0 | AP37: 0 | AR37: {Measure:Quantity} | AS37: 1 | BL37: =AS37*IF(AS37=0,0,442) -> 442 | BM37: 0 | BN37: 0 | BO37: =AS37*IF(AS37=0,0,0.0354) -> 0.0354 | BP37: 0 | BQ37: 0 | BR37: =AS37*IF(AS37=0,0,0.0354)*AF37 -> 0.0002832 | BS37: =AS37*IF(AS37=0,0,0.0354)*AG37 -> 0.000177 | BT37: 0 | BU37: 0 | BV37: 0 | BW37: 0 | BX37: 0 | BY37: =IF(AS37=0,0,AS37*3153) -> 3153 | BZ37: Res | CA37: Default DR | CB37: =Benefits(BL37,BR37,BS37,BT37,BU37,BV37,BW37,BX37,BY37,AE37,AH37,AI37,AJ37,AK37,AL37,AM37,AN37,AO37,AP37,BZ37,CA37) -> 217.5703837 | CC37: 0.3506335549 | CD37: 0 | CE37: 0 | CF37: 0 | CG37: 0 | CH37: 0 | CI37: 180.5591353 | CJ37: 398.4801526 | CK37: 0 | CM37: 32.01 | CP37: 32.01 | CQ37: 1 | CR37: 12.44861458 | CS37: 1 | CT37: 32.01 | CU37: 1 | CV37: Electric | CX37: X=$0.00 | CZ37: X=AS37*if(AS37=0,0,442) | DA37: 0 | DB37: 0 | DC37: X=AS37*if(AS37=0,0,0.0354) | DD37: 0 | DE37: 0 | DF37: X=AS37*if(AS37=0,0,0.0354)*AF37 | DG37: X=AS37*if(AS37=0,0,0.0354)*AG37 | DH37: 0 | DI37: 0 | DJ37: 0 | DK37: 0 | DL37: 0 | DM37: X=if(AS37=0,0,AS37*3153) | DP37: {Factor:WinterCF} | DQ37: {Factor:SummerCF} | DR37: =IFERROR(INDEX($ED37:$IG37,MATCH(0,COUNTIF($DO37:DQ37,$ED37:$IG37),0)),"") -> {Measure:Quantity} | DS37: =IFERROR(INDEX($ED37:$IG37,MATCH(0,COUNTIF($DO37:DR37,$ED37:$IG37),0)),"") ->  | DT37: =IFERROR(INDEX($ED37:$IG37,MATCH(0,COUNTIF($DO37:DS37,$ED37:$IG37),0)),"") ->  | DU37: =IFERROR(INDEX($ED37:$IG37,MATCH(0,COUNTIF($DO37:DT37,$ED37:$IG37),0)),"") ->  | DV37: =IFERROR(INDEX($ED37:$IG37,MATCH(0,COUNTIF($DO37:DU37,$ED37:$IG37),0)),"") ->  | DW37: =IFERROR(INDEX($ED37:$IG37,MATCH(0,COUNTIF($DO37:DV37,$ED37:$IG37),0)),"") ->  | DX37: =IFERROR(INDEX($ED37:$IG37,MATCH(0,COUNTIF($DO37:DW37,$ED37:$IG37),0)),"") ->  | DY37: =IFERROR(INDEX($ED37:$IG37,MATCH(0,COUNTIF($DO37:DX37,$ED37:$IG37),0)),"") ->  | DZ37: =IFERROR(INDEX($ED37:$IG37,MATCH(0,COUNTIF($DO37:DY37,$ED37:$IG37),0)),"") ->  | EA37: =IFERROR(INDEX($ED37:$IG37,MATCH(0,COUNTIF($DO37:DZ37,$ED37:$IG37),0)),"") ->  | EN37: {Measure:Quantity} | EO37: {Measure:Quantity} | EX37: {Measure:Quantity} | EY37: {Measure:Quantity} | FH37: {Measure:Quantity} | FI37: {Measure:Quantity} | FJ37: {Factor:WinterCF} | FR37: {Measure:Quantity} | FS37: {Measure:Quantity} | FT37: {Factor:SummerCF} | HZ37: {Measure:Quantity} | IA37: {Measure:Quantity} | IK37: 1
A38: Arrearage Management Program | BL38: 0 | BM38: 0 | BN38: 0 | BO38: 0 | BP38: 0 | BQ38: 0 | BR38: 0 | BS38: 0 | BT38: 0 | BU38: 0 | BV38: 0 | BW38: 0 | BX38: 0 | BY38: 0 | CX38: 0 | CZ38: 0 | DA38: 0 | DB38: 0 | DC38: 0 | DD38: 0 | DE38: 0 | DF38: 0 | DG38: 0 | DH38: 0 | DI38: 0 | DJ38: 0 | DK38: 0 | DL38: 0 | DM38: 0 | DP38: {Factor:WinterCF} | DQ38: {Factor:SummerCF} | DR38: =IFERROR(INDEX($ED38:$IG38,MATCH(0,COUNTIF($DO38:DQ38,$ED38:$IG38),0)),"") ->  | DS38: =IFERROR(INDEX($ED38:$IG38,MATCH(0,COUNTIF($DO38:DR38,$ED38:$IG38),0)),"") ->  | DT38: =IFERROR(INDEX($ED38:$IG38,MATCH(0,COUNTIF($DO38:DS38,$ED38:$IG38),0)),"") ->  | DU38: =IFERROR(INDEX($ED38:$IG38,MATCH(0,COUNTIF($DO38:DT38,$ED38:$IG38),0)),"") ->  | DV38: =IFERROR(INDEX($ED38:$IG38,MATCH(0,COUNTIF($DO38:DU38,$ED38:$IG38),0)),"") ->  | DW38: =IFERROR(INDEX($ED38:$IG38,MATCH(0,COUNTIF($DO38:DV38,$ED38:$IG38),0)),"") ->  | DX38: =IFERROR(INDEX($ED38:$IG38,MATCH(0,COUNTIF($DO38:DW38,$ED38:$IG38),0)),"") ->  | DY38: =IFERROR(INDEX($ED38:$IG38,MATCH(0,COUNTIF($DO38:DX38,$ED38:$IG38),0)),"") ->  | DZ38: =IFERROR(INDEX($ED38:$IG38,MATCH(0,COUNTIF($DO38:DY38,$ED38:$IG38),0)),"") ->  | EA38: =IFERROR(INDEX($ED38:$IG38,MATCH(0,COUNTIF($DO38:DZ38,$ED38:$IG38),0)),"") ->  | IK38: 0
A39: C&I Agricultural Solutions | B39: MILK: Scroll Compressor - 10 HP | C39: AMSC - AMSC10 | D39: 2018-07-01 | E39: 2019-06-30 | F39: Per Measure | G39: $2051.00 | H39: 0 | I39: Per Measure | J39: $1100.00 | K39: 0 | L39: 2016-07-01 | M39: 2019-06-30 | N39: Calculated | O39: 432 * 10 * {Measure:Quantity} | P39: 0.0001 | R39: ((432 * 10) /2850) * {Measure:Quantity} | U39: (((432 * 10) /2850) * {Measure:Quantity}) *{Factor:WinterCF} | V39: (((432 * 10) /2850) * {Measure:Quantity}) *{Factor:SummerCF} | AC39: 2017-07-01 | AD39: 2019-06-30 | AE39: 15 | AF39: 0.674 | AG39: 0.327 | AH39: 0.436 | AI39: 0.232 | AJ39: 0.217 | AK39: 0.115 | AL39: 1 | AM39: 1.122 | AN39: 1 | AO39: 0.52 | AP39: 0.016 | AR39: =DR39 -> {Measure:Quantity} | AS39: 1 | AT39: =DS39 ->  | AV39: =DT39 ->  | AX39: =DU39 ->  | AZ39: =DV39 ->  | BB39: =DW39 ->  | BD39: =DX39 ->  | BF39: =DY39 ->  | BH39: =DZ39 ->  | BJ39: =EA39 ->  | BL39: =432 * 10 * AS39 -> 4320 | BM39: =0.0001 -> 0.0001 | BN39: 0 | BO39: =((432 * 10) /2850) * AS39 -> 1.515789474 | BP39: 0 | BQ39: 0 | BR39: =(((432 * 10) /2850) * AS39) *AF39 -> 1.021642105 | BS39: =(((432 * 10) /2850) * AS39) *AG39 -> 0.4956631579 | BT39: 0 | BU39: 0 | BV39: 0 | BW39: 0 | BX39: 0 | BY39: 0 | BZ39: Res | CA39: Default DR | CB39: =Benefits(BL39,BR39,BS39,BT39,BU39,BV39,BW39,BX39,BY39,AE39,AH39,AI39,AJ39,AK39,AL39,AM39,AN39,AO39,AP39,BZ39,CA39) -> 3792.150235 | CC39: 1945.911616 | CD39: 0 | CE39: 0 | CF39: 0 | CG39: 0 | CH39: 0 | CI39: 0 | CJ39: =(--(CB39>0))*CB39+(--(CC39>0))*CC39+(--(CD39>0))*CD39+(--(CE39>0))*CE39+(--(CF39>0))*CF39+(--(CG39>0))*CG39+(--(CH39>0))*CH39+(--(CI39>0))*CI39 -> 5738.061852 | CK39: =(--(CB39<0))*-CB39+(--(CC39<0))*-CC39+(--(CD39<0))*-CD39+(--(CE39<0))*-CE39+(--(CF39<0))*-CF39+(--(CG39<0))*-CG39+(--(CH39<0))*-CH39+(--(CI39<0))*-CI39 -> 0 | CM39: =2051 -> 2051 | CP39: =CK39+CM39 -> 2051 | CQ39: =IF(NetOrGross="Net",(1-AO39+AP39),1) -> 1 | CR39: =(SUMPRODUCT(CB39:CI39,--(CB39:CI39>0))+CL39)*CQ39/((-SUMPRODUCT(CB39:CI39,--(CB39:CI39<0))+MAX(CM39,CT39)+CN39+CO39)*CQ39+IF(FRIncentives="Yes",CT39*(1-CQ39),0)) -> 2.797689835 | CS39: 1 | CT39: 330 | CV39: Electric | CX39: X=$2051.00 | CZ39: X=432 * 10 * AS39 | DA39: X=0.0001 | DB39: 0 | DC39: X=((432 * 10) /2850) * AS39 | DD39: 0 | DE39: 0 | DF39: X=(((432 * 10) /2850) * AS39) *AF39 | DG39: X=(((432 * 10) /2850) * AS39) *AG39 | DH39: 0 | DI39: 0 | DJ39: 0 | DK39: 0 | DL39: 0 | DM39: 0 | DP39: {Factor:WinterCF} | DQ39: {Factor:SummerCF} | DR39: =IFERROR(INDEX($ED39:$IG39,MATCH(0,COUNTIF($DO39:DQ39,$ED39:$IG39),0)),"") -> {Measure:Quantity} | DS39: =IFERROR(INDEX($ED39:$IG39,MATCH(0,COUNTIF($DO39:DR39,$ED39:$IG39),0)),"") ->  | DT39: =IFERROR(INDEX($ED39:$IG39,MATCH(0,COUNTIF($DO39:DS39,$ED39:$IG39),0)),"") ->  | DU39: =IFERROR(INDEX($ED39:$IG39,MATCH(0,COUNTIF($DO39:DT39,$ED39:$IG39),0)),"") ->  | DV39: =IFERROR(INDEX($ED39:$IG39,MATCH(0,COUNTIF($DO39:DU39,$ED39:$IG39),0)),"") ->  | DW39: =IFERROR(INDEX($ED39:$IG39,MATCH(0,COUNTIF($DO39:DV39,$ED39:$IG39),0)),"") ->  | DX39: =IFERROR(INDEX($ED39:$IG39,MATCH(0,COUNTIF($DO39:DW39,$ED39:$IG39),0)),"") ->  | DY39: =IFERROR(INDEX($ED39:$IG39,MATCH(0,COUNTIF($DO39:DX39,$ED39:$IG39),0)),"") ->  | DZ39: =IFERROR(INDEX($ED39:$IG39,MATCH(0,COUNTIF($DO39:DY39,$ED39:$IG39),0)),"") ->  | EA39: =IFERROR(INDEX($ED39:$IG39,MATCH(0,COUNTIF($DO39:DZ39,$ED39:$IG39),0)),"") ->  | EN39: {Measure:Quantity} | EX39: {Measure:Quantity} | FH39: {Measure:Quantity} | FI39: {Factor:WinterCF} | FR39: {Measure:Quantity} | FS39: {Factor:SummerCF} | IK39: 1
A40: C&I Agricultural Solutions | B40: MILK: Scroll Compressor - 2 HP | C40: AMSC - AMSC2 | D40: 2018-07-01 | E40: 2019-06-30 | F40: Per Measure | G40: $400.00 | H40: 0 | I40: Per Measure | J40: $220.00 | K40: 0 | L40: 2016-07-01 | M40: 2019-06-30 | N40: Calculated | O40: 432 * 2 * {Measure:Quantity} | P40: 0.0001 | R40: ((432 * 2) /2850) * {Measure:Quantity} | U40: (((432 * 2) /2850) * {Measure:Quantity}) *{Factor:WinterCF} | V40: (((432 * 2) /2850) * {Measure:Quantity}) *{Factor:SummerCF} | AC40: 2017-07-01 | AD40: 2019-06-30 | AE40: 15 | AF40: 0.674 | AG40: 0.327 | AH40: 0.436 | AI40: 0.232 | AJ40: 0.217 | AK40: 0.115 | AL40: 1 | AM40: 1.122 | AN40: 1 | AO40: 0.52 | AP40: 0.016 | AR40: {Measure:Quantity} | AS40: 1 | BL40: =432 * 2 * AS40 -> 864 | BM40: 0.0001 | BN40: 0 | BO40: =((432 * 2) /2850) * AS40 -> 0.3031578947 | BP40: 0 | BQ40: 0 | BR40: =(((432 * 2) /2850) * AS40) *AF40 -> 0.2043284211 | BS40: =(((432 * 2) /2850) * AS40) *AG40 -> 0.09913263158 | BT40: 0 | BU40: 0 | BV40: 0 | BW40: 0 | BX40: 0 | BY40: 0 | BZ40: Res | CA40: Default DR | CB40: =Benefits(BL40,BR40,BS40,BT40,BU40,BV40,BW40,BX40,BY40,AE40,AH40,AI40,AJ40,AK40,AL40,AM40,AN40,AO40,AP40,BZ40,CA40) -> 758.430047 | CC40: 389.1823233 | CD40: 0 | CE40: 0 | CF40: 0 | CG40: 0 | CH40: 0 | CI40: 0 | CJ40: 1147.61237 | CK40: 0 | CM40: =400 -> 400 | CP40: 400 | CQ40: 1 | CR40: 2.869030926 | CS40: 1 | CT40: =CM40*CU40 -> 200 | CU40: 0.5 | CV40: Electric | CX40: X=$400.00 | CZ40: X=432 * 2 * AS40 | DA40: X=0.0001 | DB40: 0 | DC40: X=((432 * 2) /2850) * AS40 | DD40: 0 | DE40: 0 | DF40: X=(((432 * 2) /2850) * AS40) *AF40 | DG40: X=(((432 * 2) /2850) * AS40) *AG40 | DH40: 0 | DI40: 0 | DJ40: 0 | DK40: 0 | DL40: 0 | DM40: 0 | DP40: {Factor:WinterCF} | DQ40: {Factor:SummerCF} | DR40: =IFERROR(INDEX($ED40:$IG40,MATCH(0,COUNTIF($DO40:DQ40,$ED40:$IG40),0)),"") -> {Measure:Quantity} | DS40: =IFERROR(INDEX($ED40:$IG40,MATCH(0,COUNTIF($DO40:DR40,$ED40:$IG40),0)),"") ->  | DT40: =IFERROR(INDEX($ED40:$IG40,MATCH(0,COUNTIF($DO40:DS40,$ED40:$IG40),0)),"") ->  | DU40: =IFERROR(INDEX($ED40:$IG40,MATCH(0,COUNTIF($DO40:DT40,$ED40:$IG40),0)),"") ->  | DV40: =IFERROR(INDEX($ED40:$IG40,MATCH(0,COUNTIF($DO40:DU40,$ED40:$IG40),0)),"") ->  | DW40: =IFERROR(INDEX($ED40:$IG40,MATCH(0,COUNTIF($DO40:DV40,$ED40:$IG40),0)),"") ->  | DX40: =IFERROR(INDEX($ED40:$IG40,MATCH(0,COUNTIF($DO40:DW40,$ED40:$IG40),0)),"") ->  | DY40: =IFERROR(INDEX($ED40:$IG40,MATCH(0,COUNTIF($DO40:DX40,$ED40:$IG40),0)),"") ->  | DZ40: =IFERROR(INDEX($ED40:$IG40,MATCH(0,COUNTIF($DO40:DY40,$ED40:$IG40),0)),"") ->  | EA40: =IFERROR(INDEX($ED40:$IG40,MATCH(0,COUNTIF($DO40:DZ40,$ED40:$IG40),0)),"") ->  | EN40: {Measure:Quantity} | EX40: {Measure:Quantity} | FH40: {Measure:Quantity} | FI40: {Factor:WinterCF} | FR40: {Measure:Quantity} | FS40: {Factor:SummerCF} | IK40: 1
A41: C&I Agricultural Solutions | B41: MILK: Scroll Compressor - 3 HP | C41: AMSC - AMSC3 | D41: 2018-07-01 | E41: 2019-06-30 | F41: Per Measure | G41: $525.00 | H41: 0 | I41: Per Measure | J41: $330.00 | K41: 0 | L41: 2016-07-01 | M41: 2019-06-30 | N41: Calculated | O41: 432 * 3 * {Measure:Quantity} | P41: 0.0001 | R41: ((432 * 3) /2850) * {Measure:Quantity} | U41: (((432 * 3) /2850) * {Measure:Quantity}) *{Factor:WinterCF} | V41: (((432 * 3) /2850) * {Measure:Quantity}) *{Factor:SummerCF} | AC41: 2017-07-01 | AD41: 2019-06-30 | AE41: 15 | AF41: 0.674 | AG41: 0.327 | AH41: 0.436 | AI41: 0.232 | AJ41: 0.217 | AK41: 0.115 | AL41: 1 | AM41: 1.122 | AN41: 1 | AO41: 0.52 | AP41: 0.016 | AR41: {Measure:Quantity} | AS41: 1 | BL41: =432 * 3 * AS41 -> 1296 | BM41: 0.0001 | BN41: 0 | BO41: =((432 * 3) /2850) * AS41 -> 0.4547368421 | BP41: 0 | BQ41: 0 | BR41: =(((432 * 3) /2850) * AS41) *AF41 -> 0.3064926316 | BS41: =(((432 * 3) /2850) * AS41) *AG41 -> 0.1486989474 | BT41: 0 | BU41: 0 | BV41: 0 | BW41: 0 | BX41: 0 | BY41: 0 | BZ41: Res | CA41: Default DR | CB41: =Benefits(BL41,BR41,BS41,BT41,BU41,BV41,BW41,BX41,BY41,AE41,AH41,AI41,AJ41,AK41,AL41,AM41,AN41,AO41,AP41,BZ41,CA41) -> 1137.645071 | CC41: 583.7734849 | CD41: 0 | CE41: 0 | CF41: 0 | CG41: 0 | CH41: 0 | CI41: 0 | CJ41: 1721.418555 | CK41: 0 | CM41: =525 -> 525 | CP41: 525 | CQ41: 1 | CR41: 3.278892487 | CS41: 1 | CT41: 262.5 | CU41: 0.5 | CV41: Electric | CX41: X=$525.00 | CZ41: X=432 * 3 * AS41 | DA41: X=0.0001 | DB41: 0 | DC41: X=((432 * 3) /2850) * AS41 | DD41: 0 | DE41: 0 | DF41: X=(((432 * 3) /2850) * AS41) *AF41 | DG41: X=(((432 * 3) /2850) * AS41) *AG41 | DH41: 0 | DI41: 0 | DJ41: 0 | DK41: 0 | DL41: 0 | DM41: 0 | DP41: {Factor:WinterCF} | DQ41: {Factor:SummerCF} | DR41: =IFERROR(INDEX($ED41:$IG41,MATCH(0,COUNTIF($DO41:DQ41,$ED41:$IG41),0)),"") -> {Measure:Quantity} | DS41: =IFERROR(INDEX($ED41:$IG41,MATCH(0,COUNTIF($DO41:DR41,$ED41:$IG41),0)),"") ->  | DT41: =IFERROR(INDEX($ED41:$IG41,MATCH(0,COUNTIF($DO41:DS41,$ED41:$IG41),0)),"") ->  | DU41: =IFERROR(INDEX($ED41:$IG41,MATCH(0,COUNTIF($DO41:DT41,$ED41:$IG41),0)),"") ->  | DV41: =IFERROR(INDEX($ED41:$IG41,MATCH(0,COUNTIF($DO41:DU41,$ED41:$IG41),0)),"") ->  | DW41: =IFERROR(INDEX($ED41:$IG41,MATCH(0,COUNTIF($DO41:DV41,$ED41:$IG41),0)),"") ->  | DX41: =IFERROR(INDEX($ED41:$IG41,MATCH(0,COUNTIF($DO41:DW41,$ED41:$IG41),0)),"") ->  | DY41: =IFERROR(INDEX($ED41:$IG41,MATCH(0,COUNTIF($DO41:DX41,$ED41:$IG41),0)),"") ->  | DZ41: =IFERROR(INDEX($ED41:$IG41,MATCH(0,COUNTIF($DO41:DY41,$ED41:$IG41),0)),"") ->  | EA41: =IFERROR(INDEX($ED41:$IG41,MATCH(0,COUNTIF($DO41:DZ41,$ED41:$IG41),0)),"") ->  | EN41: {Measure:Quantity} | EX41: {Measure:Quantity} | FH41: {Measure:Quantity} | FI41: {Factor:WinterCF} | FR41: {Measure:Quantity} | FS41: {Factor:SummerCF} | IK41: 1
A42: C&I Agricultural Solutions | B42: MILK: Scroll Compressor - 5 HP | C42: AMSC - AMSC5 | D42: 2018-07-01 | E42: 2019-06-30 | F42: Per Measure | G42: $1000.00 | H42: 0 | I42: Per Measure | J42: $550.00 | K42: 0 | L42: 2016-07-01 | M42: 2019-06-30 | N42: Calculated | O42: 432 * 5 * {Measure:Quantity} | P42: 0.0001 | R42: ((432 * 5) /2850) * {Measure:Quantity} | U42: (((432 * 5) /2850) * {Measure:Quantity}) *{Factor:WinterCF} | V42: (((432 * 5) /2850) * {Measure:Quantity}) *{Factor:SummerCF} | AC42: 2017-07-01 | AD42: 2019-06-30 | AE42: 15 | AF42: 0.674 | AG42: 0.327 | AH42: 0.436 | AI42: 0.232 | AJ42: 0.217 | AK42: 0.115 | AL42: 1 | AM42: 1.122 | AN42: 1 | AO42: 0.52 | AP42: 0.016 | AR42: {Measure:Quantity} | AS42: 1 | BL42: =432 * 5 * AS42 -> 2160 | BM42: 0.0001 | BN42: 0 | BO42: =((432 * 5) /2850) * AS42 -> 0.7578947368 | BP42: 0 | BQ42: 0 | BR42: =(((432 * 5) /2850) * AS42) *AF42 -> 0.5108210526 | BS42: =(((432 * 5) /2850) * AS42) *AG42 -> 0.2478315789 | BT42: 0 | BU42: 0 | BV42: 0 | BW42: 0 | BX42: 0 | BY42: 0 | BZ42: Res | CA42: Default DR | CB42: =Benefits(BL42,BR42,BS42,BT42,BU42,BV42,BW42,BX42,BY42,AE42,AH42,AI42,AJ42,AK42,AL42,AM42,AN42,AO42,AP42,BZ42,CA42) -> 1896.075118 | CC42: 972.9558082 | CD42: 0 | CE42: 0 | CF42: 0 | CG42: 0 | CH42: 0 | CI42: 0 | CJ42: 2869.030926 | CK42: 0 | CM42: =1000 -> 1000 | CP42: 1000 | CQ42: 1 | CR42: 2.869030926 | CS42: 1 | CT42: 500 | CU42: 0.5 | CV42: Electric | CX42: X=$1000.00 | CZ42: X=432 * 5 * AS42 | DA42: X=0.0001 | DB42: 0 | DC42: X=((432 * 5) /2850) * AS42 | DD42: 0 | DE42: 0 | DF42: X=(((432 * 5) /2850) * AS42) *AF42 | DG42: X=(((432 * 5) /2850) * AS42) *AG42 | DH42: 0 | DI42: 0 | DJ42: 0 | DK42: 0 | DL42: 0 | DM42: 0 | DP42: {Factor:WinterCF} | DQ42: {Factor:SummerCF} | DR42: =IFERROR(INDEX($ED42:$IG42,MATCH(0,COUNTIF($DO42:DQ42,$ED42:$IG42),0)),"") -> {Measure:Quantity} | DS42: =IFERROR(INDEX($ED42:$IG42,MATCH(0,COUNTIF($DO42:DR42,$ED42:$IG42),0)),"") ->  | DT42: =IFERROR(INDEX($ED42:$IG42,MATCH(0,COUNTIF($DO42:DS42,$ED42:$IG42),0)),"") ->  | DU42: =IFERROR(INDEX($ED42:$IG42,MATCH(0,COUNTIF($DO42:DT42,$ED42:$IG42),0)),"") ->  | DV42: =IFERROR(INDEX($ED42:$IG42,MATCH(0,COUNTIF($DO42:DU42,$ED42:$IG42),0)),"") ->  | DW42: =IFERROR(INDEX($ED42:$IG42,MATCH(0,COUNTIF($DO42:DV42,$ED42:$IG42),0)),"") ->  | DX42: =IFERROR(INDEX($ED42:$IG42,MATCH(0,COUNTIF($DO42:DW42,$ED42:$IG42),0)),"") ->  | DY42: =IFERROR(INDEX($ED42:$IG42,MATCH(0,COUNTIF($DO42:DX42,$ED42:$IG42),0)),"") ->  | DZ42: =IFERROR(INDEX($ED42:$IG42,MATCH(0,COUNTIF($DO42:DY42,$ED42:$IG42),0)),"") ->  | EA42: =IFERROR(INDEX($ED42:$IG42,MATCH(0,COUNTIF($DO42:DZ42,$ED42:$IG42),0)),"") ->  | EN42: {Measure:Quantity} | EX42: {Measure:Quantity} | FH42: {Measure:Quantity} | FI42: {Factor:WinterCF} | FR42: {Measure:Quantity} | FS42: {Factor:SummerCF} | IK42: 1
A43: C&I Agricultural Solutions | B43: MILK: Scroll Compressor - 6 HP | C43: AMSC - AMSC6 | D43: 2018-07-01 | E43: 2019-06-30 | F43: Per Measure | G43: $1300.00 | H43: 0 | I43: Per Measure | J43: $660.00 | K43: 0 | L43: 2016-07-01 | M43: 2019-06-30 | N43: Calculated | O43: 432 * 6 * {Measure:Quantity} | P43: 0.0001 | R43: ((432 * 6) /2850) * {Measure:Quantity} | U43: (((432 * 6) /2850) * {Measure:Quantity}) *{Factor:WinterCF} | V43: (((432 * 6) /2850) * {Measure:Quantity}) *{Factor:SummerCF} | AC43: 2017-07-01 | AD43: 2019-06-30 | AE43: 15 | AF43: 0.674 | AG43: 0.327 | AH43: 0.436 | AI43: 0.232 | AJ43: 0.217 | AK43: 0.115 | AL43: 1 | AM43: 1.122 | AN43: 1 | AO43: 0.52 | AP43: 0.016 | AR43: {Measure:Quantity} | AS43: 1 | BL43: =432 * 6 * AS43 -> 2592 | BM43: 0.0001 | BN43: 0 | BO43: =((432 * 6) /2850) * AS43 -> 0.9094736842 | BP43: 0 | BQ43: 0 | BR43: =(((432 * 6) /2850) * AS43) *AF43 -> 0.6129852632 | BS43: =(((432 * 6) /2850) * AS43) *AG43 -> 0.2973978947 | BT43: 0 | BU43: 0 | BV43: 0 | BW43: 0 | BX43: 0 | BY43: 0 | BZ43: Res | CA43: Default DR | CB43: =Benefits(BL43,BR43,BS43,BT43,BU43,BV43,BW43,BX43,BY43,AE43,AH43,AI43,AJ43,AK43,AL43,AM43,AN43,AO43,AP43,BZ43,CA43) -> 2275.290141 | CC43: 1167.54697 | CD43: 0 | CE43: 0 | CF43: 0 | CG43: 0 | CH43: 0 | CI43: 0 | CJ43: 3442.837111 | CK43: 0 | CM43: =1300 -> 1300 | CP43: 1300 | CQ43: 1 | CR43: 2.648336239 | CS43: 1 | CT43: 650 | CU43: 0.5 | CV43: Electric | CX43: X=$1300.00 | CZ43: X=432 * 6 * AS43 | DA43: X=0.0001 | DB43: 0 | DC43: X=((432 * 6) /2850) * AS43 | DD43: 0 | DE43: 0 | DF43: X=(((432 * 6) /2850) * AS43) *AF43 | DG43: X=(((432 * 6) /2850) * AS43) *AG43 | DH43: 0 | DI43: 0 | DJ43: 0 | DK43: 0 | DL43: 0 | DM43: 0 | DP43: {Factor:WinterCF} | DQ43: {Factor:SummerCF} | DR43: =IFERROR(INDEX($ED43:$IG43,MATCH(0,COUNTIF($DO43:DQ43,$ED43:$IG43),0)),"") -> {Measure:Quantity} | DS43: =IFERROR(INDEX($ED43:$IG43,MATCH(0,COUNTIF($DO43:DR43,$ED43:$IG43),0)),"") ->  | DT43: =IFERROR(INDEX($ED43:$IG43,MATCH(0,COUNTIF($DO43:DS43,$ED43:$IG43),0)),"") ->  | DU43: =IFERROR(INDEX($ED43:$IG43,MATCH(0,COUNTIF($DO43:DT43,$ED43:$IG43),0)),"") ->  | DV43: =IFERROR(INDEX($ED43:$IG43,MATCH(0,COUNTIF($DO43:DU43,$ED43:$IG43),0)),"") ->  | DW43: =IFERROR(INDEX($ED43:$IG43,MATCH(0,COUNTIF($DO43:DV43,$ED43:$IG43),0)),"") ->  | DX43: =IFERROR(INDEX($ED43:$IG43,MATCH(0,COUNTIF($DO43:DW43,$ED43:$IG43),0)),"") ->  | DY43: =IFERROR(INDEX($ED43:$IG43,MATCH(0,COUNTIF($DO43:DX43,$ED43:$IG43),0)),"") ->  | DZ43: =IFERROR(INDEX($ED43:$IG43,MATCH(0,COUNTIF($DO43:DY43,$ED43:$IG43),0)),"") ->  | EA43: =IFERROR(INDEX($ED43:$IG43,MATCH(0,COUNTIF($DO43:DZ43,$ED43:$IG43),0)),"") ->  | EN43: {Measure:Quantity} | EX43: {Measure:Quantity} | FH43: {Measure:Quantity} | FI43: {Factor:WinterCF} | FR43: {Measure:Quantity} | FS43: {Factor:SummerCF} | IK43: 1
A44: C&I Agricultural Solutions | B44: MILK: Scroll Compressor - 7.5 HP | C44: AMSC - AMSC7.5 | D44: 2018-07-01 | E44: 2019-06-30 | F44: Per Measure | G44: $1538.00 | H44: 0 | I44: Per Measure | J44: $825.00 | K44: 0 | L44: 2016-07-01 | M44: 2019-06-30 | N44: Calculated | O44: 432 * 7.5 * {Measure:Quantity} | P44: 0.0001 | R44: ((432 * 7.5) /2850) * {Measure:Quantity} | U44: (((432 * 7.5) /2850) * {Measure:Quantity}) *{Factor:WinterCF} | V44: (((432 * 7.5) /2850) * {Measure:Quantity}) *{Factor:SummerCF} | AC44: 2017-07-01 | AD44: 2019-06-30 | AE44: 15 | AF44: 0.674 | AG44: 0.327 | AH44: 0.436 | AI44: 0.232 | AJ44: 0.217 | AK44: 0.115 | AL44: 1 | AM44: 1.122 | AN44: 1 | AO44: 0.52 | AP44: 0.016 | AR44: {Measure:Quantity} | AS44: 1 | BL44: =432 * 7.5 * AS44 -> 3240 | BM44: 0.0001 | BN44: 0 | BO44: =((432 * 7.5) /2850) * AS44 -> 1.136842105 | BP44: 0 | BQ44: 0 | BR44: =(((432 * 7.5) /2850) * AS44) *AF44 -> 0.7662315789 | BS44: =(((432 * 7.5) /2850) * AS44) *AG44 -> 0.3717473684 | BT44: 0 | BU44: 0 | BV44: 0 | BW44: 0 | BX44: 0 | BY44: 0 | BZ44: Res | CA44: Default DR | CB44: =Benefits(BL44,BR44,BS44,BT44,BU44,BV44,BW44,BX44,BY44,AE44,AH44,AI44,AJ44,AK44,AL44,AM44,AN44,AO44,AP44,BZ44,CA44) -> 2844.112676 | CC44: 1459.433712 | CD44: 0 | CE44: 0 | CF44: 0 | CG44: 0 | CH44: 0 | CI44: 0 | CJ44: 4303.546389 | CK44: 0 | CM44: =1538 -> 1538 | CP44: 1538 | CQ44: 1 | CR44: 2.798144596 | CS44: 1 | CT44: 769 | CU44: 0.5 | CV44: Electric | CX44: X=$1538.00 | CZ44: X=432 * 7.5 * AS44 | DA44: X=0.0001 | DB44: 0 | DC44: X=((432 * 7.5) /2850) * AS44 | DD44: 0 | DE44: 0 | DF44: X=(((432 * 7.5) /2850) * AS44) *AF44 | DG44: X=(((432 * 7.5) /2850) * AS44) *AG44 | DH44: 0 | DI44: 0 | DJ44: 0 | DK44: 0 | DL44: 0 | DM44: 0 | DP44: {Factor:WinterCF} | DQ44: {Factor:SummerCF} | DR44: =IFERROR(INDEX($ED44:$IG44,MATCH(0,COUNTIF($DO44:DQ44,$ED44:$IG44),0)),"") -> {Measure:Quantity} | DS44: =IFERROR(INDEX($ED44:$IG44,MATCH(0,COUNTIF($DO44:DR44,$ED44:$IG44),0)),"") ->  | DT44: =IFERROR(INDEX($ED44:$IG44,MATCH(0,COUNTIF($DO44:DS44,$ED44:$IG44),0)),"") ->  | DU44: =IFERROR(INDEX($ED44:$IG44,MATCH(0,COUNTIF($DO44:DT44,$ED44:$IG44),0)),"") ->  | DV44: =IFERROR(INDEX($ED44:$IG44,MATCH(0,COUNTIF($DO44:DU44,$ED44:$IG44),0)),"") ->  | DW44: =IFERROR(INDEX($ED44:$IG44,MATCH(0,COUNTIF($DO44:DV44,$ED44:$IG44),0)),"") ->  | DX44: =IFERROR(INDEX($ED44:$IG44,MATCH(0,COUNTIF($DO44:DW44,$ED44:$IG44),0)),"") ->  | DY44: =IFERROR(INDEX($ED44:$IG44,MATCH(0,COUNTIF($DO44:DX44,$ED44:$IG44),0)),"") ->  | DZ44: =IFERROR(INDEX($ED44:$IG44,MATCH(0,COUNTIF($DO44:DY44,$ED44:$IG44),0)),"") ->  | EA44: =IFERROR(INDEX($ED44:$IG44,MATCH(0,COUNTIF($DO44:DZ44,$ED44:$IG44),0)),"") ->  | ED44: =IFERROR(MID($G44,FIND(CHAR(160),SUBSTITUTE($G44,"{",CHAR(160),ED$1)),FIND(CHAR(160),SUBSTITUTE($G44,"}",CHAR(160),ED$1))-FIND(CHAR(160),SUBSTITUTE($G44,"{",CHAR(160),ED$1))+1),"") ->  | EN44: =IFERROR(MID($O44,FIND(CHAR(160),SUBSTITUTE($O44,"{",CHAR(160),EN$1)),FIND(CHAR(160),SUBSTITUTE($O44,"}",CHAR(160),EN$1))-FIND(CHAR(160),SUBSTITUTE($O44,"{",CHAR(160),EN$1))+1),"") -> {Measure:Quantity} | EX44: =IFERROR(MID($R44,FIND(CHAR(160),SUBSTITUTE($R44,"{",CHAR(160),EX$1)),FIND(CHAR(160),SUBSTITUTE($R44,"}",CHAR(160),EX$1))-FIND(CHAR(160),SUBSTITUTE($R44,"{",CHAR(160),EX$1))+1),"") -> {Measure:Quantity} | FH44: =IFERROR(MID($U44,FIND(CHAR(160),SUBSTITUTE($U44,"{",CHAR(160),FH$1)),FIND(CHAR(160),SUBSTITUTE($U44,"}",CHAR(160),FH$1))-FIND(CHAR(160),SUBSTITUTE($U44,"{",CHAR(160),FH$1))+1),"") -> {Measure:Quantity} | FI44: {Factor:WinterCF} | FR44: =IFERROR(MID($V44,FIND(CHAR(160),SUBSTITUTE($V44,"{",CHAR(160),FR$1)),FIND(CHAR(160),SUBSTITUTE($V44,"}",CHAR(160),FR$1))-FIND(CHAR(160),SUBSTITUTE($V44,"{",CHAR(160),FR$1))+1),"") -> {Measure:Quantity} | FS44: {Factor:SummerCF} | GB44: =IFERROR(MID($W44,FIND(CHAR(160),SUBSTITUTE($W44,"{",CHAR(160),GB$1)),FIND(CHAR(160),SUBSTITUTE($W44,"}",CHAR(160),GB$1))-FIND(CHAR(160),SUBSTITUTE($W44,"{",CHAR(160),GB$1))+1),"") ->  | GL44: =IFERROR(MID($X44,FIND(CHAR(160),SUBSTITUTE($X44,"{",CHAR(160),GL$1)),FIND(CHAR(160),SUBSTITUTE($X44,"}",CHAR(160),GL$1))-FIND(CHAR(160),SUBSTITUTE($X44,"{",CHAR(160),GL$1))+1),"") ->  | GV44: =IFERROR(MID($Y44,FIND(CHAR(160),SUBSTITUTE($Y44,"{",CHAR(160),GV$1)),FIND(CHAR(160),SUBSTITUTE($Y44,"}",CHAR(160),GV$1))-FIND(CHAR(160),SUBSTITUTE($Y44,"{",CHAR(160),GV$1))+1),"") ->  | HF44: =IFERROR(MID($Z44,FIND(CHAR(160),SUBSTITUTE($Z44,"{",CHAR(160),HF$1)),FIND(CHAR(160),SUBSTITUTE($Z44,"}",CHAR(160),HF$1))-FIND(CHAR(160),SUBSTITUTE($Z44,"{",CHAR(160),HF$1))+1),"") ->  | HP44: =IFERROR(MID($AA44,FIND(CHAR(160),SUBSTITUTE($AA44,"{",CHAR(160),HP$1)),FIND(CHAR(160),SUBSTITUTE($AA44,"}",CHAR(160),HP$1))-FIND(CHAR(160),SUBSTITUTE($AA44,"{",CHAR(160),HP$1))+1),"") ->  | HZ44: =IFERROR(MID($AB44,FIND(CHAR(160),SUBSTITUTE($AB44,"{",CHAR(160),HZ$1)),FIND(CHAR(160),SUBSTITUTE($AB44,"}",CHAR(160),HZ$1))-FIND(CHAR(160),SUBSTITUTE($AB44,"{",CHAR(160),HZ$1))+1),"") ->  | IK44: 1
A45: C&I Agricultural Solutions | B45: MILK: Vacuum Pump with Adjustable Speed Drive Package - 10 HP | C45: AMVP - VP10 | D45: 2018-07-01 | E45: 2019-06-30 | F45: Per Measure | G45: $5322.00 | H45: 0 | I45: Per Measure | J45: $2500.00 | K45: 0 | L45: 2016-07-01 | M45: 2019-06-30 | N45: Calculated | O45: {Measure:Quantity} * (((10*0.746*.75/({Motor Efficiency}/100)) - (.0495*(2*{# of Milking Units})+1.7729))*{Daily Run Time}*365) | P45: 0.0001 | R45: {Measure:Quantity} * ((10*0.746*.75/({Motor Efficiency}/100)) - (.0495*(2*{# of Milking Units})+1.7729)) | U45: ({Measure:Quantity} * ((10*0.746*.75/({Motor Efficiency}/100)) - (.0495*(2*{# of Milking Units})+1.7729)))*{Factor:WinterCF} | V45: ({Measure:Quantity} * ((10*0.746*.75/({Motor Efficiency}/100)) - (.0495*(2*{# of Milking Units})+1.7729)))*{Factor:SummerCF} | AC45: 2017-07-01 | AD45: 2019-06-30 | AE45: 15 | AF45: 0.467 | AG45: 0.275 | AH45: 0.369 | AI45: 0.301 | AJ45: 0.182 | AK45: 0.148 | AL45: 1 | AM45: 1.122 | AN45: 1 | AO45: 0.52 | AP45: 0.016 | AR45: {Measure:Quantity} | AS45: 1 | AT45: {Motor Efficiency} | AU45: 0.917 | AV45: {# of Milking Units} | AW45: 1000 | AX45: {Daily Run Time} | AY45: 2 | BL45: =AS45 * (((10*0.746*0.75/(AU45/100)) - (0.0495*(2*AW45)+1.7729))*AY45*365) -> 371839.2726 | BM45: 0.0001 | BN45: 0 | BO45: =AS45 * ((10*0.746*0.75/(AU45/100)) - (0.0495*(2*AW45)+1.7729)) -> 509.3688666 | BP45: 0 | BQ45: 0 | BR45: =(AS45 * ((10*0.746*0.75/(AU45/100)) - (0.0495*(2*AW45)+1.7729)))*AF45 -> 237.8752607 | BS45: =(AS45 * ((10*0.746*0.75/(AU45/100)) - (0.0495*(2*AW45)+1.7729)))*AG45 -> 140.0764383 | BT45: 0 | BU45: 0 | BV45: 0 | BW45: 0 | BX45: 0 | BY45: 0 | BZ45: Res | CA45: Default DR | CB45: =Benefits(BL45,BR45,BS45,BT45,BU45,BV45,BW45,BX45,BY45,AE45,AH45,AI45,AJ45,AK45,AL45,AM45,AN45,AO45,AP45,BZ45,CA45) -> 322924.1722 | CC45: 471984.9059 | CD45: 0 | CE45: 0 | CF45: 0 | CG45: 0 | CH45: 0 | CI45: 0 | CJ45: 794909.0781 | CK45: 0 | CM45: =5322 -> 5322 | CP45: 5322 | CQ45: 1 | CR45: 149.3628482 | CS45: 1 | CT45: 2661 | CU45: 0.5 | CV45: Electric | CX45: X=$5322.00 | CZ45: X=AS45 * (((10*0.746*.75/(AU45/100)) - (.0495*(2*AW45)+1.7729))*AY45*365) | DA45: X=0.0001 | DB45: 0 | DC45: X=AS45 * ((10*0.746*.75/(AU45/100)) - (.0495*(2*AW45)+1.7729)) | DD45: 0 | DE45: 0 | DF45: X=(AS45 * ((10*0.746*.75/(AU45/100)) - (.0495*(2*AW45)+1.7729)))*AF45 | DG45: X=(AS45 * ((10*0.746*.75/(AU45/100)) - (.0495*(2*AW45)+1.7729)))*AG45 | DH45: 0 | DI45: 0 | DJ45: 0 | DK45: 0 | DL45: 0 | DM45: 0 | DP45: {Factor:WinterCF} | DQ45: {Factor:SummerCF} | DR45: =IFERROR(INDEX($ED45:$IG45,MATCH(0,COUNTIF($DO45:DQ45,$ED45:$IG45),0)),"") -> {Measure:Quantity} | DS45: =IFERROR(INDEX($ED45:$IG45,MATCH(0,COUNTIF($DO45:DR45,$ED45:$IG45),0)),"") -> {Motor Efficiency} | DT45: =IFERROR(INDEX($ED45:$IG45,MATCH(0,COUNTIF($DO45:DS45,$ED45:$IG45),0)),"") -> {# of Milking Units} | DU45: =IFERROR(INDEX($ED45:$IG45,MATCH(0,COUNTIF($DO45:DT45,$ED45:$IG45),0)),"") -> {Daily Run Time} | DV45: =IFERROR(INDEX($ED45:$IG45,MATCH(0,COUNTIF($DO45:DU45,$ED45:$IG45),0)),"") ->  | DW45: =IFERROR(INDEX($ED45:$IG45,MATCH(0,COUNTIF($DO45:DV45,$ED45:$IG45),0)),"") ->  | DX45: =IFERROR(INDEX($ED45:$IG45,MATCH(0,COUNTIF($DO45:DW45,$ED45:$IG45),0)),"") ->  | DY45: =IFERROR(INDEX($ED45:$IG45,MATCH(0,COUNTIF($DO45:DX45,$ED45:$IG45),0)),"") ->  | DZ45: =IFERROR(INDEX($ED45:$IG45,MATCH(0,COUNTIF($DO45:DY45,$ED45:$IG45),0)),"") ->  | EA45: =IFERROR(INDEX($ED45:$IG45,MATCH(0,COUNTIF($DO45:DZ45,$ED45:$IG45),0)),"") ->  | EN45: {Measure:Quantity} | EO45: {Motor Efficiency} | EP45: {# of Milking Units} | EQ45: {Daily Run Time} | EX45: {Measure:Quantity} | EY45: {Motor Efficiency} | EZ45: {# of Milking Units} | FH45: {Measure:Quantity} | FI45: {Motor Efficiency} | FJ45: {# of Milking Units} | FK45: {Factor:WinterCF} | FR45: {Measure:Quantity} | FS45: {Motor Efficiency} | FT45: {# of Milking Units} | FU45: {Factor:SummerCF} | IK45: 4
A46: C&I Agricultural Solutions | B46: MILK: Vacuum Pump with Adjustable Speed Drive Package - 15 HP | C46: AMVP - VP15 | D46: 2018-07-01 | E46: 2019-06-30 | F46: Per Measure | G46: $5322.00 | H46: 0 | I46: Per Measure | J46: $3000.00 | K46: 0 | L46: 2016-07-01 | M46: 2019-06-30 | N46: Calculated | O46: {Measure:Quantity} * (((15*0.746*.75/({Motor Efficiency}/100)) - (.0495*(2*{# of Milking Units})+1.7729))*{Daily Run Time}*365) | P46: 0.0001 | R46: {Measure:Quantity} * ((15*0.746*.75/({Motor Efficiency}/100)) - (.0495*(2*{# of Milking Units})+1.7729)) | U46: ({Measure:Quantity} * ((15*0.746*.75/({Motor Efficiency}/100)) - (.0495*(2*{# of Milking Units})+1.7729)))*{Factor:WinterCF} | V46: ({Measure:Quantity} * ((15*0.746*.75/({Motor Efficiency}/100)) - (.0495*(2*{# of Milking Units})+1.7729)))*{Factor:SummerCF} | AC46: 2017-07-01 | AD46: 2019-06-30 | AE46: 15 | AF46: 0.467 | AG46: 0.275 | AH46: 0.369 | AI46: 0.301 | AJ46: 0.182 | AK46: 0.148 | AL46: 1 | AM46: 1.122 | AN46: 1 | AO46: 0.52 | AP46: 0.016 | AR46: {Measure:Quantity} | AS46: 1 | AT46: {Motor Efficiency} | AU46: 0.93 | AV46: {# of Milking Units} | AW46: 1000 | AX46: {Daily Run Time} | AY46: 2 | BL46: =AS46 * (((15*0.746*0.75/(AU46/100)) - (0.0495*(2*AW46)+1.7729))*AY46*365) -> 585201.912 | BM46: 0.0001 | BN46: 0 | BO46: =AS46 * ((15*0.746*0.75/(AU46/100)) - (0.0495*(2*AW46)+1.7729)) -> 801.6464548 | BP46: 0 | BQ46: 0 | BR46: =(AS46 * ((15*0.746*0.75/(AU46/100)) - (0.0495*(2*AW46)+1.7729)))*AF46 -> 374.3688944 | BS46: =(AS46 * ((15*0.746*0.75/(AU46/100)) - (0.0495*(2*AW46)+1.7729)))*AG46 -> 220.4527751 | BT46: 0 | BU46: 0 | BV46: 0 | BW46: 0 | BX46: 0 | BY46: 0 | BZ46: Res | CA46: Default DR | CB46: =Benefits(BL46,BR46,BS46,BT46,BU46,BV46,BW46,BX46,BY46,AE46,AH46,AI46,AJ46,AK46,AL46,AM46,AN46,AO46,AP46,BZ46,CA46) -> 508219.1606 | CC46: 742811.4502 | CD46: 0 | CE46: 0 | CF46: 0 | CG46: 0 | CH46: 0 | CI46: 0 | CJ46: 1251030.611 | CK46: 0 | CM46: =5322 -> 5322 | CP46: 5322 | CQ46: 1 | CR46: 235.0677585 | CS46: 1 | CT46: 2661 | CU46: 0.5 | CV46: Electric | CX46: X=$5322.00 | CZ46: X=AS46 * (((15*0.746*.75/(AU46/100)) - (.0495*(2*AW46)+1.7729))*AY46*365) | DA46: X=0.0001 | DB46: 0 | DC46: X=AS46 * ((15*0.746*.75/(AU46/100)) - (.0495*(2*AW46)+1.7729)) | DD46: 0 | DE46: 0 | DF46: X=(AS46 * ((15*0.746*.75/(AU46/100)) - (.0495*(2*AW46)+1.7729)))*AF46 | DG46: X=(AS46 * ((15*0.746*.75/(AU46/100)) - (.0495*(2*AW46)+1.7729)))*AG46 | DH46: 0 | DI46: 0 | DJ46: 0 | DK46: 0 | DL46: 0 | DM46: 0 | DP46: {Factor:WinterCF} | DQ46: {Factor:SummerCF} | DR46: =IFERROR(INDEX($ED46:$IG46,MATCH(0,COUNTIF($DO46:DQ46,$ED46:$IG46),0)),"") -> {Measure:Quantity} | DS46: =IFERROR(INDEX($ED46:$IG46,MATCH(0,COUNTIF($DO46:DR46,$ED46:$IG46),0)),"") -> {Motor Efficiency} | DT46: =IFERROR(INDEX($ED46:$IG46,MATCH(0,COUNTIF($DO46:DS46,$ED46:$IG46),0)),"") -> {# of Milking Units} | DU46: =IFERROR(INDEX($ED46:$IG46,MATCH(0,COUNTIF($DO46:DT46,$ED46:$IG46),0)),"") -> {Daily Run Time} | DV46: =IFERROR(INDEX($ED46:$IG46,MATCH(0,COUNTIF($DO46:DU46,$ED46:$IG46),0)),"") ->  | DW46: =IFERROR(INDEX($ED46:$IG46,MATCH(0,COUNTIF($DO46:DV46,$ED46:$IG46),0)),"") ->  | DX46: =IFERROR(INDEX($ED46:$IG46,MATCH(0,COUNTIF($DO46:DW46,$ED46:$IG46),0)),"") ->  | DY46: =IFERROR(INDEX($ED46:$IG46,MATCH(0,COUNTIF($DO46:DX46,$ED46:$IG46),0)),"") ->  | DZ46: =IFERROR(INDEX($ED46:$IG46,MATCH(0,COUNTIF($DO46:DY46,$ED46:$IG46),0)),"") ->  | EA46: =IFERROR(INDEX($ED46:$IG46,MATCH(0,COUNTIF($DO46:DZ46,$ED46:$IG46),0)),"") ->  | EN46: {Measure:Quantity} | EO46: {Motor Efficiency} | EP46: {# of Milking Units} | EQ46: {Daily Run Time} | EX46: {Measure:Quantity} | EY46: {Motor Efficiency} | EZ46: {# of Milking Units} | FH46: {Measure:Quantity} | FI46: {Motor Efficiency} | FJ46: {# of Milking Units} | FK46: {Factor:WinterCF} | FR46: {Measure:Quantity} | FS46: {Motor Efficiency} | FT46: {# of Milking Units} | FU46: {Factor:SummerCF} | IK46: 4
A47: C&I Agricultural Solutions | B47: MILK: Vacuum Pump with Adjustable Speed Drive Package - 30 HP | C47: AMVP - VP30 | D47: 2018-07-01 | E47: 2019-06-30 | F47: Per Measure | G47: $5322.00 | H47: 0 | I47: Per Measure | J47: $6000.00 | K47: 0 | L47: 2016-07-01 | M47: 2019-06-30 | N47: Calculated | O47: {Measure:Quantity} * (((30*0.746*.75/({Motor Efficiency}/100)) - (.0495*(2*{# of Milking Units})+1.7729))*{Daily Run Time}*365) | P47: 0.0001 | R47: {Measure:Quantity} * ((30*0.746*.75/({Motor Efficiency}/100)) - (.0495*(2*{# of Milking Units})+1.7729)) | U47: ({Measure:Quantity} * ((30*0.746*.75/({Motor Efficiency}/100)) - (.0495*(2*{# of Milking Units})+1.7729)))*{Factor:WinterCF} | V47: ({Measure:Quantity} * ((30*0.746*.75/({Motor Efficiency}/100)) - (.0495*(2*{# of Milking Units})+1.7729)))*{Factor:SummerCF} | AC47: 2017-07-01 | AD47: 2019-06-30 | AE47: 15 | AF47: 0.467 | AG47: 0.275 | AH47: 0.369 | AI47: 0.301 | AJ47: 0.182 | AK47: 0.148 | AL47: 1 | AM47: 1.122 | AN47: 1 | AO47: 0.52 | AP47: 0.016 | AR47: {Measure:Quantity} | AS47: 1 | AT47: {Motor Efficiency} | AU47: 0.941 | AV47: {# of Milking Units} | AW47: 1000 | AX47: {Daily Run Time} | AY47: 2 | BL47: =AS47 * (((30*0.746*0.75/(AU47/100)) - (0.0495*(2*AW47)+1.7729))*AY47*365) -> 1228566.495 | BM47: 0.0001 | BN47: 0 | BO47: =AS47 * ((30*0.746*0.75/(AU47/100)) - (0.0495*(2*AW47)+1.7729)) -> 1682.967801 | BP47: 0 | BQ47: 0 | BR47: =(AS47 * ((30*0.746*0.75/(AU47/100)) - (0.0495*(2*AW47)+1.7729)))*AF47 -> 785.9459632 | BS47: =(AS47 * ((30*0.746*0.75/(AU47/100)) - (0.0495*(2*AW47)+1.7729)))*AG47 -> 462.8161454 | BT47: 0 | BU47: 0 | BV47: 0 | BW47: 0 | BX47: 0 | BY47: 0 | BZ47: Res | CA47: Default DR | CB47: =Benefits(BL47,BR47,BS47,BT47,BU47,BV47,BW47,BX47,BY47,AE47,AH47,AI47,AJ47,AK47,AL47,AM47,AN47,AO47,AP47,BZ47,CA47) -> 1066949.748 | CC47: 1559450.236 | CD47: 0 | CE47: 0 | CF47: 0 | CG47: 0 | CH47: 0 | CI47: 0 | CJ47: 2626399.984 | CK47: 0 | CM47: =5322 -> 5322 | CP47: 5322 | CQ47: 1 | CR47: 493.4986818 | CS47: 1 | CT47: 2661 | CU47: 0.5 | CV47: Electric | CX47: X=$5322.00 | CZ47: X=AS47 * (((30*0.746*.75/(AU47/100)) - (.0495*(2*AW47)+1.7729))*AY47*365) | DA47: X=0.0001 | DB47: 0 | DC47: X=AS47 * ((30*0.746*.75/(AU47/100)) - (.0495*(2*AW47)+1.7729)) | DD47: 0 | DE47: 0 | DF47: X=(AS47 * ((30*0.746*.75/(AU47/100)) - (.0495*(2*AW47)+1.7729)))*AF47 | DG47: X=(AS47 * ((30*0.746*.75/(AU47/100)) - (.0495*(2*AW47)+1.7729)))*AG47 | DH47: 0 | DI47: 0 | DJ47: 0 | DK47: 0 | DL47: 0 | DM47: 0 | DP47: {Factor:WinterCF} | DQ47: {Factor:SummerCF} | DR47: =IFERROR(INDEX($ED47:$IG47,MATCH(0,COUNTIF($DO47:DQ47,$ED47:$IG47),0)),"") -> {Measure:Quantity} | DS47: =IFERROR(INDEX($ED47:$IG47,MATCH(0,COUNTIF($DO47:DR47,$ED47:$IG47),0)),"") -> {Motor Efficiency} | DT47: =IFERROR(INDEX($ED47:$IG47,MATCH(0,COUNTIF($DO47:DS47,$ED47:$IG47),0)),"") -> {# of Milking Units} | DU47: =IFERROR(INDEX($ED47:$IG47,MATCH(0,COUNTIF($DO47:DT47,$ED47:$IG47),0)),"") -> {Daily Run Time} | DV47: =IFERROR(INDEX($ED47:$IG47,MATCH(0,COUNTIF($DO47:DU47,$ED47:$IG47),0)),"") ->  | DW47: =IFERROR(INDEX($ED47:$IG47,MATCH(0,COUNTIF($DO47:DV47,$ED47:$IG47),0)),"") ->  | DX47: =IFERROR(INDEX($ED47:$IG47,MATCH(0,COUNTIF($DO47:DW47,$ED47:$IG47),0)),"") ->  | DY47: =IFERROR(INDEX($ED47:$IG47,MATCH(0,COUNTIF($DO47:DX47,$ED47:$IG47),0)),"") ->  | DZ47: =IFERROR(INDEX($ED47:$IG47,MATCH(0,COUNTIF($DO47:DY47,$ED47:$IG47),0)),"") ->  | EA47: =IFERROR(INDEX($ED47:$IG47,MATCH(0,COUNTIF($DO47:DZ47,$ED47:$IG47),0)),"") ->  | EN47: {Measure:Quantity} | EO47: {Motor Efficiency} | EP47: {# of Milking Units} | EQ47: {Daily Run Time} | EX47: {Measure:Quantity} | EY47: {Motor Efficiency} | EZ47: {# of Milking Units} | FH47: {Measure:Quantity} | FI47: {Motor Efficiency} | FJ47: {# of Milking Units} | FK47: {Factor:WinterCF} | FR47: {Measure:Quantity} | FS47: {Motor Efficiency} | FT47: {# of Milking Units} | FU47: {Factor:SummerCF} | IK47: 4
A48: C&I Agricultural Solutions | B48: MILK: Vacuum Pump with Adjustable Speed Drive Package - 7.5 HP | C48: AMVP - VP7.5 | D48: 2018-07-01 | E48: 2019-06-30 | F48: Per Measure | G48: $5322.00 | H48: 0 | I48: Per Measure | J48: $2000.00 | K48: 0 | L48: 2016-07-01 | M48: 2019-06-30 | N48: Calculated | O48: {Measure:Quantity} * (((7.5*0.746*.75/({Motor Efficiency}/100)) - (.0495*(2*{# of Milking Units})+1.7729))*{Daily Run Time}*365) | P48: 0.0001 | R48: {Measure:Quantity} * ((7.5*0.746*.75/({Motor Efficiency}/100)) - (.0495*(2*{# of Milking Units})+1.7729)) | U48: ({Measure:Quantity} * ((7.5*0.746*.75/({Motor Efficiency}/100)) - (.0495*(2*{# of Milking Units})+1.7729)))*{Factor:WinterCF} | V48: ({Measure:Quantity} * ((7.5*0.746*.75/({Motor Efficiency}/100)) - (.0495*(2*{# of Milking Units})+1.7729)))*{Factor:SummerCF} | AC48: 2017-07-01 | AD48: 2019-06-30 | AE48: 15 | AF48: 0.467 | AG48: 0.275 | AH48: 0.369 | AI48: 0.301 | AJ48: 0.182 | AK48: 0.148 | AL48: 1 | AM48: 1.122 | AN48: 1 | AO48: 0.52 | AP48: 0.016 | AR48: {Measure:Quantity} | AS48: 1 | AT48: {Motor Efficiency} | AU48: 0.917 | AV48: {# of Milking Units} | AW48: 1000 | AX48: {Daily Run Time} | AY48: 2 | BL48: =AS48 * (((7.5*0.746*0.75/(AU48/100)) - (0.0495*(2*AW48)+1.7729))*AY48*365) -> 260488.4002 | BM48: 0.0001 | BN48: 0 | BO48: =AS48 * ((7.5*0.746*0.75/(AU48/100)) - (0.0495*(2*AW48)+1.7729)) -> 356.833425 | BP48: 0 | BQ48: 0 | BR48: =(AS48 * ((7.5*0.746*0.75/(AU48/100)) - (0.0495*(2*AW48)+1.7729)))*AF48 -> 166.6412095 | BS48: =(AS48 * ((7.5*0.746*0.75/(AU48/100)) - (0.0495*(2*AW48)+1.7729)))*AG48 -> 98.12919187 | BT48: 0 | BU48: 0 | BV48: 0 | BW48: 0 | BX48: 0 | BY48: 0 | BZ48: Res | CA48: Default DR | CB48: =Benefits(BL48,BR48,BS48,BT48,BU48,BV48,BW48,BX48,BY48,AE48,AH48,AI48,AJ48,AK48,AL48,AM48,AN48,AO48,AP48,BZ48,CA48) -> 226221.4005 | CC48: 330644.4534 | CD48: 0 | CE48: 0 | CF48: 0 | CG48: 0 | CH48: 0 | CI48: 0 | CJ48: 556865.8539 | CK48: 0 | CM48: =5322 -> 5322 | CP48: 5322 | CQ48: 1 | CR48: 104.6346963 | CS48: 1 | CT48: 2661 | CU48: 0.5 | CV48: Electric | CX48: X=$5322.00 | CZ48: X=AS48 * (((7.5*0.746*.75/(AU48/100)) - (.0495*(2*AW48)+1.7729))*AY48*365) | DA48: X=0.0001 | DB48: 0 | DC48: X=AS48 * ((7.5*0.746*.75/(AU48/100)) - (.0495*(2*AW48)+1.7729)) | DD48: 0 | DE48: 0 | DF48: X=(AS48 * ((7.5*0.746*.75/(AU48/100)) - (.0495*(2*AW48)+1.7729)))*AF48 | DG48: X=(AS48 * ((7.5*0.746*.75/(AU48/100)) - (.0495*(2*AW48)+1.7729)))*AG48 | DH48: 0 | DI48: 0 | DJ48: 0 | DK48: 0 | DL48: 0 | DM48: 0 | DP48: {Factor:WinterCF} | DQ48: {Factor:SummerCF} | DR48: =IFERROR(INDEX($ED48:$IG48,MATCH(0,COUNTIF($DO48:DQ48,$ED48:$IG48),0)),"") -> {Measure:Quantity} | DS48: =IFERROR(INDEX($ED48:$IG48,MATCH(0,COUNTIF($DO48:DR48,$ED48:$IG48),0)),"") -> {Motor Efficiency} | DT48: =IFERROR(INDEX($ED48:$IG48,MATCH(0,COUNTIF($DO48:DS48,$ED48:$IG48),0)),"") -> {# of Milking Units} | DU48: =IFERROR(INDEX($ED48:$IG48,MATCH(0,COUNTIF($DO48:DT48,$ED48:$IG48),0)),"") -> {Daily Run Time} | DV48: =IFERROR(INDEX($ED48:$IG48,MATCH(0,COUNTIF($DO48:DU48,$ED48:$IG48),0)),"") ->  | DW48: =IFERROR(INDEX($ED48:$IG48,MATCH(0,COUNTIF($DO48:DV48,$ED48:$IG48),0)),"") ->  | DX48: =IFERROR(INDEX($ED48:$IG48,MATCH(0,COUNTIF($DO48:DW48,$ED48:$IG48),0)),"") ->  | DY48: =IFERROR(INDEX($ED48:$IG48,MATCH(0,COUNTIF($DO48:DX48,$ED48:$IG48),0)),"") ->  | DZ48: =IFERROR(INDEX($ED48:$IG48,MATCH(0,COUNTIF($DO48:DY48,$ED48:$IG48),0)),"") ->  | EA48: =IFERROR(INDEX($ED48:$IG48,MATCH(0,COUNTIF($DO48:DZ48,$ED48:$IG48),0)),"") ->  | EN48: {Measure:Quantity} | EO48: {Motor Efficiency} | EP48: {# of Milking Units} | EQ48: {Daily Run Time} | EX48: {Measure:Quantity} | EY48: {Motor Efficiency} | EZ48: {# of Milking Units} | FH48: {Measure:Quantity} | FI48: {Motor Efficiency} | FJ48: {# of Milking Units} | FK48: {Factor:WinterCF} | FR48: {Measure:Quantity} | FS48: {Motor Efficiency} | FT48: {# of Milking Units} | FU48: {Factor:SummerCF} | IK48: 4
A49: C&I Agricultural Solutions | B49: OTHER: High Volume Low Speed Fans (14,16,18, 20 & 24 foot diameters) | C49: AOLSF | D49: 2018-07-01 | E49: 2019-06-30 | F49: Per Measure | G49: $1165.00 | H49: 0 | I49: Per Measure | J49: $1000.00 | K49: 0 | L49: 2016-07-01 | M49: 2019-06-30 | N49: Calculated | O49: {Measure:Quantity} * (({Existing Fan HP} / 0.80 - {Fan HP} / ({Motor Efficiency}/100) ) * 0.746 * 0.80) * 3660 | P49: 0.0001 | R49: {Measure:Quantity} * (({Existing Fan HP} / 0.80 - {Fan HP} / ({Motor Efficiency}/100) ) * 0.746 * 0.80) | U49: {Measure:Quantity} * (({Existing Fan HP} / 0.80 - {Fan HP} / ({Motor Efficiency}/100) ) * 0.746 * 0.80) * {Factor:WinterCF} | V49: {Measure:Quantity} * (({Existing Fan HP} / 0.80 - {Fan HP} / ({Motor Efficiency}/100) ) * 0.746 * 0.80) *{Factor:SummerCF} | AC49: 2017-07-01 | AD49: 2019-06-30 | AE49: 15 | AF49: 0.674 | AG49: 0.326 | AH49: 0.436 | AI49: 0.232 | AJ49: 0.217 | AK49: 0.115 | AL49: 1 | AM49: 1.122 | AN49: 1 | AO49: 0.52 | AP49: 0.016 | AR49: {Measure:Quantity} | AS49: 1 | AT49: {Existing Fan HP} | AU49: 5 | AV49: {Fan HP} | AW49: 3 | AX49: {Motor Efficiency} | AY49: 90 | BL49: =AS49 * ((AU49 / 0.8 - AW49 / (AY49/100) ) * 0.746 * 0.8) * 3660 -> 6370.84 | BM49: 0.0001 | BN49: 0 | BO49: =AS49 * ((AU49 / 0.8 - AW49 / (AY49/100) ) * 0.746 * 0.8) -> 1.740666667 | BP49: 0 | BQ49: 0 | BR49: =AS49 * ((AU49 / 0.8 - AW49 / (AY49/100) ) * 0.746 * 0.8) * AF49 -> 1.173209333 | BS49: =AS49 * ((AU49 / 0.8 - AW49 / (AY49/100) ) * 0.746 * 0.8) *AG49 -> 0.5674573333 | BT49: 0 | BU49: 0 | BV49: 0 | BW49: 0 | BX49: 0 | BY49: 0 | BZ49: Res | CA49: Default DR | CB49: =Benefits(BL49,BR49,BS49,BT49,BU49,BV49,BW49,BX49,BY49,AE49,AH49,AI49,AJ49,AK49,AL49,AM49,AN49,AO49,AP49,BZ49,CA49) -> 5592.403334 | CC49: 2233.266127 | CD49: 0 | CE49: 0 | CF49: 0 | CG49: 0 | CH49: 0 | CI49: 0 | CJ49: 7825.669462 | CK49: 0 | CM49: =1165 -> 1165 | CP49: 1165 | CQ49: 1 | CR49: 6.717312843 | CS49: 1 | CT49: 582.5 | CU49: 0.5 | CV49: Electric | CX49: X=$1165.00 | CZ49: X=AS49 * ((AU49 / 0.80 - AW49 / (AY49/100) ) * 0.746 * 0.80) * 3660 | DA49: X=0.0001 | DB49: 0 | DC49: X=AS49 * ((AU49 / 0.80 - AW49 / (AY49/100) ) * 0.746 * 0.80) | DD49: 0 | DE49: 0 | DF49: X=AS49 * ((AU49 / 0.80 - AW49 / (AY49/100) ) * 0.746 * 0.80) * AF49 | DG49: X=AS49 * ((AU49 / 0.80 - AW49 / (AY49/100) ) * 0.746 * 0.80) *AG49 | DH49: 0 | DI49: 0 | DJ49: 0 | DK49: 0 | DL49: 0 | DM49: 0 | DP49: {Factor:WinterCF} | DQ49: {Factor:SummerCF} | DR49: =IFERROR(INDEX($ED49:$IG49,MATCH(0,COUNTIF($DO49:DQ49,$ED49:$IG49),0)),"") -> {Measure:Quantity} | DS49: =IFERROR(INDEX($ED49:$IG49,MATCH(0,COUNTIF($DO49:DR49,$ED49:$IG49),0)),"") -> {Existing Fan HP} | DT49: =IFERROR(INDEX($ED49:$IG49,MATCH(0,COUNTIF($DO49:DS49,$ED49:$IG49),0)),"") -> {Fan HP} | DU49: =IFERROR(INDEX($ED49:$IG49,MATCH(0,COUNTIF($DO49:DT49,$ED49:$IG49),0)),"") -> {Motor Efficiency} | DV49: =IFERROR(INDEX($ED49:$IG49,MATCH(0,COUNTIF($DO49:DU49,$ED49:$IG49),0)),"") ->  | DW49: =IFERROR(INDEX($ED49:$IG49,MATCH(0,COUNTIF($DO49:DV49,$ED49:$IG49),0)),"") ->  | DX49: =IFERROR(INDEX($ED49:$IG49,MATCH(0,COUNTIF($DO49:DW49,$ED49:$IG49),0)),"") ->  | DY49: =IFERROR(INDEX($ED49:$IG49,MATCH(0,COUNTIF($DO49:DX49,$ED49:$IG49),0)),"") ->  | DZ49: =IFERROR(INDEX($ED49:$IG49,MATCH(0,COUNTIF($DO49:DY49,$ED49:$IG49),0)),"") ->  | EA49: =IFERROR(INDEX($ED49:$IG49,MATCH(0,COUNTIF($DO49:DZ49,$ED49:$IG49),0)),"") ->  | EN49: {Measure:Quantity} | EO49: {Existing Fan HP} | EP49: {Fan HP} | EQ49: {Motor Efficiency} | EX49: {Measure:Quantity} | EY49: {Existing Fan HP} | EZ49: {Fan HP} | FA49: {Motor Efficiency} | FH49: {Measure:Quantity} | FI49: {Existing Fan HP} | FJ49: {Fan HP} | FK49: {Motor Efficiency} | FL49: {Factor:WinterCF} | FR49: {Measure:Quantity} | FS49: {Existing Fan HP} | FT49: {Fan HP} | FU49: {Motor Efficiency} | FV49: {Factor:SummerCF} | IK49: 4
A50: C&I Agricultural Solutions | B50: POTATO: Adjustable Speed Drive - 10 HP Ventilation Fan Motor | C50: AASD - ASD10 | D50: 2018-07-01 | E50: 2019-06-30 | F50: Per Measure | G50: $1745.00 | H50: 0 | I50: Per Measure | J50: $1200.00 | K50: 0 | L50: 2016-07-01 | M50: 2019-06-30 | N50: Calculated | O50: {Measure:Quantity} * {Fan HP} * 2540 | P50: 0.0001 | R50: {Measure:Quantity} * {Fan HP} * 0.71 | U50: {Measure:Quantity} * {Fan HP} * 0.71 * {Factor:WinterCF} | V50: {Measure:Quantity} * {Fan HP} * 0.71 * {Factor:SummerCF} | AC50: 2017-07-01 | AD50: 2019-06-30 | AE50: 15 | AF50: 0.737 | AG50: 0 | AH50: 0.436 | AI50: 0.232 | AJ50: 0.217 | AK50: 0.115 | AL50: 1 | AM50: 1.122 | AN50: 1 | AO50: 0.52 | AP50: 0.016 | AR50: {Measure:Quantity} | AS50: 1 | AT50: {Fan HP} | AU50: 10 | BL50: =AS50 * AU50 * 2540 -> 25400 | BM50: 0.0001 | BN50: 0 | BO50: =AS50 * AU50 * 0.71 -> 7.1 | BP50: 0 | BQ50: 0 | BR50: =AS50 * AU50 * 0.71 * AF50 -> 5.2327 | BS50: =AS50 * AU50 * 0.71 * AG50 -> 0 | BT50: 0 | BU50: 0 | BV50: 0 | BW50: 0 | BX50: 0 | BY50: 0 | BZ50: Res | CA50: Default DR | CB50: =Benefits(BL50,BR50,BS50,BT50,BU50,BV50,BW50,BX50,BY50,AE50,AH50,AI50,AJ50,AK50,AL50,AM50,AN50,AO50,AP50,BZ50,CA50) -> 22296.43888 | CC50: 8020.939576 | CD50: 0 | CE50: 0 | CF50: 0 | CG50: 0 | CH50: 0 | CI50: 0 | CJ50: 30317.37846 | CK50: 0 | CM50: =1745 -> 1745 | CP50: 1745 | CQ50: 1 | CR50: 17.37385585 | CS50: 1 | CT50: 872.5 | CU50: 0.5 | CV50: Electric | CX50: X=$1745.00 | CZ50: X=AS50 * AU50 * 2540 | DA50: X=0.0001 | DB50: 0 | DC50: X=AS50 * AU50 * 0.71 | DD50: 0 | DE50: 0 | DF50: X=AS50 * AU50 * 0.71 * AF50 | DG50: X=AS50 * AU50 * 0.71 * AG50 | DH50: 0 | DI50: 0 | DJ50: 0 | DK50: 0 | DL50: 0 | DM50: 0 | DP50: {Factor:WinterCF} | DQ50: {Factor:SummerCF} | DR50: =IFERROR(INDEX($ED50:$IG50,MATCH(0,COUNTIF($DO50:DQ50,$ED50:$IG50),0)),"") -> {Measure:Quantity} | DS50: =IFERROR(INDEX($ED50:$IG50,MATCH(0,COUNTIF($DO50:DR50,$ED50:$IG50),0)),"") -> {Fan HP} | DT50: =IFERROR(INDEX($ED50:$IG50,MATCH(0,COUNTIF($DO50:DS50,$ED50:$IG50),0)),"") ->  | DU50: =IFERROR(INDEX($ED50:$IG50,MATCH(0,COUNTIF($DO50:DT50,$ED50:$IG50),0)),"") ->  | DV50: =IFERROR(INDEX($ED50:$IG50,MATCH(0,COUNTIF($DO50:DU50,$ED50:$IG50),0)),"") ->  | DW50: =IFERROR(INDEX($ED50:$IG50,MATCH(0,COUNTIF($DO50:DV50,$ED50:$IG50),0)),"") ->  | DX50: =IFERROR(INDEX($ED50:$IG50,MATCH(0,COUNTIF($DO50:DW50,$ED50:$IG50),0)),"") ->  | DY50: =IFERROR(INDEX($ED50:$IG50,MATCH(0,COUNTIF($DO50:DX50,$ED50:$IG50),0)),"") ->  | DZ50: =IFERROR(INDEX($ED50:$IG50,MATCH(0,COUNTIF($DO50:DY50,$ED50:$IG50),0)),"") ->  | EA50: =IFERROR(INDEX($ED50:$IG50,MATCH(0,COUNTIF($DO50:DZ50,$ED50:$IG50),0)),"") ->  | EN50: {Measure:Quantity} | EO50: {Fan HP} | EX50: {Measure:Quantity} | EY50: {Fan HP} | FH50: {Measure:Quantity} | FI50: {Fan HP} | FJ50: {Factor:WinterCF} | FR50: {Measure:Quantity} | FS50: {Fan HP} | FT50: {Factor:SummerCF} | IK50: 2
A51: C&I Agricultural Solutions | B51: POTATO: Adjustable Speed Drive - 15 HP Ventilation Fan Motor | C51: AASD - ASD15 | D51: 2018-07-01 | E51: 2019-06-30 | F51: Per Measure | G51: $2525.00 | H51: 0 | I51: Per Measure | J51: $1800.00 | K51: 0 | L51: 2016-07-01 | M51: 2019-06-30 | N51: Calculated | O51: {Measure:Quantity} * {Fan HP} * 2540 | P51: 0.0001 | R51: {Measure:Quantity} * {Fan HP} * 0.71 | U51: {Measure:Quantity} * {Fan HP} * 0.71 * {Factor:WinterCF} | V51: {Measure:Quantity} * {Fan HP} * 0.71 * {Factor:SummerCF} | AC51: 2017-07-01 | AD51: 2019-06-30 | AE51: 15 | AF51: 0.737 | AG51: 0 | AH51: 0.436 | AI51: 0.232 | AJ51: 0.217 | AK51: 0.115 | AL51: 1 | AM51: 1.122 | AN51: 1 | AO51: 0.52 | AP51: 0.016 | AR51: {Measure:Quantity} | AS51: 1 | AT51: {Fan HP} | AU51: 15 | BL51: =AS51 * AU51 * 2540 -> 38100 | BM51: 0.0001 | BN51: 0 | BO51: =AS51 * AU51 * 0.71 -> 10.65 | BP51: 0 | BQ51: 0 | BR51: =AS51 * AU51 * 0.71 * AF51 -> 7.84905 | BS51: =AS51 * AU51 * 0.71 * AG51 -> 0 | BT51: 0 | BU51: 0 | BV51: 0 | BW51: 0 | BX51: 0 | BY51: 0 | BZ51: Res | CA51: Default DR | CB51: =Benefits(BL51,BR51,BS51,BT51,BU51,BV51,BW51,BX51,BY51,AE51,AH51,AI51,AJ51,AK51,AL51,AM51,AN51,AO51,AP51,BZ51,CA51) -> 33444.65832 | CC51: 12031.40936 | CD51: 0 | CE51: 0 | CF51: 0 | CG51: 0 | CH51: 0 | CI51: 0 | CJ51: 45476.06769 | CK51: 0 | CM51: =2525 -> 2525 | CP51: 2525 | CQ51: 1 | CR51: 18.01032384 | CS51: 1 | CT51: 1262.5 | CU51: 0.5 | CV51: Electric | CX51: X=$2525.00 | CZ51: X=AS51 * AU51 * 2540 | DA51: X=0.0001 | DB51: 0 | DC51: X=AS51 * AU51 * 0.71 | DD51: 0 | DE51: 0 | DF51: X=AS51 * AU51 * 0.71 * AF51 | DG51: X=AS51 * AU51 * 0.71 * AG51 | DH51: 0 | DI51: 0 | DJ51: 0 | DK51: 0 | DL51: 0 | DM51: 0 | DP51: {Factor:WinterCF} | DQ51: {Factor:SummerCF} | DR51: =IFERROR(INDEX($ED51:$IG51,MATCH(0,COUNTIF($DO51:DQ51,$ED51:$IG51),0)),"") -> {Measure:Quantity} | DS51: =IFERROR(INDEX($ED51:$IG51,MATCH(0,COUNTIF($DO51:DR51,$ED51:$IG51),0)),"") -> {Fan HP} | DT51: =IFERROR(INDEX($ED51:$IG51,MATCH(0,COUNTIF($DO51:DS51,$ED51:$IG51),0)),"") ->  | DU51: =IFERROR(INDEX($ED51:$IG51,MATCH(0,COUNTIF($DO51:DT51,$ED51:$IG51),0)),"") ->  | DV51: =IFERROR(INDEX($ED51:$IG51,MATCH(0,COUNTIF($DO51:DU51,$ED51:$IG51),0)),"") ->  | DW51: =IFERROR(INDEX($ED51:$IG51,MATCH(0,COUNTIF($DO51:DV51,$ED51:$IG51),0)),"") ->  | DX51: =IFERROR(INDEX($ED51:$IG51,MATCH(0,COUNTIF($DO51:DW51,$ED51:$IG51),0)),"") ->  | DY51: =IFERROR(INDEX($ED51:$IG51,MATCH(0,COUNTIF($DO51:DX51,$ED51:$IG51),0)),"") ->  | DZ51: =IFERROR(INDEX($ED51:$IG51,MATCH(0,COUNTIF($DO51:DY51,$ED51:$IG51),0)),"") ->  | EA51: =IFERROR(INDEX($ED51:$IG51,MATCH(0,COUNTIF($DO51:DZ51,$ED51:$IG51),0)),"") ->  | EN51: {Measure:Quantity} | EO51: {Fan HP} | EX51: {Measure:Quantity} | EY51: {Fan HP} | FH51: {Measure:Quantity} | FI51: {Fan HP} | FJ51: {Factor:WinterCF} | FR51: {Measure:Quantity} | FS51: {Fan HP} | FT51: {Factor:SummerCF} | IK51: 2
A52: C&I Agricultural Solutions | B52: POTATO: Adjustable Speed Drive - 20 HP Ventilation Fan Motor | C52: AASD - ASD20 | D52: 2018-07-01 | E52: 2019-06-30 | F52: Per Measure | G52: $2725.00 | H52: 0 | I52: Per Measure | J52: $2000.00 | K52: 0 | L52: 2016-07-01 | M52: 2019-06-30 | N52: Calculated | O52: {Measure:Quantity} * {Fan HP} * 2540 | P52: 0.0001 | R52: {Measure:Quantity} * {Fan HP} * 0.71 | U52: {Measure:Quantity} * {Fan HP} * 0.71 * {Factor:WinterCF} | V52: {Measure:Quantity} * {Fan HP} * 0.71 * {Factor:SummerCF} | AC52: 2017-07-01 | AD52: 2019-06-30 | AE52: 15 | AF52: 0.737 | AG52: 0 | AH52: 0.436 | AI52: 0.232 | AJ52: 0.217 | AK52: 0.115 | AL52: 1 | AM52: 1.122 | AN52: 1 | AO52: 0.52 | AP52: 0.016 | AR52: {Measure:Quantity} | AS52: 1 | AT52: {Fan HP} | AU52: 20 | BL52: =AS52 * AU52 * 2540 -> 50800 | BM52: 0.0001 | BN52: 0 | BO52: =AS52 * AU52 * 0.71 -> 14.2 | BP52: 0 | BQ52: 0 | BR52: =AS52 * AU52 * 0.71 * AF52 -> 10.4654 | BS52: =AS52 * AU52 * 0.71 * AG52 -> 0 | BT52: 0 | BU52: 0 | BV52: 0 | BW52: 0 | BX52: 0 | BY52: 0 | BZ52: Res | CA52: Default DR | CB52: =Benefits(BL52,BR52,BS52,BT52,BU52,BV52,BW52,BX52,BY52,AE52,AH52,AI52,AJ52,AK52,AL52,AM52,AN52,AO52,AP52,BZ52,CA52) -> 44592.87777 | CC52: 16041.87915 | CD52: 0 | CE52: 0 | CF52: 0 | CG52: 0 | CH52: 0 | CI52: 0 | CJ52: 60634.75692 | CK52: 0 | CM52: =2725 -> 2725 | CP52: 2725 | CQ52: 1 | CR52: 22.25128694 | CS52: 1 | CT52: 1700 | CV52: Electric | CX52: X=$2725.00 | CZ52: X=AS52 * AU52 * 2540 | DA52: X=0.0001 | DB52: 0 | DC52: X=AS52 * AU52 * 0.71 | DD52: 0 | DE52: 0 | DF52: X=AS52 * AU52 * 0.71 * AF52 | DG52: X=AS52 * AU52 * 0.71 * AG52 | DH52: 0 | DI52: 0 | DJ52: 0 | DK52: 0 | DL52: 0 | DM52: 0 | DP52: {Factor:WinterCF} | DQ52: {Factor:SummerCF} | DR52: =IFERROR(INDEX($ED52:$IG52,MATCH(0,COUNTIF($DO52:DQ52,$ED52:$IG52),0)),"") -> {Measure:Quantity} | DS52: =IFERROR(INDEX($ED52:$IG52,MATCH(0,COUNTIF($DO52:DR52,$ED52:$IG52),0)),"") -> {Fan HP} | DT52: =IFERROR(INDEX($ED52:$IG52,MATCH(0,COUNTIF($DO52:DS52,$ED52:$IG52),0)),"") ->  | DU52: =IFERROR(INDEX($ED52:$IG52,MATCH(0,COUNTIF($DO52:DT52,$ED52:$IG52),0)),"") ->  | DV52: =IFERROR(INDEX($ED52:$IG52,MATCH(0,COUNTIF($DO52:DU52,$ED52:$IG52),0)),"") ->  | DW52: =IFERROR(INDEX($ED52:$IG52,MATCH(0,COUNTIF($DO52:DV52,$ED52:$IG52),0)),"") ->  | DX52: =IFERROR(INDEX($ED52:$IG52,MATCH(0,COUNTIF($DO52:DW52,$ED52:$IG52),0)),"") ->  | DY52: =IFERROR(INDEX($ED52:$IG52,MATCH(0,COUNTIF($DO52:DX52,$ED52:$IG52),0)),"") ->  | DZ52: =IFERROR(INDEX($ED52:$IG52,MATCH(0,COUNTIF($DO52:DY52,$ED52:$IG52),0)),"") ->  | EA52: =IFERROR(INDEX($ED52:$IG52,MATCH(0,COUNTIF($DO52:DZ52,$ED52:$IG52),0)),"") ->  | EN52: {Measure:Quantity} | EO52: {Fan HP} | EX52: {Measure:Quantity} | EY52: {Fan HP} | FH52: {Measure:Quantity} | FI52: {Fan HP} | FJ52: {Factor:WinterCF} | FR52: {Measure:Quantity} | FS52: {Fan HP} | FT52: {Factor:SummerCF} | IK52: 2
A53: C&I Agricultural Solutions | B53: POTATO: Adjustable Speed Drive - 3 to 5 HP Ventilation Fan Motor | C53: AASD - ASD3to5 | D53: 2018-07-01 | E53: 2019-06-30 | F53: Calculated | G53: {Measure:Quantity}*if({Fan HP}<5,963,1105) | H53: 0 | I53: Per Measure | J53: $800.00 | K53: 0 | L53: 2016-07-01 | M53: 2019-06-30 | N53: Calculated | O53: {Measure:Quantity} * {Fan HP} * 2540 | P53: 0.0001 | R53: {Measure:Quantity} * {Fan HP} * 0.71 | U53: {Measure:Quantity} * {Fan HP} * 0.71 * {Factor:WinterCF} | V53: {Measure:Quantity} * {Fan HP} * 0.71 * {Factor:SummerCF} | AC53: 2017-07-01 | AD53: 2019-06-30 | AE53: 15 | AF53: 0.737 | AG53: 0 | AH53: 0.436 | AI53: 0.232 | AJ53: 0.217 | AK53: 0.115 | AL53: 1 | AM53: 1.122 | AN53: 1 | AO53: 0.52 | AP53: 0.016 | AR53: {Measure:Quantity} | AS53: 1 | AT53: {Fan HP} | AU53: 4 | BL53: =AS53 * AU53 * 2540 -> 10160 | BM53: 0.0001 | BN53: 0 | BO53: =AS53 * AU53 * 0.71 -> 2.84 | BP53: 0 | BQ53: 0 | BR53: =AS53 * AU53 * 0.71 * AF53 -> 2.09308 | BS53: =AS53 * AU53 * 0.71 * AG53 -> 0 | BT53: 0 | BU53: 0 | BV53: 0 | BW53: 0 | BX53: 0 | BY53: 0 | BZ53: Res | CA53: Default DR | CB53: =Benefits(BL53,BR53,BS53,BT53,BU53,BV53,BW53,BX53,BY53,AE53,AH53,AI53,AJ53,AK53,AL53,AM53,AN53,AO53,AP53,BZ53,CA53) -> 8918.575553 | CC53: 3208.375831 | CD53: 0 | CE53: 0 | CF53: 0 | CG53: 0 | CH53: 0 | CI53: 0 | CJ53: 12126.95138 | CK53: 0 | CM53: =AS53*IF(AU53<5,963,1105) -> 963 | CP53: 963 | CQ53: 1 | CR53: 12.59288825 | CS53: 1 | CT53: =CM53*CU53 -> 481.5 | CU53: 0.5 | CV53: Electric | CX53: X=AS53*if(AU53<5,963,1105) | CZ53: X=AS53 * AU53 * 2540 | DA53: X=0.0001 | DB53: 0 | DC53: X=AS53 * AU53 * 0.71 | DD53: 0 | DE53: 0 | DF53: X=AS53 * AU53 * 0.71 * AF53 | DG53: X=AS53 * AU53 * 0.71 * AG53 | DH53: 0 | DI53: 0 | DJ53: 0 | DK53: 0 | DL53: 0 | DM53: 0 | DP53: {Factor:WinterCF} | DQ53: {Factor:SummerCF} | DR53: =IFERROR(INDEX($ED53:$IG53,MATCH(0,COUNTIF($DO53:DQ53,$ED53:$IG53),0)),"") -> {Measure:Quantity} | DS53: =IFERROR(INDEX($ED53:$IG53,MATCH(0,COUNTIF($DO53:DR53,$ED53:$IG53),0)),"") -> {Fan HP} | DT53: =IFERROR(INDEX($ED53:$IG53,MATCH(0,COUNTIF($DO53:DS53,$ED53:$IG53),0)),"") ->  | DU53: =IFERROR(INDEX($ED53:$IG53,MATCH(0,COUNTIF($DO53:DT53,$ED53:$IG53),0)),"") ->  | DV53: =IFERROR(INDEX($ED53:$IG53,MATCH(0,COUNTIF($DO53:DU53,$ED53:$IG53),0)),"") ->  | DW53: =IFERROR(INDEX($ED53:$IG53,MATCH(0,COUNTIF($DO53:DV53,$ED53:$IG53),0)),"") ->  | DX53: =IFERROR(INDEX($ED53:$IG53,MATCH(0,COUNTIF($DO53:DW53,$ED53:$IG53),0)),"") ->  | DY53: =IFERROR(INDEX($ED53:$IG53,MATCH(0,COUNTIF($DO53:DX53,$ED53:$IG53),0)),"") ->  | DZ53: =IFERROR(INDEX($ED53:$IG53,MATCH(0,COUNTIF($DO53:DY53,$ED53:$IG53),0)),"") ->  | EA53: =IFERROR(INDEX($ED53:$IG53,MATCH(0,COUNTIF($DO53:DZ53,$ED53:$IG53),0)),"") ->  | ED53: {Measure:Quantity} | EE53: {Fan HP} | EN53: {Measure:Quantity} | EO53: {Fan HP} | EX53: {Measure:Quantity} | EY53: {Fan HP} | FH53: {Measure:Quantity} | FI53: {Fan HP} | FJ53: {Factor:WinterCF} | FR53: {Measure:Quantity} | FS53: {Fan HP} | FT53: {Factor:SummerCF} | IK53: 2
A54: C&I Agricultural Solutions | B54: POTATO: Adjustable Speed Drive - 7.5 HP Ventilation Fan Motor | C54: AASD - ASD7.5 | D54: 2018-07-01 | E54: 2019-06-30 | F54: Per Measure | G54: $1467.00 | H54: 0 | I54: Per Measure | J54: $1000.00 | K54: 0 | L54: 2016-07-01 | M54: 2019-06-30 | N54: Calculated | O54: {Measure:Quantity} * {Fan HP} * 2540 | P54: 0.0001 | R54: {Measure:Quantity} * {Fan HP} * 0.71 | U54: {Measure:Quantity} * {Fan HP} * 0.71 * {Factor:WinterCF} | V54: {Measure:Quantity} * {Fan HP} * 0.71 * {Factor:SummerCF} | AC54: 2017-07-01 | AD54: 2019-06-30 | AE54: 15 | AF54: 0.737 | AG54: 0 | AH54: 0.436 | AI54: 0.232 | AJ54: 0.217 | AK54: 0.115 | AL54: 1 | AM54: 1.122 | AN54: 1 | AO54: 0.52 | AP54: 0.016 | AR54: {Measure:Quantity} | AS54: 1 | AT54: {Fan HP} | AU54: 7.5 | BL54: =AS54 * AU54 * 2540 -> 19050 | BM54: 0.0001 | BN54: 0 | BO54: =AS54 * AU54 * 0.71 -> 5.325 | BP54: 0 | BQ54: 0 | BR54: =AS54 * AU54 * 0.71 * AF54 -> 3.924525 | BS54: =AS54 * AU54 * 0.71 * AG54 -> 0 | BT54: 0 | BU54: 0 | BV54: 0 | BW54: 0 | BX54: 0 | BY54: 0 | BZ54: Res | CA54: Default DR | CB54: =Benefits(BL54,BR54,BS54,BT54,BU54,BV54,BW54,BX54,BY54,AE54,AH54,AI54,AJ54,AK54,AL54,AM54,AN54,AO54,AP54,BZ54,CA54) -> 16722.32916 | CC54: 6015.704682 | CD54: 0 | CE54: 0 | CF54: 0 | CG54: 0 | CH54: 0 | CI54: 0 | CJ54: 22738.03384 | CK54: 0 | CM54: =1467 -> 1467 | CP54: 1467 | CQ54: 1 | CR54: 15.49968224 | CS54: 1 | CT54: =CM54*CU54 -> 733.5 | CU54: 0.5 | CV54: Electric | CX54: X=$1467.00 | CZ54: X=AS54 * AU54 * 2540 | DA54: X=0.0001 | DB54: 0 | DC54: X=AS54 * AU54 * 0.71 | DD54: 0 | DE54: 0 | DF54: X=AS54 * AU54 * 0.71 * AF54 | DG54: X=AS54 * AU54 * 0.71 * AG54 | DH54: 0 | DI54: 0 | DJ54: 0 | DK54: 0 | DL54: 0 | DM54: 0 | DP54: {Factor:WinterCF} | DQ54: {Factor:SummerCF} | DR54: =IFERROR(INDEX($ED54:$IG54,MATCH(0,COUNTIF($DO54:DQ54,$ED54:$IG54),0)),"") -> {Measure:Quantity} | DS54: =IFERROR(INDEX($ED54:$IG54,MATCH(0,COUNTIF($DO54:DR54,$ED54:$IG54),0)),"") -> {Fan HP} | DT54: =IFERROR(INDEX($ED54:$IG54,MATCH(0,COUNTIF($DO54:DS54,$ED54:$IG54),0)),"") ->  | DU54: =IFERROR(INDEX($ED54:$IG54,MATCH(0,COUNTIF($DO54:DT54,$ED54:$IG54),0)),"") ->  | DV54: =IFERROR(INDEX($ED54:$IG54,MATCH(0,COUNTIF($DO54:DU54,$ED54:$IG54),0)),"") ->  | DW54: =IFERROR(INDEX($ED54:$IG54,MATCH(0,COUNTIF($DO54:DV54,$ED54:$IG54),0)),"") ->  | DX54: =IFERROR(INDEX($ED54:$IG54,MATCH(0,COUNTIF($DO54:DW54,$ED54:$IG54),0)),"") ->  | DY54: =IFERROR(INDEX($ED54:$IG54,MATCH(0,COUNTIF($DO54:DX54,$ED54:$IG54),0)),"") ->  | DZ54: =IFERROR(INDEX($ED54:$IG54,MATCH(0,COUNTIF($DO54:DY54,$ED54:$IG54),0)),"") ->  | EA54: =IFERROR(INDEX($ED54:$IG54,MATCH(0,COUNTIF($DO54:DZ54,$ED54:$IG54),0)),"") ->  | ED54: =IFERROR(MID($G54,FIND(CHAR(160),SUBSTITUTE($G54,"{",CHAR(160),ED$1)),FIND(CHAR(160),SUBSTITUTE($G54,"}",CHAR(160),ED$1))-FIND(CHAR(160),SUBSTITUTE($G54,"{",CHAR(160),ED$1))+1),"") ->  | EN54: =IFERROR(MID($O54,FIND(CHAR(160),SUBSTITUTE($O54,"{",CHAR(160),EN$1)),FIND(CHAR(160),SUBSTITUTE($O54,"}",CHAR(160),EN$1))-FIND(CHAR(160),SUBSTITUTE($O54,"{",CHAR(160),EN$1))+1),"") -> {Measure:Quantity} | EO54: {Fan HP} | EX54: =IFERROR(MID($R54,FIND(CHAR(160),SUBSTITUTE($R54,"{",CHAR(160),EX$1)),FIND(CHAR(160),SUBSTITUTE($R54,"}",CHAR(160),EX$1))-FIND(CHAR(160),SUBSTITUTE($R54,"{",CHAR(160),EX$1))+1),"") -> {Measure:Quantity} | EY54: {Fan HP} | FH54: =IFERROR(MID($U54,FIND(CHAR(160),SUBSTITUTE($U54,"{",CHAR(160),FH$1)),FIND(CHAR(160),SUBSTITUTE($U54,"}",CHAR(160),FH$1))-FIND(CHAR(160),SUBSTITUTE($U54,"{",CHAR(160),FH$1))+1),"") -> {Measure:Quantity} | FI54: {Fan HP} | FJ54: {Factor:WinterCF} | FR54: =IFERROR(MID($V54,FIND(CHAR(160),SUBSTITUTE($V54,"{",CHAR(160),FR$1)),FIND(CHAR(160),SUBSTITUTE($V54,"}",CHAR(160),FR$1))-FIND(CHAR(160),SUBSTITUTE($V54,"{",CHAR(160),FR$1))+1),"") -> {Measure:Quantity} | FS54: {Fan HP} | FT54: {Factor:SummerCF} | GB54: =IFERROR(MID($W54,FIND(CHAR(160),SUBSTITUTE($W54,"{",CHAR(160),GB$1)),FIND(CHAR(160),SUBSTITUTE($W54,"}",CHAR(160),GB$1))-FIND(CHAR(160),SUBSTITUTE($W54,"{",CHAR(160),GB$1))+1),"") ->  | GL54: =IFERROR(MID($X54,FIND(CHAR(160),SUBSTITUTE($X54,"{",CHAR(160),GL$1)),FIND(CHAR(160),SUBSTITUTE($X54,"}",CHAR(160),GL$1))-FIND(CHAR(160),SUBSTITUTE($X54,"{",CHAR(160),GL$1))+1),"") ->  | GV54: =IFERROR(MID($Y54,FIND(CHAR(160),SUBSTITUTE($Y54,"{",CHAR(160),GV$1)),FIND(CHAR(160),SUBSTITUTE($Y54,"}",CHAR(160),GV$1))-FIND(CHAR(160),SUBSTITUTE($Y54,"{",CHAR(160),GV$1))+1),"") ->  | HF54: =IFERROR(MID($Z54,FIND(CHAR(160),SUBSTITUTE($Z54,"{",CHAR(160),HF$1)),FIND(CHAR(160),SUBSTITUTE($Z54,"}",CHAR(160),HF$1))-FIND(CHAR(160),SUBSTITUTE($Z54,"{",CHAR(160),HF$1))+1),"") ->  | HP54: =IFERROR(MID($AA54,FIND(CHAR(160),SUBSTITUTE($AA54,"{",CHAR(160),HP$1)),FIND(CHAR(160),SUBSTITUTE($AA54,"}",CHAR(160),HP$1))-FIND(CHAR(160),SUBSTITUTE($AA54,"{",CHAR(160),HP$1))+1),"") ->  | HZ54: =IFERROR(MID($AB54,FIND(CHAR(160),SUBSTITUTE($AB54,"{",CHAR(160),HZ$1)),FIND(CHAR(160),SUBSTITUTE($AB54,"}",CHAR(160),HZ$1))-FIND(CHAR(160),SUBSTITUTE($AB54,"{",CHAR(160),HZ$1))+1),"") ->  | IK54: 2
A55: C&I Agricultural Solutions | BL55: 0 | BM55: 0 | BN55: 0 | BO55: 0 | BP55: 0 | BQ55: 0 | BR55: 0 | BS55: 0 | BT55: 0 | BU55: 0 | BV55: 0 | BW55: 0 | BX55: 0 | BY55: 0 | CX55: 0 | CZ55: 0 | DA55: 0 | DB55: 0 | DC55: 0 | DD55: 0 | DE55: 0 | DF55: 0 | DG55: 0 | DH55: 0 | DI55: 0 | DJ55: 0 | DK55: 0 | DL55: 0 | DM55: 0 | DP55: {Factor:WinterCF} | DQ55: {Factor:SummerCF} | DR55: =IFERROR(INDEX($ED55:$IG55,MATCH(0,COUNTIF($DO55:DQ55,$ED55:$IG55),0)),"") ->  | DS55: =IFERROR(INDEX($ED55:$IG55,MATCH(0,COUNTIF($DO55:DR55,$ED55:$IG55),0)),"") ->  | DT55: =IFERROR(INDEX($ED55:$IG55,MATCH(0,COUNTIF($DO55:DS55,$ED55:$IG55),0)),"") ->  | DU55: =IFERROR(INDEX($ED55:$IG55,MATCH(0,COUNTIF($DO55:DT55,$ED55:$IG55),0)),"") ->  | DV55: =IFERROR(INDEX($ED55:$IG55,MATCH(0,COUNTIF($DO55:DU55,$ED55:$IG55),0)),"") ->  | DW55: =IFERROR(INDEX($ED55:$IG55,MATCH(0,COUNTIF($DO55:DV55,$ED55:$IG55),0)),"") ->  | DX55: =IFERROR(INDEX($ED55:$IG55,MATCH(0,COUNTIF($DO55:DW55,$ED55:$IG55),0)),"") ->  | DY55: =IFERROR(INDEX($ED55:$IG55,MATCH(0,COUNTIF($DO55:DX55,$ED55:$IG55),0)),"") ->  | DZ55: =IFERROR(INDEX($ED55:$IG55,MATCH(0,COUNTIF($DO55:DY55,$ED55:$IG55),0)),"") ->  | EA55: =IFERROR(INDEX($ED55:$IG55,MATCH(0,COUNTIF($DO55:DZ55,$ED55:$IG55),0)),"") ->  | IK55: 0
A56: C&I Commercial Kitchen Solutions | B56: G17 Fryer | C56: G17 | D56: 2018-07-01 | E56: 2019-06-30 | F56: Per Measure | G56: $1120.00 | H56: 0 | I56: Calculated | J56: {Measure:Quantity}*800 | K56: 0 | L56: 2016-11-01 | M56: 2019-06-30 | N56: Calculated | W56: {Measure:Quantity} * 415 | AC56: 2017-07-01 | AD56: 2019-06-30 | AE56: 12 | AF56: 0 | AG56: 0 | AH56: 1 | AI56: 0 | AJ56: 0 | AK56: 0 | AL56: 1 | AM56: 1 | AN56: 0 | AO56: 0.25 | AP56: 0 | AR56: =DR56 -> {Measure:Quantity} | AS56: 1 | AT56: =DS56 ->  | AV56: =DT56 ->  | AX56: =DU56 ->  | AZ56: =DV56 ->  | BB56: =DW56 ->  | BD56: =DX56 ->  | BF56: =DY56 ->  | BH56: =DZ56 ->  | BJ56: =EA56 ->  | BL56: 0 | BM56: 0 | BN56: 0 | BO56: 0 | BP56: 0 | BQ56: 0 | BR56: 0 | BS56: 0 | BT56: =AS56 * 415 -> 415 | BU56: 0 | BV56: 0 | BW56: 0 | BX56: 0 | BY56: 0 | BZ56: Res | CA56: Default DR | CB56: =Benefits(BL56,BR56,BS56,BT56,BU56,BV56,BW56,BX56,BY56,AE56,AH56,AI56,AJ56,AK56,AL56,AM56,AN56,AO56,AP56,BZ56,CA56) -> 0 | CC56: 0 | CD56: 4009.579863 | CE56: 0 | CF56: 0 | CG56: 0 | CH56: 0 | CI56: 0 | CJ56: =(--(CB56>0))*CB56+(--(CC56>0))*CC56+(--(CD56>0))*CD56+(--(CE56>0))*CE56+(--(CF56>0))*CF56+(--(CG56>0))*CG56+(--(CH56>0))*CH56+(--(CI56>0))*CI56 -> 4009.579863 | CK56: =(--(CB56<0))*-CB56+(--(CC56<0))*-CC56+(--(CD56<0))*-CD56+(--(CE56<0))*-CE56+(--(CF56<0))*-CF56+(--(CG56<0))*-CG56+(--(CH56<0))*-CH56+(--(CI56<0))*-CI56 -> 0 | CM56: =1120 -> 1120 | CP56: =CK56+CM56 -> 1120 | CQ56: =IF(NetOrGross="Net",(1-AO56+AP56),1) -> 1 | CR56: =(SUMPRODUCT(CB56:CI56,--(CB56:CI56>0))+CL56)*CQ56/((-SUMPRODUCT(CB56:CI56,--(CB56:CI56<0))+MAX(CM56,CT56)+CN56+CO56)*CQ56+IF(FRIncentives="Yes",CT56*(1-CQ56),0)) -> 3.57998202 | CS56: 1 | CT56: 800 | CV56: NG | CX56: X=$1120.00 | CZ56: 0 | DA56: 0 | DB56: 0 | DC56: 0 | DD56: 0 | DE56: 0 | DF56: 0 | DG56: 0 | DH56: X=AS56 * 415 | DI56: 0 | DJ56: 0 | DK56: 0 | DL56: 0 | DM56: 0 | DP56: {Factor:WinterCF} | DQ56: {Factor:SummerCF} | DR56: =IFERROR(INDEX($ED56:$IG56,MATCH(0,COUNTIF($DO56:DQ56,$ED56:$IG56),0)),"") -> {Measure:Quantity} | DS56: =IFERROR(INDEX($ED56:$IG56,MATCH(0,COUNTIF($DO56:DR56,$ED56:$IG56),0)),"") ->  | DT56: =IFERROR(INDEX($ED56:$IG56,MATCH(0,COUNTIF($DO56:DS56,$ED56:$IG56),0)),"") ->  | DU56: =IFERROR(INDEX($ED56:$IG56,MATCH(0,COUNTIF($DO56:DT56,$ED56:$IG56),0)),"") ->  | DV56: =IFERROR(INDEX($ED56:$IG56,MATCH(0,COUNTIF($DO56:DU56,$ED56:$IG56),0)),"") ->  | DW56: =IFERROR(INDEX($ED56:$IG56,MATCH(0,COUNTIF($DO56:DV56,$ED56:$IG56),0)),"") ->  | DX56: =IFERROR(INDEX($ED56:$IG56,MATCH(0,COUNTIF($DO56:DW56,$ED56:$IG56),0)),"") ->  | DY56: =IFERROR(INDEX($ED56:$IG56,MATCH(0,COUNTIF($DO56:DX56,$ED56:$IG56),0)),"") ->  | DZ56: =IFERROR(INDEX($ED56:$IG56,MATCH(0,COUNTIF($DO56:DY56,$ED56:$IG56),0)),"") ->  | EA56: =IFERROR(INDEX($ED56:$IG56,MATCH(0,COUNTIF($DO56:DZ56,$ED56:$IG56),0)),"") ->  | GB56: {Measure:Quantity} | IK56: 1
A57: C&I Commercial Kitchen Solutions | B57: G19 Convection Oven | C57: G19 | D57: 2018-07-01 | E57: 2019-06-30 | F57: Per Measure | G57: $0.00 | H57: 0 | I57: Calculated | J57: {Measure:Quantity}*750 | K57: 0 | L57: 2016-11-01 | M57: 2019-06-30 | N57: Calculated | W57: {Measure:Quantity} * 129 | AC57: 2017-07-01 | AD57: 2019-06-30 | AE57: 12 | AF57: 0 | AG57: 0 | AH57: 1 | AI57: 0 | AJ57: 0 | AK57: 0 | AL57: 1 | AM57: 1 | AN57: 0 | AO57: 0.25 | AP57: 0 | AR57: {Measure:Quantity} | AS57: 1 | BL57: 0 | BM57: 0 | BN57: 0 | BO57: 0 | BP57: 0 | BQ57: 0 | BR57: 0 | BS57: 0 | BT57: =AS57 * 129 -> 129 | BU57: 0 | BV57: 0 | BW57: 0 | BX57: 0 | BY57: 0 | BZ57: Res | CA57: Default DR | CB57: =Benefits(BL57,BR57,BS57,BT57,BU57,BV57,BW57,BX57,BY57,AE57,AH57,AI57,AJ57,AK57,AL57,AM57,AN57,AO57,AP57,BZ57,CA57) -> 0 | CC57: 0 | CD57: 1246.351331 | CE57: 0 | CF57: 0 | CG57: 0 | CH57: 0 | CI57: 0 | CJ57: 1246.351331 | CK57: 0 | CM57: =0 -> 0 | CP57: 0 | CQ57: 1 | CR57: 2.077252218 | CS57: 1 | CT57: 600 | CV57: NG | CX57: X=$0.00 | CZ57: 0 | DA57: 0 | DB57: 0 | DC57: 0 | DD57: 0 | DE57: 0 | DF57: 0 | DG57: 0 | DH57: X=AS57 * 129 | DI57: 0 | DJ57: 0 | DK57: 0 | DL57: 0 | DM57: 0 | DP57: {Factor:WinterCF} | DQ57: {Factor:SummerCF} | DR57: =IFERROR(INDEX($ED57:$IG57,MATCH(0,COUNTIF($DO57:DQ57,$ED57:$IG57),0)),"") -> {Measure:Quantity} | DS57: =IFERROR(INDEX($ED57:$IG57,MATCH(0,COUNTIF($DO57:DR57,$ED57:$IG57),0)),"") ->  | DT57: =IFERROR(INDEX($ED57:$IG57,MATCH(0,COUNTIF($DO57:DS57,$ED57:$IG57),0)),"") ->  | DU57: =IFERROR(INDEX($ED57:$IG57,MATCH(0,COUNTIF($DO57:DT57,$ED57:$IG57),0)),"") ->  | DV57: =IFERROR(INDEX($ED57:$IG57,MATCH(0,COUNTIF($DO57:DU57,$ED57:$IG57),0)),"") ->  | DW57: =IFERROR(INDEX($ED57:$IG57,MATCH(0,COUNTIF($DO57:DV57,$ED57:$IG57),0)),"") ->  | DX57: =IFERROR(INDEX($ED57:$IG57,MATCH(0,COUNTIF($DO57:DW57,$ED57:$IG57),0)),"") ->  | DY57: =IFERROR(INDEX($ED57:$IG57,MATCH(0,COUNTIF($DO57:DX57,$ED57:$IG57),0)),"") ->  | DZ57: =IFERROR(INDEX($ED57:$IG57,MATCH(0,COUNTIF($DO57:DY57,$ED57:$IG57),0)),"") ->  | EA57: =IFERROR(INDEX($ED57:$IG57,MATCH(0,COUNTIF($DO57:DZ57,$ED57:$IG57),0)),"") ->  | GB57: {Measure:Quantity} | IK57: 1
A58: C&I Commercial Kitchen Solutions | B58: G20 Combination Oven | C58: G20 | D58: 2018-07-01 | E58: 2019-06-30 | F58: Per Measure | G58: $0.00 | H58: 0 | I58: Calculated | J58: {Measure:Quantity}*1250 | K58: 0 | L58: 2016-11-01 | M58: 2019-06-30 | N58: Calculated | W58: {Measure:Quantity} * 730 | AC58: 2017-07-01 | AD58: 2019-06-30 | AE58: 12 | AF58: 0 | AG58: 0 | AH58: 1 | AI58: 0 | AJ58: 0 | AK58: 0 | AL58: 1 | AM58: 1 | AN58: 0 | AO58: 0.25 | AP58: 0 | AR58: {Measure:Quantity} | AS58: 1 | BL58: 0 | BM58: 0 | BN58: 0 | BO58: 0 | BP58: 0 | BQ58: 0 | BR58: 0 | BS58: 0 | BT58: =AS58 * 730 -> 730 | BU58: 0 | BV58: 0 | BW58: 0 | BX58: 0 | BY58: 0 | BZ58: Res | CA58: Default DR | CB58: =Benefits(BL58,BR58,BS58,BT58,BU58,BV58,BW58,BX58,BY58,AE58,AH58,AI58,AJ58,AK58,AL58,AM58,AN58,AO58,AP58,BZ58,CA58) -> 0 | CC58: 0 | CD58: 7052.995903 | CE58: 0 | CF58: 0 | CG58: 0 | CH58: 0 | CI58: 0 | CJ58: 7052.995903 | CK58: 0 | CM58: =0 -> 0 | CP58: 0 | CQ58: 1 | CR58: 3.761597815 | CS58: 1 | CT58: 1875 | CV58: NG | CX58: X=$0.00 | CZ58: 0 | DA58: 0 | DB58: 0 | DC58: 0 | DD58: 0 | DE58: 0 | DF58: 0 | DG58: 0 | DH58: X=AS58 * 730 | DI58: 0 | DJ58: 0 | DK58: 0 | DL58: 0 | DM58: 0 | DP58: {Factor:WinterCF} | DQ58: {Factor:SummerCF} | DR58: =IFERROR(INDEX($ED58:$IG58,MATCH(0,COUNTIF($DO58:DQ58,$ED58:$IG58),0)),"") -> {Measure:Quantity} | DS58: =IFERROR(INDEX($ED58:$IG58,MATCH(0,COUNTIF($DO58:DR58,$ED58:$IG58),0)),"") ->  | DT58: =IFERROR(INDEX($ED58:$IG58,MATCH(0,COUNTIF($DO58:DS58,$ED58:$IG58),0)),"") ->  | DU58: =IFERROR(INDEX($ED58:$IG58,MATCH(0,COUNTIF($DO58:DT58,$ED58:$IG58),0)),"") ->  | DV58: =IFERROR(INDEX($ED58:$IG58,MATCH(0,COUNTIF($DO58:DU58,$ED58:$IG58),0)),"") ->  | DW58: =IFERROR(INDEX($ED58:$IG58,MATCH(0,COUNTIF($DO58:DV58,$ED58:$IG58),0)),"") ->  | DX58: =IFERROR(INDEX($ED58:$IG58,MATCH(0,COUNTIF($DO58:DW58,$ED58:$IG58),0)),"") ->  | DY58: =IFERROR(INDEX($ED58:$IG58,MATCH(0,COUNTIF($DO58:DX58,$ED58:$IG58),0)),"") ->  | DZ58: =IFERROR(INDEX($ED58:$IG58,MATCH(0,COUNTIF($DO58:DY58,$ED58:$IG58),0)),"") ->  | EA58: =IFERROR(INDEX($ED58:$IG58,MATCH(0,COUNTIF($DO58:DZ58,$ED58:$IG58),0)),"") ->  | GB58: {Measure:Quantity} | IK58: 1
A59: C&I Commercial Kitchen Solutions | B59: G21 Steamer - 10 Pan | C59: G21 - G2110P | D59: 2018-07-01 | E59: 2019-06-30 | F59: Per Measure | G59: $870.00 | H59: 0 | I59: Per Measure | J59: $300.00 | K59: 0 | L59: 2016-11-01 | M59: 2019-06-30 | N59: Calculated | W59: {Measure:Quantity} * 1622 | AC59: 2017-07-01 | AD59: 2019-06-30 | AE59: 12 | AF59: 0 | AG59: 0 | AH59: 1 | AI59: 0 | AJ59: 0 | AK59: 0 | AL59: 1 | AM59: 1 | AN59: 0 | AO59: 0.25 | AP59: 0 | AR59: {Measure:Quantity} | AS59: 1 | BL59: 0 | BM59: 0 | BN59: 0 | BO59: 0 | BP59: 0 | BQ59: 0 | BR59: 0 | BS59: 0 | BT59: =AS59 * 1622 -> 1622 | BU59: 0 | BV59: 0 | BW59: 0 | BX59: 0 | BY59: 0 | BZ59: Res | CA59: Default DR | CB59: =Benefits(BL59,BR59,BS59,BT59,BU59,BV59,BW59,BX59,BY59,AE59,AH59,AI59,AJ59,AK59,AL59,AM59,AN59,AO59,AP59,BZ59,CA59) -> 0 | CC59: 0 | CD59: 15671.1772 | CE59: 0 | CF59: 0 | CG59: 0 | CH59: 0 | CI59: 0 | CJ59: 15671.1772 | CK59: 0 | CM59: =870 -> 870 | CP59: 870 | CQ59: 1 | CR59: 18.01284735 | CS59: 1 | CT59: 300 | CV59: NG | CX59: X=$870.00 | CZ59: 0 | DA59: 0 | DB59: 0 | DC59: 0 | DD59: 0 | DE59: 0 | DF59: 0 | DG59: 0 | DH59: X=AS59 * 1622 | DI59: 0 | DJ59: 0 | DK59: 0 | DL59: 0 | DM59: 0 | DP59: {Factor:WinterCF} | DQ59: {Factor:SummerCF} | DR59: =IFERROR(INDEX($ED59:$IG59,MATCH(0,COUNTIF($DO59:DQ59,$ED59:$IG59),0)),"") -> {Measure:Quantity} | DS59: =IFERROR(INDEX($ED59:$IG59,MATCH(0,COUNTIF($DO59:DR59,$ED59:$IG59),0)),"") ->  | DT59: =IFERROR(INDEX($ED59:$IG59,MATCH(0,COUNTIF($DO59:DS59,$ED59:$IG59),0)),"") ->  | DU59: =IFERROR(INDEX($ED59:$IG59,MATCH(0,COUNTIF($DO59:DT59,$ED59:$IG59),0)),"") ->  | DV59: =IFERROR(INDEX($ED59:$IG59,MATCH(0,COUNTIF($DO59:DU59,$ED59:$IG59),0)),"") ->  | DW59: =IFERROR(INDEX($ED59:$IG59,MATCH(0,COUNTIF($DO59:DV59,$ED59:$IG59),0)),"") ->  | DX59: =IFERROR(INDEX($ED59:$IG59,MATCH(0,COUNTIF($DO59:DW59,$ED59:$IG59),0)),"") ->  | DY59: =IFERROR(INDEX($ED59:$IG59,MATCH(0,COUNTIF($DO59:DX59,$ED59:$IG59),0)),"") ->  | DZ59: =IFERROR(INDEX($ED59:$IG59,MATCH(0,COUNTIF($DO59:DY59,$ED59:$IG59),0)),"") ->  | EA59: =IFERROR(INDEX($ED59:$IG59,MATCH(0,COUNTIF($DO59:DZ59,$ED59:$IG59),0)),"") ->  | GB59: {Measure:Quantity} | IK59: 1
A60: C&I Commercial Kitchen Solutions | B60: G21 Steamer - 3 Pan | C60: G21 - G213P | D60: 2018-07-01 | E60: 2019-06-30 | F60: Per Measure | G60: $260.00 | H60: 0 | I60: Calculated | J60: {Measure:Quantity}*300 | K60: 0 | L60: 2016-11-01 | M60: 2019-06-30 | N60: Calculated | W60: {Measure:Quantity} * 766 | AC60: 2017-07-01 | AD60: 2019-06-30 | AE60: 12 | AF60: 0 | AG60: 0 | AH60: 1 | AI60: 0 | AJ60: 0 | AK60: 0 | AL60: 1 | AM60: 1 | AN60: 0 | AO60: 0.25 | AP60: 0 | AR60: {Measure:Quantity} | AS60: 1 | BL60: 0 | BM60: 0 | BN60: 0 | BO60: 0 | BP60: 0 | BQ60: 0 | BR60: 0 | BS60: 0 | BT60: =AS60 * 766 -> 766 | BU60: 0 | BV60: 0 | BW60: 0 | BX60: 0 | BY60: 0 | BZ60: Res | CA60: Default DR | CB60: =Benefits(BL60,BR60,BS60,BT60,BU60,BV60,BW60,BX60,BY60,AE60,AH60,AI60,AJ60,AK60,AL60,AM60,AN60,AO60,AP60,BZ60,CA60) -> 0 | CC60: 0 | CD60: 7400.814879 | CE60: 0 | CF60: 0 | CG60: 0 | CH60: 0 | CI60: 0 | CJ60: 7400.814879 | CK60: 0 | CM60: =260 -> 260 | CP60: 260 | CQ60: 1 | CR60: 24.66938293 | CS60: 1 | CT60: 300 | CV60: NG | CX60: X=$260.00 | CZ60: 0 | DA60: 0 | DB60: 0 | DC60: 0 | DD60: 0 | DE60: 0 | DF60: 0 | DG60: 0 | DH60: X=AS60 * 766 | DI60: 0 | DJ60: 0 | DK60: 0 | DL60: 0 | DM60: 0 | DP60: {Factor:WinterCF} | DQ60: {Factor:SummerCF} | DR60: =IFERROR(INDEX($ED60:$IG60,MATCH(0,COUNTIF($DO60:DQ60,$ED60:$IG60),0)),"") -> {Measure:Quantity} | DS60: =IFERROR(INDEX($ED60:$IG60,MATCH(0,COUNTIF($DO60:DR60,$ED60:$IG60),0)),"") ->  | DT60: =IFERROR(INDEX($ED60:$IG60,MATCH(0,COUNTIF($DO60:DS60,$ED60:$IG60),0)),"") ->  | DU60: =IFERROR(INDEX($ED60:$IG60,MATCH(0,COUNTIF($DO60:DT60,$ED60:$IG60),0)),"") ->  | DV60: =IFERROR(INDEX($ED60:$IG60,MATCH(0,COUNTIF($DO60:DU60,$ED60:$IG60),0)),"") ->  | DW60: =IFERROR(INDEX($ED60:$IG60,MATCH(0,COUNTIF($DO60:DV60,$ED60:$IG60),0)),"") ->  | DX60: =IFERROR(INDEX($ED60:$IG60,MATCH(0,COUNTIF($DO60:DW60,$ED60:$IG60),0)),"") ->  | DY60: =IFERROR(INDEX($ED60:$IG60,MATCH(0,COUNTIF($DO60:DX60,$ED60:$IG60),0)),"") ->  | DZ60: =IFERROR(INDEX($ED60:$IG60,MATCH(0,COUNTIF($DO60:DY60,$ED60:$IG60),0)),"") ->  | EA60: =IFERROR(INDEX($ED60:$IG60,MATCH(0,COUNTIF($DO60:DZ60,$ED60:$IG60),0)),"") ->  | GB60: {Measure:Quantity} | IK60: 1
A61: C&I Commercial Kitchen Solutions | B61: G21 Steamer - 5 Pan | C61: G21 - G215P | D61: 2018-07-01 | E61: 2019-06-30 | F61: Per Measure | G61: $0.00 | H61: 0 | I61: Calculated | J61: {Measure:Quantity}*300 | K61: 0 | L61: 2016-11-01 | M61: 2019-06-30 | N61: Calculated | W61: {Measure:Quantity} * 962 | AC61: 2017-07-01 | AD61: 2019-06-30 | AE61: 12 | AF61: 0 | AG61: 0 | AH61: 1 | AI61: 0 | AJ61: 0 | AK61: 0 | AL61: 1 | AM61: 1 | AN61: 0 | AO61: 0.25 | AP61: 0 | AR61: {Measure:Quantity} | AS61: 1 | BL61: 0 | BM61: 0 | BN61: 0 | BO61: 0 | BP61: 0 | BQ61: 0 | BR61: 0 | BS61: 0 | BT61: =AS61 * 962 -> 962 | BU61: 0 | BV61: 0 | BW61: 0 | BX61: 0 | BY61: 0 | BZ61: Res | CA61: Default DR | CB61: =Benefits(BL61,BR61,BS61,BT61,BU61,BV61,BW61,BX61,BY61,AE61,AH61,AI61,AJ61,AK61,AL61,AM61,AN61,AO61,AP61,BZ61,CA61) -> 0 | CC61: 0 | CD61: 9294.495971 | CE61: 0 | CF61: 0 | CG61: 0 | CH61: 0 | CI61: 0 | CJ61: 9294.495971 | CK61: 0 | CM61: =0 -> 0 | CP61: 0 | CQ61: 1 | CR61: 30.98165324 | CS61: 1 | CT61: 300 | CV61: NG | CX61: X=$0.00 | CZ61: 0 | DA61: 0 | DB61: 0 | DC61: 0 | DD61: 0 | DE61: 0 | DF61: 0 | DG61: 0 | DH61: X=AS61 * 962 | DI61: 0 | DJ61: 0 | DK61: 0 | DL61: 0 | DM61: 0 | DP61: {Factor:WinterCF} | DQ61: {Factor:SummerCF} | DR61: =IFERROR(INDEX($ED61:$IG61,MATCH(0,COUNTIF($DO61:DQ61,$ED61:$IG61),0)),"") -> {Measure:Quantity} | DS61: =IFERROR(INDEX($ED61:$IG61,MATCH(0,COUNTIF($DO61:DR61,$ED61:$IG61),0)),"") ->  | DT61: =IFERROR(INDEX($ED61:$IG61,MATCH(0,COUNTIF($DO61:DS61,$ED61:$IG61),0)),"") ->  | DU61: =IFERROR(INDEX($ED61:$IG61,MATCH(0,COUNTIF($DO61:DT61,$ED61:$IG61),0)),"") ->  | DV61: =IFERROR(INDEX($ED61:$IG61,MATCH(0,COUNTIF($DO61:DU61,$ED61:$IG61),0)),"") ->  | DW61: =IFERROR(INDEX($ED61:$IG61,MATCH(0,COUNTIF($DO61:DV61,$ED61:$IG61),0)),"") ->  | DX61: =IFERROR(INDEX($ED61:$IG61,MATCH(0,COUNTIF($DO61:DW61,$ED61:$IG61),0)),"") ->  | DY61: =IFERROR(INDEX($ED61:$IG61,MATCH(0,COUNTIF($DO61:DX61,$ED61:$IG61),0)),"") ->  | DZ61: =IFERROR(INDEX($ED61:$IG61,MATCH(0,COUNTIF($DO61:DY61,$ED61:$IG61),0)),"") ->  | EA61: =IFERROR(INDEX($ED61:$IG61,MATCH(0,COUNTIF($DO61:DZ61,$ED61:$IG61),0)),"") ->  | GB61: {Measure:Quantity} | IK61: 1
A62: C&I Commercial Kitchen Solutions | B62: G21 Steamer - 6 Pan | C62: G21 - G216P | D62: 2018-07-01 | E62: 2019-06-30 | F62: Per Measure | G62: $870.00 | H62: 0 | I62: Calculated | J62: {Measure:Quantity}*300 | K62: 0 | L62: 2016-11-01 | M62: 2019-06-30 | N62: Calculated | W62: {Measure:Quantity} * 1054 | AC62: 2017-07-01 | AD62: 2019-06-30 | AE62: 12 | AF62: 0 | AG62: 0 | AH62: 1 | AI62: 0 | AJ62: 0 | AK62: 0 | AL62: 1 | AM62: 1 | AN62: 0 | AO62: 0.25 | AP62: 0 | AR62: {Measure:Quantity} | AS62: 1 | BL62: 0 | BM62: 0 | BN62: 0 | BO62: 0 | BP62: 0 | BQ62: 0 | BR62: 0 | BS62: 0 | BT62: =AS62 * 1054 -> 1054 | BU62: 0 | BV62: 0 | BW62: 0 | BX62: 0 | BY62: 0 | BZ62: Res | CA62: Default DR | CB62: =Benefits(BL62,BR62,BS62,BT62,BU62,BV62,BW62,BX62,BY62,AE62,AH62,AI62,AJ62,AK62,AL62,AM62,AN62,AO62,AP62,BZ62,CA62) -> 0 | CC62: 0 | CD62: 10183.36669 | CE62: 0 | CF62: 0 | CG62: 0 | CH62: 0 | CI62: 0 | CJ62: 10183.36669 | CK62: 0 | CM62: =870 -> 870 | CP62: 870 | CQ62: 1 | CR62: 11.70501918 | CS62: 1 | CT62: 300 | CV62: NG | CX62: X=$870.00 | CZ62: 0 | DA62: 0 | DB62: 0 | DC62: 0 | DD62: 0 | DE62: 0 | DF62: 0 | DG62: 0 | DH62: X=AS62 * 1054 | DI62: 0 | DJ62: 0 | DK62: 0 | DL62: 0 | DM62: 0 | DP62: {Factor:WinterCF} | DQ62: {Factor:SummerCF} | DR62: =IFERROR(INDEX($ED62:$IG62,MATCH(0,COUNTIF($DO62:DQ62,$ED62:$IG62),0)),"") -> {Measure:Quantity} | DS62: =IFERROR(INDEX($ED62:$IG62,MATCH(0,COUNTIF($DO62:DR62,$ED62:$IG62),0)),"") ->  | DT62: =IFERROR(INDEX($ED62:$IG62,MATCH(0,COUNTIF($DO62:DS62,$ED62:$IG62),0)),"") ->  | DU62: =IFERROR(INDEX($ED62:$IG62,MATCH(0,COUNTIF($DO62:DT62,$ED62:$IG62),0)),"") ->  | DV62: =IFERROR(INDEX($ED62:$IG62,MATCH(0,COUNTIF($DO62:DU62,$ED62:$IG62),0)),"") ->  | DW62: =IFERROR(INDEX($ED62:$IG62,MATCH(0,COUNTIF($DO62:DV62,$ED62:$IG62),0)),"") ->  | DX62: =IFERROR(INDEX($ED62:$IG62,MATCH(0,COUNTIF($DO62:DW62,$ED62:$IG62),0)),"") ->  | DY62: =IFERROR(INDEX($ED62:$IG62,MATCH(0,COUNTIF($DO62:DX62,$ED62:$IG62),0)),"") ->  | DZ62: =IFERROR(INDEX($ED62:$IG62,MATCH(0,COUNTIF($DO62:DY62,$ED62:$IG62),0)),"") ->  | EA62: =IFERROR(INDEX($ED62:$IG62,MATCH(0,COUNTIF($DO62:DZ62,$ED62:$IG62),0)),"") ->  | GB62: {Measure:Quantity} | IK62: 1
A63: C&I Commercial Kitchen Solutions | B63: G22 Griddle - 2 ft wide | C63: G22 - G22 2ft | D63: 2018-07-01 | E63: 2019-06-30 | F63: Per Measure | G63: $360.00 | H63: 0 | I63: Calculated | J63: {Measure:Quantity}*275 | K63: 0 | L63: 2016-11-01 | M63: 2019-06-30 | N63: Calculated | W63: {Measure:Quantity} * 57 | AC63: 2017-07-01 | AD63: 2019-06-30 | AE63: 12 | AF63: 0 | AG63: 0 | AH63: 1 | AI63: 0 | AJ63: 0 | AK63: 0 | AL63: 1 | AM63: 1 | AN63: 0 | AO63: 0.25 | AP63: 0 | AR63: {Measure:Quantity} | AS63: 1 | BL63: 0 | BM63: 0 | BN63: 0 | BO63: 0 | BP63: 0 | BQ63: 0 | BR63: 0 | BS63: 0 | BT63: =AS63 * 57 -> 57 | BU63: 0 | BV63: 0 | BW63: 0 | BX63: 0 | BY63: 0 | BZ63: Res | CA63: Default DR | CB63: =Benefits(BL63,BR63,BS63,BT63,BU63,BV63,BW63,BX63,BY63,AE63,AH63,AI63,AJ63,AK63,AL63,AM63,AN63,AO63,AP63,BZ63,CA63) -> 0 | CC63: 0 | CD63: 550.7133787 | CE63: 0 | CF63: 0 | CG63: 0 | CH63: 0 | CI63: 0 | CJ63: 550.7133787 | CK63: 0 | CM63: =360 -> 360 | CP63: 360 | CQ63: 1 | CR63: 1.529759385 | CS63: 1 | CT63: 5 | CV63: NG | CX63: X=$360.00 | CZ63: 0 | DA63: 0 | DB63: 0 | DC63: 0 | DD63: 0 | DE63: 0 | DF63: 0 | DG63: 0 | DH63: X=AS63 * 57 | DI63: 0 | DJ63: 0 | DK63: 0 | DL63: 0 | DM63: 0 | DP63: {Factor:WinterCF} | DQ63: {Factor:SummerCF} | DR63: =IFERROR(INDEX($ED63:$IG63,MATCH(0,COUNTIF($DO63:DQ63,$ED63:$IG63),0)),"") -> {Measure:Quantity} | DS63: =IFERROR(INDEX($ED63:$IG63,MATCH(0,COUNTIF($DO63:DR63,$ED63:$IG63),0)),"") ->  | DT63: =IFERROR(INDEX($ED63:$IG63,MATCH(0,COUNTIF($DO63:DS63,$ED63:$IG63),0)),"") ->  | DU63: =IFERROR(INDEX($ED63:$IG63,MATCH(0,COUNTIF($DO63:DT63,$ED63:$IG63),0)),"") ->  | DV63: =IFERROR(INDEX($ED63:$IG63,MATCH(0,COUNTIF($DO63:DU63,$ED63:$IG63),0)),"") ->  | DW63: =IFERROR(INDEX($ED63:$IG63,MATCH(0,COUNTIF($DO63:DV63,$ED63:$IG63),0)),"") ->  | DX63: =IFERROR(INDEX($ED63:$IG63,MATCH(0,COUNTIF($DO63:DW63,$ED63:$IG63),0)),"") ->  | DY63: =IFERROR(INDEX($ED63:$IG63,MATCH(0,COUNTIF($DO63:DX63,$ED63:$IG63),0)),"") ->  | DZ63: =IFERROR(INDEX($ED63:$IG63,MATCH(0,COUNTIF($DO63:DY63,$ED63:$IG63),0)),"") ->  | EA63: =IFERROR(INDEX($ED63:$IG63,MATCH(0,COUNTIF($DO63:DZ63,$ED63:$IG63),0)),"") ->  | GB63: {Measure:Quantity} | IK63: 1
A64: C&I Commercial Kitchen Solutions | B64: G22 Griddle - 3 ft wide | C64: G22 - G22 3ft | D64: 2018-07-01 | E64: 2019-06-30 | F64: Per Measure | G64: $360.00 | H64: 0 | I64: Calculated | J64: {Measure:Quantity}*275 | K64: 0 | L64: 2016-11-01 | M64: 2019-06-30 | N64: Calculated | W64: {Measure:Quantity} * 131 | AC64: 2017-07-01 | AD64: 2019-06-30 | AE64: 12 | AF64: 0 | AG64: 0 | AH64: 1 | AI64: 0 | AJ64: 0 | AK64: 0 | AL64: 1 | AM64: 1 | AN64: 0 | AO64: 0.25 | AP64: 0 | AR64: {Measure:Quantity} | AS64: 1 | BL64: 0 | BM64: 0 | BN64: 0 | BO64: 0 | BP64: 0 | BQ64: 0 | BR64: 0 | BS64: 0 | BT64: =AS64 * 131 -> 131 | BU64: 0 | BV64: 0 | BW64: 0 | BX64: 0 | BY64: 0 | BZ64: Res | CA64: Default DR | CB64: =Benefits(BL64,BR64,BS64,BT64,BU64,BV64,BW64,BX64,BY64,AE64,AH64,AI64,AJ64,AK64,AL64,AM64,AN64,AO64,AP64,BZ64,CA64) -> 0 | CC64: 0 | CD64: 1265.674607 | CE64: 0 | CF64: 0 | CG64: 0 | CH64: 0 | CI64: 0 | CJ64: 1265.674607 | CK64: 0 | CM64: =360 -> 360 | CP64: 360 | CQ64: 1 | CR64: 3.515762798 | CS64: 1 | CT64: 275 | CV64: NG | CX64: X=$360.00 | CZ64: 0 | DA64: 0 | DB64: 0 | DC64: 0 | DD64: 0 | DE64: 0 | DF64: 0 | DG64: 0 | DH64: X=AS64 * 131 | DI64: 0 | DJ64: 0 | DK64: 0 | DL64: 0 | DM64: 0 | DP64: {Factor:WinterCF} | DQ64: {Factor:SummerCF} | DR64: =IFERROR(INDEX($ED64:$IG64,MATCH(0,COUNTIF($DO64:DQ64,$ED64:$IG64),0)),"") -> {Measure:Quantity} | DS64: =IFERROR(INDEX($ED64:$IG64,MATCH(0,COUNTIF($DO64:DR64,$ED64:$IG64),0)),"") ->  | DT64: =IFERROR(INDEX($ED64:$IG64,MATCH(0,COUNTIF($DO64:DS64,$ED64:$IG64),0)),"") ->  | DU64: =IFERROR(INDEX($ED64:$IG64,MATCH(0,COUNTIF($DO64:DT64,$ED64:$IG64),0)),"") ->  | DV64: =IFERROR(INDEX($ED64:$IG64,MATCH(0,COUNTIF($DO64:DU64,$ED64:$IG64),0)),"") ->  | DW64: =IFERROR(INDEX($ED64:$IG64,MATCH(0,COUNTIF($DO64:DV64,$ED64:$IG64),0)),"") ->  | DX64: =IFERROR(INDEX($ED64:$IG64,MATCH(0,COUNTIF($DO64:DW64,$ED64:$IG64),0)),"") ->  | DY64: =IFERROR(INDEX($ED64:$IG64,MATCH(0,COUNTIF($DO64:DX64,$ED64:$IG64),0)),"") ->  | DZ64: =IFERROR(INDEX($ED64:$IG64,MATCH(0,COUNTIF($DO64:DY64,$ED64:$IG64),0)),"") ->  | EA64: =IFERROR(INDEX($ED64:$IG64,MATCH(0,COUNTIF($DO64:DZ64,$ED64:$IG64),0)),"") ->  | ED64: =IFERROR(MID($G64,FIND(CHAR(160),SUBSTITUTE($G64,"{",CHAR(160),ED$1)),FIND(CHAR(160),SUBSTITUTE($G64,"}",CHAR(160),ED$1))-FIND(CHAR(160),SUBSTITUTE($G64,"{",CHAR(160),ED$1))+1),"") ->  | EN64: =IFERROR(MID($O64,FIND(CHAR(160),SUBSTITUTE($O64,"{",CHAR(160),EN$1)),FIND(CHAR(160),SUBSTITUTE($O64,"}",CHAR(160),EN$1))-FIND(CHAR(160),SUBSTITUTE($O64,"{",CHAR(160),EN$1))+1),"") ->  | EX64: =IFERROR(MID($R64,FIND(CHAR(160),SUBSTITUTE($R64,"{",CHAR(160),EX$1)),FIND(CHAR(160),SUBSTITUTE($R64,"}",CHAR(160),EX$1))-FIND(CHAR(160),SUBSTITUTE($R64,"{",CHAR(160),EX$1))+1),"") ->  | FH64: =IFERROR(MID($U64,FIND(CHAR(160),SUBSTITUTE($U64,"{",CHAR(160),FH$1)),FIND(CHAR(160),SUBSTITUTE($U64,"}",CHAR(160),FH$1))-FIND(CHAR(160),SUBSTITUTE($U64,"{",CHAR(160),FH$1))+1),"") ->  | FR64: =IFERROR(MID($V64,FIND(CHAR(160),SUBSTITUTE($V64,"{",CHAR(160),FR$1)),FIND(CHAR(160),SUBSTITUTE($V64,"}",CHAR(160),FR$1))-FIND(CHAR(160),SUBSTITUTE($V64,"{",CHAR(160),FR$1))+1),"") ->  | GB64: =IFERROR(MID($W64,FIND(CHAR(160),SUBSTITUTE($W64,"{",CHAR(160),GB$1)),FIND(CHAR(160),SUBSTITUTE($W64,"}",CHAR(160),GB$1))-FIND(CHAR(160),SUBSTITUTE($W64,"{",CHAR(160),GB$1))+1),"") -> {Measure:Quantity} | GL64: =IFERROR(MID($X64,FIND(CHAR(160),SUBSTITUTE($X64,"{",CHAR(160),GL$1)),FIND(CHAR(160),SUBSTITUTE($X64,"}",CHAR(160),GL$1))-FIND(CHAR(160),SUBSTITUTE($X64,"{",CHAR(160),GL$1))+1),"") ->  | GV64: =IFERROR(MID($Y64,FIND(CHAR(160),SUBSTITUTE($Y64,"{",CHAR(160),GV$1)),FIND(CHAR(160),SUBSTITUTE($Y64,"}",CHAR(160),GV$1))-FIND(CHAR(160),SUBSTITUTE($Y64,"{",CHAR(160),GV$1))+1),"") ->  | HF64: =IFERROR(MID($Z64,FIND(CHAR(160),SUBSTITUTE($Z64,"{",CHAR(160),HF$1)),FIND(CHAR(160),SUBSTITUTE($Z64,"}",CHAR(160),HF$1))-FIND(CHAR(160),SUBSTITUTE($Z64,"{",CHAR(160),HF$1))+1),"") ->  | HP64: =IFERROR(MID($AA64,FIND(CHAR(160),SUBSTITUTE($AA64,"{",CHAR(160),HP$1)),FIND(CHAR(160),SUBSTITUTE($AA64,"}",CHAR(160),HP$1))-FIND(CHAR(160),SUBSTITUTE($AA64,"{",CHAR(160),HP$1))+1),"") ->  | HZ64: =IFERROR(MID($AB64,FIND(CHAR(160),SUBSTITUTE($AB64,"{",CHAR(160),HZ$1)),FIND(CHAR(160),SUBSTITUTE($AB64,"}",CHAR(160),HZ$1))-FIND(CHAR(160),SUBSTITUTE($AB64,"{",CHAR(160),HZ$1))+1),"") ->  | IK64: 1
A65: C&I Commercial Kitchen Solutions | B65: G22 Griddle - 4 ft wide | C65: G22 - G22 4ft | D65: 2018-07-01 | E65: 2019-06-30 | F65: Per Measure | G65: $360.00 | H65: 0 | I65: Calculated | J65: {Measure:Quantity}*275 | K65: 0 | L65: 2016-11-01 | M65: 2019-06-30 | N65: Calculated | W65: {Measure:Quantity} * 206 | AC65: 2017-07-01 | AD65: 2019-06-30 | AE65: 12 | AF65: 0 | AG65: 0 | AH65: 1 | AI65: 0 | AJ65: 0 | AK65: 0 | AL65: 1 | AM65: 1 | AN65: 0 | AO65: 0.25 | AP65: 0 | AR65: {Measure:Quantity} | AS65: 1 | BL65: 0 | BM65: 0 | BN65: 0 | BO65: 0 | BP65: 0 | BQ65: 0 | BR65: 0 | BS65: 0 | BT65: =AS65 * 206 -> 206 | BU65: 0 | BV65: 0 | BW65: 0 | BX65: 0 | BY65: 0 | BZ65: Res | CA65: Default DR | CB65: =Benefits(BL65,BR65,BS65,BT65,BU65,BV65,BW65,BX65,BY65,AE65,AH65,AI65,AJ65,AK65,AL65,AM65,AN65,AO65,AP65,BZ65,CA65) -> 0 | CC65: 0 | CD65: 1990.297474 | CE65: 0 | CF65: 0 | CG65: 0 | CH65: 0 | CI65: 0 | CJ65: 1990.297474 | CK65: 0 | CM65: =360 -> 360 | CP65: 360 | CQ65: 1 | CR65: 5.528604095 | CS65: 1 | CT65: 275 | CV65: NG | CX65: X=$360.00 | CZ65: 0 | DA65: 0 | DB65: 0 | DC65: 0 | DD65: 0 | DE65: 0 | DF65: 0 | DG65: 0 | DH65: X=AS65 * 206 | DI65: 0 | DJ65: 0 | DK65: 0 | DL65: 0 | DM65: 0 | DP65: {Factor:WinterCF} | DQ65: {Factor:SummerCF} | DR65: =IFERROR(INDEX($ED65:$IG65,MATCH(0,COUNTIF($DO65:DQ65,$ED65:$IG65),0)),"") -> {Measure:Quantity} | DS65: =IFERROR(INDEX($ED65:$IG65,MATCH(0,COUNTIF($DO65:DR65,$ED65:$IG65),0)),"") ->  | DT65: =IFERROR(INDEX($ED65:$IG65,MATCH(0,COUNTIF($DO65:DS65,$ED65:$IG65),0)),"") ->  | DU65: =IFERROR(INDEX($ED65:$IG65,MATCH(0,COUNTIF($DO65:DT65,$ED65:$IG65),0)),"") ->  | DV65: =IFERROR(INDEX($ED65:$IG65,MATCH(0,COUNTIF($DO65:DU65,$ED65:$IG65),0)),"") ->  | DW65: =IFERROR(INDEX($ED65:$IG65,MATCH(0,COUNTIF($DO65:DV65,$ED65:$IG65),0)),"") ->  | DX65: =IFERROR(INDEX($ED65:$IG65,MATCH(0,COUNTIF($DO65:DW65,$ED65:$IG65),0)),"") ->  | DY65: =IFERROR(INDEX($ED65:$IG65,MATCH(0,COUNTIF($DO65:DX65,$ED65:$IG65),0)),"") ->  | DZ65: =IFERROR(INDEX($ED65:$IG65,MATCH(0,COUNTIF($DO65:DY65,$ED65:$IG65),0)),"") ->  | EA65: =IFERROR(INDEX($ED65:$IG65,MATCH(0,COUNTIF($DO65:DZ65,$ED65:$IG65),0)),"") ->  | GB65: {Measure:Quantity} | IK65: 1
A66: C&I Commercial Kitchen Solutions | B66: G22 Griddle - 5 ft wide | C66: G22 - G22 5ft | D66: 2018-07-01 | E66: 2019-06-30 | F66: Per Measure | G66: $360.00 | H66: 0 | I66: Calculated | J66: {Measure:Quantity}*275 | K66: 0 | L66: 2016-11-01 | M66: 2019-06-30 | N66: Calculated | W66: {Measure:Quantity} * 280 | AC66: 2017-07-01 | AD66: 2019-06-30 | AE66: 12 | AF66: 0 | AG66: 0 | AH66: 1 | AI66: 0 | AJ66: 0 | AK66: 0 | AL66: 1 | AM66: 1 | AN66: 0 | AO66: 0.25 | AP66: 0 | AR66: {Measure:Quantity} | AS66: 1 | BL66: 0 | BM66: 0 | BN66: 0 | BO66: 0 | BP66: 0 | BQ66: 0 | BR66: 0 | BS66: 0 | BT66: =AS66 * 280 -> 280 | BU66: 0 | BV66: 0 | BW66: 0 | BX66: 0 | BY66: 0 | BZ66: Res | CA66: Default DR | CB66: =Benefits(BL66,BR66,BS66,BT66,BU66,BV66,BW66,BX66,BY66,AE66,AH66,AI66,AJ66,AK66,AL66,AM66,AN66,AO66,AP66,BZ66,CA66) -> 0 | CC66: 0 | CD66: 2705.258703 | CE66: 0 | CF66: 0 | CG66: 0 | CH66: 0 | CI66: 0 | CJ66: 2705.258703 | CK66: 0 | CM66: =360 -> 360 | CP66: 360 | CQ66: 1 | CR66: 7.514607507 | CS66: 1 | CT66: 275 | CV66: NG | CX66: X=$360.00 | CZ66: 0 | DA66: 0 | DB66: 0 | DC66: 0 | DD66: 0 | DE66: 0 | DF66: 0 | DG66: 0 | DH66: X=AS66 * 280 | DI66: 0 | DJ66: 0 | DK66: 0 | DL66: 0 | DM66: 0 | DP66: {Factor:WinterCF} | DQ66: {Factor:SummerCF} | DR66: =IFERROR(INDEX($ED66:$IG66,MATCH(0,COUNTIF($DO66:DQ66,$ED66:$IG66),0)),"") -> {Measure:Quantity} | DS66: =IFERROR(INDEX($ED66:$IG66,MATCH(0,COUNTIF($DO66:DR66,$ED66:$IG66),0)),"") ->  | DT66: =IFERROR(INDEX($ED66:$IG66,MATCH(0,COUNTIF($DO66:DS66,$ED66:$IG66),0)),"") ->  | DU66: =IFERROR(INDEX($ED66:$IG66,MATCH(0,COUNTIF($DO66:DT66,$ED66:$IG66),0)),"") ->  | DV66: =IFERROR(INDEX($ED66:$IG66,MATCH(0,COUNTIF($DO66:DU66,$ED66:$IG66),0)),"") ->  | DW66: =IFERROR(INDEX($ED66:$IG66,MATCH(0,COUNTIF($DO66:DV66,$ED66:$IG66),0)),"") ->  | DX66: =IFERROR(INDEX($ED66:$IG66,MATCH(0,COUNTIF($DO66:DW66,$ED66:$IG66),0)),"") ->  | DY66: =IFERROR(INDEX($ED66:$IG66,MATCH(0,COUNTIF($DO66:DX66,$ED66:$IG66),0)),"") ->  | DZ66: =IFERROR(INDEX($ED66:$IG66,MATCH(0,COUNTIF($DO66:DY66,$ED66:$IG66),0)),"") ->  | EA66: =IFERROR(INDEX($ED66:$IG66,MATCH(0,COUNTIF($DO66:DZ66,$ED66:$IG66),0)),"") ->  | GB66: {Measure:Quantity} | IK66: 1
A67: C&I Commercial Kitchen Solutions | B67: G22 Griddle - 6 ft wide | C67: G22 - G22 6ft | D67: 2018-07-01 | E67: 2019-06-30 | F67: Per Measure | G67: $360.00 | H67: 0 | I67: Calculated | J67: {Measure:Quantity}*275 | K67: 0 | L67: 2016-11-01 | M67: 2019-06-30 | N67: Calculated | W67: {Measure:Quantity} * 355 | AC67: 2017-07-01 | AD67: 2019-06-30 | AE67: 12 | AF67: 0 | AG67: 0 | AH67: 1 | AI67: 0 | AJ67: 0 | AK67: 0 | AL67: 1 | AM67: 1 | AN67: 0 | AO67: 0.25 | AP67: 0 | AR67: {Measure:Quantity} | AS67: 1 | BL67: 0 | BM67: 0 | BN67: 0 | BO67: 0 | BP67: 0 | BQ67: 0 | BR67: 0 | BS67: 0 | BT67: =AS67 * 355 -> 355 | BU67: 0 | BV67: 0 | BW67: 0 | BX67: 0 | BY67: 0 | BZ67: Res | CA67: Default DR | CB67: =Benefits(BL67,BR67,BS67,BT67,BU67,BV67,BW67,BX67,BY67,AE67,AH67,AI67,AJ67,AK67,AL67,AM67,AN67,AO67,AP67,BZ67,CA67) -> 0 | CC67: 0 | CD67: 3429.881569 | CE67: 0 | CF67: 0 | CG67: 0 | CH67: 0 | CI67: 0 | CJ67: 3429.881569 | CK67: 0 | CM67: =360 -> 360 | CP67: 360 | CQ67: 1 | CR67: 9.527448804 | CS67: 1 | CT67: 275 | CV67: NG | CX67: X=$360.00 | CZ67: 0 | DA67: 0 | DB67: 0 | DC67: 0 | DD67: 0 | DE67: 0 | DF67: 0 | DG67: 0 | DH67: X=AS67 * 355 | DI67: 0 | DJ67: 0 | DK67: 0 | DL67: 0 | DM67: 0 | DP67: {Factor:WinterCF} | DQ67: {Factor:SummerCF} | DR67: =IFERROR(INDEX($ED67:$IG67,MATCH(0,COUNTIF($DO67:DQ67,$ED67:$IG67),0)),"") -> {Measure:Quantity} | DS67: =IFERROR(INDEX($ED67:$IG67,MATCH(0,COUNTIF($DO67:DR67,$ED67:$IG67),0)),"") ->  | DT67: =IFERROR(INDEX($ED67:$IG67,MATCH(0,COUNTIF($DO67:DS67,$ED67:$IG67),0)),"") ->  | DU67: =IFERROR(INDEX($ED67:$IG67,MATCH(0,COUNTIF($DO67:DT67,$ED67:$IG67),0)),"") ->  | DV67: =IFERROR(INDEX($ED67:$IG67,MATCH(0,COUNTIF($DO67:DU67,$ED67:$IG67),0)),"") ->  | DW67: =IFERROR(INDEX($ED67:$IG67,MATCH(0,COUNTIF($DO67:DV67,$ED67:$IG67),0)),"") ->  | DX67: =IFERROR(INDEX($ED67:$IG67,MATCH(0,COUNTIF($DO67:DW67,$ED67:$IG67),0)),"") ->  | DY67: =IFERROR(INDEX($ED67:$IG67,MATCH(0,COUNTIF($DO67:DX67,$ED67:$IG67),0)),"") ->  | DZ67: =IFERROR(INDEX($ED67:$IG67,MATCH(0,COUNTIF($DO67:DY67,$ED67:$IG67),0)),"") ->  | EA67: =IFERROR(INDEX($ED67:$IG67,MATCH(0,COUNTIF($DO67:DZ67,$ED67:$IG67),0)),"") ->  | GB67: {Measure:Quantity} | IK67: 1
A68: C&I Commercial Kitchen Solutions | B68: R80 Commercial Energy Star Reach-in Cooler & Freezers | C68: R80 | D68: 2018-07-01 | E68: 2019-06-30 | F68: Per Measure | G68: $155.00 | H68: 0 | I68: Per Measure | J68: $75.00 | K68: 0 | L68: 2016-11-01 | M68: 2019-06-30 | N68: Calculated | O68: {Measure:Quantity} * {Energy Savings - kWh Per Year} | P68: 0.0001 | R68: {Measure:Quantity} * {Energy Savings - kWh Per Year} / 5858 | U68: {Measure:Quantity} * {Energy Savings - kWh Per Year} / 5858 * {Factor:WinterCF} | V68: {Measure:Quantity} * {Energy Savings - kWh Per Year} / 5858 * {Factor:SummerCF} | AC68: 2017-07-01 | AD68: 2019-06-30 | AE68: 12 | AF68: 0.509 | AG68: 0.74 | AH68: 0.33 | AI68: 0.326 | AJ68: 0.17 | AK68: 0.174 | AL68: 1 | AM68: 1.122 | AN68: 1 | AO68: 0.52 | AP68: 0.016 | AR68: {Measure:Quantity} | AS68: 1 | AT68: {Energy Savings - kWh Per Year} | AU68: 252 | BL68: =AS68 * AU68 -> 252 | BM68: =0.0001 -> 0.0001 | BN68: 0 | BO68: =AS68 * AU68 / 5858 -> 0.04301809491 | BP68: 0 | BQ68: 0 | BR68: =AS68 * AU68 / 5858 * AF68 -> 0.02189621031 | BS68: =AS68 * AU68 / 5858 * AG68 -> 0.03183339024 | BT68: 0 | BU68: 0 | BV68: 0 | BW68: 0 | BX68: 0 | BY68: 0 | BZ68: Res | CA68: Default DR | CB68: =Benefits(BL68,BR68,BS68,BT68,BU68,BV68,BW68,BX68,BY68,AE68,AH68,AI68,AJ68,AK68,AL68,AM68,AN68,AO68,AP68,BZ68,CA68) -> 182.7937627 | CC68: 47.75479422 | CD68: 0 | CE68: 0 | CF68: 0 | CG68: 0 | CH68: 0 | CI68: 0 | CJ68: 230.5485569 | CK68: 0 | CM68: =155 -> 155 | CP68: 155 | CQ68: 1 | CR68: 1.487410045 | CS68: 1 | CT68: 25 | CV68: Electric | CX68: =IF(G68="",0,"X="&SUBSTITUTE(SUBSTITUTE(SUBSTITUTE(SUBSTITUTE(SUBSTITUTE(SUBSTITUTE(SUBSTITUTE(SUBSTITUTE(SUBSTITUTE(SUBSTITUTE(SUBSTITUTE(SUBSTITUTE(G68,$EA68,$EA$2&ROW($EA68)),$DZ68,$DZ$2&ROW($DZ68)),$DY68,$DY$2&ROW($DY68)),$DX68,$DX$2&ROW($DX68)),$DW68,$DW$2&ROW($DW68)),$DV68,$DV$2&ROW($DV68)),$DU68,$DU$2&ROW($DU68)),$DT68,$DT$2&ROW($DT68)),$DS68,$DS$2&ROW($DS68)),$DR68,$DR$2&ROW($DR68)),$DQ68,$DQ$2&ROW($DQ68)),$DP68,$DP$2&ROW($DP68))) -> X=$155.00 | CZ68: =IF(O68="",0,"X="&SUBSTITUTE(SUBSTITUTE(SUBSTITUTE(SUBSTITUTE(SUBSTITUTE(SUBSTITUTE(SUBSTITUTE(SUBSTITUTE(SUBSTITUTE(SUBSTITUTE(SUBSTITUTE(SUBSTITUTE(O68,$EA68,$EA$2&ROW($EA68)),$DZ68,$DZ$2&ROW($DZ68)),$DY68,$DY$2&ROW($DY68)),$DX68,$DX$2&ROW($DX68)),$DW68,$DW$2&ROW($DW68)),$DV68,$DV$2&ROW($DV68)),$DU68,$DU$2&ROW($DU68)),$DT68,$DT$2&ROW($DT68)),$DS68,$DS$2&ROW($DS68)),$DR68,$DR$2&ROW($DR68)),$DQ68,$DQ$2&ROW($DQ68)),$DP68,$DP$2&ROW($DP68))) -> X=AS68 * AU68 | DA68: =IF(P68="",0,"X="&SUBSTITUTE(SUBSTITUTE(SUBSTITUTE(SUBSTITUTE(SUBSTITUTE(SUBSTITUTE(SUBSTITUTE(SUBSTITUTE(SUBSTITUTE(SUBSTITUTE(SUBSTITUTE(SUBSTITUTE(P68,$EA68,$EA$2&ROW($EA68)),$DZ68,$DZ$2&ROW($DZ68)),$DY68,$DY$2&ROW($DY68)),$DX68,$DX$2&ROW($DX68)),$DW68,$DW$2&ROW($DW68)),$DV68,$DV$2&ROW($DV68)),$DU68,$DU$2&ROW($DU68)),$DT68,$DT$2&ROW($DT68)),$DS68,$DS$2&ROW($DS68)),$DR68,$DR$2&ROW($DR68)),$DQ68,$DQ$2&ROW($DQ68)),$DP68,$DP$2&ROW($DP68))) -> X=0.0001 | DB68: =IF(Q68="",0,"X="&SUBSTITUTE(SUBSTITUTE(SUBSTITUTE(SUBSTITUTE(SUBSTITUTE(SUBSTITUTE(SUBSTITUTE(SUBSTITUTE(SUBSTITUTE(SUBSTITUTE(SUBSTITUTE(SUBSTITUTE(Q68,$EA68,$EA$2&ROW($EA68)),$DZ68,$DZ$2&ROW($DZ68)),$DY68,$DY$2&ROW($DY68)),$DX68,$DX$2&ROW($DX68)),$DW68,$DW$2&ROW($DW68)),$DV68,$DV$2&ROW($DV68)),$DU68,$DU$2&ROW($DU68)),$DT68,$DT$2&ROW($DT68)),$DS68,$DS$2&ROW($DS68)),$DR68,$DR$2&ROW($DR68)),$DQ68,$DQ$2&ROW($DQ68)),$DP68,$DP$2&ROW($DP68))) -> 0 | DC68: =IF(R68="",0,"X="&SUBSTITUTE(SUBSTITUTE(SUBSTITUTE(SUBSTITUTE(SUBSTITUTE(SUBSTITUTE(SUBSTITUTE(SUBSTITUTE(SUBSTITUTE(SUBSTITUTE(SUBSTITUTE(SUBSTITUTE(R68,$EA68,$EA$2&ROW($EA68)),$DZ68,$DZ$2&ROW($DZ68)),$DY68,$DY$2&ROW($DY68)),$DX68,$DX$2&ROW($DX68)),$DW68,$DW$2&ROW($DW68)),$DV68,$DV$2&ROW($DV68)),$DU68,$DU$2&ROW($DU68)),$DT68,$DT$2&ROW($DT68)),$DS68,$DS$2&ROW($DS68)),$DR68,$DR$2&ROW($DR68)),$DQ68,$DQ$2&ROW($DQ68)),$DP68,$DP$2&ROW($DP68))) -> X=AS68 * AU68 / 5858 | DD68: =IF(S68="",0,"X="&SUBSTITUTE(SUBSTITUTE(SUBSTITUTE(SUBSTITUTE(SUBSTITUTE(SUBSTITUTE(SUBSTITUTE(SUBSTITUTE(SUBSTITUTE(SUBSTITUTE(SUBSTITUTE(SUBSTITUTE(S68,$EA68,$EA$2&ROW($EA68)),$DZ68,$DZ$2&ROW($DZ68)),$DY68,$DY$2&ROW($DY68)),$DX68,$DX$2&ROW($DX68)),$DW68,$DW$2&ROW($DW68)),$DV68,$DV$2&ROW($DV68)),$DU68,$DU$2&ROW($DU68)),$DT68,$DT$2&ROW($DT68)),$DS68,$DS$2&ROW($DS68)),$DR68,$DR$2&ROW($DR68)),$DQ68,$DQ$2&ROW($DQ68)),$DP68,$DP$2&ROW($DP68))) -> 0 | DE68: =IF(T68="",0,"X="&SUBSTITUTE(SUBSTITUTE(SUBSTITUTE(SUBSTITUTE(SUBSTITUTE(SUBSTITUTE(SUBSTITUTE(SUBSTITUTE(SUBSTITUTE(SUBSTITUTE(SUBSTITUTE(SUBSTITUTE(T68,$EA68,$EA$2&ROW($EA68)),$DZ68,$DZ$2&ROW($DZ68)),$DY68,$DY$2&ROW($DY68)),$DX68,$DX$2&ROW($DX68)),$DW68,$DW$2&ROW($DW68)),$DV68,$DV$2&ROW($DV68)),$DU68,$DU$2&ROW($DU68)),$DT68,$DT$2&ROW($DT68)),$DS68,$DS$2&ROW($DS68)),$DR68,$DR$2&ROW($DR68)),$DQ68,$DQ$2&ROW($DQ68)),$DP68,$DP$2&ROW($DP68))) -> 0 | DF68: =IF(U68="",0,"X="&SUBSTITUTE(SUBSTITUTE(SUBSTITUTE(SUBSTITUTE(SUBSTITUTE(SUBSTITUTE(SUBSTITUTE(SUBSTITUTE(SUBSTITUTE(SUBSTITUTE(SUBSTITUTE(SUBSTITUTE(U68,$EA68,$EA$2&ROW($EA68)),$DZ68,$DZ$2&ROW($DZ68)),$DY68,$DY$2&ROW($DY68)),$DX68,$DX$2&ROW($DX68)),$DW68,$DW$2&ROW($DW68)),$DV68,$DV$2&ROW($DV68)),$DU68,$DU$2&ROW($DU68)),$DT68,$DT$2&ROW($DT68)),$DS68,$DS$2&ROW($DS68)),$DR68,$DR$2&ROW($DR68)),$DQ68,$DQ$2&ROW($DQ68)),$DP68,$DP$2&ROW($DP68))) -> X=AS68 * AU68 / 5858 * AF68 | DG68: =IF(V68="",0,"X="&SUBSTITUTE(SUBSTITUTE(SUBSTITUTE(SUBSTITUTE(SUBSTITUTE(SUBSTITUTE(SUBSTITUTE(SUBSTITUTE(SUBSTITUTE(SUBSTITUTE(SUBSTITUTE(SUBSTITUTE(V68,$EA68,$EA$2&ROW($EA68)),$DZ68,$DZ$2&ROW($DZ68)),$DY68,$DY$2&ROW($DY68)),$DX68,$DX$2&ROW($DX68)),$DW68,$DW$2&ROW($DW68)),$DV68,$DV$2&ROW($DV68)),$DU68,$DU$2&ROW($DU68)),$DT68,$DT$2&ROW($DT68)),$DS68,$DS$2&ROW($DS68)),$DR68,$DR$2&ROW($DR68)),$DQ68,$DQ$2&ROW($DQ68)),$DP68,$DP$2&ROW($DP68))) -> X=AS68 * AU68 / 5858 * AG68 | DH68: =IF(W68="",0,"X="&SUBSTITUTE(SUBSTITUTE(SUBSTITUTE(SUBSTITUTE(SUBSTITUTE(SUBSTITUTE(SUBSTITUTE(SUBSTITUTE(SUBSTITUTE(SUBSTITUTE(SUBSTITUTE(SUBSTITUTE(W68,$EA68,$EA$2&ROW($EA68)),$DZ68,$DZ$2&ROW($DZ68)),$DY68,$DY$2&ROW($DY68)),$DX68,$DX$2&ROW($DX68)),$DW68,$DW$2&ROW($DW68)),$DV68,$DV$2&ROW($DV68)),$DU68,$DU$2&ROW($DU68)),$DT68,$DT$2&ROW($DT68)),$DS68,$DS$2&ROW($DS68)),$DR68,$DR$2&ROW($DR68)),$DQ68,$DQ$2&ROW($DQ68)),$DP68,$DP$2&ROW($DP68))) -> 0 | DI68: =IF(X68="",0,"X="&SUBSTITUTE(SUBSTITUTE(SUBSTITUTE(SUBSTITUTE(SUBSTITUTE(SUBSTITUTE(SUBSTITUTE(SUBSTITUTE(SUBSTITUTE(SUBSTITUTE(SUBSTITUTE(SUBSTITUTE(X68,$EA68,$EA$2&ROW($EA68)),$DZ68,$DZ$2&ROW($DZ68)),$DY68,$DY$2&ROW($DY68)),$DX68,$DX$2&ROW($DX68)),$DW68,$DW$2&ROW($DW68)),$DV68,$DV$2&ROW($DV68)),$DU68,$DU$2&ROW($DU68)),$DT68,$DT$2&ROW($DT68)),$DS68,$DS$2&ROW($DS68)),$DR68,$DR$2&ROW($DR68)),$DQ68,$DQ$2&ROW($DQ68)),$DP68,$DP$2&ROW($DP68))) -> 0 | DJ68: =IF(Y68="",0,"X="&SUBSTITUTE(SUBSTITUTE(SUBSTITUTE(SUBSTITUTE(SUBSTITUTE(SUBSTITUTE(SUBSTITUTE(SUBSTITUTE(SUBSTITUTE(SUBSTITUTE(SUBSTITUTE(SUBSTITUTE(Y68,$EA68,$EA$2&ROW($EA68)),$DZ68,$DZ$2&ROW($DZ68)),$DY68,$DY$2&ROW($DY68)),$DX68,$DX$2&ROW($DX68)),$DW68,$DW$2&ROW($DW68)),$DV68,$DV$2&ROW($DV68)),$DU68,$DU$2&ROW($DU68)),$DT68,$DT$2&ROW($DT68)),$DS68,$DS$2&ROW($DS68)),$DR68,$DR$2&ROW($DR68)),$DQ68,$DQ$2&ROW($DQ68)),$DP68,$DP$2&ROW($DP68))) -> 0 | DK68: =IF(Z68="",0,"X="&SUBSTITUTE(SUBSTITUTE(SUBSTITUTE(SUBSTITUTE(SUBSTITUTE(SUBSTITUTE(SUBSTITUTE(SUBSTITUTE(SUBSTITUTE(SUBSTITUTE(SUBSTITUTE(SUBSTITUTE(Z68,$EA68,$EA$2&ROW($EA68)),$DZ68,$DZ$2&ROW($DZ68)),$DY68,$DY$2&ROW($DY68)),$DX68,$DX$2&ROW($DX68)),$DW68,$DW$2&ROW($DW68)),$DV68,$DV$2&ROW($DV68)),$DU68,$DU$2&ROW($DU68)),$DT68,$DT$2&ROW($DT68)),$DS68,$DS$2&ROW($DS68)),$DR68,$DR$2&ROW($DR68)),$DQ68,$DQ$2&ROW($DQ68)),$DP68,$DP$2&ROW($DP68))) -> 0 | DL68: =IF(AA68="",0,"X="&SUBSTITUTE(SUBSTITUTE(SUBSTITUTE(SUBSTITUTE(SUBSTITUTE(SUBSTITUTE(SUBSTITUTE(SUBSTITUTE(SUBSTITUTE(SUBSTITUTE(SUBSTITUTE(SUBSTITUTE(AA68,$EA68,$EA$2&ROW($EA68)),$DZ68,$DZ$2&ROW($DZ68)),$DY68,$DY$2&ROW($DY68)),$DX68,$DX$2&ROW($DX68)),$DW68,$DW$2&ROW($DW68)),$DV68,$DV$2&ROW($DV68)),$DU68,$DU$2&ROW($DU68)),$DT68,$DT$2&ROW($DT68)),$DS68,$DS$2&ROW($DS68)),$DR68,$DR$2&ROW($DR68)),$DQ68,$DQ$2&ROW($DQ68)),$DP68,$DP$2&ROW($DP68))) -> 0 | DM68: =IF(AB68="",0,"X="&SUBSTITUTE(SUBSTITUTE(SUBSTITUTE(SUBSTITUTE(SUBSTITUTE(SUBSTITUTE(SUBSTITUTE(SUBSTITUTE(SUBSTITUTE(SUBSTITUTE(SUBSTITUTE(SUBSTITUTE(AB68,$EA68,$EA$2&ROW($EA68)),$DZ68,$DZ$2&ROW($DZ68)),$DY68,$DY$2&ROW($DY68)),$DX68,$DX$2&ROW($DX68)),$DW68,$DW$2&ROW($DW68)),$DV68,$DV$2&ROW($DV68)),$DU68,$DU$2&ROW($DU68)),$DT68,$DT$2&ROW($DT68)),$DS68,$DS$2&ROW($DS68)),$DR68,$DR$2&ROW($DR68)),$DQ68,$DQ$2&ROW($DQ68)),$DP68,$DP$2&ROW($DP68))) -> 0 | DP68: {Factor:WinterCF} | DQ68: {Factor:SummerCF} | DR68: =IFERROR(INDEX($ED68:$IG68,MATCH(0,COUNTIF($DO68:DQ68,$ED68:$IG68),0)),"") -> {Measure:Quantity} | DS68: =IFERROR(INDEX($ED68:$IG68,MATCH(0,COUNTIF($DO68:DR68,$ED68:$IG68),0)),"") -> {Energy Savings - kWh Per Year} | DT68: =IFERROR(INDEX($ED68:$IG68,MATCH(0,COUNTIF($DO68:DS68,$ED68:$IG68),0)),"") ->  | DU68: =IFERROR(INDEX($ED68:$IG68,MATCH(0,COUNTIF($DO68:DT68,$ED68:$IG68),0)),"") ->  | DV68: =IFERROR(INDEX($ED68:$IG68,MATCH(0,COUNTIF($DO68:DU68,$ED68:$IG68),0)),"") ->  | DW68: =IFERROR(INDEX($ED68:$IG68,MATCH(0,COUNTIF($DO68:DV68,$ED68:$IG68),0)),"") ->  | DX68: =IFERROR(INDEX($ED68:$IG68,MATCH(0,COUNTIF($DO68:DW68,$ED68:$IG68),0)),"") ->  | DY68: =IFERROR(INDEX($ED68:$IG68,MATCH(0,COUNTIF($DO68:DX68,$ED68:$IG68),0)),"") ->  | DZ68: =IFERROR(INDEX($ED68:$IG68,MATCH(0,COUNTIF($DO68:DY68,$ED68:$IG68),0)),"") ->  | EA68: =IFERROR(INDEX($ED68:$IG68,MATCH(0,COUNTIF($DO68:DZ68,$ED68:$IG68),0)),"") ->  | EN68: {Measure:Quantity} | EO68: {Energy Savings - kWh Per Year} | EX68: {Measure:Quantity} | EY68: {Energy Savings - kWh Per Year} | FH68: {Measure:Quantity} | FI68: {Energy Savings - kWh Per Year} | FJ68: {Factor:WinterCF} | FR68: {Measure:Quantity} | FS68: {Energy Savings - kWh Per Year} | FT68: {Factor:SummerCF} | IK68: =10-COUNTIF(DR68:EA68,"") -> 2
A69: C&I Commercial Kitchen Solutions | B69: R90 Commercial Ice Makers | C69: R90 | D69: 2018-07-01 | E69: 2019-06-30 | F69: Per Measure | G69: $0.00 | H69: 0 | I69: Per Measure | J69: $100.00 | K69: 0 | L69: 2016-11-01 | M69: 2019-06-30 | N69: Calculated | O69: {Measure:Quantity} * {Energy Savings - kWh Per Year} | P69: 0.0001 | R69: {Measure:Quantity} * {Energy Savings - kWh Per Year} / 5858 | U69: {Measure:Quantity} * {Energy Savings - kWh Per Year} / 5858 * {Factor:WinterCF} | V69: {Measure:Quantity} * {Energy Savings - kWh Per Year} / 5858 * {Factor:SummerCF} | AC69: 2017-07-01 | AD69: 2019-06-30 | AE69: 8 | AF69: 0.509 | AG69: 0.74 | AH69: 0.33 | AI69: 0.326 | AJ69: 0.17 | AK69: 0.174 | AL69: 1 | AM69: 1.122 | AN69: 1 | AO69: 0.52 | AP69: 0.016 | AR69: {Measure:Quantity} | AS69: 1 | AT69: {Energy Savings - kWh Per Year} | AU69: 758 | BL69: =AS69 * AU69 -> 758 | BM69: =0.0001 -> 0.0001 | BN69: 0 | BO69: =AS69 * AU69 / 5858 -> 0.1293956982 | BP69: 0 | BQ69: 0 | BR69: =AS69 * AU69 / 5858 * AF69 -> 0.06586241038 | BS69: =AS69 * AU69 / 5858 * AG69 -> 0.09575281666 | BT69: 0 | BU69: 0 | BV69: 0 | BW69: 0 | BX69: 0 | BY69: 0 | BZ69: Res | CA69: Default DR | CB69: =Benefits(BL69,BR69,BS69,BT69,BU69,BV69,BW69,BX69,BY69,AE69,AH69,AI69,AJ69,AK69,AL69,AM69,AN69,AO69,AP69,BZ69,CA69) -> 387.2057515 | CC69: 98.70234723 | CD69: 0 | CE69: 0 | CF69: 0 | CG69: 0 | CH69: 0 | CI69: 0 | CJ69: 485.9080988 | CK69: 0 | CM69: =0 -> 0 | CP69: 0 | CQ69: 1 | CR69: 4.859080988 | CS69: 1 | CT69: 100 | CV69: Electric | CX69: X=$0.00 | CZ69: X=AS69 * AU69 | DA69: X=0.0001 | DB69: 0 | DC69: X=AS69 * AU69 / 5858 | DD69: 0 | DE69: 0 | DF69: X=AS69 * AU69 / 5858 * AF69 | DG69: X=AS69 * AU69 / 5858 * AG69 | DH69: 0 | DI69: 0 | DJ69: 0 | DK69: 0 | DL69: 0 | DM69: 0 | DP69: {Factor:WinterCF} | DQ69: {Factor:SummerCF} | DR69: =IFERROR(INDEX($ED69:$IG69,MATCH(0,COUNTIF($DO69:DQ69,$ED69:$IG69),0)),"") -> {Measure:Quantity} | DS69: =IFERROR(INDEX($ED69:$IG69,MATCH(0,COUNTIF($DO69:DR69,$ED69:$IG69),0)),"") -> {Energy Savings - kWh Per Year} | DT69: =IFERROR(INDEX($ED69:$IG69,MATCH(0,COUNTIF($DO69:DS69,$ED69:$IG69),0)),"") ->  | DU69: =IFERROR(INDEX($ED69:$IG69,MATCH(0,COUNTIF($DO69:DT69,$ED69:$IG69),0)),"") ->  | DV69: =IFERROR(INDEX($ED69:$IG69,MATCH(0,COUNTIF($DO69:DU69,$ED69:$IG69),0)),"") ->  | DW69: =IFERROR(INDEX($ED69:$IG69,MATCH(0,COUNTIF($DO69:DV69,$ED69:$IG69),0)),"") ->  | DX69: =IFERROR(INDEX($ED69:$IG69,MATCH(0,COUNTIF($DO69:DW69,$ED69:$IG69),0)),"") ->  | DY69: =IFERROR(INDEX($ED69:$IG69,MATCH(0,COUNTIF($DO69:DX69,$ED69:$IG69),0)),"") ->  | DZ69: =IFERROR(INDEX($ED69:$IG69,MATCH(0,COUNTIF($DO69:DY69,$ED69:$IG69),0)),"") ->  | EA69: =IFERROR(INDEX($ED69:$IG69,MATCH(0,COUNTIF($DO69:DZ69,$ED69:$IG69),0)),"") ->  | EN69: {Measure:Quantity} | EO69: {Energy Savings - kWh Per Year} | EX69: {Measure:Quantity} | EY69: {Energy Savings - kWh Per Year} | FH69: {Measure:Quantity} | FI69: {Energy Savings - kWh Per Year} | FJ69: {Factor:WinterCF} | FR69: {Measure:Quantity} | FS69: {Energy Savings - kWh Per Year} | FT69: {Factor:SummerCF} | IK69: 2
A70: C&I Commercial Kitchen Solutions | BL70: 0 | BM70: 0 | BN70: 0 | BO70: 0 | BP70: 0 | BQ70: 0 | BR70: 0 | BS70: 0 | BT70: 0 | BU70: 0 | BV70: 0 | BW70: 0 | BX70: 0 | BY70: 0 | CX70: 0 | CZ70: 0 | DA70: 0 | DB70: 0 | DC70: 0 | DD70: 0 | DE70: 0 | DF70: 0 | DG70: 0 | DH70: 0 | DI70: 0 | DJ70: 0 | DK70: 0 | DL70: 0 | DM70: 0 | DP70: {Factor:WinterCF} | DQ70: {Factor:SummerCF} | DR70: =IFERROR(INDEX($ED70:$IG70,MATCH(0,COUNTIF($DO70:DQ70,$ED70:$IG70),0)),"") ->  | DS70: =IFERROR(INDEX($ED70:$IG70,MATCH(0,COUNTIF($DO70:DR70,$ED70:$IG70),0)),"") ->  | DT70: =IFERROR(INDEX($ED70:$IG70,MATCH(0,COUNTIF($DO70:DS70,$ED70:$IG70),0)),"") ->  | DU70: =IFERROR(INDEX($ED70:$IG70,MATCH(0,COUNTIF($DO70:DT70,$ED70:$IG70),0)),"") ->  | DV70: =IFERROR(INDEX($ED70:$IG70,MATCH(0,COUNTIF($DO70:DU70,$ED70:$IG70),0)),"") ->  | DW70: =IFERROR(INDEX($ED70:$IG70,MATCH(0,COUNTIF($DO70:DV70,$ED70:$IG70),0)),"") ->  | DX70: =IFERROR(INDEX($ED70:$IG70,MATCH(0,COUNTIF($DO70:DW70,$ED70:$IG70),0)),"") ->  | DY70: =IFERROR(INDEX($ED70:$IG70,MATCH(0,COUNTIF($DO70:DX70,$ED70:$IG70),0)),"") ->  | DZ70: =IFERROR(INDEX($ED70:$IG70,MATCH(0,COUNTIF($DO70:DY70,$ED70:$IG70),0)),"") ->  | EA70: =IFERROR(INDEX($ED70:$IG70,MATCH(0,COUNTIF($DO70:DZ70,$ED70:$IG70),0)),"") ->  | IK70: 0
A71: C&I Do It Yourself | B71: High Efficiency Pre-Rinse Spray Valves | C71: HPSV | D71: 2018-07-01 | E71: 2019-06-30 | F71: Manual Entry | G71: $0.00 | H71: 0 | I71: Manual Entry | J71: $0.00 | K71: 0 | L71: 2018-07-01 | M71: 2019-06-30 | N71: Calculated | O71: if({Measure:Quantity}=0,0,if({Fuel}=6,if({Location}=1,1774.94,5324.83),0))*({Measure:Quantity}) | P71: 0 | Q71: 1 | W71: if({Measure:Quantity}=0,0,if({Fuel}=1,if({Location}=1,7.42,22.26),0))*10*({Measure:Quantity}) | X71: if({Measure:Quantity}=0,0,if({Fuel}=2,if({Location}=1,7.42,22.26),0))*({Measure:Quantity}) | Y71: if({Measure:Quantity}=0,0,if({Fuel}=3,if({Location}=1,7.42,22.26),0))*({Measure:Quantity}) | AB71: if({Measure:Quantity}=0,0,if({Location}=1,10296,30888))*{Measure:Quantity} | AC71: 2017-01-01 | AD71: 2019-06-30 | AE71: 5 | AF71: 0 | AG71: 0 | AH71: 1 | AI71: 0 | AJ71: 0 | AK71: 0 | AL71: 1 | AM71: 1 | AN71: 0 | AO71: 0.25 | AP71: 0 | AR71: =DR71 -> {Measure:Quantity} | AS71: 1 | AT71: =DS71 -> {Fuel} | AU71: 1 | AV71: =DT71 -> {Location} | AW71: 1 | AX71: =DU71 ->  | AZ71: =DV71 ->  | BB71: =DW71 ->  | BD71: =DX71 ->  | BF71: =DY71 ->  | BH71: =DZ71 ->  | BJ71: =EA71 ->  | BL71: =IF(AS71=0,0,IF(AU71=6,IF(AW71=1,1774.94,5324.83),0))*(AS71) -> 0 | BM71: =0 -> 0 | BN71: =1 -> 1 | BO71: 0 | BP71: 0 | BQ71: 0 | BR71: 0 | BS71: 0 | BT71: =IF(AS71=0,0,IF(AU71=1,IF(AW71=1,7.42,22.26),0))*10*(AS71) -> 74.2 | BU71: =IF(AS71=0,0,IF(AU71=2,IF(AW71=1,7.42,22.26),0))*(AS71) -> 0 | BV71: =IF(AS71=0,0,IF(AU71=3,IF(AW71=1,7.42,22.26),0))*(AS71) -> 0 | BW71: 0 | BX71: 0 | BY71: =IF(AS71=0,0,IF(AW71=1,10296,30888))*AS71 -> 10296 | BZ71: Res | CA71: Default DR | CB71: =Benefits(BL71,BR71,BS71,BT71,BU71,BV71,BW71,BX71,BY71,AE71,AH71,AI71,AJ71,AK71,AL71,AM71,AN71,AO71,AP71,BZ71,CA71) -> 0 | CC71: 0 | CD71: 328.8534777 | CE71: 0 | CF71: 0 | CG71: 0 | CH71: 0 | CI71: 301.9869782 | CJ71: =(--(CB71>0))*CB71+(--(CC71>0))*CC71+(--(CD71>0))*CD71+(--(CE71>0))*CE71+(--(CF71>0))*CF71+(--(CG71>0))*CG71+(--(CH71>0))*CH71+(--(CI71>0))*CI71 -> 630.8404559 | CK71: =(--(CB71<0))*-CB71+(--(CC71<0))*-CC71+(--(CD71<0))*-CD71+(--(CE71<0))*-CE71+(--(CF71<0))*-CF71+(--(CG71<0))*-CG71+(--(CH71<0))*-CH71+(--(CI71<0))*-CI71 -> 0 | CM71: 40 | CP71: =CK71+CM71 -> 40 | CQ71: =IF(NetOrGross="Net",(1-AO71+AP71),1) -> 1 | CR71: =(SUMPRODUCT(CB71:CI71,--(CB71:CI71>0))+CL71)*CQ71/((-SUMPRODUCT(CB71:CI71,--(CB71:CI71<0))+MAX(CM71,CT71)+CN71+CO71)*CQ71+IF(FRIncentives="Yes",CT71*(1-CQ71),0)) -> 15.72776006 | CS71: 1 | CT71: 40.11 | CV71: NG | CX71: X=$0.00 | CZ71: X=if(AS71=0,0,if(AU71=6,if(AW71=1,1774.94,5324.83),0))*(AS71) | DA71: X=0 | DB71: X=1 | DC71: 0 | DD71: 0 | DE71: 0 | DF71: 0 | DG71: 0 | DH71: X=if(AS71=0,0,if(AU71=1,if(AW71=1,7.42,22.26),0))*10*(AS71) | DI71: X=if(AS71=0,0,if(AU71=2,if(AW71=1,7.42,22.26),0))*(AS71) | DJ71: X=if(AS71=0,0,if(AU71=3,if(AW71=1,7.42,22.26),0))*(AS71) | DK71: 0 | DL71: 0 | DM71: X=if(AS71=0,0,if(AW71=1,10296,30888))*AS71 | DP71: {Factor:WinterCF} | DQ71: {Factor:SummerCF} | DR71: =IFERROR(INDEX($ED71:$IG71,MATCH(0,COUNTIF($DO71:DQ71,$ED71:$IG71),0)),"") -> {Measure:Quantity} | DS71: =IFERROR(INDEX($ED71:$IG71,MATCH(0,COUNTIF($DO71:DR71,$ED71:$IG71),0)),"") -> {Fuel} | DT71: =IFERROR(INDEX($ED71:$IG71,MATCH(0,COUNTIF($DO71:DS71,$ED71:$IG71),0)),"") -> {Location} | DU71: =IFERROR(INDEX($ED71:$IG71,MATCH(0,COUNTIF($DO71:DT71,$ED71:$IG71),0)),"") ->  | DV71: =IFERROR(INDEX($ED71:$IG71,MATCH(0,COUNTIF($DO71:DU71,$ED71:$IG71),0)),"") ->  | DW71: =IFERROR(INDEX($ED71:$IG71,MATCH(0,COUNTIF($DO71:DV71,$ED71:$IG71),0)),"") ->  | DX71: =IFERROR(INDEX($ED71:$IG71,MATCH(0,COUNTIF($DO71:DW71,$ED71:$IG71),0)),"") ->  | DY71: =IFERROR(INDEX($ED71:$IG71,MATCH(0,COUNTIF($DO71:DX71,$ED71:$IG71),0)),"") ->  | DZ71: =IFERROR(INDEX($ED71:$IG71,MATCH(0,COUNTIF($DO71:DY71,$ED71:$IG71),0)),"") ->  | EA71: =IFERROR(INDEX($ED71:$IG71,MATCH(0,COUNTIF($DO71:DZ71,$ED71:$IG71),0)),"") ->  | EN71: {Measure:Quantity} | EO71: {Fuel} | EP71: {Location} | EQ71: {Measure:Quantity} | GB71: {Measure:Quantity} | GC71: {Fuel} | GD71: {Location} | GE71: {Measure:Quantity} | GL71: {Measure:Quantity} | GM71: {Fuel} | GN71: {Location} | GO71: {Measure:Quantity} | GV71: {Measure:Quantity} | GW71: {Fuel} | GX71: {Location} | GY71: {Measure:Quantity} | HZ71: {Measure:Quantity} | IA71: {Location} | IB71: {Measure:Quantity} | IK71: 3
A72: C&I Do It Yourself | B72: High Efficiency Pre-Rinse Spray Valves | C72: HPSV | D72: 2018-07-01 | E72: 2019-06-30 | F72: Manual Entry | G72: $0.00 | H72: 0 | I72: Manual Entry | J72: $0.00 | K72: 0 | L72: 2018-07-01 | M72: 2019-06-30 | N72: Calculated | O72: if({Measure:Quantity}=0,0,if({Fuel}=6,if({Location}=1,1774.94,5324.83),0))*({Measure:Quantity}) | P72: 0 | Q72: 1 | W72: if({Measure:Quantity}=0,0,if({Fuel}=1,if({Location}=1,7.42,22.26),0))*10*({Measure:Quantity}) | X72: if({Measure:Quantity}=0,0,if({Fuel}=2,if({Location}=1,7.42,22.26),0))*({Measure:Quantity}) | Y72: if({Measure:Quantity}=0,0,if({Fuel}=3,if({Location}=1,7.42,22.26),0))*({Measure:Quantity}) | AB72: if({Measure:Quantity}=0,0,if({Location}=1,10296,30888))*{Measure:Quantity} | AC72: 2017-01-01 | AD72: 2019-06-30 | AE72: 5 | AF72: 0 | AG72: 0 | AH72: 1 | AI72: 0 | AJ72: 0 | AK72: 0 | AL72: 1 | AM72: 1 | AN72: 0 | AO72: 0.25 | AP72: 0 | AR72: =DR72 -> {Measure:Quantity} | AS72: 1 | AT72: =DS72 -> {Fuel} | AU72: 6 | AV72: =DT72 -> {Location} | AW72: 1 | AX72: =DU72 ->  | AZ72: =DV72 ->  | BB72: =DW72 ->  | BD72: =DX72 ->  | BF72: =DY72 ->  | BH72: =DZ72 ->  | BJ72: =EA72 ->  | BL72: =IF(AS72=0,0,IF(AU72=6,IF(AW72=1,1774.94,5324.83),0))*(AS72) -> 1774.94 | BM72: =0 -> 0 | BN72: =1 -> 1 | BO72: 0 | BP72: 0 | BQ72: 0 | BR72: 0 | BS72: 0 | BT72: =IF(AS72=0,0,IF(AU72=1,IF(AW72=1,7.42,22.26),0))*10*(AS72) -> 0 | BU72: =IF(AS72=0,0,IF(AU72=2,IF(AW72=1,7.42,22.26),0))*(AS72) -> 0 | BV72: =IF(AS72=0,0,IF(AU72=3,IF(AW72=1,7.42,22.26),0))*(AS72) -> 0 | BW72: 0 | BX72: 0 | BY72: =IF(AS72=0,0,IF(AW72=1,10296,30888))*AS72 -> 10296 | BZ72: Res | CA72: Default DR | CB72: =Benefits(BL72,BR72,BS72,BT72,BU72,BV72,BW72,BX72,BY72,AE72,AH72,AI72,AJ72,AK72,AL72,AM72,AN72,AO72,AP72,BZ72,CA72) -> 607.3985349 | CC72: 0 | CD72: 0 | CE72: 0 | CF72: 0 | CG72: 0 | CH72: 0 | CI72: 301.9869782 | CJ72: =(--(CB72>0))*CB72+(--(CC72>0))*CC72+(--(CD72>0))*CD72+(--(CE72>0))*CE72+(--(CF72>0))*CF72+(--(CG72>0))*CG72+(--(CH72>0))*CH72+(--(CI72>0))*CI72 -> 909.3855131 | CK72: =(--(CB72<0))*-CB72+(--(CC72<0))*-CC72+(--(CD72<0))*-CD72+(--(CE72<0))*-CE72+(--(CF72<0))*-CF72+(--(CG72<0))*-CG72+(--(CH72<0))*-CH72+(--(CI72<0))*-CI72 -> 0 | CM72: 40 | CP72: =CK72+CM72 -> 40 | CQ72: =IF(NetOrGross="Net",(1-AO72+AP72),1) -> 1 | CR72: =(SUMPRODUCT(CB72:CI72,--(CB72:CI72>0))+CL72)*CQ72/((-SUMPRODUCT(CB72:CI72,--(CB72:CI72<0))+MAX(CM72,CT72)+CN72+CO72)*CQ72+IF(FRIncentives="Yes",CT72*(1-CQ72),0)) -> 22.67228903 | CS72: 1 | CT72: 40.11 | CV72: Electric | CX72: X=$0.00 | CZ72: X=if(AS72=0,0,if(AU72=6,if(AW72=1,1774.94,5324.83),0))*(AS72) | DA72: X=0 | DB72: X=1 | DC72: 0 | DD72: 0 | DE72: 0 | DF72: 0 | DG72: 0 | DH72: X=if(AS72=0,0,if(AU72=1,if(AW72=1,7.42,22.26),0))*10*(AS72) | DI72: X=if(AS72=0,0,if(AU72=2,if(AW72=1,7.42,22.26),0))*(AS72) | DJ72: X=if(AS72=0,0,if(AU72=3,if(AW72=1,7.42,22.26),0))*(AS72) | DK72: 0 | DL72: 0 | DM72: X=if(AS72=0,0,if(AW72=1,10296,30888))*AS72 | DP72: {Factor:WinterCF} | DQ72: {Factor:SummerCF} | DR72: =IFERROR(INDEX($ED72:$IG72,MATCH(0,COUNTIF($DO72:DQ72,$ED72:$IG72),0)),"") -> {Measure:Quantity} | DS72: =IFERROR(INDEX($ED72:$IG72,MATCH(0,COUNTIF($DO72:DR72,$ED72:$IG72),0)),"") -> {Fuel} | DT72: =IFERROR(INDEX($ED72:$IG72,MATCH(0,COUNTIF($DO72:DS72,$ED72:$IG72),0)),"") -> {Location} | DU72: =IFERROR(INDEX($ED72:$IG72,MATCH(0,COUNTIF($DO72:DT72,$ED72:$IG72),0)),"") ->  | DV72: =IFERROR(INDEX($ED72:$IG72,MATCH(0,COUNTIF($DO72:DU72,$ED72:$IG72),0)),"") ->  | DW72: =IFERROR(INDEX($ED72:$IG72,MATCH(0,COUNTIF($DO72:DV72,$ED72:$IG72),0)),"") ->  | DX72: =IFERROR(INDEX($ED72:$IG72,MATCH(0,COUNTIF($DO72:DW72,$ED72:$IG72),0)),"") ->  | DY72: =IFERROR(INDEX($ED72:$IG72,MATCH(0,COUNTIF($DO72:DX72,$ED72:$IG72),0)),"") ->  | DZ72: =IFERROR(INDEX($ED72:$IG72,MATCH(0,COUNTIF($DO72:DY72,$ED72:$IG72),0)),"") ->  | EA72: =IFERROR(INDEX($ED72:$IG72,MATCH(0,COUNTIF($DO72:DZ72,$ED72:$IG72),0)),"") ->  | EN72: {Measure:Quantity} | EO72: {Fuel} | EP72: {Location} | EQ72: {Measure:Quantity} | GB72: {Measure:Quantity} | GC72: {Fuel} | GD72: {Location} | GE72: {Measure:Quantity} | GL72: {Measure:Quantity} | GM72: {Fuel} | GN72: {Location} | GO72: {Measure:Quantity} | GV72: {Measure:Quantity} | GW72: {Fuel} | GX72: {Location} | GY72: {Measure:Quantity} | HZ72: {Measure:Quantity} | IA72: {Location} | IB72: {Measure:Quantity} | IK72: 3
A73: C&I Do It Yourself | B73: High Efficiency Pre-Rinse Spray Valves | C73: HPSV | D73: 2018-07-01 | E73: 2019-06-30 | F73: Manual Entry | G73: $0.00 | H73: 0 | I73: Manual Entry | J73: $0.00 | K73: 0 | L73: 2018-07-01 | M73: 2019-06-30 | N73: Calculated | O73: if({Measure:Quantity}=0,0,if({Fuel}=6,if({Location}=1,1774.94,5324.83),0))*({Measure:Quantity}) | P73: 0 | Q73: 1 | W73: if({Measure:Quantity}=0,0,if({Fuel}=1,if({Location}=1,7.42,22.26),0))*10*({Measure:Quantity}) | X73: if({Measure:Quantity}=0,0,if({Fuel}=2,if({Location}=1,7.42,22.26),0))*({Measure:Quantity}) | Y73: if({Measure:Quantity}=0,0,if({Fuel}=3,if({Location}=1,7.42,22.26),0))*({Measure:Quantity}) | AB73: if({Measure:Quantity}=0,0,if({Location}=1,10296,30888))*{Measure:Quantity} | AC73: 2017-01-01 | AD73: 2019-06-30 | AE73: 5 | AF73: 0 | AG73: 0 | AH73: 1 | AI73: 0 | AJ73: 0 | AK73: 0 | AL73: 1 | AM73: 1 | AN73: 0 | AO73: 0.25 | AP73: 0 | AR73: =DR73 -> {Measure:Quantity} | AS73: 1 | AT73: =DS73 -> {Fuel} | AU73: 3 | AV73: =DT73 -> {Location} | AW73: 1 | AX73: =DU73 ->  | AZ73: =DV73 ->  | BB73: =DW73 ->  | BD73: =DX73 ->  | BF73: =DY73 ->  | BH73: =DZ73 ->  | BJ73: =EA73 ->  | BL73: =IF(AS73=0,0,IF(AU73=6,IF(AW73=1,1774.94,5324.83),0))*(AS73) -> 0 | BM73: =0 -> 0 | BN73: =1 -> 1 | BO73: 0 | BP73: 0 | BQ73: 0 | BR73: 0 | BS73: 0 | BT73: =IF(AS73=0,0,IF(AU73=1,IF(AW73=1,7.42,22.26),0))*10*(AS73) -> 0 | BU73: =IF(AS73=0,0,IF(AU73=2,IF(AW73=1,7.42,22.26),0))*(AS73) -> 0 | BV73: =IF(AS73=0,0,IF(AU73=3,IF(AW73=1,7.42,22.26),0))*(AS73) -> 7.42 | BW73: 0 | BX73: 0 | BY73: =IF(AS73=0,0,IF(AW73=1,10296,30888))*AS73 -> 10296 | BZ73: Res | CA73: RGGI DR | CB73: =Benefits(BL73,BR73,BS73,BT73,BU73,BV73,BW73,BX73,BY73,AE73,AH73,AI73,AJ73,AK73,AL73,AM73,AN73,AO73,AP73,BZ73,CA73) -> 0 | CC73: 0 | CD73: 0 | CE73: 729.1601803 | CF73: 0 | CG73: 0 | CH73: 0 | CI73: 301.9869782 | CJ73: =(--(CB73>0))*CB73+(--(CC73>0))*CC73+(--(CD73>0))*CD73+(--(CE73>0))*CE73+(--(CF73>0))*CF73+(--(CG73>0))*CG73+(--(CH73>0))*CH73+(--(CI73>0))*CI73 -> 1031.147158 | CK73: =(--(CB73<0))*-CB73+(--(CC73<0))*-CC73+(--(CD73<0))*-CD73+(--(CE73<0))*-CE73+(--(CF73<0))*-CF73+(--(CG73<0))*-CG73+(--(CH73<0))*-CH73+(--(CI73<0))*-CI73 -> 0 | CM73: 40 | CP73: =CK73+CM73 -> 40 | CQ73: =IF(NetOrGross="Net",(1-AO73+AP73),1) -> 1 | CR73: =(SUMPRODUCT(CB73:CI73,--(CB73:CI73>0))+CL73)*CQ73/((-SUMPRODUCT(CB73:CI73,--(CB73:CI73<0))+MAX(CM73,CT73)+CN73+CO73)*CQ73+IF(FRIncentives="Yes",CT73*(1-CQ73),0)) -> 25.70798201 | CS73: 1 | CT73: 40.11 | CV73: RGGI | CX73: X=$0.00 | CZ73: X=if(AS73=0,0,if(AU73=6,if(AW73=1,1774.94,5324.83),0))*(AS73) | DA73: X=0 | DB73: X=1 | DC73: 0 | DD73: 0 | DE73: 0 | DF73: 0 | DG73: 0 | DH73: X=if(AS73=0,0,if(AU73=1,if(AW73=1,7.42,22.26),0))*10*(AS73) | DI73: X=if(AS73=0,0,if(AU73=2,if(AW73=1,7.42,22.26),0))*(AS73) | DJ73: X=if(AS73=0,0,if(AU73=3,if(AW73=1,7.42,22.26),0))*(AS73) | DK73: 0 | DL73: 0 | DM73: X=if(AS73=0,0,if(AW73=1,10296,30888))*AS73 | DP73: {Factor:WinterCF} | DQ73: {Factor:SummerCF} | DR73: =IFERROR(INDEX($ED73:$IG73,MATCH(0,COUNTIF($DO73:DQ73,$ED73:$IG73),0)),"") -> {Measure:Quantity} | DS73: =IFERROR(INDEX($ED73:$IG73,MATCH(0,COUNTIF($DO73:DR73,$ED73:$IG73),0)),"") -> {Fuel} | DT73: =IFERROR(INDEX($ED73:$IG73,MATCH(0,COUNTIF($DO73:DS73,$ED73:$IG73),0)),"") -> {Location} | DU73: =IFERROR(INDEX($ED73:$IG73,MATCH(0,COUNTIF($DO73:DT73,$ED73:$IG73),0)),"") ->  | DV73: =IFERROR(INDEX($ED73:$IG73,MATCH(0,COUNTIF($DO73:DU73,$ED73:$IG73),0)),"") ->  | DW73: =IFERROR(INDEX($ED73:$IG73,MATCH(0,COUNTIF($DO73:DV73,$ED73:$IG73),0)),"") ->  | DX73: =IFERROR(INDEX($ED73:$IG73,MATCH(0,COUNTIF($DO73:DW73,$ED73:$IG73),0)),"") ->  | DY73: =IFERROR(INDEX($ED73:$IG73,MATCH(0,COUNTIF($DO73:DX73,$ED73:$IG73),0)),"") ->  | DZ73: =IFERROR(INDEX($ED73:$IG73,MATCH(0,COUNTIF($DO73:DY73,$ED73:$IG73),0)),"") ->  | EA73: =IFERROR(INDEX($ED73:$IG73,MATCH(0,COUNTIF($DO73:DZ73,$ED73:$IG73),0)),"") ->  | EN73: {Measure:Quantity} | EO73: {Fuel} | EP73: {Location} | EQ73: {Measure:Quantity} | GB73: {Measure:Quantity} | GC73: {Fuel} | GD73: {Location} | GE73: {Measure:Quantity} | GL73: {Measure:Quantity} | GM73: {Fuel} | GN73: {Location} | GO73: {Measure:Quantity} | GV73: {Measure:Quantity} | GW73: {Fuel} | GX73: {Location} | GY73: {Measure:Quantity} | HZ73: {Measure:Quantity} | IA73: {Location} | IB73: {Measure:Quantity} | IK73: 3
A74: C&I Do It Yourself | B74: High Efficiency Pre-Rinse Spray Valves | C74: HPSV | D74: 2018-07-01 | E74: 2019-06-30 | F74: Manual Entry | G74: $0.00 | H74: 0 | I74: Manual Entry | J74: $0.00 | K74: 0 | L74: 2018-07-01 | M74: 2019-06-30 | N74: Calculated | O74: if({Measure:Quantity}=0,0,if({Fuel}=6,if({Location}=1,1774.94,5324.83),0))*({Measure:Quantity}) | P74: 0 | Q74: 1 | W74: if({Measure:Quantity}=0,0,if({Fuel}=1,if({Location}=1,7.42,22.26),0))*10*({Measure:Quantity}) | X74: if({Measure:Quantity}=0,0,if({Fuel}=2,if({Location}=1,7.42,22.26),0))*({Measure:Quantity}) | Y74: if({Measure:Quantity}=0,0,if({Fuel}=3,if({Location}=1,7.42,22.26),0))*({Measure:Quantity}) | AB74: if({Measure:Quantity}=0,0,if({Location}=1,10296,30888))*{Measure:Quantity} | AC74: 2017-01-01 | AD74: 2019-06-30 | AE74: 5 | AF74: 0 | AG74: 0 | AH74: 1 | AI74: 0 | AJ74: 0 | AK74: 0 | AL74: 1 | AM74: 1 | AN74: 0 | AO74: 0.25 | AP74: 0 | AR74: =DR74 -> {Measure:Quantity} | AS74: 1 | AT74: =DS74 -> {Fuel} | AU74: 2 | AV74: =DT74 -> {Location} | AW74: 1 | AX74: =DU74 ->  | AZ74: =DV74 ->  | BB74: =DW74 ->  | BD74: =DX74 ->  | BF74: =DY74 ->  | BH74: =DZ74 ->  | BJ74: =EA74 ->  | BL74: =IF(AS74=0,0,IF(AU74=6,IF(AW74=1,1774.94,5324.83),0))*(AS74) -> 0 | BM74: =0 -> 0 | BN74: =1 -> 1 | BO74: 0 | BP74: 0 | BQ74: 0 | BR74: 0 | BS74: 0 | BT74: =IF(AS74=0,0,IF(AU74=1,IF(AW74=1,7.42,22.26),0))*10*(AS74) -> 0 | BU74: =IF(AS74=0,0,IF(AU74=2,IF(AW74=1,7.42,22.26),0))*(AS74) -> 7.42 | BV74: =IF(AS74=0,0,IF(AU74=3,IF(AW74=1,7.42,22.26),0))*(AS74) -> 0 | BW74: 0 | BX74: 0 | BY74: =IF(AS74=0,0,IF(AW74=1,10296,30888))*AS74 -> 10296 | BZ74: Res | CA74: RGGI DR | CB74: =Benefits(BL74,BR74,BS74,BT74,BU74,BV74,BW74,BX74,BY74,AE74,AH74,AI74,AJ74,AK74,AL74,AM74,AN74,AO74,AP74,BZ74,CA74) -> 0 | CC74: 0 | CD74: 0 | CE74: 0 | CF74: 0 | CG74: 1044.064368 | CH74: 0 | CI74: 301.9869782 | CJ74: =(--(CB74>0))*CB74+(--(CC74>0))*CC74+(--(CD74>0))*CD74+(--(CE74>0))*CE74+(--(CF74>0))*CF74+(--(CG74>0))*CG74+(--(CH74>0))*CH74+(--(CI74>0))*CI74 -> 1346.051346 | CK74: =(--(CB74<0))*-CB74+(--(CC74<0))*-CC74+(--(CD74<0))*-CD74+(--(CE74<0))*-CE74+(--(CF74<0))*-CF74+(--(CG74<0))*-CG74+(--(CH74<0))*-CH74+(--(CI74<0))*-CI74 -> 0 | CM74: 40 | CP74: =CK74+CM74 -> 40 | CQ74: =IF(NetOrGross="Net",(1-AO74+AP74),1) -> 1 | CR74: =(SUMPRODUCT(CB74:CI74,--(CB74:CI74>0))+CL74)*CQ74/((-SUMPRODUCT(CB74:CI74,--(CB74:CI74<0))+MAX(CM74,CT74)+CN74+CO74)*CQ74+IF(FRIncentives="Yes",CT74*(1-CQ74),0)) -> 33.55899642 | CS74: 1 | CT74: 40.11 | CV74: RGGI | CX74: X=$0.00 | CZ74: X=if(AS74=0,0,if(AU74=6,if(AW74=1,1774.94,5324.83),0))*(AS74) | DA74: X=0 | DB74: X=1 | DC74: 0 | DD74: 0 | DE74: 0 | DF74: 0 | DG74: 0 | DH74: X=if(AS74=0,0,if(AU74=1,if(AW74=1,7.42,22.26),0))*10*(AS74) | DI74: X=if(AS74=0,0,if(AU74=2,if(AW74=1,7.42,22.26),0))*(AS74) | DJ74: X=if(AS74=0,0,if(AU74=3,if(AW74=1,7.42,22.26),0))*(AS74) | DK74: 0 | DL74: 0 | DM74: X=if(AS74=0,0,if(AW74=1,10296,30888))*AS74 | DP74: {Factor:WinterCF} | DQ74: {Factor:SummerCF} | DR74: =IFERROR(INDEX($ED74:$IG74,MATCH(0,COUNTIF($DO74:DQ74,$ED74:$IG74),0)),"") -> {Measure:Quantity} | DS74: =IFERROR(INDEX($ED74:$IG74,MATCH(0,COUNTIF($DO74:DR74,$ED74:$IG74),0)),"") -> {Fuel} | DT74: =IFERROR(INDEX($ED74:$IG74,MATCH(0,COUNTIF($DO74:DS74,$ED74:$IG74),0)),"") -> {Location} | DU74: =IFERROR(INDEX($ED74:$IG74,MATCH(0,COUNTIF($DO74:DT74,$ED74:$IG74),0)),"") ->  | DV74: =IFERROR(INDEX($ED74:$IG74,MATCH(0,COUNTIF($DO74:DU74,$ED74:$IG74),0)),"") ->  | DW74: =IFERROR(INDEX($ED74:$IG74,MATCH(0,COUNTIF($DO74:DV74,$ED74:$IG74),0)),"") ->  | DX74: =IFERROR(INDEX($ED74:$IG74,MATCH(0,COUNTIF($DO74:DW74,$ED74:$IG74),0)),"") ->  | DY74: =IFERROR(INDEX($ED74:$IG74,MATCH(0,COUNTIF($DO74:DX74,$ED74:$IG74),0)),"") ->  | DZ74: =IFERROR(INDEX($ED74:$IG74,MATCH(0,COUNTIF($DO74:DY74,$ED74:$IG74),0)),"") ->  | EA74: =IFERROR(INDEX($ED74:$IG74,MATCH(0,COUNTIF($DO74:DZ74,$ED74:$IG74),0)),"") ->  | ED74: =IFERROR(MID($G74,FIND(CHAR(160),SUBSTITUTE($G74,"{",CHAR(160),ED$1)),FIND(CHAR(160),SUBSTITUTE($G74,"}",CHAR(160),ED$1))-FIND(CHAR(160),SUBSTITUTE($G74,"{",CHAR(160),ED$1))+1),"") ->  | EN74: =IFERROR(MID($O74,FIND(CHAR(160),SUBSTITUTE($O74,"{",CHAR(160),EN$1)),FIND(CHAR(160),SUBSTITUTE($O74,"}",CHAR(160),EN$1))-FIND(CHAR(160),SUBSTITUTE($O74,"{",CHAR(160),EN$1))+1),"") -> {Measure:Quantity} | EO74: {Fuel} | EP74: {Location} | EQ74: {Measure:Quantity} | EX74: =IFERROR(MID($R74,FIND(CHAR(160),SUBSTITUTE($R74,"{",CHAR(160),EX$1)),FIND(CHAR(160),SUBSTITUTE($R74,"}",CHAR(160),EX$1))-FIND(CHAR(160),SUBSTITUTE($R74,"{",CHAR(160),EX$1))+1),"") ->  | FH74: =IFERROR(MID($U74,FIND(CHAR(160),SUBSTITUTE($U74,"{",CHAR(160),FH$1)),FIND(CHAR(160),SUBSTITUTE($U74,"}",CHAR(160),FH$1))-FIND(CHAR(160),SUBSTITUTE($U74,"{",CHAR(160),FH$1))+1),"") ->  | FR74: =IFERROR(MID($V74,FIND(CHAR(160),SUBSTITUTE($V74,"{",CHAR(160),FR$1)),FIND(CHAR(160),SUBSTITUTE($V74,"}",CHAR(160),FR$1))-FIND(CHAR(160),SUBSTITUTE($V74,"{",CHAR(160),FR$1))+1),"") ->  | GB74: =IFERROR(MID($W74,FIND(CHAR(160),SUBSTITUTE($W74,"{",CHAR(160),GB$1)),FIND(CHAR(160),SUBSTITUTE($W74,"}",CHAR(160),GB$1))-FIND(CHAR(160),SUBSTITUTE($W74,"{",CHAR(160),GB$1))+1),"") -> {Measure:Quantity} | GC74: {Fuel} | GD74: {Location} | GE74: {Measure:Quantity} | GL74: =IFERROR(MID($X74,FIND(CHAR(160),SUBSTITUTE($X74,"{",CHAR(160),GL$1)),FIND(CHAR(160),SUBSTITUTE($X74,"}",CHAR(160),GL$1))-FIND(CHAR(160),SUBSTITUTE($X74,"{",CHAR(160),GL$1))+1),"") -> {Measure:Quantity} | GM74: {Fuel} | GN74: {Location} | GO74: {Measure:Quantity} | GV74: =IFERROR(MID($Y74,FIND(CHAR(160),SUBSTITUTE($Y74,"{",CHAR(160),GV$1)),FIND(CHAR(160),SUBSTITUTE($Y74,"}",CHAR(160),GV$1))-FIND(CHAR(160),SUBSTITUTE($Y74,"{",CHAR(160),GV$1))+1),"") -> {Measure:Quantity} | GW74: {Fuel} | GX74: {Location} | GY74: {Measure:Quantity} | HF74: =IFERROR(MID($Z74,FIND(CHAR(160),SUBSTITUTE($Z74,"{",CHAR(160),HF$1)),FIND(CHAR(160),SUBSTITUTE($Z74,"}",CHAR(160),HF$1))-FIND(CHAR(160),SUBSTITUTE($Z74,"{",CHAR(160),HF$1))+1),"") ->  | HP74: =IFERROR(MID($AA74,FIND(CHAR(160),SUBSTITUTE($AA74,"{",CHAR(160),HP$1)),FIND(CHAR(160),SUBSTITUTE($AA74,"}",CHAR(160),HP$1))-FIND(CHAR(160),SUBSTITUTE($AA74,"{",CHAR(160),HP$1))+1),"") ->  | HZ74: =IFERROR(MID($AB74,FIND(CHAR(160),SUBSTITUTE($AB74,"{",CHAR(160),HZ$1)),FIND(CHAR(160),SUBSTITUTE($AB74,"}",CHAR(160),HZ$1))-FIND(CHAR(160),SUBSTITUTE($AB74,"{",CHAR(160),HZ$1))+1),"") -> {Measure:Quantity} | IA74: {Location} | IB74: {Measure:Quantity} | IK74: 3
A75: C&I Do It Yourself | BL75: 0 | BM75: 0 | BN75: 0 | BO75: 0 | BP75: 0 | BQ75: 0 | BR75: 0 | BS75: 0 | BT75: 0 | BU75: 0 | BV75: 0 | BW75: 0 | BX75: 0 | BY75: 0 | CX75: 0 | CZ75: 0 | DA75: 0 | DB75: 0 | DC75: 0 | DD75: 0 | DE75: 0 | DF75: 0 | DG75: 0 | DH75: 0 | DI75: 0 | DJ75: 0 | DK75: 0 | DL75: 0 | DM75: 0 | DP75: {Factor:WinterCF} | DQ75: {Factor:SummerCF} | DR75: =IFERROR(INDEX($ED75:$IG75,MATCH(0,COUNTIF($DO75:DQ75,$ED75:$IG75),0)),"") ->  | DS75: =IFERROR(INDEX($ED75:$IG75,MATCH(0,COUNTIF($DO75:DR75,$ED75:$IG75),0)),"") ->  | DT75: =IFERROR(INDEX($ED75:$IG75,MATCH(0,COUNTIF($DO75:DS75,$ED75:$IG75),0)),"") ->  | DU75: =IFERROR(INDEX($ED75:$IG75,MATCH(0,COUNTIF($DO75:DT75,$ED75:$IG75),0)),"") ->  | DV75: =IFERROR(INDEX($ED75:$IG75,MATCH(0,COUNTIF($DO75:DU75,$ED75:$IG75),0)),"") ->  | DW75: =IFERROR(INDEX($ED75:$IG75,MATCH(0,COUNTIF($DO75:DV75,$ED75:$IG75),0)),"") ->  | DX75: =IFERROR(INDEX($ED75:$IG75,MATCH(0,COUNTIF($DO75:DW75,$ED75:$IG75),0)),"") ->  | DY75: =IFERROR(INDEX($ED75:$IG75,MATCH(0,COUNTIF($DO75:DX75,$ED75:$IG75),0)),"") ->  | DZ75: =IFERROR(INDEX($ED75:$IG75,MATCH(0,COUNTIF($DO75:DY75,$ED75:$IG75),0)),"") ->  | EA75: =IFERROR(INDEX($ED75:$IG75,MATCH(0,COUNTIF($DO75:DZ75,$ED75:$IG75),0)),"") ->  | IK75: 0
A76: C&I HVAC - Electric | B76: Demand Control Ventilation - Existing Equipment Install | C76: DCV - DCVE | D76: 2018-07-01 | E76: 2019-06-30 | F76: Per Measure | G76: $2100.00 | H76: 0 | I76: Per Measure | J76: $500.00 | K76: 0 | L76: 2018-07-01 | M76: 2019-06-30 | N76: Calculated | O76: {Measure:Quantity} * {Area Sq. Ft} * {Space Type} * 0.000433 * (12/ {EER}) * 719 | P76: 0.0001 | R76: {Measure:Quantity} * {Area Sq. Ft} * {Space Type} * 0.000433 * 12/ {EER} | U76: {Measure:Quantity} * {Area Sq. Ft} * {Space Type} * 0.000433 * 12/ {EER} * {Factor:WinterCF} | V76: {Measure:Quantity} * {Area Sq. Ft} * {Space Type} * 0.000433 * 12/ {EER} * {Factor:SummerCF} | AC76: 2018-01-01 | AD76: 2019-06-30 | AE76: 10 | AF76: 0.015 | AG76: 0.777 | AH76: 0.17 | AI76: 0.03 | AJ76: 0.62 | AK76: 0.18 | AL76: 1 | AM76: 1.122 | AN76: 1 | AO76: 0.52 | AP76: 0.016 | AR76: =DR76 -> {Measure:Quantity} | AS76: 1 | AT76: =DS76 -> {Area Sq. Ft} | AU76: 8400 | AV76: =DT76 -> {Space Type} | AW76: 0.37 | AX76: =DU76 -> {EER} | AY76: 10 | AZ76: =DV76 ->  | BB76: =DW76 ->  | BD76: =DX76 ->  | BF76: =DY76 ->  | BH76: =DZ76 ->  | BJ76: =EA76 ->  | BL76: =AS76 * AU76 * AW76 * 0.000433 * (12/ AY76) * 719 -> 1161.125179 | BM76: =0.0001 -> 0.0001 | BN76: 0 | BO76: =AS76 * AU76 * AW76 * 0.000433 * 12/ AY76 -> 1.6149168 | BP76: 0 | BQ76: 0 | BR76: =AS76 * AU76 * AW76 * 0.000433 * 12/ AY76 * AF76 -> 0.024223752 | BS76: =AS76 * AU76 * AW76 * 0.000433 * 12/ AY76 * AG76 -> 1.254790354 | BT76: 0 | BU76: 0 | BV76: 0 | BW76: 0 | BX76: 0 | BY76: 0 | BZ76: Res | CA76: Default DR | CB76: =Benefits(BL76,BR76,BS76,BT76,BU76,BV76,BW76,BX76,BY76,AE76,AH76,AI76,AJ76,AK76,AL76,AM76,AN76,AO76,AP76,BZ76,CA76) -> 660.0656665 | CC76: 698.5088825 | CD76: 0 | CE76: 0 | CF76: 0 | CG76: 0 | CH76: 0 | CI76: 0 | CJ76: =(--(CB76>0))*CB76+(--(CC76>0))*CC76+(--(CD76>0))*CD76+(--(CE76>0))*CE76+(--(CF76>0))*CF76+(--(CG76>0))*CG76+(--(CH76>0))*CH76+(--(CI76>0))*CI76 -> 1358.574549 | CK76: =(--(CB76<0))*-CB76+(--(CC76<0))*-CC76+(--(CD76<0))*-CD76+(--(CE76<0))*-CE76+(--(CF76<0))*-CF76+(--(CG76<0))*-CG76+(--(CH76<0))*-CH76+(--(CI76<0))*-CI76 -> 0 | CM76: =2100 -> 2100 | CP76: =CK76+CM76 -> 2100 | CQ76: =IF(NetOrGross="Net",(1-AO76+AP76),1) -> 1 | CR76: =(SUMPRODUCT(CB76:CI76,--(CB76:CI76>0))+CL76)*CQ76/((-SUMPRODUCT(CB76:CI76,--(CB76:CI76<0))+MAX(CM76,CT76)+CN76+CO76)*CQ76+IF(FRIncentives="Yes",CT76*(1-CQ76),0)) -> 0.6469402614 | CS76: 0 | CT76: =CM76*CU76 -> 0 | CV76: Electric | CW76: 0 | CX76: X=$2100.00 | CZ76: X=AS76 * AU76 * AW76 * 0.000433 * (12/ AY76) * 719 | DA76: X=0.0001 | DB76: 0 | DC76: X=AS76 * AU76 * AW76 * 0.000433 * 12/ AY76 | DD76: 0 | DE76: 0 | DF76: X=AS76 * AU76 * AW76 * 0.000433 * 12/ AY76 * AF76 | DG76: X=AS76 * AU76 * AW76 * 0.000433 * 12/ AY76 * AG76 | DH76: 0 | DI76: 0 | DJ76: 0 | DK76: 0 | DL76: 0 | DM76: 0 | DP76: {Factor:WinterCF} | DQ76: {Factor:SummerCF} | DR76: =IFERROR(INDEX($ED76:$IG76,MATCH(0,COUNTIF($DO76:DQ76,$ED76:$IG76),0)),"") -> {Measure:Quantity} | DS76: =IFERROR(INDEX($ED76:$IG76,MATCH(0,COUNTIF($DO76:DR76,$ED76:$IG76),0)),"") -> {Area Sq. Ft} | DT76: =IFERROR(INDEX($ED76:$IG76,MATCH(0,COUNTIF($DO76:DS76,$ED76:$IG76),0)),"") -> {Space Type} | DU76: =IFERROR(INDEX($ED76:$IG76,MATCH(0,COUNTIF($DO76:DT76,$ED76:$IG76),0)),"") -> {EER} | DV76: =IFERROR(INDEX($ED76:$IG76,MATCH(0,COUNTIF($DO76:DU76,$ED76:$IG76),0)),"") ->  | DW76: =IFERROR(INDEX($ED76:$IG76,MATCH(0,COUNTIF($DO76:DV76,$ED76:$IG76),0)),"") ->  | DX76: =IFERROR(INDEX($ED76:$IG76,MATCH(0,COUNTIF($DO76:DW76,$ED76:$IG76),0)),"") ->  | DY76: =IFERROR(INDEX($ED76:$IG76,MATCH(0,COUNTIF($DO76:DX76,$ED76:$IG76),0)),"") ->  | DZ76: =IFERROR(INDEX($ED76:$IG76,MATCH(0,COUNTIF($DO76:DY76,$ED76:$IG76),0)),"") ->  | EA76: =IFERROR(INDEX($ED76:$IG76,MATCH(0,COUNTIF($DO76:DZ76,$ED76:$IG76),0)),"") ->  | EN76: {Measure:Quantity} | EO76: {Area Sq. Ft} | EP76: {Space Type} | EQ76: {EER} | EX76: {Measure:Quantity} | EY76: {Area Sq. Ft} | EZ76: {Space Type} | FA76: {EER} | FH76: {Measure:Quantity} | FI76: {Area Sq. Ft} | FJ76: {Space Type} | FK76: {EER} | FL76: {Factor:WinterCF} | FR76: {Measure:Quantity} | FS76: {Area Sq. Ft} | FT76: {Space Type} | FU76: {EER} | FV76: {Factor:SummerCF} | IK76: 4
A77: C&I HVAC - Electric | B77: Demand Control Ventilation - New Equipment Install | C77: DCV - DCVN | D77: 2018-07-01 | E77: 2019-06-30 | F77: Per Measure | G77: $850.00 | H77: 0 | I77: Per Measure | J77: $500.00 | K77: 0 | L77: 2018-07-01 | M77: 2019-06-30 | N77: Calculated | O77: {Measure:Quantity} * {Area Sq. Ft} * {Space Type} * 0.000433 * 12/ {EER} * 719 | P77: 0.0001 | R77: {Measure:Quantity} * {Area Sq. Ft} * {Space Type} * 0.000433 * 12/ {EER} | U77: {Measure:Quantity} * {Area Sq. Ft} * {Space Type} * 0.000433 * 12/ {EER} * {Factor:WinterCF} | V77: {Measure:Quantity} * {Area Sq. Ft} * {Space Type} * 0.000433 * 12/ {EER} * {Factor:SummerCF} | AC77: 2018-01-01 | AD77: 2019-06-30 | AE77: 10 | AF77: 0.015 | AG77: 0.777 | AH77: 0.17 | AI77: 0.03 | AJ77: 0.62 | AK77: 0.18 | AL77: 1 | AM77: 1.122 | AN77: 1 | AO77: 0.52 | AP77: 0.016 | AR77: =DR77 -> {Measure:Quantity} | AS77: 1 | AT77: =DS77 -> {Area Sq. Ft} | AU77: 8400 | AV77: =DT77 -> {Space Type} | AW77: 0.37 | AX77: =DU77 -> {EER} | AY77: 10 | AZ77: =DV77 ->  | BB77: =DW77 ->  | BD77: =DX77 ->  | BL77: =AS77 * AU77 * AW77 * 0.000433 * 12/ AY77 * 719 -> 1161.125179 | BM77: =0.0001 -> 0.0001 | BN77: 0 | BO77: =AS77 * AU77 * AW77 * 0.000433 * 12/ AY77 -> 1.6149168 | BP77: 0 | BQ77: 0 | BR77: =AS77 * AU77 * AW77 * 0.000433 * 12/ AY77 * AF77 -> 0.024223752 | BS77: =AS77 * AU77 * AW77 * 0.000433 * 12/ AY77 * AG77 -> 1.254790354 | BT77: 0 | BU77: 0 | BV77: 0 | BW77: 0 | BX77: 0 | BY77: 0 | BZ77: Res | CA77: Default DR | CB77: =Benefits(BL77,BR77,BS77,BT77,BU77,BV77,BW77,BX77,BY77,AE77,AH77,AI77,AJ77,AK77,AL77,AM77,AN77,AO77,AP77,BZ77,CA77) -> 660.0656665 | CC77: 698.5088825 | CD77: 0 | CE77: 0 | CF77: 0 | CG77: 0 | CH77: 0 | CI77: 0 | CJ77: 1358.574549 | CK77: 0 | CM77: =850 -> 850 | CP77: 850 | CQ77: 1 | CR77: 1.598322999 | CS77: 1 | CT77: 350 | CV77: Electric | CX77: X=$850.00 | CZ77: X=AS77 * AU77 * AW77 * 0.000433 * 12/ AY77 * 719 | DA77: X=0.0001 | DB77: 0 | DC77: X=AS77 * AU77 * AW77 * 0.000433 * 12/ AY77 | DD77: 0 | DE77: 0 | DF77: X=AS77 * AU77 * AW77 * 0.000433 * 12/ AY77 * AF77 | DG77: X=AS77 * AU77 * AW77 * 0.000433 * 12/ AY77 * AG77 | DH77: 0 | DI77: 0 | DJ77: 0 | DK77: 0 | DL77: 0 | DM77: 0 | DP77: {Factor:WinterCF} | DQ77: {Factor:SummerCF} | DR77: =IFERROR(INDEX($ED77:$IG77,MATCH(0,COUNTIF($DO77:DQ77,$ED77:$IG77),0)),"") -> {Measure:Quantity} | DS77: =IFERROR(INDEX($ED77:$IG77,MATCH(0,COUNTIF($DO77:DR77,$ED77:$IG77),0)),"") -> {Area Sq. Ft} | DT77: =IFERROR(INDEX($ED77:$IG77,MATCH(0,COUNTIF($DO77:DS77,$ED77:$IG77),0)),"") -> {Space Type} | DU77: =IFERROR(INDEX($ED77:$IG77,MATCH(0,COUNTIF($DO77:DT77,$ED77:$IG77),0)),"") -> {EER} | DV77: =IFERROR(INDEX($ED77:$IG77,MATCH(0,COUNTIF($DO77:DU77,$ED77:$IG77),0)),"") ->  | DW77: =IFERROR(INDEX($ED77:$IG77,MATCH(0,COUNTIF($DO77:DV77,$ED77:$IG77),0)),"") ->  | DX77: =IFERROR(INDEX($ED77:$IG77,MATCH(0,COUNTIF($DO77:DW77,$ED77:$IG77),0)),"") ->  | DY77: =IFERROR(INDEX($ED77:$IG77,MATCH(0,COUNTIF($DO77:DX77,$ED77:$IG77),0)),"") ->  | DZ77: =IFERROR(INDEX($ED77:$IG77,MATCH(0,COUNTIF($DO77:DY77,$ED77:$IG77),0)),"") ->  | EA77: =IFERROR(INDEX($ED77:$IG77,MATCH(0,COUNTIF($DO77:DZ77,$ED77:$IG77),0)),"") ->  | EN77: {Measure:Quantity} | EO77: {Area Sq. Ft} | EP77: {Space Type} | EQ77: {EER} | EX77: {Measure:Quantity} | EY77: {Area Sq. Ft} | EZ77: {Space Type} | FA77: {EER} | FH77: {Measure:Quantity} | FI77: {Area Sq. Ft} | FJ77: {Space Type} | FK77: {EER} | FL77: {Factor:WinterCF} | FR77: {Measure:Quantity} | FS77: {Area Sq. Ft} | FT77: {Space Type} | FU77: {EER} | FV77: {Factor:SummerCF} | IK77: 4
A78: C&I HVAC - Electric | B78: DHP Lost Opportunity 2 Zones | C78: DHP2L | D78: 2018-07-01 | E78: 2019-06-30 | F78: Per Measure | G78: $682.00 | H78: 0 | I78: Per Measure | J78: $750.00 | K78: 0 | L78: 2018-07-01 | M78: 2019-06-30 | N78: Modeled | AC78: 2018-01-01 | AD78: 2019-06-30 | AE78: 18 | AF78: 1 | AG78: 1 | AH78: 0.3590366843 | AI78: 0.4946604494 | AJ78: 0.08349023301 | AK78: 0.06263357553 | AL78: 1 | AM78: 1 | AN78: 1 | AO78: 0.33 | AP78: 0.016 | BL78: -955.819948 | BM78: 0 | BN78: 0 | BP78: 0 | BQ78: 0 | BR78: -0.2956021626 | BS78: 0.310544029 | BT78: 0 | BU78: 2.649883956 | BV78: 10.70374474 | BW78: 0.1786438622 | BX78: 0.8187843683 | BY78: 0 | BZ78: Res | CA78: Default DR | CB78: =Benefits(BL78,BR78,BS78,BT78,BU78,BV78,BW78,BX78,BY78,AE78,AH78,AI78,AJ78,AK78,AL78,AM78,AN78,AO78,AP78,BZ78,CA78) -> -880.0336895 | CC78: -250.8858226 | CD78: 0 | CE78: 3656.6524 | CF78: 54.72442548 | CG78: 1249.122406 | CH78: 272.5946127 | CI78: 0 | CJ78: 5233.093844 | CK78: 1130.919512 | CM78: =682 -> 682 | CP78: 1812.919512 | CQ78: 1 | CR78: 2.782199775 | CS78: 1 | CT78: 750 | CV78: Electric | CX78: X=$682.00 | CZ78: 0 | DA78: 0 | DB78: 0 | DC78: 0 | DD78: 0 | DE78: 0 | DF78: 0 | DG78: 0 | DH78: 0 | DI78: 0 | DJ78: 0 | DK78: 0 | DL78: 0 | DM78: 0 | DP78: {Factor:WinterCF} | DQ78: {Factor:SummerCF} | DR78: =IFERROR(INDEX($ED78:$IG78,MATCH(0,COUNTIF($DO78:DQ78,$ED78:$IG78),0)),"") ->  | DS78: =IFERROR(INDEX($ED78:$IG78,MATCH(0,COUNTIF($DO78:DR78,$ED78:$IG78),0)),"") ->  | DT78: =IFERROR(INDEX($ED78:$IG78,MATCH(0,COUNTIF($DO78:DS78,$ED78:$IG78),0)),"") ->  | DU78: =IFERROR(INDEX($ED78:$IG78,MATCH(0,COUNTIF($DO78:DT78,$ED78:$IG78),0)),"") ->  | DV78: =IFERROR(INDEX($ED78:$IG78,MATCH(0,COUNTIF($DO78:DU78,$ED78:$IG78),0)),"") ->  | DW78: =IFERROR(INDEX($ED78:$IG78,MATCH(0,COUNTIF($DO78:DV78,$ED78:$IG78),0)),"") ->  | DX78: =IFERROR(INDEX($ED78:$IG78,MATCH(0,COUNTIF($DO78:DW78,$ED78:$IG78),0)),"") ->  | DY78: =IFERROR(INDEX($ED78:$IG78,MATCH(0,COUNTIF($DO78:DX78,$ED78:$IG78),0)),"") ->  | DZ78: =IFERROR(INDEX($ED78:$IG78,MATCH(0,COUNTIF($DO78:DY78,$ED78:$IG78),0)),"") ->  | EA78: =IFERROR(INDEX($ED78:$IG78,MATCH(0,COUNTIF($DO78:DZ78,$ED78:$IG78),0)),"") ->  | IK78: 0
A79: C&I HVAC - Electric | B79: DHP Lost Opportunity 3 Zones | C79: DHP3L | D79: 2018-07-01 | E79: 2019-06-30 | F79: Per Measure | G79: $682.00 | H79: 0 | I79: Per Measure | J79: $1000.00 | K79: 0 | L79: 2018-07-01 | M79: 2019-06-30 | N79: Modeled | AC79: 2018-01-01 | AD79: 2019-06-30 | AE79: 18 | AF79: 1 | AG79: 1 | AH79: 0.3590366843 | AI79: 0.4946604494 | AJ79: 0.08349023301 | AK79: 0.06263357553 | AL79: 1 | AM79: 1 | AN79: 1 | AO79: 0.33 | AP79: 0.016 | BL79: -1311.57335 | BM79: 0 | BN79: 0 | BP79: 0 | BQ79: 0 | BR79: -0.4224254267 | BS79: 0.3991211348 | BT79: 0 | BU79: 3.559117173 | BV79: 14.37643397 | BW79: 0.2399404836 | BX79: 1.099727216 | BY79: 0 | BZ79: Res | CA79: Default DR | CB79: =Benefits(BL79,BR79,BS79,BT79,BU79,BV79,BW79,BX79,BY79,AE79,AH79,AI79,AJ79,AK79,AL79,AM79,AN79,AO79,AP79,BZ79,CA79) -> -1207.579666 | CC79: -398.4434871 | CD79: 0 | CE79: 4911.329919 | CF79: 73.50157432 | CG79: 1677.723659 | CH79: 366.1277941 | CI79: 0 | CJ79: 7028.682946 | CK79: 1606.023154 | CM79: =682 -> 682 | CP79: 2288.023154 | CQ79: 1 | CR79: 2.697091519 | CS79: 1 | CT79: 1000 | CV79: Electric | CX79: X=$682.00 | CZ79: 0 | DA79: 0 | DB79: 0 | DC79: 0 | DD79: 0 | DE79: 0 | DF79: 0 | DG79: 0 | DH79: 0 | DI79: 0 | DJ79: 0 | DK79: 0 | DL79: 0 | DM79: 0 | DP79: {Factor:WinterCF} | DQ79: {Factor:SummerCF} | DR79: =IFERROR(INDEX($ED79:$IG79,MATCH(0,COUNTIF($DO79:DQ79,$ED79:$IG79),0)),"") ->  | DS79: =IFERROR(INDEX($ED79:$IG79,MATCH(0,COUNTIF($DO79:DR79,$ED79:$IG79),0)),"") ->  | DT79: =IFERROR(INDEX($ED79:$IG79,MATCH(0,COUNTIF($DO79:DS79,$ED79:$IG79),0)),"") ->  | DU79: =IFERROR(INDEX($ED79:$IG79,MATCH(0,COUNTIF($DO79:DT79,$ED79:$IG79),0)),"") ->  | DV79: =IFERROR(INDEX($ED79:$IG79,MATCH(0,COUNTIF($DO79:DU79,$ED79:$IG79),0)),"") ->  | DW79: =IFERROR(INDEX($ED79:$IG79,MATCH(0,COUNTIF($DO79:DV79,$ED79:$IG79),0)),"") ->  | DX79: =IFERROR(INDEX($ED79:$IG79,MATCH(0,COUNTIF($DO79:DW79,$ED79:$IG79),0)),"") ->  | DY79: =IFERROR(INDEX($ED79:$IG79,MATCH(0,COUNTIF($DO79:DX79,$ED79:$IG79),0)),"") ->  | DZ79: =IFERROR(INDEX($ED79:$IG79,MATCH(0,COUNTIF($DO79:DY79,$ED79:$IG79),0)),"") ->  | EA79: =IFERROR(INDEX($ED79:$IG79,MATCH(0,COUNTIF($DO79:DZ79,$ED79:$IG79),0)),"") ->  | IK79: 0
A80: C&I HVAC - Electric | B80: DHP Lost Opportunity 4 Zones | C80: DHP4L | D80: 2018-07-01 | E80: 2019-06-30 | F80: Per Measure | G80: $682.00 | H80: 0 | I80: Per Measure | J80: $1250.00 | K80: 0 | L80: 2018-07-01 | M80: 2019-06-30 | N80: Modeled | AC80: 2018-01-01 | AD80: 2019-06-30 | AE80: 18 | AF80: 1 | AG80: 1 | AH80: 0.3590366843 | AI80: 0.4946604494 | AJ80: 0.08349023301 | AK80: 0.06263357553 | AL80: 1 | AM80: 1 | AN80: 1 | AO80: 0.33 | AP80: 0.016 | BL80: -1667.326751 | BM80: 0 | BN80: 0 | BP80: 0 | BQ80: 0 | BR80: -0.5492486908 | BS80: 0.4876982406 | BT80: 0 | BU80: 4.46835039 | BV80: 18.04912321 | BW80: 0.301237105 | BX80: 1.380670064 | BY80: 0 | BZ80: Res | CA80: Default DR | CB80: =Benefits(BL80,BR80,BS80,BT80,BU80,BV80,BW80,BX80,BY80,AE80,AH80,AI80,AJ80,AK80,AL80,AM80,AN80,AO80,AP80,BZ80,CA80) -> -1535.125643 | CC80: -546.0011516 | CD80: 0 | CE80: 6166.007438 | CF80: 92.27872317 | CG80: 2106.324912 | CH80: 459.6609756 | CI80: 0 | CJ80: 8824.272049 | CK80: 2081.126795 | CM80: =682 -> 682 | CP80: 2763.126795 | CQ80: 1 | CR80: 2.649035174 | CS80: 1 | CT80: 1250 | CV80: Electric | CX80: X=$682.00 | CZ80: 0 | DA80: 0 | DB80: 0 | DC80: 0 | DD80: 0 | DE80: 0 | DF80: 0 | DG80: 0 | DH80: 0 | DI80: 0 | DJ80: 0 | DK80: 0 | DL80: 0 | DM80: 0 | DP80: {Factor:WinterCF} | DQ80: {Factor:SummerCF} | DR80: =IFERROR(INDEX($ED80:$IG80,MATCH(0,COUNTIF($DO80:DQ80,$ED80:$IG80),0)),"") ->  | DS80: =IFERROR(INDEX($ED80:$IG80,MATCH(0,COUNTIF($DO80:DR80,$ED80:$IG80),0)),"") ->  | DT80: =IFERROR(INDEX($ED80:$IG80,MATCH(0,COUNTIF($DO80:DS80,$ED80:$IG80),0)),"") ->  | DU80: =IFERROR(INDEX($ED80:$IG80,MATCH(0,COUNTIF($DO80:DT80,$ED80:$IG80),0)),"") ->  | DV80: =IFERROR(INDEX($ED80:$IG80,MATCH(0,COUNTIF($DO80:DU80,$ED80:$IG80),0)),"") ->  | DW80: =IFERROR(INDEX($ED80:$IG80,MATCH(0,COUNTIF($DO80:DV80,$ED80:$IG80),0)),"") ->  | DX80: =IFERROR(INDEX($ED80:$IG80,MATCH(0,COUNTIF($DO80:DW80,$ED80:$IG80),0)),"") ->  | DY80: =IFERROR(INDEX($ED80:$IG80,MATCH(0,COUNTIF($DO80:DX80,$ED80:$IG80),0)),"") ->  | DZ80: =IFERROR(INDEX($ED80:$IG80,MATCH(0,COUNTIF($DO80:DY80,$ED80:$IG80),0)),"") ->  | EA80: =IFERROR(INDEX($ED80:$IG80,MATCH(0,COUNTIF($DO80:DZ80,$ED80:$IG80),0)),"") ->  | IK80: 0
A81: C&I HVAC - Electric | B81: DHP Lost Opportunity Single Zone | C81: DHP1L | D81: 2018-07-01 | E81: 2019-06-30 | F81: Per Measure | G81: $682.00 | H81: 0 | I81: Per Measure | J81: $500.00 | K81: 0 | L81: 2018-07-01 | M81: 2019-06-30 | N81: Modeled | AC81: 2018-01-01 | AD81: 2019-06-30 | AE81: 18 | AF81: 1 | AG81: 1 | AH81: 0.3590366843 | AI81: 0.4946604494 | AJ81: 0.08349023301 | AK81: 0.06263357553 | AL81: 1 | AM81: 1 | AN81: 1 | AO81: 0.33 | AP81: 0.016 | BL81: -600 | BM81: 0 | BN81: 0 | BP81: 0 | BQ81: 0 | BR81: -0.1687788986 | BS81: 0.2219669232 | BT81: 0 | BU81: 1.740650738 | BV81: 7.031055509 | BW81: 0.1173472408 | BX81: 0.5378415202 | BY81: 0 | BZ81: Res | CA81: Default DR | CB81: =Benefits(BL81,BR81,BS81,BT81,BU81,BV81,BW81,BX81,BY81,AE81,AH81,AI81,AJ81,AK81,AL81,AM81,AN81,AO81,AP81,BZ81,CA81) -> -552.4264427 | CC81: -103.3281582 | CD81: 0 | CE81: 2401.974881 | CF81: 35.94727664 | CG81: 820.5211527 | CH81: 179.0614313 | CI81: 0 | CJ81: 3437.504742 | CK81: 655.7546009 | CM81: =682 -> 682 | CP81: 1337.754601 | CQ81: 1 | CR81: 2.569607863 | CS81: 1 | CT81: 500 | CV81: Electric | CX81: X=$682.00 | CZ81: 0 | DA81: 0 | DB81: 0 | DC81: 0 | DD81: 0 | DE81: 0 | DF81: 0 | DG81: 0 | DH81: 0 | DI81: 0 | DJ81: 0 | DK81: 0 | DL81: 0 | DM81: 0 | DP81: {Factor:WinterCF} | DQ81: {Factor:SummerCF} | DR81: =IFERROR(INDEX($ED81:$IG81,MATCH(0,COUNTIF($DO81:DQ81,$ED81:$IG81),0)),"") ->  | DS81: =IFERROR(INDEX($ED81:$IG81,MATCH(0,COUNTIF($DO81:DR81,$ED81:$IG81),0)),"") ->  | DT81: =IFERROR(INDEX($ED81:$IG81,MATCH(0,COUNTIF($DO81:DS81,$ED81:$IG81),0)),"") ->  | DU81: =IFERROR(INDEX($ED81:$IG81,MATCH(0,COUNTIF($DO81:DT81,$ED81:$IG81),0)),"") ->  | DV81: =IFERROR(INDEX($ED81:$IG81,MATCH(0,COUNTIF($DO81:DU81,$ED81:$IG81),0)),"") ->  | DW81: =IFERROR(INDEX($ED81:$IG81,MATCH(0,COUNTIF($DO81:DV81,$ED81:$IG81),0)),"") ->  | DX81: =IFERROR(INDEX($ED81:$IG81,MATCH(0,COUNTIF($DO81:DW81,$ED81:$IG81),0)),"") ->  | DY81: =IFERROR(INDEX($ED81:$IG81,MATCH(0,COUNTIF($DO81:DX81,$ED81:$IG81),0)),"") ->  | DZ81: =IFERROR(INDEX($ED81:$IG81,MATCH(0,COUNTIF($DO81:DY81,$ED81:$IG81),0)),"") ->  | EA81: =IFERROR(INDEX($ED81:$IG81,MATCH(0,COUNTIF($DO81:DZ81,$ED81:$IG81),0)),"") ->  | IK81: 0
A82: C&I HVAC - Electric | B82: Ductless Heat Pump Multi-Family | C82: MPDHPNC | D82: 2018-07-01 | E82: 2019-06-30 | F82: Per Measure | G82: $682.00 | H82: 0 | I82: Calculated | J82: {Measure:Quantity}*(500+({Number of Zones}-1)*250) | K82: 0 | L82: 2018-07-01 | M82: 2019-06-30 | N82: Modeled | AC82: 2018-01-01 | AD82: 2019-06-30 | AE82: 18 | AF82: 1 | AG82: 1 | AH82: 0.3779070725 | AI82: 0.5155257281 | AJ82: 0.05896298613 | AK82: 0.04747960661 | AL82: 1 | AM82: 1 | AN82: 1 | AO82: 0.11 | AP82: 0.01 | AR82: =DR82 ->  | AS82: 1 | AT82: {Number of Indoor Units} | AU82: 1 | AV82: =DT82 ->  | AX82: =DU82 ->  | AZ82: =DV82 ->  | BB82: =DW82 ->  | BD82: =DX82 ->  | BL82: -396.5953823 | BR82: -0.1893426846 | BS82: 0.1107213822 | BT82: 0 | BU82: 1.044707672 | BV82: 4.219914696 | BW82: 0.07042973068 | BX82: 0.3228029323 | BY82: 0 | BZ82: Res | CA82: Default DR | CB82: =Benefits(BL82,BR82,BS82,BT82,BU82,BV82,BW82,BX82,BY82,AE82,AH82,AI82,AJ82,AK82,AL82,AM82,AN82,AO82,AP82,BZ82,CA82) -> -368.0574886 | CC82: -239.5364296 | CD82: 0 | CE82: 1441.622682 | CF82: 21.57491727 | CG82: 492.4622294 | CH82: 107.4694922 | CI82: 0 | CJ82: 2063.129321 | CK82: 607.5939181 | CM82: =682 -> 682 | CP82: 1289.593918 | CQ82: 1 | CR82: 1.599828668 | CS82: 1 | CT82: =500+(AU82-1)*250 -> 500 | CV82: Electric | CX82: X=$682.00 | CZ82: 0 | DA82: 0 | DB82: 0 | DC82: 0 | DD82: 0 | DE82: 0 | DF82: 0 | DG82: 0 | DH82: 0 | DI82: 0 | DJ82: 0 | DK82: 0 | DL82: 0 | DM82: 0 | DP82: {Factor:WinterCF} | DQ82: {Factor:SummerCF} | DR82: =IFERROR(INDEX($ED82:$IG82,MATCH(0,COUNTIF($DO82:DQ82,$ED82:$IG82),0)),"") ->  | DS82: =IFERROR(INDEX($ED82:$IG82,MATCH(0,COUNTIF($DO82:DR82,$ED82:$IG82),0)),"") ->  | DT82: =IFERROR(INDEX($ED82:$IG82,MATCH(0,COUNTIF($DO82:DS82,$ED82:$IG82),0)),"") ->  | DU82: =IFERROR(INDEX($ED82:$IG82,MATCH(0,COUNTIF($DO82:DT82,$ED82:$IG82),0)),"") ->  | DV82: =IFERROR(INDEX($ED82:$IG82,MATCH(0,COUNTIF($DO82:DU82,$ED82:$IG82),0)),"") ->  | DW82: =IFERROR(INDEX($ED82:$IG82,MATCH(0,COUNTIF($DO82:DV82,$ED82:$IG82),0)),"") ->  | DX82: =IFERROR(INDEX($ED82:$IG82,MATCH(0,COUNTIF($DO82:DW82,$ED82:$IG82),0)),"") ->  | DY82: =IFERROR(INDEX($ED82:$IG82,MATCH(0,COUNTIF($DO82:DX82,$ED82:$IG82),0)),"") ->  | DZ82: =IFERROR(INDEX($ED82:$IG82,MATCH(0,COUNTIF($DO82:DY82,$ED82:$IG82),0)),"") ->  | EA82: =IFERROR(INDEX($ED82:$IG82,MATCH(0,COUNTIF($DO82:DZ82,$ED82:$IG82),0)),"") ->  | IK82: 0
A83: C&I HVAC - Electric | B83: HVAC AIR-TO-AIR HEAT PUMP: < 5.4 Packaged | C83: AH2 | D83: 2018-07-01 | E83: 2019-06-30 | F83: Calculated | G83: {Measure:Quantity}*{Unit Size - Tons}*100.0 | H83: 0 | I83: Calculated | J83: {Measure:Quantity}*{Unit Size - Tons}*50 | K83: 0 | L83: 2018-07-01 | M83: 2019-06-30 | N83: Calculated | O83: {Measure:Quantity} * ((12 * {Unit Size - Tons} * (1/13.0 - 1/{SEER}) * 829) + ({Heating BTUH}/1000 * (1/7.7 - 1/{HSPF}) * 2200)) | P83: 0.0001 | R83: {Measure:Quantity} * 12 * {Unit Size - Tons} * (1/13.0 - 1/{SEER}) | U83: {Measure:Quantity} * {Heating BTUH}/1000 * (1/7.7 - 1/{HSPF}) * {Factor:WinterCF} | V83: {Measure:Quantity} * 12 * {Unit Size - Tons} * (1/13.0 - 1/{SEER}) * {Factor:SummerCF} | AC83: 2018-01-01 | AD83: 2019-06-30 | AE83: 15 | AF83: 0.42 | AG83: 0.357 | AH83: 0.17 | AI83: 0.03 | AJ83: 0.62 | AK83: 0.18 | AL83: 1 | AM83: 1.122 | AN83: 1 | AO83: 0.52 | AP83: 0.016 | AR83: {Measure:Quantity} | AS83: 1 | AT83: =DS83 -> {Unit Size - Tons} | AU83: 5 | AV83: {SEER} | AW83: 16 | AX83: {Heating BTUH} | AY83: 56500 | AZ83: {HSPF} | BA83: 9 | BL83: =AS83 * ((12 * AU83 * (1/13 - 1/AW83) * 829) + (AY83/1000 * (1/7.7 - 1/BA83) * 2200)) -> 3049.149878 | BM83: =0.0001 -> 0.0001 | BN83: 0 | BO83: =AS83 * 12 * AU83 * (1/13 - 1/AW83) -> 0.8653846154 | BP83: 0 | BQ83: 0 | BR83: =AS83 * AY83/1000 * (1/7.7 - 1/BA83) * AF83 -> 0.4451515152 | BS83: =AS83 * 12 * AU83 * (1/13 - 1/AW83) * AG83 -> 0.3089423077 | BT83: 0 | BU83: 0 | BV83: 0 | BW83: 0 | BX83: 0 | BY83: 0 | BZ83: Res | CA83: Default DR | CB83: =Benefits(BL83,BR83,BS83,BT83,BU83,BV83,BW83,BX83,BY83,AE83,AH83,AI83,AJ83,AK83,AL83,AM83,AN83,AO83,AP83,BZ83,CA83) -> 2418.583087 | CC83: 919.1310789 | CD83: 0 | CE83: 0 | CF83: 0 | CG83: 0 | CH83: 0 | CI83: 0 | CJ83: 3337.714166 | CK83: 0 | CM83: =AS83*AU83*100 -> 500 | CP83: 500 | CQ83: 1 | CR83: 6.675428332 | CS83: 1 | CT83: =AU83*50 -> 250 | CV83: Electric | CX83: X=AS83*AU83*100.0 | CZ83: X=AS83 * ((12 * AU83 * (1/13.0 - 1/AW83) * 829) + (AY83/1000 * (1/7.7 - 1/BA83) * 2200)) | DA83: X=0.0001 | DB83: 0 | DC83: X=AS83 * 12 * AU83 * (1/13.0 - 1/AW83) | DD83: 0 | DE83: 0 | DF83: X=AS83 * AY83/1000 * (1/7.7 - 1/BA83) * AF83 | DG83: X=AS83 * 12 * AU83 * (1/13.0 - 1/AW83) * AG83 | DH83: 0 | DI83: 0 | DJ83: 0 | DK83: 0 | DL83: 0 | DM83: 0 | DP83: {Factor:WinterCF} | DQ83: {Factor:SummerCF} | DR83: =IFERROR(INDEX($ED83:$IG83,MATCH(0,COUNTIF($DO83:DQ83,$ED83:$IG83),0)),"") -> {Measure:Quantity} | DS83: =IFERROR(INDEX($ED83:$IG83,MATCH(0,COUNTIF($DO83:DR83,$ED83:$IG83),0)),"") -> {Unit Size - Tons} | DT83: =IFERROR(INDEX($ED83:$IG83,MATCH(0,COUNTIF($DO83:DS83,$ED83:$IG83),0)),"") -> {SEER} | DU83: =IFERROR(INDEX($ED83:$IG83,MATCH(0,COUNTIF($DO83:DT83,$ED83:$IG83),0)),"") -> {Heating BTUH} | DV83: =IFERROR(INDEX($ED83:$IG83,MATCH(0,COUNTIF($DO83:DU83,$ED83:$IG83),0)),"") -> {HSPF} | DW83: =IFERROR(INDEX($ED83:$IG83,MATCH(0,COUNTIF($DO83:DV83,$ED83:$IG83),0)),"") ->  | DX83: =IFERROR(INDEX($ED83:$IG83,MATCH(0,COUNTIF($DO83:DW83,$ED83:$IG83),0)),"") ->  | DY83: =IFERROR(INDEX($ED83:$IG83,MATCH(0,COUNTIF($DO83:DX83,$ED83:$IG83),0)),"") ->  | DZ83: =IFERROR(INDEX($ED83:$IG83,MATCH(0,COUNTIF($DO83:DY83,$ED83:$IG83),0)),"") ->  | EA83: =IFERROR(INDEX($ED83:$IG83,MATCH(0,COUNTIF($DO83:DZ83,$ED83:$IG83),0)),"") ->  | ED83: {Measure:Quantity} | EE83: {Unit Size - Tons} | EN83: {Measure:Quantity} | EO83: {Unit Size - Tons} | EP83: {SEER} | EQ83: {Heating BTUH} | ER83: {HSPF} | EX83: {Measure:Quantity} | EY83: {Unit Size - Tons} | EZ83: {SEER} | FH83: {Measure:Quantity} | FI83: {Heating BTUH} | FJ83: {HSPF} | FK83: {Factor:WinterCF} | FR83: {Measure:Quantity} | FS83: {Unit Size - Tons} | FT83: {SEER} | FU83: {Factor:SummerCF} | IK83: 5
A84: C&I HVAC - Electric | B84: HVAC AIR-TO-AIR HEAT PUMP: < 5.4 Split | C84: AH1 | D84: 2018-07-01 | E84: 2019-06-30 | F84: Calculated | G84: {Measure:Quantity}*{Unit Size - Tons}*100.0 | H84: 0 | I84: Calculated | J84: {Measure:Quantity}*{Unit Size - Tons}*50 | K84: 0 | L84: 2018-07-01 | M84: 2019-06-30 | N84: Calculated | O84: {Measure:Quantity} * ((12 * {Unit Size - Tons} * (1/13.0 - 1/{SEER}) * 829) + ({Heating BTUH}/1000 * (1/7.7 - 1/{HSPF}) * 2200)) | P84: 0.0001 | R84: {Measure:Quantity} * 12 * {Unit Size - Tons} * (1/13.0 - 1/{SEER}) | U84: {Measure:Quantity} * {Heating BTUH}/1000 * (1/7.7 - 1/{HSPF}) * {Factor:WinterCF} | V84: {Measure:Quantity} * 12 * {Unit Size - Tons} * (1/13.0 - 1/{SEER}) * {Factor:SummerCF} | AC84: 2018-01-01 | AD84: 2019-06-30 | AE84: 15 | AF84: 0.42 | AG84: 0.357 | AH84: 0.17 | AI84: 0.03 | AJ84: 0.62 | AK84: 0.18 | AL84: 1 | AM84: 1.122 | AN84: 1 | AO84: 0.52 | AP84: 0.016 | AR84: {Measure:Quantity} | AS84: 1 | AT84: {Unit Size - Tons} | AU84: 5 | AV84: {SEER} | AW84: 16 | AX84: {Heating BTUH} | AY84: 56500 | AZ84: {HSPF} | BA84: 9 | BL84: =AS84 * ((12 * AU84 * (1/13 - 1/AW84) * 829) + (AY84/1000 * (1/7.7 - 1/BA84) * 2200)) -> 3049.149878 | BM84: =0.0001 -> 0.0001 | BN84: 0 | BO84: =AS84 * 12 * AU84 * (1/13 - 1/AW84) -> 0.8653846154 | BP84: 0 | BQ84: 0 | BR84: =AS84 * AY84/1000 * (1/7.7 - 1/BA84) * AF84 -> 0.4451515152 | BS84: =AS84 * 12 * AU84 * (1/13 - 1/AW84) * AG84 -> 0.3089423077 | BT84: 0 | BU84: 0 | BV84: 0 | BW84: 0 | BX84: 0 | BY84: 0 | BZ84: Res | CA84: Default DR | CB84: =Benefits(BL84,BR84,BS84,BT84,BU84,BV84,BW84,BX84,BY84,AE84,AH84,AI84,AJ84,AK84,AL84,AM84,AN84,AO84,AP84,BZ84,CA84) -> 2418.583087 | CC84: 919.1310789 | CD84: 0 | CE84: 0 | CF84: 0 | CG84: 0 | CH84: 0 | CI84: 0 | CJ84: 3337.714166 | CK84: 0 | CM84: =AS84*AU84*100 -> 500 | CP84: 500 | CQ84: 1 | CR84: 6.675428332 | CS84: 1 | CT84: =AU84*50 -> 250 | CV84: Electric | CX84: X=AS84*AU84*100.0 | CZ84: X=AS84 * ((12 * AU84 * (1/13.0 - 1/AW84) * 829) + (AY84/1000 * (1/7.7 - 1/BA84) * 2200)) | DA84: X=0.0001 | DB84: 0 | DC84: X=AS84 * 12 * AU84 * (1/13.0 - 1/AW84) | DD84: 0 | DE84: 0 | DF84: X=AS84 * AY84/1000 * (1/7.7 - 1/BA84) * AF84 | DG84: X=AS84 * 12 * AU84 * (1/13.0 - 1/AW84) * AG84 | DH84: 0 | DI84: 0 | DJ84: 0 | DK84: 0 | DL84: 0 | DM84: 0 | DP84: {Factor:WinterCF} | DQ84: {Factor:SummerCF} | DR84: =IFERROR(INDEX($ED84:$IG84,MATCH(0,COUNTIF($DO84:DQ84,$ED84:$IG84),0)),"") -> {Measure:Quantity} | DS84: =IFERROR(INDEX($ED84:$IG84,MATCH(0,COUNTIF($DO84:DR84,$ED84:$IG84),0)),"") -> {Unit Size - Tons} | DT84: =IFERROR(INDEX($ED84:$IG84,MATCH(0,COUNTIF($DO84:DS84,$ED84:$IG84),0)),"") -> {SEER} | DU84: =IFERROR(INDEX($ED84:$IG84,MATCH(0,COUNTIF($DO84:DT84,$ED84:$IG84),0)),"") -> {Heating BTUH} | DV84: =IFERROR(INDEX($ED84:$IG84,MATCH(0,COUNTIF($DO84:DU84,$ED84:$IG84),0)),"") -> {HSPF} | DW84: =IFERROR(INDEX($ED84:$IG84,MATCH(0,COUNTIF($DO84:DV84,$ED84:$IG84),0)),"") ->  | DX84: =IFERROR(INDEX($ED84:$IG84,MATCH(0,COUNTIF($DO84:DW84,$ED84:$IG84),0)),"") ->  | DY84: =IFERROR(INDEX($ED84:$IG84,MATCH(0,COUNTIF($DO84:DX84,$ED84:$IG84),0)),"") ->  | DZ84: =IFERROR(INDEX($ED84:$IG84,MATCH(0,COUNTIF($DO84:DY84,$ED84:$IG84),0)),"") ->  | EA84: =IFERROR(INDEX($ED84:$IG84,MATCH(0,COUNTIF($DO84:DZ84,$ED84:$IG84),0)),"") ->  | ED84: =IFERROR(MID($G84,FIND(CHAR(160),SUBSTITUTE($G84,"{",CHAR(160),ED$1)),FIND(CHAR(160),SUBSTITUTE($G84,"}",CHAR(160),ED$1))-FIND(CHAR(160),SUBSTITUTE($G84,"{",CHAR(160),ED$1))+1),"") -> {Measure:Quantity} | EE84: {Unit Size - Tons} | EN84: =IFERROR(MID($O84,FIND(CHAR(160),SUBSTITUTE($O84,"{",CHAR(160),EN$1)),FIND(CHAR(160),SUBSTITUTE($O84,"}",CHAR(160),EN$1))-FIND(CHAR(160),SUBSTITUTE($O84,"{",CHAR(160),EN$1))+1),"") -> {Measure:Quantity} | EO84: {Unit Size - Tons} | EP84: {SEER} | EQ84: {Heating BTUH} | ER84: {HSPF} | EX84: =IFERROR(MID($R84,FIND(CHAR(160),SUBSTITUTE($R84,"{",CHAR(160),EX$1)),FIND(CHAR(160),SUBSTITUTE($R84,"}",CHAR(160),EX$1))-FIND(CHAR(160),SUBSTITUTE($R84,"{",CHAR(160),EX$1))+1),"") -> {Measure:Quantity} | EY84: {Unit Size - Tons} | EZ84: {SEER} | FH84: =IFERROR(MID($U84,FIND(CHAR(160),SUBSTITUTE($U84,"{",CHAR(160),FH$1)),FIND(CHAR(160),SUBSTITUTE($U84,"}",CHAR(160),FH$1))-FIND(CHAR(160),SUBSTITUTE($U84,"{",CHAR(160),FH$1))+1),"") -> {Measure:Quantity} | FI84: {Heating BTUH} | FJ84: {HSPF} | FK84: {Factor:WinterCF} | FR84: =IFERROR(MID($V84,FIND(CHAR(160),SUBSTITUTE($V84,"{",CHAR(160),FR$1)),FIND(CHAR(160),SUBSTITUTE($V84,"}",CHAR(160),FR$1))-FIND(CHAR(160),SUBSTITUTE($V84,"{",CHAR(160),FR$1))+1),"") -> {Measure:Quantity} | FS84: {Unit Size - Tons} | FT84: {SEER} | FU84: {Factor:SummerCF} | GB84: =IFERROR(MID($W84,FIND(CHAR(160),SUBSTITUTE($W84,"{",CHAR(160),GB$1)),FIND(CHAR(160),SUBSTITUTE($W84,"}",CHAR(160),GB$1))-FIND(CHAR(160),SUBSTITUTE($W84,"{",CHAR(160),GB$1))+1),"") ->  | GL84: =IFERROR(MID($X84,FIND(CHAR(160),SUBSTITUTE($X84,"{",CHAR(160),GL$1)),FIND(CHAR(160),SUBSTITUTE($X84,"}",CHAR(160),GL$1))-FIND(CHAR(160),SUBSTITUTE($X84,"{",CHAR(160),GL$1))+1),"") ->  | GV84: =IFERROR(MID($Y84,FIND(CHAR(160),SUBSTITUTE($Y84,"{",CHAR(160),GV$1)),FIND(CHAR(160),SUBSTITUTE($Y84,"}",CHAR(160),GV$1))-FIND(CHAR(160),SUBSTITUTE($Y84,"{",CHAR(160),GV$1))+1),"") ->  | HF84: =IFERROR(MID($Z84,FIND(CHAR(160),SUBSTITUTE($Z84,"{",CHAR(160),HF$1)),FIND(CHAR(160),SUBSTITUTE($Z84,"}",CHAR(160),HF$1))-FIND(CHAR(160),SUBSTITUTE($Z84,"{",CHAR(160),HF$1))+1),"") ->  | HP84: =IFERROR(MID($AA84,FIND(CHAR(160),SUBSTITUTE($AA84,"{",CHAR(160),HP$1)),FIND(CHAR(160),SUBSTITUTE($AA84,"}",CHAR(160),HP$1))-FIND(CHAR(160),SUBSTITUTE($AA84,"{",CHAR(160),HP$1))+1),"") ->  | HZ84: =IFERROR(MID($AB84,FIND(CHAR(160),SUBSTITUTE($AB84,"{",CHAR(160),HZ$1)),FIND(CHAR(160),SUBSTITUTE($AB84,"}",CHAR(160),HZ$1))-FIND(CHAR(160),SUBSTITUTE($AB84,"{",CHAR(160),HZ$1))+1),"") ->  | IK84: 5
A85: C&I HVAC - Electric | B85: HVAC AIR-TO-AIR HEAT PUMP: > = 5.4 to < 11.25 | C85: AH3 | D85: 2018-07-01 | E85: 2019-06-30 | F85: Calculated | G85: {Measure:Quantity}*{Unit Size - Tons}*100.0 | H85: 0 | I85: Calculated | J85: {Measure:Quantity}*{Unit Size - Tons}*50 | K85: 0 | L85: 2018-07-01 | M85: 2019-06-30 | N85: Calculated | O85: {Measure:Quantity} * ((12 * {Unit Size - Tons} * (1/11.0 - 1/{EER}) * 829) + ({Heating BTUH}/1000 * (1/3.3 - 1/{COP}) * 1600 / 3.412)) | P85: 0.0001 | R85: {Measure:Quantity} * 12 * {Unit Size - Tons} * (1/11.0 - 1/{EER}) | U85: {Measure:Quantity} * {Heating BTUH}/1000 * (1/3.3 - 1/{COP}) / 3.412 * {Factor:WinterCF} | V85: {Measure:Quantity} * 12 * {Unit Size - Tons} * (1/11.0 - 1/{EER}) * {Factor:SummerCF} | AC85: 2018-01-01 | AD85: 2019-06-30 | AE85: 15 | AF85: 0.42 | AG85: 0.357 | AH85: 0.17 | AI85: 0.03 | AJ85: 0.62 | AK85: 0.18 | AL85: 1 | AM85: 1.122 | AN85: 1 | AO85: 0.52 | AP85: 0.016 | AR85: {Measure:Quantity} | AS85: 1 | AT85: {Unit Size - Tons} | AU85: 8 | AV85: {EER} | AW85: 12 | AX85: {Heating BTUH} | AY85: 9200 | AZ85: {COP} | BA85: 4 | BL85: =AS85 * ((12 * AU85 * (1/11 - 1/AW85) * 829) + (AY85/1000 * (1/3.3 - 1/BA85) * 1600 / 3.412)) -> 831.6916409 | BM85: =0.0001 -> 0.0001 | BN85: 0 | BO85: =AS85 * 12 * AU85 * (1/11 - 1/AW85) -> 0.7272727273 | BP85: 0 | BQ85: 0 | BR85: =AS85 * AY85/1000 * (1/3.3 - 1/BA85) / 3.412 * AF85 -> 0.06005541938 | BS85: =AS85 * 12 * AU85 * (1/11 - 1/AW85) * AG85 -> 0.2596363636 | BT85: 0 | BU85: 0 | BV85: 0 | BW85: 0 | BX85: 0 | BY85: 0 | BZ85: Res | CA85: Default DR | CB85: =Benefits(BL85,BR85,BS85,BT85,BU85,BV85,BW85,BX85,BY85,AE85,AH85,AI85,AJ85,AK85,AL85,AM85,AN85,AO85,AP85,BZ85,CA85) -> 659.6971015 | CC85: 291.047582 | CD85: 0 | CE85: 0 | CF85: 0 | CG85: 0 | CH85: 0 | CI85: 0 | CJ85: 950.7446835 | CK85: 0 | CM85: =AS85*AU85*100 -> 800 | CP85: 800 | CQ85: 1 | CR85: 1.188430854 | CS85: 1 | CT85: =CM85*CU85 -> 0 | CV85: Electric | CX85: X=AS85*AU85*100.0 | CZ85: X=AS85 * ((12 * AU85 * (1/11.0 - 1/AW85) * 829) + (AY85/1000 * (1/3.3 - 1/BA85) * 1600 / 3.412)) | DA85: X=0.0001 | DB85: 0 | DC85: X=AS85 * 12 * AU85 * (1/11.0 - 1/AW85) | DD85: 0 | DE85: 0 | DF85: X=AS85 * AY85/1000 * (1/3.3 - 1/BA85) / 3.412 * AF85 | DG85: X=AS85 * 12 * AU85 * (1/11.0 - 1/AW85) * AG85 | DH85: 0 | DI85: 0 | DJ85: 0 | DK85: 0 | DL85: 0 | DM85: 0 | DP85: {Factor:WinterCF} | DQ85: {Factor:SummerCF} | DR85: =IFERROR(INDEX($ED85:$IG85,MATCH(0,COUNTIF($DO85:DQ85,$ED85:$IG85),0)),"") -> {Measure:Quantity} | DS85: =IFERROR(INDEX($ED85:$IG85,MATCH(0,COUNTIF($DO85:DR85,$ED85:$IG85),0)),"") -> {Unit Size - Tons} | DT85: =IFERROR(INDEX($ED85:$IG85,MATCH(0,COUNTIF($DO85:DS85,$ED85:$IG85),0)),"") -> {EER} | DU85: =IFERROR(INDEX($ED85:$IG85,MATCH(0,COUNTIF($DO85:DT85,$ED85:$IG85),0)),"") -> {Heating BTUH} | DV85: =IFERROR(INDEX($ED85:$IG85,MATCH(0,COUNTIF($DO85:DU85,$ED85:$IG85),0)),"") -> {COP} | DW85: =IFERROR(INDEX($ED85:$IG85,MATCH(0,COUNTIF($DO85:DV85,$ED85:$IG85),0)),"") ->  | DX85: =IFERROR(INDEX($ED85:$IG85,MATCH(0,COUNTIF($DO85:DW85,$ED85:$IG85),0)),"") ->  | DY85: =IFERROR(INDEX($ED85:$IG85,MATCH(0,COUNTIF($DO85:DX85,$ED85:$IG85),0)),"") ->  | DZ85: =IFERROR(INDEX($ED85:$IG85,MATCH(0,COUNTIF($DO85:DY85,$ED85:$IG85),0)),"") ->  | EA85: =IFERROR(INDEX($ED85:$IG85,MATCH(0,COUNTIF($DO85:DZ85,$ED85:$IG85),0)),"") ->  | ED85: {Measure:Quantity} | EE85: {Unit Size - Tons} | EN85: {Measure:Quantity} | EO85: {Unit Size - Tons} | EP85: {EER} | EQ85: {Heating BTUH} | ER85: {COP} | EX85: {Measure:Quantity} | EY85: {Unit Size - Tons} | EZ85: {EER} | FH85: {Measure:Quantity} | FI85: {Heating BTUH} | FJ85: {COP} | FK85: {Factor:WinterCF} | FR85: {Measure:Quantity} | FS85: {Unit Size - Tons} | FT85: {EER} | FU85: {Factor:SummerCF} | IK85: 5
A86: C&I HVAC - Electric | B86: HVAC WATER SOURCE HEAT PUMP: < 11.25 | C86: WH | D86: 2018-07-01 | E86: 2019-06-30 | F86: Calculated | G86: {Measure:Quantity}*{Unit Size - Tons}*100.0 | H86: 0 | I86: Calculated | J86: {Measure:Quantity}*{Unit Size - Tons}*100 | K86: 0 | L86: 2018-07-01 | M86: 2019-06-30 | N86: Calculated | O86: {Measure:Quantity} * ((12 * {Unit Size - Tons} * (1/12.0 - 1/{EER}) * 829) + ({Heating BTUH}/1000 * (1/4.2 - 1/{COP}) * 1600 / 3.412)) | P86: 0.0001 | R86: {Measure:Quantity} * 12 * {Unit Size - Tons} * (1/12.0 - 1/{EER}) | U86: {Measure:Quantity} * {Heating BTUH}/1000 * (1/4.2 - 1/{COP}) / 3.412 * {Factor:WinterCF} | V86: {Measure:Quantity} * 12 * {Unit Size - Tons} * (1/12.0 - 1/{EER}) * {Factor:SummerCF} | AC86: 2018-01-01 | AD86: 2019-06-30 | AE86: 15 | AF86: 0.42 | AG86: 0.357 | AH86: 0.17 | AI86: 0.03 | AJ86: 0.62 | AK86: 0.18 | AL86: 1 | AM86: 1.122 | AN86: 1 | AO86: 0.52 | AP86: 0.016 | AR86: {Measure:Quantity} | AS86: 1 | AT86: {Unit Size - Tons} | AU86: 3 | AV86: {EER} | AW86: 16 | AX86: {Heating BTUH} | AY86: 37538 | AZ86: {COP} | BA86: 4 | BL86: =AS86 * ((12 * AU86 * (1/12 - 1/AW86) * 829) + (AY86/1000 * (1/4.2 - 1/BA86) * 1600 / 3.412)) -> 412.1926952 | BM86: =0.0001 -> 0.0001 | BN86: 0 | BO86: =AS86 * 12 * AU86 * (1/12 - 1/AW86) -> 0.75 | BP86: 0 | BQ86: 0 | BR86: =AS86 * AY86/1000 * (1/4.2 - 1/BA86) / 3.412 * AF86 -> -0.0550087925 | BS86: =AS86 * 12 * AU86 * (1/12 - 1/AW86) * AG86 -> 0.26775 | BT86: 0 | BU86: 0 | BV86: 0 | BW86: 0 | BX86: 0 | BY86: 0 | BZ86: Res | CA86: Default DR | CB86: =Benefits(BL86,BR86,BS86,BT86,BU86,BV86,BW86,BX86,BY86,AE86,AH86,AI86,AJ86,AK86,AL86,AM86,AN86,AO86,AP86,BZ86,CA86) -> 326.9508949 | CC86: 120.8899966 | CD86: 0 | CE86: 0 | CF86: 0 | CG86: 0 | CH86: 0 | CI86: 0 | CJ86: 447.8408915 | CK86: 0 | CM86: =AS86*AU86*100 -> 300 | CP86: 300 | CQ86: 1 | CR86: 1.492802972 | CS86: 1 | CT86: =AU86*10 -> 30 | CV86: Electric | CX86: X=AS86*AU86*100.0 | CZ86: X=AS86 * ((12 * AU86 * (1/12.0 - 1/AW86) * 829) + (AY86/1000 * (1/4.2 - 1/BA86) * 1600 / 3.412)) | DA86: X=0.0001 | DB86: 0 | DC86: X=AS86 * 12 * AU86 * (1/12.0 - 1/AW86) | DD86: 0 | DE86: 0 | DF86: X=AS86 * AY86/1000 * (1/4.2 - 1/BA86) / 3.412 * AF86 | DG86: X=AS86 * 12 * AU86 * (1/12.0 - 1/AW86) * AG86 | DH86: 0 | DI86: 0 | DJ86: 0 | DK86: 0 | DL86: 0 | DM86: 0 | DP86: {Factor:WinterCF} | DQ86: {Factor:SummerCF} | DR86: =IFERROR(INDEX($ED86:$IG86,MATCH(0,COUNTIF($DO86:DQ86,$ED86:$IG86),0)),"") -> {Measure:Quantity} | DS86: =IFERROR(INDEX($ED86:$IG86,MATCH(0,COUNTIF($DO86:DR86,$ED86:$IG86),0)),"") -> {Unit Size - Tons} | DT86: =IFERROR(INDEX($ED86:$IG86,MATCH(0,COUNTIF($DO86:DS86,$ED86:$IG86),0)),"") -> {EER} | DU86: =IFERROR(INDEX($ED86:$IG86,MATCH(0,COUNTIF($DO86:DT86,$ED86:$IG86),0)),"") -> {Heating BTUH} | DV86: =IFERROR(INDEX($ED86:$IG86,MATCH(0,COUNTIF($DO86:DU86,$ED86:$IG86),0)),"") -> {COP} | DW86: =IFERROR(INDEX($ED86:$IG86,MATCH(0,COUNTIF($DO86:DV86,$ED86:$IG86),0)),"") ->  | DX86: =IFERROR(INDEX($ED86:$IG86,MATCH(0,COUNTIF($DO86:DW86,$ED86:$IG86),0)),"") ->  | DY86: =IFERROR(INDEX($ED86:$IG86,MATCH(0,COUNTIF($DO86:DX86,$ED86:$IG86),0)),"") ->  | DZ86: =IFERROR(INDEX($ED86:$IG86,MATCH(0,COUNTIF($DO86:DY86,$ED86:$IG86),0)),"") ->  | EA86: =IFERROR(INDEX($ED86:$IG86,MATCH(0,COUNTIF($DO86:DZ86,$ED86:$IG86),0)),"") ->  | ED86: {Measure:Quantity} | EE86: {Unit Size - Tons} | EN86: {Measure:Quantity} | EO86: {Unit Size - Tons} | EP86: {EER} | EQ86: {Heating BTUH} | ER86: {COP} | EX86: {Measure:Quantity} | EY86: {Unit Size - Tons} | EZ86: {EER} | FH86: {Measure:Quantity} | FI86: {Heating BTUH} | FJ86: {COP} | FK86: {Factor:WinterCF} | FR86: {Measure:Quantity} | FS86: {Unit Size - Tons} | FT86: {EER} | FU86: {Factor:SummerCF} | IK86: 5
A87: C&I HVAC - Electric | B87: Programmable Thermostat | C87: AF6 | D87: 2018-07-01 | E87: 2019-06-30 | F87: Per Measure | G87: $157.00 | H87: 0 | I87: Calculated | J87: {Measure:Quantity}*100 | K87: 0 | L87: 2018-07-01 | M87: 2019-06-30 | N87: Calculated | O87: {Measure:Quantity} * ({Capacity (MBTUH)} * 1565 *0.068) / 1000 /0.003412 | AC87: 2018-01-01 | AD87: 2019-06-30 | AE87: 8 | AF87: 1 | AG87: 1 | AH87: 0.39 | AI87: 0.305 | AJ87: 0.216 | AK87: 0.089 | AL87: 1 | AM87: 1 | AN87: 0 | AO87: 0.52 | AP87: 0.016 | AR87: {Measure:Quantity} | AS87: 1 | AT87: {Capacity (MBTUH)} | AU87: 90 | BL87: =AS87 * (AU87 * 1565 *0.068) / 1000 /0.003412 -> 2807.092614 | BM87: 0 | BN87: 0 | BO87: 0 | BP87: 0 | BQ87: 0 | BR87: 0 | BS87: 0 | BT87: 0 | BU87: 0 | BV87: 0 | BW87: 0 | BX87: 0 | BY87: 0 | BZ87: Res | CA87: Default DR | CB87: =Benefits(BL87,BR87,BS87,BT87,BU87,BV87,BW87,BX87,BY87,AE87,AH87,AI87,AJ87,AK87,AL87,AM87,AN87,AO87,AP87,BZ87,CA87) -> 1307.22649 | CC87: 0 | CD87: 0 | CE87: 0 | CF87: 0 | CG87: 0 | CH87: 0 | CI87: 0 | CJ87: 1307.22649 | CK87: 0 | CM87: =157 -> 157 | CP87: 157 | CQ87: 1 | CR87: 8.326283377 | CS87: 1 | CT87: 100 | CV87: Electric | CX87: X=$157.00 | CZ87: X=AS87 * (AU87 * 1565 *0.068) / 1000 /0.003412 | DA87: 0 | DB87: 0 | DC87: 0 | DD87: 0 | DE87: 0 | DF87: 0 | DG87: 0 | DH87: 0 | DI87: 0 | DJ87: 0 | DK87: 0 | DL87: 0 | DM87: 0 | DP87: {Factor:WinterCF} | DQ87: {Factor:SummerCF} | DR87: =IFERROR(INDEX($ED87:$IG87,MATCH(0,COUNTIF($DO87:DQ87,$ED87:$IG87),0)),"") -> {Measure:Quantity} | DS87: =IFERROR(INDEX($ED87:$IG87,MATCH(0,COUNTIF($DO87:DR87,$ED87:$IG87),0)),"") -> {Capacity (MBTUH)} | DT87: =IFERROR(INDEX($ED87:$IG87,MATCH(0,COUNTIF($DO87:DS87,$ED87:$IG87),0)),"") ->  | DU87: =IFERROR(INDEX($ED87:$IG87,MATCH(0,COUNTIF($DO87:DT87,$ED87:$IG87),0)),"") ->  | DV87: =IFERROR(INDEX($ED87:$IG87,MATCH(0,COUNTIF($DO87:DU87,$ED87:$IG87),0)),"") ->  | DW87: =IFERROR(INDEX($ED87:$IG87,MATCH(0,COUNTIF($DO87:DV87,$ED87:$IG87),0)),"") ->  | DX87: =IFERROR(INDEX($ED87:$IG87,MATCH(0,COUNTIF($DO87:DW87,$ED87:$IG87),0)),"") ->  | DY87: =IFERROR(INDEX($ED87:$IG87,MATCH(0,COUNTIF($DO87:DX87,$ED87:$IG87),0)),"") ->  | DZ87: =IFERROR(INDEX($ED87:$IG87,MATCH(0,COUNTIF($DO87:DY87,$ED87:$IG87),0)),"") ->  | EA87: =IFERROR(INDEX($ED87:$IG87,MATCH(0,COUNTIF($DO87:DZ87,$ED87:$IG87),0)),"") ->  | EN87: {Measure:Quantity} | EO87: {Capacity (MBTUH)} | IK87: 2
A88: C&I HVAC - Electric | B88: Variable Refrigerant Flow - Without Heat Recovery | C88: VRFWOHR | D88: 2019-07-01 | E88: 2020-06-30 | F88: Calculated | G88: {Measure:Quantity}*{Square Feet Served}*2.88 | H88: 0 | I88: Calculated | J88: {Measure:Quantity}*({Square Feet Served}*2.75) | K88: 0 | L88: 2019-07-01 | M88: 2020-06-30 | N88: Calculated | O88: {Measure:Quantity} * ({Capacity (kBtu/hr)}*(1/if({Capacity (kBtu/hr)}<135,12.9,if({Capacity (kBtu/hr)}<240,12.3,11))-1/{IEER})*829+{Square Feet Served}*47.4/3.412*(1/2.25-1/{COP})) | R88: Max({Square Feet Served}*47.4/3.412*(1/2.25-1/{COP})/1600,{Capacity (kBtu/hr)}*(1/if({Capacity (kBtu/hr)}<135,12.9,if({Capacity (kBtu/hr)}<240,12.3,11))-1/{IEER})) | U88: {Measure:Quantity} * ({Square Feet Served}*47.4/3.412*(1/2.25-1/{COP})/1600*{Factor:WinterCF}) | V88: {Measure:Quantity} * ({Capacity (kBtu/hr)}*(1/if({Capacity (kBtu/hr)}<135,12.9,if({Capacity (kBtu/hr)}<240,12.3,11))-1/{IEER})*{Factor:SummerCF}) | AC88: 2019-07-01 | AD88: 2020-06-30 | AE88: 20 | AF88: 0.42 | AG88: 0.357 | AH88: 0.17 | AI88: 0.03 | AJ88: 0.62 | AK88: 0.18 | AL88: 1 | AM88: 1.122 | AN88: 1 | AO88: 0.52 | AP88: 0.016 | AR88: {Measure:Quantity} | AS88: 1 | AT88: {Square Feet Served} | AU88: 5000 | AV88: {Capacity (kBtu/hr)} | AW88: 1000 | AX88: {IEER} | AY88: 20 | AZ88: {COP} | BA88: 3 | BL88: =AS88 * (AW88*(1/IF(AW88<135,12.9,IF(AW88<240,12.3,11))-1/AY88)*829+AU88*47.4/3.412*(1/2.25-1/BA88)) -> 41631.4949 | BM88: 0 | BN88: 0 | BO88: =MAX(AU88*47.4/3.412*(1/2.25-1/BA88)/1600,AW88*(1/IF(AW88<135,12.9,IF(AW88<240,12.3,11))-1/AY88)) -> 40.90909091 | BP88: 0 | BQ88: 0 | BR88: =AS88 * (AU88*47.4/3.412*(1/2.25-1/BA88)/1600*AF88) -> 2.025937866 | BS88: =AS88 * (AW88*(1/IF(AW88<135,12.9,IF(AW88<240,12.3,11))-1/AY88)*AG88) -> 14.60454545 | BT88: 0 | BU88: 0 | BV88: 0 | BW88: 0 | BX88: 0 | BY88: 0 | BZ88: Res | CA88: Default DR | CB88: =Benefits(BL88,BR88,BS88,BT88,BU88,BV88,BW88,BX88,BY88,AE88,AH88,AI88,AJ88,AK88,AL88,AM88,AN88,AO88,AP88,BZ88,CA88) -> 42500.76857 | CC88: 18187.42042 | CD88: 0 | CE88: 0 | CF88: 0 | CG88: 0 | CH88: 0 | CI88: 0 | CJ88: 60688.18899 | CK88: 0 | CM88: =AS88*AU88*2.88 -> 14400 | CP88: 14400 | CQ88: 1 | CR88: 4.214457569 | CS88: 1 | CT88: =AS88*3 -> 3 | CV88: Electric | CX88: X=AS88*AU88*2.88 | CZ88: X=AS88 * (AW88*(1/if(AW88<135,12.9,if(AW88<240,12.3,11))-1/AY88)*829+AU88*47.4/3.412*(1/2.25-1/BA88)) | DA88: 0 | DB88: 0 | DC88: X=Max(AU88*47.4/3.412*(1/2.25-1/BA88)/1600,AW88*(1/if(AW88<135,12.9,if(AW88<240,12.3,11))-1/AY88)) | DD88: 0 | DE88: 0 | DF88: X=AS88 * (AU88*47.4/3.412*(1/2.25-1/BA88)/1600*AF88) | DG88: X=AS88 * (AW88*(1/if(AW88<135,12.9,if(AW88<240,12.3,11))-1/AY88)*AG88) | DH88: 0 | DI88: 0 | DJ88: 0 | DK88: 0 | DL88: 0 | DM88: 0 | DP88: {Factor:WinterCF} | DQ88: {Factor:SummerCF} | DR88: =IFERROR(INDEX($ED88:$IG88,MATCH(0,COUNTIF($DO88:DQ88,$ED88:$IG88),0)),"") -> {Measure:Quantity} | DS88: =IFERROR(INDEX($ED88:$IG88,MATCH(0,COUNTIF($DO88:DR88,$ED88:$IG88),0)),"") -> {Square Feet Served} | DT88: =IFERROR(INDEX($ED88:$IG88,MATCH(0,COUNTIF($DO88:DS88,$ED88:$IG88),0)),"") -> {Capacity (kBtu/hr)} | DU88: =IFERROR(INDEX($ED88:$IG88,MATCH(0,COUNTIF($DO88:DT88,$ED88:$IG88),0)),"") -> {IEER} | DV88: =IFERROR(INDEX($ED88:$IG88,MATCH(0,COUNTIF($DO88:DU88,$ED88:$IG88),0)),"") -> {COP} | DW88: =IFERROR(INDEX($ED88:$IG88,MATCH(0,COUNTIF($DO88:DV88,$ED88:$IG88),0)),"") ->  | DX88: =IFERROR(INDEX($ED88:$IG88,MATCH(0,COUNTIF($DO88:DW88,$ED88:$IG88),0)),"") ->  | DY88: =IFERROR(INDEX($ED88:$IG88,MATCH(0,COUNTIF($DO88:DX88,$ED88:$IG88),0)),"") ->  | DZ88: =IFERROR(INDEX($ED88:$IG88,MATCH(0,COUNTIF($DO88:DY88,$ED88:$IG88),0)),"") ->  | EA88: =IFERROR(INDEX($ED88:$IG88,MATCH(0,COUNTIF($DO88:DZ88,$ED88:$IG88),0)),"") ->  | ED88: {Measure:Quantity} | EE88: {Square Feet Served} | EN88: {Measure:Quantity} | EO88: {Capacity (kBtu/hr)} | EP88: {Capacity (kBtu/hr)} | EQ88: {Capacity (kBtu/hr)} | ER88: {IEER} | ES88: {Square Feet Served} | ET88: {COP} | EX88: {Square Feet Served} | EY88: {COP} | EZ88: {Capacity (kBtu/hr)} | FA88: {Capacity (kBtu/hr)} | FB88: {Capacity (kBtu/hr)} | FC88: {IEER} | FH88: {Measure:Quantity} | FI88: {Square Feet Served} | FJ88: {COP} | FK88: {Factor:WinterCF} | FR88: {Measure:Quantity} | FS88: {Capacity (kBtu/hr)} | FT88: {Capacity (kBtu/hr)} | FU88: {Capacity (kBtu/hr)} | FV88: {IEER} | FW88: {Factor:SummerCF} | IK88: 5
A89: C&I HVAC - Electric | B89: Variable Refrigerant Flow - With Heat Recovery | C89: VRFWHR | D89: 2019-07-01 | E89: 2020-06-30 | F89: Calculated | G89: {Measure:Quantity}*{Square Feet Served}*3.37 | H89: 0 | I89: Calculated | J89: {Measure:Quantity}*{Square Feet Served}*3.25 | K89: 0 | L89: 2019-07-01 | M89: 2020-06-30 | N89: Calculated | O89: {Measure:Quantity} * ({Capacity (kBtu/hr)}*(1/if({Capacity (kBtu/hr)}<135,12.7,if({Capacity (kBtu/hr)}<240,12.1,10.4))-1/{IEER})*829+{Square Feet Served}*47.4/3.412*(1/2.25-1/{COP})) | R89: Max({Square Feet Served}*47.4/3.412*(1/2.25-1/{COP})/1600,{Capacity (kBtu/hr)}*(1/if({Capacity (kBtu/hr)}<135,12.7,if({Capacity (kBtu/hr)}<240,12.1,10.4))-1/{IEER})) | U89: {Measure:Quantity} * ({Square Feet Served}*47.4/3.412*(1/2.25-1/{COP})/1600*{Factor:WinterCF}) | V89: {Measure:Quantity} * ({Capacity (kBtu/hr)}*(1/if({Capacity (kBtu/hr)}<135,12.7,if({Capacity (kBtu/hr)}<240,12.1,10.4))-1/{IEER})*{Factor:SummerCF}) | AC89: 2019-07-01 | AD89: 2020-06-30 | AE89: 20 | AF89: 0.42 | AG89: 0.357 | AH89: 0.17 | AI89: 0.03 | AJ89: 0.62 | AK89: 0.18 | AL89: 1 | AM89: 1.122 | AN89: 1 | AO89: 0.52 | AP89: 0.016 | AR89: =DR89 -> {Measure:Quantity} | AS89: 1 | AT89: =DS89 -> {Square Feet Served} | AU89: 5000 | AV89: =DT89 -> {Capacity (kBtu/hr)} | AW89: 1000 | AX89: =DU89 -> {IEER} | AY89: 20 | AZ89: =DV89 -> {COP} | BA89: 3 | BB89: =DW89 ->  | BD89: =DX89 ->  | BF89: =DY89 ->  | BH89: =DZ89 ->  | BJ89: =EA89 ->  | BL89: =AS89 * (AW89*(1/IF(AW89<135,12.7,IF(AW89<240,12.1,10.4))-1/AY89)*829+AU89*47.4/3.412*(1/2.25-1/BA89)) -> 45979.397 | BM89: 0 | BN89: 0 | BO89: =MAX(AU89*47.4/3.412*(1/2.25-1/BA89)/1600,AW89*(1/IF(AW89<135,12.7,IF(AW89<240,12.1,10.4))-1/AY89)) -> 46.15384615 | BP89: 0 | BQ89: 0 | BR89: =AS89 * (AU89*47.4/3.412*(1/2.25-1/BA89)/1600*AF89) -> 2.025937866 | BS89: =AS89 * (AW89*(1/IF(AW89<135,12.7,IF(AW89<240,12.1,10.4))-1/AY89)*AG89) -> 16.47692308 | BT89: 0 | BU89: 0 | BV89: 0 | BW89: 0 | BX89: 0 | BY89: 0 | BZ89: Res | CA89: Default DR | CB89: =Benefits(BL89,BR89,BS89,BT89,BU89,BV89,BW89,BX89,BY89,AE89,AH89,AI89,AJ89,AK89,AL89,AM89,AN89,AO89,AP89,BZ89,CA89) -> 46939.4557 | CC89: 20012.72864 | CD89: 0 | CE89: 0 | CF89: 0 | CG89: 0 | CH89: 0 | CI89: 0 | CJ89: =(--(CB89>0))*CB89+(--(CC89>0))*CC89+(--(CD89>0))*CD89+(--(CE89>0))*CE89+(--(CF89>0))*CF89+(--(CG89>0))*CG89+(--(CH89>0))*CH89+(--(CI89>0))*CI89 -> 66952.18435 | CK89: =(--(CB89<0))*-CB89+(--(CC89<0))*-CC89+(--(CD89<0))*-CD89+(--(CE89<0))*-CE89+(--(CF89<0))*-CF89+(--(CG89<0))*-CG89+(--(CH89<0))*-CH89+(--(CI89<0))*-CI89 -> 0 | CM89: =AS89*AU89*3.37 -> 16850 | CP89: =CK89+CM89 -> 16850 | CQ89: =IF(NetOrGross="Net",(1-AO89+AP89),1) -> 1 | CR89: =(SUMPRODUCT(CB89:CI89,--(CB89:CI89>0))+CL89)*CQ89/((-SUMPRODUCT(CB89:CI89,--(CB89:CI89<0))+MAX(CM89,CT89)+CN89+CO89)*CQ89+IF(FRIncentives="Yes",CT89*(1-CQ89),0)) -> 3.973423403 | CS89: 1 | CT89: =AS89*3 -> 3 | CV89: Electric | CX89: =IF(G89="",0,"X="&SUBSTITUTE(SUBSTITUTE(SUBSTITUTE(SUBSTITUTE(SUBSTITUTE(SUBSTITUTE(SUBSTITUTE(SUBSTITUTE(SUBSTITUTE(SUBSTITUTE(SUBSTITUTE(SUBSTITUTE(G89,$EA89,$EA$2&ROW($EA89)),$DZ89,$DZ$2&ROW($DZ89)),$DY89,$DY$2&ROW($DY89)),$DX89,$DX$2&ROW($DX89)),$DW89,$DW$2&ROW($DW89)),$DV89,$DV$2&ROW($DV89)),$DU89,$DU$2&ROW($DU89)),$DT89,$DT$2&ROW($DT89)),$DS89,$DS$2&ROW($DS89)),$DR89,$DR$2&ROW($DR89)),$DQ89,$DQ$2&ROW($DQ89)),$DP89,$DP$2&ROW($DP89))) -> X=AS89*AU89*3.37 | CZ89: =IF(O89="",0,"X="&SUBSTITUTE(SUBSTITUTE(SUBSTITUTE(SUBSTITUTE(SUBSTITUTE(SUBSTITUTE(SUBSTITUTE(SUBSTITUTE(SUBSTITUTE(SUBSTITUTE(SUBSTITUTE(SUBSTITUTE(O89,$EA89,$EA$2&ROW($EA89)),$DZ89,$DZ$2&ROW($DZ89)),$DY89,$DY$2&ROW($DY89)),$DX89,$DX$2&ROW($DX89)),$DW89,$DW$2&ROW($DW89)),$DV89,$DV$2&ROW($DV89)),$DU89,$DU$2&ROW($DU89)),$DT89,$DT$2&ROW($DT89)),$DS89,$DS$2&ROW($DS89)),$DR89,$DR$2&ROW($DR89)),$DQ89,$DQ$2&ROW($DQ89)),$DP89,$DP$2&ROW($DP89))) -> X=AS89 * (AW89*(1/if(AW89<135,12.7,if(AW89<240,12.1,10.4))-1/AY89)*829+AU89*47.4/3.412*(1/2.25-1/BA89)) | DA89: =IF(P89="",0,"X="&SUBSTITUTE(SUBSTITUTE(SUBSTITUTE(SUBSTITUTE(SUBSTITUTE(SUBSTITUTE(SUBSTITUTE(SUBSTITUTE(SUBSTITUTE(SUBSTITUTE(SUBSTITUTE(SUBSTITUTE(P89,$EA89,$EA$2&ROW($EA89)),$DZ89,$DZ$2&ROW($DZ89)),$DY89,$DY$2&ROW($DY89)),$DX89,$DX$2&ROW($DX89)),$DW89,$DW$2&ROW($DW89)),$DV89,$DV$2&ROW($DV89)),$DU89,$DU$2&ROW($DU89)),$DT89,$DT$2&ROW($DT89)),$DS89,$DS$2&ROW($DS89)),$DR89,$DR$2&ROW($DR89)),$DQ89,$DQ$2&ROW($DQ89)),$DP89,$DP$2&ROW($DP89))) -> 0 | DB89: =IF(Q89="",0,"X="&SUBSTITUTE(SUBSTITUTE(SUBSTITUTE(SUBSTITUTE(SUBSTITUTE(SUBSTITUTE(SUBSTITUTE(SUBSTITUTE(SUBSTITUTE(SUBSTITUTE(SUBSTITUTE(SUBSTITUTE(Q89,$EA89,$EA$2&ROW($EA89)),$DZ89,$DZ$2&ROW($DZ89)),$DY89,$DY$2&ROW($DY89)),$DX89,$DX$2&ROW($DX89)),$DW89,$DW$2&ROW($DW89)),$DV89,$DV$2&ROW($DV89)),$DU89,$DU$2&ROW($DU89)),$DT89,$DT$2&ROW($DT89)),$DS89,$DS$2&ROW($DS89)),$DR89,$DR$2&ROW($DR89)),$DQ89,$DQ$2&ROW($DQ89)),$DP89,$DP$2&ROW($DP89))) -> 0 | DC89: =IF(R89="",0,"X="&SUBSTITUTE(SUBSTITUTE(SUBSTITUTE(SUBSTITUTE(SUBSTITUTE(SUBSTITUTE(SUBSTITUTE(SUBSTITUTE(SUBSTITUTE(SUBSTITUTE(SUBSTITUTE(SUBSTITUTE(R89,$EA89,$EA$2&ROW($EA89)),$DZ89,$DZ$2&ROW($DZ89)),$DY89,$DY$2&ROW($DY89)),$DX89,$DX$2&ROW($DX89)),$DW89,$DW$2&ROW($DW89)),$DV89,$DV$2&ROW($DV89)),$DU89,$DU$2&ROW($DU89)),$DT89,$DT$2&ROW($DT89)),$DS89,$DS$2&ROW($DS89)),$DR89,$DR$2&ROW($DR89)),$DQ89,$DQ$2&ROW($DQ89)),$DP89,$DP$2&ROW($DP89))) -> X=Max(AU89*47.4/3.412*(1/2.25-1/BA89)/1600,AW89*(1/if(AW89<135,12.7,if(AW89<240,12.1,10.4))-1/AY89)) | DD89: =IF(S89="",0,"X="&SUBSTITUTE(SUBSTITUTE(SUBSTITUTE(SUBSTITUTE(SUBSTITUTE(SUBSTITUTE(SUBSTITUTE(SUBSTITUTE(SUBSTITUTE(SUBSTITUTE(SUBSTITUTE(SUBSTITUTE(S89,$EA89,$EA$2&ROW($EA89)),$DZ89,$DZ$2&ROW($DZ89)),$DY89,$DY$2&ROW($DY89)),$DX89,$DX$2&ROW($DX89)),$DW89,$DW$2&ROW($DW89)),$DV89,$DV$2&ROW($DV89)),$DU89,$DU$2&ROW($DU89)),$DT89,$DT$2&ROW($DT89)),$DS89,$DS$2&ROW($DS89)),$DR89,$DR$2&ROW($DR89)),$DQ89,$DQ$2&ROW($DQ89)),$DP89,$DP$2&ROW($DP89))) -> 0 | DE89: =IF(T89="",0,"X="&SUBSTITUTE(SUBSTITUTE(SUBSTITUTE(SUBSTITUTE(SUBSTITUTE(SUBSTITUTE(SUBSTITUTE(SUBSTITUTE(SUBSTITUTE(SUBSTITUTE(SUBSTITUTE(SUBSTITUTE(T89,$EA89,$EA$2&ROW($EA89)),$DZ89,$DZ$2&ROW($DZ89)),$DY89,$DY$2&ROW($DY89)),$DX89,$DX$2&ROW($DX89)),$DW89,$DW$2&ROW($DW89)),$DV89,$DV$2&ROW($DV89)),$DU89,$DU$2&ROW($DU89)),$DT89,$DT$2&ROW($DT89)),$DS89,$DS$2&ROW($DS89)),$DR89,$DR$2&ROW($DR89)),$DQ89,$DQ$2&ROW($DQ89)),$DP89,$DP$2&ROW($DP89))) -> 0 | DF89: =IF(U89="",0,"X="&SUBSTITUTE(SUBSTITUTE(SUBSTITUTE(SUBSTITUTE(SUBSTITUTE(SUBSTITUTE(SUBSTITUTE(SUBSTITUTE(SUBSTITUTE(SUBSTITUTE(SUBSTITUTE(SUBSTITUTE(U89,$EA89,$EA$2&ROW($EA89)),$DZ89,$DZ$2&ROW($DZ89)),$DY89,$DY$2&ROW($DY89)),$DX89,$DX$2&ROW($DX89)),$DW89,$DW$2&ROW($DW89)),$DV89,$DV$2&ROW($DV89)),$DU89,$DU$2&ROW($DU89)),$DT89,$DT$2&ROW($DT89)),$DS89,$DS$2&ROW($DS89)),$DR89,$DR$2&ROW($DR89)),$DQ89,$DQ$2&ROW($DQ89)),$DP89,$DP$2&ROW($DP89))) -> X=AS89 * (AU89*47.4/3.412*(1/2.25-1/BA89)/1600*AF89) | DG89: =IF(V89="",0,"X="&SUBSTITUTE(SUBSTITUTE(SUBSTITUTE(SUBSTITUTE(SUBSTITUTE(SUBSTITUTE(SUBSTITUTE(SUBSTITUTE(SUBSTITUTE(SUBSTITUTE(SUBSTITUTE(SUBSTITUTE(V89,$EA89,$EA$2&ROW($EA89)),$DZ89,$DZ$2&ROW($DZ89)),$DY89,$DY$2&ROW($DY89)),$DX89,$DX$2&ROW($DX89)),$DW89,$DW$2&ROW($DW89)),$DV89,$DV$2&ROW($DV89)),$DU89,$DU$2&ROW($DU89)),$DT89,$DT$2&ROW($DT89)),$DS89,$DS$2&ROW($DS89)),$DR89,$DR$2&ROW($DR89)),$DQ89,$DQ$2&ROW($DQ89)),$DP89,$DP$2&ROW($DP89))) -> X=AS89 * (AW89*(1/if(AW89<135,12.7,if(AW89<240,12.1,10.4))-1/AY89)*AG89) | DH89: =IF(W89="",0,"X="&SUBSTITUTE(SUBSTITUTE(SUBSTITUTE(SUBSTITUTE(SUBSTITUTE(SUBSTITUTE(SUBSTITUTE(SUBSTITUTE(SUBSTITUTE(SUBSTITUTE(SUBSTITUTE(SUBSTITUTE(W89,$EA89,$EA$2&ROW($EA89)),$DZ89,$DZ$2&ROW($DZ89)),$DY89,$DY$2&ROW($DY89)),$DX89,$DX$2&ROW($DX89)),$DW89,$DW$2&ROW($DW89)),$DV89,$DV$2&ROW($DV89)),$DU89,$DU$2&ROW($DU89)),$DT89,$DT$2&ROW($DT89)),$DS89,$DS$2&ROW($DS89)),$DR89,$DR$2&ROW($DR89)),$DQ89,$DQ$2&ROW($DQ89)),$DP89,$DP$2&ROW($DP89))) -> 0 | DI89: =IF(X89="",0,"X="&SUBSTITUTE(SUBSTITUTE(SUBSTITUTE(SUBSTITUTE(SUBSTITUTE(SUBSTITUTE(SUBSTITUTE(SUBSTITUTE(SUBSTITUTE(SUBSTITUTE(SUBSTITUTE(SUBSTITUTE(X89,$EA89,$EA$2&ROW($EA89)),$DZ89,$DZ$2&ROW($DZ89)),$DY89,$DY$2&ROW($DY89)),$DX89,$DX$2&ROW($DX89)),$DW89,$DW$2&ROW($DW89)),$DV89,$DV$2&ROW($DV89)),$DU89,$DU$2&ROW($DU89)),$DT89,$DT$2&ROW($DT89)),$DS89,$DS$2&ROW($DS89)),$DR89,$DR$2&ROW($DR89)),$DQ89,$DQ$2&ROW($DQ89)),$DP89,$DP$2&ROW($DP89))) -> 0 | DJ89: =IF(Y89="",0,"X="&SUBSTITUTE(SUBSTITUTE(SUBSTITUTE(SUBSTITUTE(SUBSTITUTE(SUBSTITUTE(SUBSTITUTE(SUBSTITUTE(SUBSTITUTE(SUBSTITUTE(SUBSTITUTE(SUBSTITUTE(Y89,$EA89,$EA$2&ROW($EA89)),$DZ89,$DZ$2&ROW($DZ89)),$DY89,$DY$2&ROW($DY89)),$DX89,$DX$2&ROW($DX89)),$DW89,$DW$2&ROW($DW89)),$DV89,$DV$2&ROW($DV89)),$DU89,$DU$2&ROW($DU89)),$DT89,$DT$2&ROW($DT89)),$DS89,$DS$2&ROW($DS89)),$DR89,$DR$2&ROW($DR89)),$DQ89,$DQ$2&ROW($DQ89)),$DP89,$DP$2&ROW($DP89))) -> 0 | DK89: =IF(Z89="",0,"X="&SUBSTITUTE(SUBSTITUTE(SUBSTITUTE(SUBSTITUTE(SUBSTITUTE(SUBSTITUTE(SUBSTITUTE(SUBSTITUTE(SUBSTITUTE(SUBSTITUTE(SUBSTITUTE(SUBSTITUTE(Z89,$EA89,$EA$2&ROW($EA89)),$DZ89,$DZ$2&ROW($DZ89)),$DY89,$DY$2&ROW($DY89)),$DX89,$DX$2&ROW($DX89)),$DW89,$DW$2&ROW($DW89)),$DV89,$DV$2&ROW($DV89)),$DU89,$DU$2&ROW($DU89)),$DT89,$DT$2&ROW($DT89)),$DS89,$DS$2&ROW($DS89)),$DR89,$DR$2&ROW($DR89)),$DQ89,$DQ$2&ROW($DQ89)),$DP89,$DP$2&ROW($DP89))) -> 0 | DL89: =IF(AA89="",0,"X="&SUBSTITUTE(SUBSTITUTE(SUBSTITUTE(SUBSTITUTE(SUBSTITUTE(SUBSTITUTE(SUBSTITUTE(SUBSTITUTE(SUBSTITUTE(SUBSTITUTE(SUBSTITUTE(SUBSTITUTE(AA89,$EA89,$EA$2&ROW($EA89)),$DZ89,$DZ$2&ROW($DZ89)),$DY89,$DY$2&ROW($DY89)),$DX89,$DX$2&ROW($DX89)),$DW89,$DW$2&ROW($DW89)),$DV89,$DV$2&ROW($DV89)),$DU89,$DU$2&ROW($DU89)),$DT89,$DT$2&ROW($DT89)),$DS89,$DS$2&ROW($DS89)),$DR89,$DR$2&ROW($DR89)),$DQ89,$DQ$2&ROW($DQ89)),$DP89,$DP$2&ROW($DP89))) -> 0 | DM89: =IF(AB89="",0,"X="&SUBSTITUTE(SUBSTITUTE(SUBSTITUTE(SUBSTITUTE(SUBSTITUTE(SUBSTITUTE(SUBSTITUTE(SUBSTITUTE(SUBSTITUTE(SUBSTITUTE(SUBSTITUTE(SUBSTITUTE(AB89,$EA89,$EA$2&ROW($EA89)),$DZ89,$DZ$2&ROW($DZ89)),$DY89,$DY$2&ROW($DY89)),$DX89,$DX$2&ROW($DX89)),$DW89,$DW$2&ROW($DW89)),$DV89,$DV$2&ROW($DV89)),$DU89,$DU$2&ROW($DU89)),$DT89,$DT$2&ROW($DT89)),$DS89,$DS$2&ROW($DS89)),$DR89,$DR$2&ROW($DR89)),$DQ89,$DQ$2&ROW($DQ89)),$DP89,$DP$2&ROW($DP89))) -> 0 | DP89: {Factor:WinterCF} | DQ89: {Factor:SummerCF} | DR89: =IFERROR(INDEX($ED89:$IG89,MATCH(0,COUNTIF($DO89:DQ89,$ED89:$IG89),0)),"") -> {Measure:Quantity} | DS89: =IFERROR(INDEX($ED89:$IG89,MATCH(0,COUNTIF($DO89:DR89,$ED89:$IG89),0)),"") -> {Square Feet Served} | DT89: =IFERROR(INDEX($ED89:$IG89,MATCH(0,COUNTIF($DO89:DS89,$ED89:$IG89),0)),"") -> {Capacity (kBtu/hr)} | DU89: =IFERROR(INDEX($ED89:$IG89,MATCH(0,COUNTIF($DO89:DT89,$ED89:$IG89),0)),"") -> {IEER} | DV89: =IFERROR(INDEX($ED89:$IG89,MATCH(0,COUNTIF($DO89:DU89,$ED89:$IG89),0)),"") -> {COP} | DW89: =IFERROR(INDEX($ED89:$IG89,MATCH(0,COUNTIF($DO89:DV89,$ED89:$IG89),0)),"") ->  | DX89: =IFERROR(INDEX($ED89:$IG89,MATCH(0,COUNTIF($DO89:DW89,$ED89:$IG89),0)),"") ->  | DY89: =IFERROR(INDEX($ED89:$IG89,MATCH(0,COUNTIF($DO89:DX89,$ED89:$IG89),0)),"") ->  | DZ89: =IFERROR(INDEX($ED89:$IG89,MATCH(0,COUNTIF($DO89:DY89,$ED89:$IG89),0)),"") ->  | EA89: =IFERROR(INDEX($ED89:$IG89,MATCH(0,COUNTIF($DO89:DZ89,$ED89:$IG89),0)),"") ->  | ED89: {Measure:Quantity} | EE89: {Square Feet Served} | EN89: {Measure:Quantity} | EO89: {Capacity (kBtu/hr)} | EP89: {Capacity (kBtu/hr)} | EQ89: {Capacity (kBtu/hr)} | ER89: {IEER} | ES89: {Square Feet Served} | ET89: {COP} | EX89: {Square Feet Served} | EY89: {COP} | EZ89: {Capacity (kBtu/hr)} | FA89: {Capacity (kBtu/hr)} | FB89: {Capacity (kBtu/hr)} | FC89: {IEER} | FH89: {Measure:Quantity} | FI89: {Square Feet Served} | FJ89: {COP} | FK89: {Factor:WinterCF} | FR89: {Measure:Quantity} | FS89: {Capacity (kBtu/hr)} | FT89: {Capacity (kBtu/hr)} | FU89: {Capacity (kBtu/hr)} | FV89: {IEER} | FW89: {Factor:SummerCF} | IK89: =10-COUNTIF(DR89:EA89,"") -> 5
